Workbook

Sheet calculations
A1: 1 | B1: =A1+1 -> 2 | C1: =B1+1 -> 3 | D1: 4 | E1: 5 | F1: 6 | G1: 7 | H1: 8 | I1: 9 | J1: 10 | K1: 11 | L1: 12 | M1: 13 | N1: 14 | O1: 15 | P1: 16 | Q1: 17 | R1: 18 | S1: 19 | T1: 20 | U1: 21 | V1: 22 | W1: 23 | X1: 24 | Y1: 25 | Z1: 26 | AA1: 27 | AB1: 28 | AC1: 29 | AD1: 30 | AE1: 31 | AF1: 32 | AG1: 33 | AH1: 34 | AI1: 35 | AJ1: 36 | AK1: 37 | AL1: 38 | AM1: 39 | AN1: 40 | AO1: 41 | AP1: 42 | AQ1: 43 | AR1: 44 | AS1: 45 | AT1: 46 | AU1: 47 | AV1: 48 | AW1: 49 | AX1: 50 | AY1: 51 | AZ1: 52 | BA1: 53 | BB1: 54 | BC1: 55 | BD1: 56 | BE1: 57 | BF1: 58 | BG1: 59 | BH1: 60 | BI1: 61 | BJ1: 62 | BK1: 63 | BL1: 64 | BM1: 65 | BN1: 66 | BO1: 67 | BP1: 68 | BQ1: =BP1+1 -> 69 | BR1: 70 | BS1: 71 | BT1: 72 | BU1: 73 | BV1: 74 | BW1: 75 | BX1: 76 | BY1: 77 | BZ1: 78 | CA1: 79 | CB1: 80 | CC1: 81 | CD1: 82 | CE1: 83 | CF1: 84 | CG1: 85 | CH1: 86 | CI1: 87 | CJ1: 88 | CK1: 89 | CL1: 90 | CM1: 91 | CN1: 92 | CO1: 93 | CP1: 94 | CQ1: 95 | CR1: 96 | CS1: 97 | CT1: 98 | CU1: 99 | CV1: 100 | CW1: 101 | CX1: 102 | CY1: 103 | CZ1: 104 | DA1: 105 | DB1: 106 | DC1: 107 | DD1: 108 | DE1: 109 | DF1: 110 | DG1: 111 | DH1: 112 | DI1: 113 | DJ1: 114 | DK1: 115 | DL1: 116 | DM1: 117 | DN1: 118 | DO1: 119 | DP1: 120
A2: 0 | C2: time | D2: =AF2*dt -> 0.88 | I2: current x | J2: currenty | K2: For the rotating frame: aX = Ax·cosωt+Ay sinωΤ+2Ω(-Vx*sinωt+Vy cosωt)-ω² (X cosωt+Y sinωt) | AF2: 88 | DE2: taxXom(kkk) = (taxYx(kkk) - omega * thesiY(kkk)) * Cos(thesiG(kkk)) - (taxYy(kkk) + omega * thesiX(kkk) * Sin(thesiG(kkk)))
I3: =D12 -> 0.9121154791 | J3: =E12 -> 0.2773625246 | M3: ay = -Ax sinωt+Ay cosωt+2ω( -Vx cosωt-Vy sinωt) -ω²(-X sinωt+Ycosωt) | DE3: taxYom(kkk) = (taxYx(kkk) - omega * thesiY(kkk)) * Sin(thesiG(kkk)) - (taxYy(kkk) + omega * thesiX(kkk) * Cos(thesiG(kkk)))
A4: g | B4: 9.81 | D4: =VLOOKUP(D2,A17:E467,2) -> 0.9121154791 | I4: 70 | J4: 70 | M4: vxom | N4: vyom | P4: x=X*cosωt+Y*sinωt | R4: vx=Vx*cosωτ-ωX*sinωt+Vy*sinωt+ωY*cosωt | DE4: thesiXom(kkk) = thesiX(kkk) * Cos(thesiG(kkk)) - thesiY(kkk) * Sin(thesiG(kkk))
A5: statherifoucault | B5: 30 | D5: TEXTBOOK | E5: NO | F5: YES IF IT IS AS IN TEXTBOOKS | P5: y=-X*sinωt+Y*cosωt | R5: vy=-Vx*sinωt-ωX*cosωt+Vy*cosωt-ωY*sinωt
A6: omega | B6: -1 | D6: FOUCAULT | I6: =D10/5 -> -0.04839312923 | J6: =E10/5 -> 5.62047954 | K6: =D8/20 -> -1.368173219 | L6: =E8/20 -> -0.4160437868 | M6: =F10/5 -> -4.502301721 | N6: =G10/5 -> 3.662478161 | Q6: =(D8*COS(omega*D2)+E8*SIN(omega*D2)+2*omega*(-D10*SIN(omega*D2)+E10*COS(omega*D2))-omega^2*(D12*COS(omega*D2)+E12*SIN(omega*D2)))/20 -> -2.341339329 | R6: =(-D8*SIN(omega*D2)+E8*COS(omega*D2)+2*omega*(-D10*COS(omega*D2)-E10*SIN(omega*D2))-omega^2*(-D12*SIN(omega*D2)+E12*COS(omega*D2)))/20 -> -3.544951221 | DE6: thesiYom(kkk) = thesiX(kkk) * Sin(thesiG(kkk)) + thesiY(kkk) * Cos(thesiG(kkk))
A7: v0 | B7: =IF(TEXTBOOK="YES",0,omega*R0) -> -5 | D7: current ax | E7: current ay | F7: cuurent axo | G7: current ayo | I7: vx | J7: vy | K7: ax | L7: ay | M7: vxom | N7: vyom | Q7: axom | R7: ayom | DE7: AXOM-=(AX-OMEGA*VY)*COS(F)-(VX-OMEG*Y)*SIN(F)*OMEGA-(AY+OMEGA*VX)*SIN(F)-(VY+OMEGA*X)*COS(F)*OMEGA
A8: R0 | B8: 5 | D8: =VLOOKUP($D$2,$A$16:L464,11) -> -27.36346437 | E8: =VLOOKUP($D$2,$A$16:$L$464,12) -> -8.320875737 | F8: =AX_CUR*COS(omega*$D$2)+AY_CUR*SIN(omega*$D$2)+2*omega*(-VX_CUR*SIN(omega*$D$2)+VY_CUR*COS(omega*$D$2))-omega^2*(X_CUR*COS(omega*$D$2)+Y_CUR*SIN(omega*$D$2)) -> -46.82678657 | G8: =-AX_CUR*SIN(omega*$D$2)+AY_CUR*COS(omega*$D$2)+2*omega*(-VX_CUR*COS(omega*$D$2)-VY_CUR*SIN(omega*$D$2))-omega^2*(-X_CUR*SIN(omega*$D$2)+Y_CUR*COS(omega*$D$2)) -> -70.89902443 | I8: =D12 -> 0.9121154791 | J8: =E12 -> 0.2773625246 | K8: =D12 -> 0.9121154791 | L8: =E12 -> 0.2773625246 | M8: =F12 -> 0.1597072652 | N8: =G12 -> 1.05366277 | Q8: =F12 -> 0.1597072652 | R8: =G12 -> 1.05366277 | BC8: (12/13-3/8)dt | BP8: (1-12/13)dt | DE8: AYOM=(AX-OMEGA*VY)*SIN(F)-(VX-OMEGA*Y)*COS(F)*OMEGA-(AY_OMEGA*vx)*cos(f)+(vy+OMEGA*X)*SIN(F)*OMEGA
A9: mass | B9: 1 | D9: cuurentvx | E9: currentvy | F9: currentvxo | G9: currentvy | I9: =I8+I6 -> 0.8637223499 | J9: 5.897842064 | K9: =(K8+K6) -> -0.4560577395 | L9: =(L8+L6) -> -0.1386812623 | M9: -4.342594456 | N9: 4.71614093 | Q9: =Q6+Q8 -> -2.181632063 | R9: =R6+R8 -> -2.491288452 | AE9: =Z19-Z18 -> 0.01 | BB9: =12/13-3/8 -> 0.5480769231 | BC9: =BB9*dt -> 0.005480769231 | BO9: =1-12/13 -> 0.07692307692 | BP9: =BO9*dt -> 0.0007692307692 | CH9: k2(i) = deltaX * MyArrFx(x + deltaX / 4, Y(), i)
A10: mew | B10: 0 | D10: =VLOOKUP($D$2,$A$17:L464,4) -> -0.2419656462 | E10: =VLOOKUP($D$2,$A$17:$L$467,5) -> 28.1023977 | F10: =VLOOKUP($D$2,A17:DP467,15) -> -22.51150861 | G10: =VLOOKUP($D$2,A17:DP467,16) -> 18.3123908 | I10: =-1/20*J6+18/20*I6+I8 -> 0.5875376858 | J10: =1/20*I6+18/20*J6+J8 -> 5.333374454 | K10: =-1/20*L6+18/20*K6+K8 -> -0.2984382283 | L10: =1/20*K6+18/20*L6+L8 -> -0.1654855445 | M10: =-1/20*N6+18/20*M6+M8 -> -4.075488192 | N10: =1/20*M6+18/20*N6+N8 -> 4.124778028 | Q10: =-1/20*R6+18/20*Q6+Q8 -> -1.770250569 | R10: =1/20*Q6+18/20*R6+R8 -> -2.253860296 | BB10: =AX18-AL18 -> 0.005480769231 | BY10: k1(I) = deltax * MyRelFx(x, y(), I, Vxframe0, Vyframe0, synTELetrivis) | CX10: k4(I) = deltax * MyRelFx(x + 12# / 13 * deltax, y(), I, Vxframe0, Vyframe0, synTELetrivis)
A11: dt | B11: 0.01 | D11: currentx | E11: currenty | F11: current xω | G11: current yω | I11: =1/20*J6+18/20*I6+I8 -> 1.14958564 | J11: =-1/20*I6+18/20*J6+J8 -> 5.338213767 | K11: =1/20*L6+18/20*K6+K8 -> -0.340042607 | L11: =-1/20*K6+18/20*L6+L8 -> -0.02866822267 | M11: =1/20*N6+18/20*M6+M8 -> -3.709240376 | N11: =-1/20*M6+18/20*N6+N8 -> 4.5750082 | Q11: =1/20*R6+18/20*Q6+Q8 -> -2.124745692 | R11: =-1/20*Q6+18/20*R6+R8 -> -2.019726363 | AD11: MYARRX | AQ11: =3/8-1/4 -> 0.125 | BB11: =AX18-AL18 -> 0.005480769231 | CL11: y(I) = y0(I) + 3# / 32 * (k1(I) + 3 * k2(I)) | CP11: k3(I) = deltax * MyRelFx(x + 3# / 8 * deltax, y(), I, Vxframe0, Vyframe0, synTELetrivis) | DF11: k5(I) = deltax * MyRelFx(x + deltax, y(), I, Vxframe0, Vyframe0, synTELetrivis)
A12: theta | B12: 2.011 | D12: =VLOOKUP(D2,A17:B464,2) -> 0.9121154791 | E12: =VLOOKUP(D2,A17:C464,3) -> 0.2773625246 | F12: =VLOOKUP(D2,A17:DP467,114) -> 0.1597072652 | G12: =VLOOKUP(D2,A17:DP467,115) -> 1.05366277 | I12: =I9 -> 0.8637223499 | J12: 5.897842064 | K12: -0.4560577395 | L12: -0.1386812623 | M12: -4.342594456 | N12: 4.71614093 | Q12: =Q9 -> -2.181632063 | R12: =R9 -> -2.491288452 | CD12: y(I) = y0(I) + k1(I) / 4 | CH12: k2(I) = deltax * MyRelFx(x + deltax / 4, y(), I, Vxframe0, Vyframe0, synTELetrivis) | CT12: y(I) = y0(I) + 1932# / 2197 * k1(I) - 7200# / 2197 * k2(I) + 7296# / 2197 * k3(I) | DB12: y(I) = y0(I) + 439# / 216 * k1(I) - 8 * k2(I) + 3680# / 513 * k3(I) - 845# / 4104 * k4(I) | DJ12: y1(I) = y0(I) + 25# / 216 * k1(I) + 1408# / 2565 * k3(I) + 2197# / 4104 * k4(I) - k5(I) / 5
D13: X(T-DT) | E13: Y(T-DT) | F13: xω(T=DT) | G13: yωT-DT) | I13: DX | J13: DY | K13: N | L13: NX | M13: NY | N13: APERP | O13: VSQUARE | P13: R_KAMP | Q13: RX | R13: RY | S13: DXΩ | T13: DYΩ | U13: NOM | V13: NXOM | W13: NYOM | X13: APERP)OM | Y13: VSQUOM | Z13: R_OM | AA13: RXOM | AB13: RYOM
D14: =VLOOKUP(D2-dt,A17:B466,2) -> 0.9131718767 | E14: =VLOOKUP($D$2-dt,A17:C466,3) -> -0.003281459627 | F14: =VLOOKUP($D$2-dt,A17:DP469,114) -> 0.3849011874 | G14: =VLOOKUP($D$2-dt,A17:DP469,115) -> 0.8722016356 | I14: =D12-D14 -> -0.001056397651 | J14: =E12-E14 -> 0.2806439842 | K14: =-I14/J14 -> 0.003764191326 | L14: =1/SQRT(1+K14^2) -> 0.9999929155 | M14: =K14*L14 -> 0.003764164659 | N14: =AX_CUR*NX+AY_CUR*NY -> -27.39459166 | O14: =(VX_CUR^2+VY_CUR^2) -> 789.8033037 | P14: =VSQUARE/A_PERP -> -28.83062881 | Q14: =X_CUR+R_KAMP*NX -> -27.91830908 | R14: =Y_CUR+R_KAMP*NY -> 0.1688392905 | S14: =F12-F14 -> -0.2251939222 | T14: =G12-G14 -> 0.1814611341 | U14: =-S14/T14 -> 1.241003608 | V14: =1/SQRT(1+U14^2) -> 0.6274446945 | W14: =U14*V14 -> 0.77866113 | X14: =AXOM_CUR*NXOM+AYOM_CUR*NYOM -> -84.58753327 | Y14: =VXO^2+VYO^2 -> 842.1116766 | Z14: =Y14/X14 -> -9.955505783 | AA14: =XOM_CUR+R_OM*NXOM -> -6.08682202 | AB14: =YOM_CUR+R_OM*NYOM -> -6.698302612
B16: x | C16: y | D16: vx | E16: vy | F16: r | G16: theta | H16: DEGREES | I16: Friction x | J16: Friction y | K16: ax | L16: ay | M16: vxrel | N16: vyrel | O16: vxom | P16: vyom | Q16: vxfram | R16: vyframe | S16: dxr/dt | T16: dyr/dt | U16: v1rel | V16: vrel | W16: vtotal | X16: XREL | Y16: YREL | Z16: t + dt / 4 | AA16: x(t+dt/4) | AB16: y(t+dt/4) | AC16: vx(t+dt/4) | AD16: vy(t+dt/4) | AE16: ax(t) | AF16: ay(t) | AG16: vrelx | AH16: vrely | AI16: vrel | AJ16: vframex | AK16: vframey | AL16: t + 3dt / 8 | AM16: x(t+3dt/8) | AN16: y(t+3dt/8) | AO16: vx(t+3dt/8) | AP16: vy(t+3dt/8) | AQ16: ax(t) | AR16: ay(t) | AS16: vrelx | AT16: vrely | AU16: vrel | AV16: vframex | AW16: vframey | AX16: t+12/13dt | AY16: x(t+12/13dt) | AZ16: y(t+12/13dt) | BA16: vx(t+12/13dt) | BB16: vy(t+12/13dt) | BC16: ax(t) | BD16: ay(t) | BE16: vrelx | BF16: vrely | BG16: vrel | BH16: vframex | BI16: vframey | BJ16: t+dt | BK16: x(t+dt) | BL16: y(t+12/13dt) | BM16: vx(t+12/13dt) | BN16: vy(t+12/13dt) | BO16: ax(t) | BP16: ay(t) | BQ16: vrelx | BR16: vrely | BS16: vrel | BT16: vframex | BU16: vframey | BV16: k1x | BW16: k1y | BX16: k1vx | BY16: k1vy | BZ16: x=x0+k1/4 | CA16: y=y0+k1y/4 | CB16: vx=vx0+k1vx/4 | CC16: vy=vy0+k1vy/4 | CD16: k2x | CE16: k2y | CF16: k2vx | CG16: `k2vy | CH16: x=x0_3/32(k1+3k2) | CI16: y | CJ16: vx | CK16: vy | CL16: k3x | CM16: k3y | CN16: k3vx | CO16: k3vy | CP16: x | CQ16: y | CR16: vx | CS16: vy | CT16: k4x | CU16: k4y | CV16: k4vx | CW16: k4vy | CX16: x | CY16: y | CZ16: vx | DA16: vy | DB16: k5x | DC16: k5y | DD16: k5vx | DE16: k5vy | DF16: x | DG16: y | DH16: vx | DI16: vy | DJ16: XREL | DK16: YREL | DL16: VXREL | DM16: VYRL | DN16: VRE | DO16: ax | DP16: ay
A17: =0 -> 0 | B17: 0 | C17: =R0 -> 5 | D17: =v0 -> -5 | E17: =0 -> 0 | F17: =SQRT(B17^2+C17^2) -> 5 | G17: =-ATAN2(C17,B17) -> 0 | H17: =DEGREES(G17) -> 0 | I17: =0-statherifoucault*B17 -> 0 | J17: =-mew*mass*g-statherifoucault*C17 -> -150 | K17: =I17/mass -> 0 | L17: =J17/mass -> -150 | M17: =D17-Q17 -> -10 | N17: =E17-R17 -> 0 | O17: =$M17*COS(omega*$A17)+$N17*SIN(omega*$A17) -> -10 | Q17: =-C17*omega -> 5 | R17: =B17*omega -> 0 | S17: =D17*COS(omega*A17)+E17*SIN(omega*A26)-B17*omega*SIN(omega*A17)+C17*omega*COS(omega*A17) -> -10 | T17: =-D17*SIN(omega*A17)+E17*COS(omega*A26)-B17*omega*COS(omega*A17)-C17*omega*SIN(omega*A17) -> 0 | U17: =SQRT(S17^2+T17^2) -> 10 | V17: =SQRT(M17^2+N17^2) -> 10 | W17: =SQRT(D17^2+E17^2) -> 5 | X17: =B17*COS(omega*A17)+C17*SIN(omega*A17) -> 0 | Y17: =-B17*SIN(omega*A17)+C17*COS(omega*A17) -> 5 | Z17: =A17+dt/4 -> 0.0025 | AA17: =B17+AC17*dt/4 -> -0.0125 | AB17: =C17+C17*dt/4 -> 5.0125 | AC17: =D17+AE17*dt -> -5 | AD17: =E17+AF17*dt -> -1.50375 | AE17: =I17/mass -> 0 | AF17: =-mew*g*AH17/AI17/mass-statherifoucault*AB17/mass -> -150.375 | AG17: =AC17-AJ17 -> -10.0125 | AH17: =AE17-AK17 -> -0.0125 | AI17: =SQRT(AG17^2+AH17^2) -> 10.0125078 | AJ17: =-AB17*omega -> 5.0125 | AK17: =AA17*omega -> 0.0125 | AL17: =A17+3*dt/8 -> 0.00375 | AM17: =AA17+AO17*3*dt/8 -> -0.03125 | AN17: =AB17+AP17*3*dt/8 -> 5.004746289 | AO17: =AC17+AE17*3*dt/8 -> -5 | AP17: =AD17+AF17*3*dt/8 -> -2.06765625 | AQ17: =-mew*g*S17/AU17-statherifoucault*AM17/mass -> 0.9375 | AR17: =-mew*g*AT17/AU17-statherifoucault*AN17/mass -> -150.1423887 | AS17: =AO17-AV17 -> -10.00474629 | AT17: =AP17-AW17 -> -2.09890625 | AU17: =SQRT(AS17^2+AT17^2) -> 10.22254155 | AV17: =-AN17*omega -> 5.004746289 | AW17: =AM17*omega -> 0.03125 | AX17: =A17+12/13*dt -> 0.009230769231 | AY17: =AM17+AO17*(12/13-3/8)*dt -> -0.05865384615 | AZ17: =AN17+AP17*(12/13-3/8)*dt -> 4.993413942 | BA17: =AO17+AQ17*$BC$9 -> -4.994861779 | BB17: =AP17+AR17*$BC$9 -> -2.890552034 | BC17: =-mew*g*BE17/BG17-statherifoucault*AY17/mass -> 1.759615385 | BD17: =-mew*g*BF17/BG17-statherifoucault*AZ17/mass -> -149.8024183 | BE17: =BA17-BH17 -> -9.988275721 | BF17: =BB17-BI17 -> -2.94920588 | BG17: =SQRT(BE17^2+BF17^2) -> 10.41457955 | BH17: =-AZ17*omega -> 4.993413942 | BI17: =AY17*omega -> 0.05865384615 | BJ17: =A17+dt -> 0.01 | BK17: =AY17+BM17*(1-12/13)*dt -> -0.06249500633 | BL17: =AZ17+BN17*(1-12/13)*dt -> 4.9911018 | BM17: =BA17+BC17*(1-12/13)*dt -> -4.993508229 | BN17: =BB17+BD17*(1-12/13)*dt -> -3.005784664 | BO17: =-mew*g*BQ17/BS17-statherifoucault*BK17 -> 1.87485019 | BP17: =-mew*g*BR17/BS17-statherifoucault*BL17 -> -149.733054 | BQ17: =BM17-BT17 -> -9.984610029 | BR17: =BN17-BU17 -> -3.06827967 | BS17: =SQRT(BQ17^2+BR17^2) -> 10.44541897 | BT17: =-BL17*omega -> 4.9911018 | BU17: =BK17*omega -> 0.06249500633 | BV17: =dt*D17 -> -0.05 | BW17: =dt*E17 -> 0 | BX17: =dt*K17 -> 0 | BY17: =dt*L17 -> -1.5 | BZ17: =B17+BV17/4 -> -0.0125 | CA17: =D3 -> 0 | CB17: =D17+BX17/4 -> -5 | CC17: =E17+BY17/4 -> -0.375 | CD17: =dt*AC17 -> -0.05 | CE17: =dt*AD17 -> -0.0150375 | CF17: =dt*AE17 -> 0 | CG17: =dt*AF17 -> -1.50375 | CH17: =B17+3/32*(BV17+3*CD17) -> -0.01875 | CI17: =C17+3/32*(BW17+3*CE17) -> 4.995770703 | CJ17: =D17+3/32*(BX17+3*CF17) -> -5 | CK17: =E17+3/32*(BY17+3*CG17) -> -0.5635546875 | CL17: =dt*AO17 -> -0.05 | CM17: =dt*AP17 -> -0.0206765625 | CN17: =dt*AQ17 -> 0.009375 | CO17: =dt*AR17 -> -1.501423887 | CP17: =B17+1932/2197*BV17-7200/2197*CD17+7296/2197*CL17 -> -0.04615384615 | CQ17: =C17+1932/2197*BW17-7200/2197*CE17+7296/2197*CM17 -> 4.980616204 | CR17: =D17+1932/2197*BX17-7200/2197*CF17+7296/2197*CN17 -> -4.968866636 | CS17: =E17+1932/2197*BY17-7200/2197*CG17+7296/2197*CO17 -> -1.377054473 | CT17: =dt*BA17 -> -0.04994861779 | CU17: =dt*BB17 -> -0.02890552034 | CV17: =dt*BC17 -> 0.01759615385 | CW17: =dt*BD17 -> -1.498024183 | CX17: =B17+439/216*BW17-8*CD17+3680/513*CL17-845/4104*CT17 -> 0.05160979094 | CY17: =C17+439/216*BX17-8*CE17+3680/513*CM17-845/4104*CU17 -> 4.977928451 | CZ17: =D17+439/216*BY17-8*CF17+3680/513*CN17-845/4104*CV17 -> -7.984982639 | DA17: =E17+439/216*BZ17-8*CG17+3680/513*CO17-845/4104*CW17 -> 1.542584968 | DB17: =dt*BM17 -> -0.04993508229 | DC17: =dt*BN17 -> -0.03005784664 | DD17: =dt*BO17 -> 0.0187485019 | DE17: =dt*BP17 -> -1.49733054 | DF17: =B17+25/216*BV17+1408/2565*CL17+2197/4104*CT17-DB17/5 -> -0.04998547703 | DG17: =C17+25/216*BW17+1408/2565*CM17+2197/4104*CU17-DC17/5 -> 4.979187596 | DH17: =D17+25/216*BX17+1408/2565*CN17+2197/4104*CV17-DD17/5 -> -4.989183728 | DI17: =E17+25/216*BY17+1408/2565*CO17+2197/4104*CW17-DE17/5 -> -1.500257786 | DJ17: =DF17*COS(omega*A17)+DG17*SIN(omega*A17) -> -0.04998547703 | DK17: =-DF17*SIN(omega*A17)+DG17*COS(omega*A17) -> 4.979187596 | DL17: =DH17+omega*DG17 -> -9.968371324 | DM17: =DI17-omega*DF17 -> -1.550243263 | DN17: =SQRT(DL17^2+DM17^2) -> 10.08819513 | DO17: =-DL17/DN17*mew*g/mass-statherifoucault*DF17 -> 1.499564311 | DP17: =-DM17/DN17*mew*g/mass-statherifoucault*DG17 -> -149.3756279
A18: =A17+dt -> 0.01 | B18: =DF17 -> -0.04998547703 | C18: =DG17 -> 4.979187596 | D18: =DH17 -> -4.989183728 | E18: =DI17 -> -1.500257786 | F18: =SQRT(B18^2+C18^2) -> 4.979438488 | G18: =-ATAN2(C18,B18) -> 0.01003854484 | H18: =DEGREES(G18) -> 0.5751662521 | I18: =-mew*mass*g*DL17/DN17-statherifoucault*B18 -> 1.499564311 | J18: =-mew*mass*g*DM17/DN17-statherifoucault*C18 -> -149.3756279 | K18: =I18/mass -> 1.499564311 | L18: -149.3756279 | M18: -9.968371324 | N18: -1.550243263 | O18: -9.952370735 | P18: =-$M18*SIN(omega*$A18)+$N18*COS(omega*$A18) -> -1.649847803 | Q18: 4.979187596 | R18: 0.04998547703 | S18: -9.817597202 | T18: -1.642427776 | U18: =SQRT(S18^2+T18^2) -> 9.954033545 | V18: =SQRT(M18^2+N18^2) -> 10.08819513 | W18: 5.209868299 | X18: -0.09977402387 | Y18: 4.978438792 | Z18: 0.0125 | AA18: =B18+AC18*dt/4 -> -0.06244906408 | AB18: 4.991635565 | AC18: =D18+K18*dt/4 -> -4.985434817 | AD18: =E18+L18*dt/4 -> -1.873696856 | AE18: =-mew*g*AG17/AI17-statherifoucault*AA18/mass -> 1.873471922 | AF18: -149.7490669 | AG18: =AC18-AJ18 -> -9.977070382 | AH18: =AE18-AK18 -> 1.811022858 | AI18: =SQRT(AG18^2+AH18^2) -> 10.14010538 | AJ18: 4.991635565 | AK18: 0.06244906408 | AL18: 0.01375 | AM18: =AA18+AO18*dt/8 -> -0.0686779303 | AN18: =AB18+AP18*dt/8 -> 4.989059461 | AO18: =AC18+AE18*dt/8 -> -4.983092977 | AP18: =AD18+AF18*dt/8 -> -2.060883189 | AQ18: 2.060337909 | AR18: -149.6717838 | AS18: =AO18-AV18 -> -9.972152438 | AT18: =AP18-AW18 -> -2.12956112 | AU18: =SQRT(AS18^2+AT18^2) -> 10.19700225 | AV18: 4.989059461 | AW18: 0.0686779303 | AX18: 0.01923076923 | AY18: -0.09598911296 | AZ18: 4.977764235 | BA18: =AO18+AQ18*(12/13-3/8)*dt -> -4.971800741 | BB18: =AP18+AR18*(12/13-3/8)*dt -> -2.881199697 | BC18: 2.879673389 | BD18: -149.3329271 | BE18: =BA18-BH18 -> -9.949564976 | BF18: =BB18-BI18 -> -2.97718881 | BG18: =SQRT(BE18^2+BF18^2) -> 10.38544638 | BH18: 4.977764235 | BI18: 0.09598911296 | BJ18: 0.02 | BK18: -0.09981187112 | BL18: 4.975459565 | BM18: -4.969585607 | BN18: -2.996071179 | BO18: =-mew*g*BE18/BG18-statherifoucault*BK18 -> 2.994356134 | BP18: =-mew*g*BF18/BG18-statherifoucault*BL18 -> -149.263787 | BQ18: =BM18-BT18 -> -9.945045173 | BR18: =BN18-BU18 -> -3.09588305 | BS18: =SQRT(BQ18^2+BR18^2) -> 10.41577723 | BT18: 4.975459565 | BU18: 0.09981187112 | BV18: -0.04989183728 | BW18: -0.01500257786 | BX18: 0.01499564311 | BY18: -1.493756279 | BZ18: -0.06245843635 | CA18: =C18+BW18/4 -> 4.975436951 | CB18: -4.985434817 | CC18: -1.873696856 | CD18: -0.04985434817 | CE18: -0.01873696856 | CF18: 0.01873471922 | CG18: -1.497490669 | CH18: -0.0686843722 | CI18: 4.972511332 | CJ18: -4.982508747 | CK18: -2.061466688 | CL18: -0.04983092977 | CM18: -0.02060883189 | CN18: 0.02060337909 | CO18: -1.496717838 | CP18: -0.09596007258 | CQ18: 4.958959628 | CR18: -4.968972596 | CS18: -2.876706424 | CT18: -0.04971800741 | CU18: -0.02881199697 | CV18: 0.02879673389 | CW18: -1.493329271 | CX18: -0.02886690954 | CY18: 5.01765566 | CZ18: -8.033113841 | DA18: -0.07649123711 | DB18: -0.04969585607 | DC18: -0.02996071179 | DD18: 0.02994356134 | DE18: -1.49263787 | DF18: =B18+25/216*BV18+1408/2565*CL18+2197/4104*CT18-DB18/5 -> -0.09979002014 | DG18: =C18+25/216*BW18+1408/2575*CM18+2197/4104*CU18-DC18/5 -> 4.956750533 | DH18: =D18+25/216*BX18+1408/2575*CN18+2197/4104*CV18-DD18/5 -> -4.966755191 | DI18: =E18+25/216*BY18+1408/2575*CO18+2197/4104*CW18-DE18/5 -> -2.992444197 | DJ18: -0.1493517099 | DK18: 4.955504814 | DL18: -9.923505724 | DM18: -3.092234217 | DN18: =SQRT(DL18^2+DM18^2) -> 10.39412711 | DO18: 2.993700604 | DP18: -148.702516
A19: 0.02 | B19: -0.09979002014 | C19: 4.956750533 | D19: -4.966755191 | E19: -2.992444197 | F19: =SQRT(B19^2+C19^2) -> 4.957754925 | G19: 0.02012942572 | H19: =DEGREES(G19) -> 1.153331138 | I19: 2.993700604 | J19: -148.702516 | K19: 2.993700604 | L19: -148.702516 | M19: -9.923505724 | N19: -3.092234217 | O19: -9.859680527 | P19: -3.290072674 | Q19: 4.956750533 | R19: 0.09979002014 | S19: -9.591019982 | T19: -3.272585104 | U19: 10.13397639 | V19: =SQRT(M19^2+N19^2) -> 10.39412711 | W19: 5.798567012 | X19: -0.1988984646 | Y19: 4.953763549 | Z19: 0.0225 | AA19: -0.1121881975 | AB19: 4.969142409 | AC19: -4.959270939 | AD19: -3.364200487 | AE19: 3.365645925 | AF19: -149.0742723 | AG19: -9.928413348 | AH19: =AE19-AK19 -> 3.253457727 | AI19: =SQRT(AG19^2+AH19^2) -> 10.44788872 | AJ19: 4.969142409 | AK19: 0.1121881975 | AL19: 0.02375 | AM19: -0.1183820273 | AN19: 4.96470423 | AO19: -4.955063882 | AP19: -3.550543327 | AQ19: 3.55146082 | AR19: -148.9411269 | AS19: =AO19-AV19 -> -9.919768112 | AT19: -3.668925355 | AU19: 10.57652177 | AV19: 4.96470423 | AW19: 0.1183820273 | AX19: 0.02923076923 | AY19: -0.145539589 | AZ19: 4.945244522 | BA19: -4.935599144 | BB19: -4.366855273 | BC19: 4.36618767 | BD19: -148.3573356 | BE19: =BA19-BH19 -> -9.880843666 | BF19: -4.512394862 | BG19: 10.86244811 | BH19: 4.945244522 | BI19: 0.145539589 | BJ19: 0.03 | BK19: -0.1493336202 | BL19: 4.941797617 | BM19: -4.932240538 | BN19: -4.4809763 | BO19: 4.480008605 | BP19: -148.2539285 | BQ19: -9.874038155 | BR19: -4.63030992 | BS19: 10.9057966 | BT19: 4.941797617 | BU19: 0.1493336202 | BV19: -0.04966755191 | BW19: -0.02992444197 | BX19: 0.02993700604 | BY19: -1.48702516 | BZ19: -0.1122069081 | CA19: 4.949269423 | CB19: -4.959270939 | CC19: -3.364200487 | CD19: -0.04959270939 | CE19: -0.03364200487 | CF19: 0.03365645925 | CG19: -1.490742723 | CH19: -0.1183943026 | CI19: 4.944483303 | CJ19: -4.954482717 | CK19: -3.551124197 | CL19: -0.04955063882 | CM19: -0.03550543327 | CN19: 0.0355146082 | CO19: -1.489411269 | CP19: -0.145494009 | CQ19: 4.922777284 | CR19: -4.932787794 | CS19: -4.360823634 | CT19: -0.04935599144 | CU19: -0.04366855273 | CV19: 0.0436618767 | CW19: -1.483573356 | CX19: -0.1091557438 | CY19: 5.04102413 | CZ19: -8.012473989 | DA19: -1.673365498 | DB19: -0.04932240538 | DC19: -0.044809763 | DD19: 0.04480008605 | DE19: -1.482539285 | DF19: -0.1492956364 | DG19: 4.919457629 | DH19: -4.929457454 | DI19: -4.47665341 | DJ19: -0.2476483717 | DK19: 4.915488056 | DL19: -9.848915082 | DM19: -4.625949046 | DN19: 10.88120089 | DO19: 4.478869092 | DP19: -147.5837289
A20: 0.03 | B20: =DF19 -> -0.1492956364 | C20: =DG19 -> 4.919457629 | D20: =DH19 -> -4.929457454 | E20: =DI19 -> -4.47665341 | F20: =SQRT(B20^2+C20^2) -> 4.921722518 | G20: =-ATAN2(C20,B20) -> 0.03033867536 | H20: =DEGREES(G20) -> 1.738278054 | I20: 4.478869092 | J20: -147.5837289 | K20: =I20/mass -> 4.478869092 | L20: =J20/mass -> -147.5837289 | M20: =D20-Q20 -> -9.848915082 | N20: =E20-R20 -> -4.625949046 | O20: -9.705725748 | P20: -4.919290659 | Q20: =-C20*omega -> 4.919457629 | R20: =B20*omega -> 0.1492956364 | S20: =D20*COS(omega*A20)+E20*SIN(omega*A29)-B20*omega*SIN(omega*A20)+C20*omega*COS(omega*A20) -> -9.304095145 | T20: =-D20*SIN(omega*A20)+E20*COS(omega*A29)-B20*omega*COS(omega*A20)-C20*omega*SIN(omega*A20) -> -4.889111757 | U20: =SQRT(S20^2+T20^2) -> 10.51045195 | V20: =SQRT(M20^2+N20^2) -> 10.88120089 | W20: =SQRT(D20^2+E20^2) -> 6.658826964 | X20: =B20*COS(omega*A20)+C20*SIN(omega*A20) -> -0.2967900507 | Y20: =-B20*SIN(omega*A20)+C20*COS(omega*A20) -> 4.912765842 | Z20: =A20+dt/4 -> 0.0325 | AA20: =B20+AC20*dt/4 -> -0.1615912871 | AB20: 4.931756273 | AC20: -4.918260281 | AD20: -4.845612732 | AE20: 4.847738613 | AF20: -147.9526882 | AG20: =AC20-AJ20 -> -9.850016554 | AH20: =AE20-AK20 -> 4.686147326 | AI20: =SQRT(AG20^2+AH20^2) -> 10.90792386 | AJ20: =-AB20*omega -> 4.931756273 | AK20: =AA20*omega -> 0.1615912871 | AL20: =A20+3*dt/8 -> 0.03375 | AM20: =AA20+AO20*dt/8 -> -0.1677315379 | AN20: =AB20+AP20*dt/8 -> 4.925468081 | AO20: =AC20+AE20*dt/8 -> -4.912200608 | AP20: =AD20+AF20*dt/8 -> -5.030553592 | AQ20: 5.031946136 | AR20: -147.7640424 | AS20: =AO20-AV20 -> -9.837668689 | AT20: =AP20-AW20 -> -5.19828513 | AU20: =SQRT(AS20^2+AT20^2) -> 11.12662993 | AV20: =-AN20*omega -> 4.925468081 | AW20: =AM20*omega -> 0.1677315379 | AX20: =A20+12/13*dt -> 0.03923076923 | AY20: -0.1946541758 | AZ20: 4.897896777 | BA20: -4.884621672 | BB20: -5.840414209 | BC20: 5.839625274 | BD20: -146.9369033 | BE20: =BA20-BH20 -> -9.78251845 | BF20: =BB20-BI20 -> -6.035068385 | BG20: =SQRT(BE20^2+BF20^2) -> 11.49433415 | BH20: =-AZ20*omega -> 4.897896777 | BI20: =AY20*omega -> 0.1946541758 | BJ20: =A20+dt -> 0.04 | BK20: =AY20+BM20*(1-12/13)*dt -> -0.1984081217 | BL20: =AZ20+BN20*(1-12/13)*dt -> 4.893317206 | BM20: =BA20+BC20*(1-12/13)*dt -> -4.880129653 | BN20: =BB20+BD20*(1-12/13)*dt -> -5.953442596 | BO20: 5.952243651 | BP20: -146.7995162 | BQ20: =BM20-BT20 -> -9.773446859 | BR20: =BN20-BU20 -> -6.151850718 | BS20: =SQRT(BQ20^2+BR20^2) -> 11.54839949 | BT20: =-BL20*omega -> 4.893317206 | BU20: =BK20*omega -> 0.1984081217 | BV20: =dt*D20 -> -0.04929457454 | BW20: =dt*E20 -> -0.0447665341 | BX20: =dt*K20 -> 0.04478869092 | BY20: =dt*L20 -> -1.475837289 | BZ20: =B20+BV20/4 -> -0.16161928 | CA20: =C20+BW20/4 -> 4.908265995 | CB20: =D20+BX20/4 -> -4.918260281 | CC20: =E20+BY20/4 -> -4.845612732 | CD20: =dt*AC20 -> -0.04918260281 | CE20: =dt*AD20 -> -0.04845612732 | CF20: =dt*AE20 -> 0.04847738613 | CG20: =dt*AF20 -> -1.479526882 | CH20: =B20+3/32*(BV20+3*CD20) -> -0.1677496098 | CI20: =C20+3/32*(BW20+3*CE20) -> 4.90163248 | CJ20: =D20+3/32*(BX20+3*CF20) -> -4.911624249 | CK20: =E20+3/32*(BY20+3*CG20) -> -5.031130091 | CL20: =dt*AO20 -> -0.04912200608 | CM20: =dt*AP20 -> -0.05030553592 | CN20: =dt*AQ20 -> 0.05031946136 | CO20: =dt*AR20 -> -1.477640424 | CP20: =B20+1932/2197*BV20-7200/2197*CD20+7296/2197*CL20 -> -0.1945921927 | CQ20: =C20+1932/2197*BW20-7200/2197*CE20+7296/2197*CM20 -> 4.871831767 | CR20: =D20+1932/2197*BX20-7200/2197*CF20+7296/2197*CN20 -> -4.881835533 | CS20: =E20+1932/2197*BY20-7200/2197*CG20+7296/2197*CO20 -> -5.832861251 | CT20: =dt*BA20 -> -0.04884621672 | CU20: =dt*BB20 -> -0.05840414209 | CV20: =dt*BC20 -> 0.05839625274 | CW20: =dt*BD20 -> -1.469369033 | CX20: =B20+439/216*BW20-8*CD20+3680/513*CL20-845/4104*CT20 -> -0.1891375592 | CY20: =C20+439/216*BX20-8*CE20+3680/513*CM20-845/4104*CU20 -> 5.049294511 | CZ20: =D20+439/216*BY20-8*CF20+3680/513*CN20-845/4104*CV20 -> -7.967836659 | DA20: =E20+439/216*BZ20-8*CG20+3680/513*CO20-845/4104*CW20 -> -3.266214103 | DB20: =dt*BM20 -> -0.04880129653 | DC20: =dt*BN20 -> -0.05953442596 | DD20: =dt*BO20 -> 0.05952243651 | DE20: =dt*BP20 -> -1.467995162 | DF20: =B20+25/216*BV20+1408/2565*CL20+2197/4104*CT20-DB20/5 -> -0.1983541189 | DG20: =C20+25/216*BW20+1408/2575*CM20+2197/4104*CU20-DC20/5 -> 4.86741076 | DH20: =D20+25/216*BX20+1408/2575*CN20+2197/4104*CV20-DD20/5 -> -4.877402232 | DI20: =E20+25/216*BY20+1408/2575*CO20+2197/4104*CW20-DE20/5 -> -5.948436282 | DJ20: =DF20*COS(omega*A20)+DG20*SIN(omega*A20) -> -0.3442652867 | DK20: =-DF20*SIN(omega*A20)+DG20*COS(omega*A20) -> 4.859270859 | DL20: =DH20+omega*DG20 -> -9.744812992 | DM20: =DI20-omega*DF20 -> -6.146790401 | DN20: =SQRT(DL20^2+DM20^2) -> 11.52147614 | DO20: 5.950623567 | DP20: -146.0223228
A21: 0.04 | B21: =DF20 -> -0.1983541189 | C21: 4.86741076 | D21: -4.877402232 | E21: -5.948436282 | F21: 4.871450694 | G21: 0.04072892897 | H21: 2.333595734 | I21: 5.950623567 | J21: -146.0223228 | K21: 5.950623567 | L21: -146.0223228 | M21: -9.744812992 | N21: -6.146790401 | O21: -9.491212126 | P21: -6.531562207 | Q21: 4.86741076 | R21: 0.1983541189 | S21: -8.957965695 | T21: -6.486126784 | U21: 11.05961075 | V21: 11.52147614 | W21: 7.692395383 | X21: -0.3928399723 | Y21: 4.855585302 | Z21: 0.0425 | AA21: -0.2105104331 | AB21: 4.879579287 | AC21: -4.862525673 | AD21: -6.313492089 | AE21: 6.315312992 | AF21: -146.3873786 | AG21: -9.74210496 | AH21: 6.104802559 | AI21: 11.49683536 | AJ21: 4.879579287 | AK21: 0.2105104331 | AL21: 0.04375 | AM21: -0.2165787225 | AN21: 4.871458692 | AO21: -4.854631532 | AP21: -6.496476312 | AQ21: 6.497361675 | AR21: -146.1437608 | AS21: -9.726090223 | AT21: -6.713055035 | AU21: 11.81786524 | AV21: 4.871458692 | AW21: 0.2165787225 | AX21: 0.04923076923 | AY21: -0.2431858376 | AZ21: 4.835853004 | BA21: -4.819020992 | BB21: -7.297456539 | BC21: 7.295575129 | BD21: -145.0755901 | BE21: -9.654873996 | BF21: -7.540642377 | BG21: 12.25062771 | BH21: 4.835853004 | BI21: 0.2431858376 | BJ21: 0.05 | BK21: -0.2468884599 | BL21: 4.830153733 | BM21: -4.813409011 | BN21: -7.409053147 | BO21: 7.406653798 | BP21: -144.904612 | BQ21: -9.643562744 | BR21: -7.655941607 | BS21: 12.31307209 | BT21: 4.830153733 | BU21: 0.2468884599 | BV21: -0.04877402232 | BW21: -0.05948436282 | BX21: 0.05950623567 | BY21: -1.460223228 | BZ21: -0.2105476245 | CA21: 4.85253967 | CB21: -4.862525673 | CC21: -6.313492089 | CD21: -0.04862525673 | CE21: -0.06313492089 | CF21: 0.06315312992 | CG21: -1.463873786 | CH21: -0.2166025369 | CI21: 4.844077405 | CJ21: -4.854061705 | CK21: -6.497046712 | CL21: -0.04854631532 | CM21: -0.06496476312 | CN21: 0.06497361675 | CO21: -1.461437608 | CP21: -0.243107637 | CQ21: 4.806265894 | CR21: -4.816268404 | CS21: -7.288403874 | CT21: -0.04819020992 | CU21: -0.07297456539 | CV21: 0.07295575129 | CW21: -1.450755901 | CX21: -0.2685727926 | CY21: 5.042432231 | CZ21: -7.899329581 | DA21: -4.850265721 | DB21: -0.04813409011 | DC21: -0.07409053147 | DD21: 0.07406653798 | DE21: -1.44904612 | DF21: -0.2468185998 | DG21: 4.800756047 | DH21: -4.810745419 | DI21: -7.403377949 | DJ21: -0.4386002092 | DK21: 4.787045843 | DL21: -9.611501466 | DM21: -7.650196549 | DN21: 12.28439936 | DO21: 7.404557995 | DP21: -144.0226814
A22: 0.05 | B22: -0.2468185998 | C22: 4.800756047 | D22: -4.810745419 | E22: -7.403377949 | F22: 4.807096634 | G22: 0.05136721691 | H22: 2.943124734 | I22: 7.404557995 | J22: -144.0226814 | K22: 7.404557995 | L22: -144.0226814 | M22: -9.611501466 | N22: -7.650196549 | O22: -9.217139124 | P22: -8.121010654 | Q22: 4.800756047 | R22: 0.2468185998 | S22: -8.554063386 | T22: -8.05782827 | U22: 11.75162103 | V22: 12.28439936 | W22: 8.829115275 | X22: -0.48644794 | Y22: 4.782420563 | Z22: 0.0525 | AA22: -0.2587991849 | AB22: 4.812757937 | AC22: -4.792234024 | AD22: -7.763434652 | AE22: 7.763975547 | AF22: -144.3827381 | AG22: -9.604991961 | AH22: 7.505176362 | AI22: 12.18948493 | AJ22: 4.812757937 | AK22: 0.2587991849 | AL22: 0.05375 | AM22: -0.2647773462 | AN22: 4.802828046 | AO22: -4.782529055 | AP22: -7.943913075 | AQ22: 7.943320386 | AR22: -144.0848414 | AS22: -9.5853571 | AT22: -8.208690421 | AU22: 12.61989181 | AV22: 4.802828046 | AW22: 0.2647773462 | AX22: 0.05923076923 | AY22: -0.2909892843 | AZ22: 4.759289291 | BA22: -4.738993549 | BB22: -8.73360884 | BC22: 8.729678529 | BD22: -142.7786787 | BE22: -9.49828284 | BF22: -9.024598125 | BG22: 13.10193681 | BH22: 4.759289291 | BI22: 0.2909892843 | BJ22: 0.06 | BK22: -0.2946294985 | BL22: 4.752486646 | BM22: -4.732278411 | BN22: -8.843438593 | BO22: 8.838884954 | BP22: -142.5745994 | BQ22: -9.484765058 | BR22: -9.138068092 | BS22: 13.17061337 | BT22: 4.752486646 | BU22: 0.2946294985 | BV22: -0.04810745419 | BW22: -0.07403377949 | BX22: 0.07404557995 | BY22: -1.440226814 | BZ22: -0.2588454634 | CA22: 4.782247602 | CB22: -4.792234024 | CC22: -7.763434652 | CD22: -0.04792234024 | CE22: -0.07763434652 | CF22: 0.07763975547 | CG22: -1.443827381 | CH22: -0.2648068319 | CI22: 4.77198072 | CJ22: -4.781967465 | CK22: -7.944475664 | CL22: -0.04782529055 | CM22: -0.07943913075 | CN22: 0.07943320386 | CO22: -1.440848414 | CP22: -0.2908951003 | CQ22: 4.72626635 | CR22: -4.736282753 | CS22: -8.723082586 | CT22: -0.04738993549 | CU22: -0.0873360884 | CV22: 0.08729678529 | CW22: -1.427786787 | CX22: -0.3472234581 | CY22: 5.020448063 | CZ22: -7.807151991 | DA22: -6.420772417 | DB22: -0.04732278411 | DC22: -0.08843438593 | DD22: 0.08838884954 | DE22: -1.425745994 | DF22: -0.2945439903 | DG22: 4.719683442 | DH22: -4.729686622 | DI22: -8.837111062 | DJ22: -0.5300617447 | DK22: 4.699064003 | DL22: -9.449370065 | DM22: -9.131655053 | DN22: 13.14068943 | DO22: 8.836319708 | DP22: -141.5905033
A23: 0.06 | B23: -0.2945439903 | C23: 4.719683442 | D23: -4.729686622 | E23: -8.837111062 | F23: 4.728865399 | G23: 0.06232674238 | H23: 3.571059289 | I23: 8.836319708 | J23: -141.5905033 | K23: 8.836319708 | L23: -141.5905033 | M23: -9.449370065 | N23: -9.131655053 | O23: -8.884795678 | P23: -9.681845092 | Q23: 4.719683442 | R23: 0.2945439903 | S23: -8.094102889 | T23: -9.598515889 | U23: 12.55571618 | V23: 13.14068943 | W23: 10.02319647 | X23: -0.5770250986 | Y23: 4.693528523 | Z23: 0.0625 | AA23: -0.3063129798 | AB23: 4.731482651 | AC23: -4.707595823 | AD23: -9.191087321 | AE23: 9.189389395 | AF23: -141.9444795 | AG23: -9.439078474 | AH23: 8.883076415 | AI23: 12.96168388 | AJ23: 4.731482651 | AK23: 0.3063129798 | AL23: 0.06375 | AM23: -0.3121831162 | AN23: 4.719772004 | AO23: -4.696109086 | AP23: -9.36851792 | AQ23: 9.365493486 | AR23: -141.5931601 | AS23: -9.41588109 | AT23: -9.680701036 | AU23: 13.50462103 | AV23: 4.719772004 | AW23: 0.3121831162 | AX23: 0.06923076923 | AY23: -0.3379214064 | AZ23: 4.668425319 | BA23: -4.644778978 | BB23: -10.14455736 | BC23: 10.13764219 | BD23: -140.0527596 | BE23: -9.313204297 | BF23: -10.48247876 | BG23: 14.02205888 | BH23: 4.668425319 | BI23: 0.3379214064 | BJ23: 0.07 | BK23: -0.3414883147 | BL23: 4.660538942 | BM23: -4.636980792 | BN23: -10.25229025 | BO23: 10.24464944 | BP23: -139.8161683 | BQ23: -9.297519733 | BR23: -10.59377856 | BS23: 14.09510615 | BT23: 4.660538942 | BU23: 0.3414883147 | BV23: -0.04729686622 | BW23: -0.08837111062 | BX23: 0.08836319708 | BY23: -1.415905033 | BZ23: -0.3063682068 | CA23: 4.697590665 | CB23: -4.707595823 | CC23: -9.191087321 | CD23: -0.04707595823 | CE23: -0.09191087321 | CF23: 0.09189389395 | CG23: -1.419444795 | CH23: -0.3122181847 | CI23: 4.685548718 | CJ23: -4.695557415 | CK23: -9.369071008 | CL23: -0.04696109086 | CM23: -0.0936851792 | CN23: 0.09365493486 | CO23: -1.415931601 | CP23: -0.3378115211 | CQ23: 4.632063157 | CR23: -4.64211809 | CS23: -10.13258806 | CT23: -0.04644778978 | CU23: -0.1014455736 | CV23: 0.1013764219 | CW23: -1.400527596 | CX23: -0.4248538601 | CY23: 4.983398123 | CZ23: -7.691574049 | DA23: -7.973023882 | DB23: -0.04636980792 | DC23: -0.1025229025 | DD23: 0.1024464944 | DE23: -1.398161683 | DF23: -0.3413874144 | DG23: 4.624426194 | DH23: -4.634468565 | DI23: -10.2453289 | DJ23: -0.6180722237 | DK23: 4.595633766 | DL23: -9.258894758 | DM23: -10.58671631 | DN23: 14.06434124 | DO23: 10.24162243 | DP23: -138.7327858
A24: 0.07 | B24: -0.3413874144 | C24: 4.624426194 | D24: -4.634468565 | E24: -10.2453289 | F24: 4.637010135 | G24: 0.07368898487 | H24: 4.22206783 | I24: 10.24162243 | J24: -138.7327858 | K24: 10.24162243 | L24: -138.7327858 | M24: -9.258894758 | N24: -10.58671631 | O24: -8.495754644 | P24: -11.20838291 | Q24: 4.624426194 | R24: 0.3413874144 | S24: -7.580074693 | T24: -11.10261304 | U24: 13.44342027 | V24: 14.06434124 | W24: 11.24477937 | X24: -0.663996892 | Y24: 4.589223367 | Z24: 0.0725 | AA24: -0.3529095757 | AB24: 4.635987259 | AC24: -4.608864508 | AD24: -10.59216086 | AE24: 10.58728727 | AF24: -139.0796178 | AG24: -9.244851768 | AH24: 10.2343777 | AI24: 13.79165585 | AJ24: 4.635987259 | AK24: 0.3529095757 | AL24: 0.07375 | AM24: -0.3586541137 | AN24: 4.622529746 | AO24: -4.595630399 | AP24: -10.76601039 | AQ24: 10.75962341 | AR24: -138.6758924 | AS24: -9.218160146 | AT24: -11.1246645 | AU24: 14.44758238 | AV24: 4.622529746 | AW24: 0.3586541137 | AX24: 0.07923076923 | AY24: -0.3838417034 | AZ24: 4.563523728 | BA24: -4.536659386 | BB24: -11.52606095 | BC24: 11.5152511 | BD24: -136.9057118 | BE24: -9.100183114 | BF24: -11.90990265 | BG24: 14.98863282 | BH24: 4.563523728 | BI24: 0.3838417034 | BJ24: 0.08 | BK24: -0.3873246276 | BL24: 4.554576518 | BM24: -4.527801501 | BN24: -11.63137304 | BO24: 11.61973883 | BP24: -136.6372955 | BQ24: -9.082378019 | BR24: -12.01869766 | BS24: 15.06448419 | BT24: 4.554576518 | BU24: 0.3873246276 | BV24: -0.04634468565 | BW24: -0.102453289 | BX24: 0.1024162243 | BY24: -1.387327858 | BZ24: -0.3529735858 | CA24: 4.598812871 | CB24: -4.608864508 | CC24: -10.59216086 | CD24: -0.04608864508 | CE24: -0.1059216086 | CF24: 0.1058728727 | CG24: -1.390796178 | CH24: -0.3586946601 | CI24: 4.585030745 | CJ24: -4.595090298 | CK24: -10.76655231 | CL24: -0.04595630399 | CM24: -0.1076601039 | CN24: 0.1075962341 | CO24: -1.386758924 | CP24: -0.3837164458 | CQ24: 4.52392902 | CR24: -4.534056372 | CS24: -11.5126835 | CT24: -0.04536659386 | CU24: -0.1152606095 | CV24: 0.115152511 | CW24: -1.369057118 | CX24: -0.5012312999 | CY24: 4.931383733 | CZ24: -7.55293605 | DA24: -9.502361557 | DB24: -0.04527801501 | DC24: -0.1163137304 | DD24: 0.1161973883 | DE24: -1.366372955 | DF24: -0.3872086375 | DG24: 4.515260172 | DH24: -4.525376356 | DI24: -11.6237983 | DJ24: -0.7020705165 | DK24: 4.477119826 | DL24: -9.040636528 | DM24: -12.01100694 | DN24: 15.03320979 | DO24: 11.61625912 | DP24: -135.4578052
A25: 0.08 | B25: -0.3872086375 | C25: 4.515260172 | D25: -4.525376356 | E25: -11.6237983 | F25: 4.531832405 | G25: 0.08554626083 | H25: 4.901439699 | I25: 11.61625912 | J25: -135.4578052 | K25: 11.61625912 | L25: -135.4578052 | M25: -9.040636528 | N25: -12.01100694 | O25: -8.051865974 | P25: -12.69507191 | Q25: 4.515260172 | R25: 0.3872086375 | S25: -7.014236756 | T25: -12.56468847 | U25: 14.38995878 | V25: 15.03320979 | W25: 12.47364093 | X25: -0.7468058653 | Y25: 4.469875384 | Z25: 0.0825 | AA25: -0.3984494767 | AB25: 4.526548322 | AC25: -4.496335709 | AD25: -11.96244281 | AE25: 11.9534843 | AF25: -135.7964497 | AG25: -9.022884031 | AH25: 11.55503483 | AI25: 14.6605343 | AJ25: 4.526548322 | AK25: 0.3984494767 | AL25: 0.08375 | AM25: -0.4040512191 | AN25: 4.511383087 | AO25: -4.481393853 | AP25: -12.13218837 | AQ25: 12.12153657 | AR25: -135.3414926 | AS25: -8.99277694 | AT25: -12.53623959 | AU25: 15.4281347 | AV25: 4.511383087 | AW25: 0.4040512191 | AX25: 0.08923076923 | AY25: -0.4286127046 | AZ25: 4.444889362 | BA25: -4.414958509 | BB25: -12.87396386 | BC25: 12.85838114 | BD25: -133.3466809 | BE25: -8.859847871 | BF25: -13.30257657 | BG25: 15.98297368 | BH25: 4.444889362 | BI25: 0.4286127046 | BJ25: 0.09 | BK25: -0.432001218 | BL25: 4.43490741 | BM25: -4.405067446 | BN25: -12.97653823 | BO25: 12.96003654 | BP25: -133.0472223 | BQ25: -8.839974856 | BR25: -13.40853945 | BS25: 16.06032645 | BT25: 4.43490741 | BU25: 0.432001218 | BV25: -0.04525376356 | BW25: -0.116237983 | BX25: 0.1161625912 | BY25: -1.354578052 | BZ25: -0.3985220784 | CA25: 4.486200676 | CB25: -4.496335709 | CC25: -11.96244281 | CD25: -0.04496335709 | CE25: -0.1196244281 | CF25: 0.119534843 | CG25: -1.357964497 | CH25: -0.404097122 | CI25: 4.470718491 | CJ25: -4.480866939 | CK25: -12.13271751 | CL25: -0.04481393853 | CM25: -0.1213218837 | CN25: 0.1212153657 | CO25: -1.353414926 | CP25: -0.4284724498 | CQ25: 4.402178531 | CR25: -4.412421161 | CS25: -12.85921738 | CT25: -0.04414958509 | CU25: -0.1287396386 | CV25: 0.1285838114 | CW25: -1.333466809 | CX25: -0.5761267728 | CY25: 4.86455114 | CZ25: -7.391647421 | DA25: -11.00419261 | DB25: -0.04405067446 | DC25: -0.1297653823 | DD25: 0.1296003654 | DE25: -1.330472223 | DF25: -0.4318704852 | DG25: 4.392503074 | DH25: -4.402736644 | DI25: -12.96837238 | DJ25: -0.7815147755 | DK25: 4.343941762 | DL25: -8.795239719 | DM25: -13.40024286 | DN25: 16.02881002 | DO25: 12.95611456 | DP25: -131.7750922
A26: 0.09 | B26: -0.4318704852 | C26: 4.392503074 | D26: -4.402736644 | E26: -12.96837238 | F26: 4.413682745 | G26: 0.09800491693 | H26: 5.615268112 | I26: 12.95611456 | J26: -131.7750922 | K26: 12.95611456 | L26: -131.7750922 | M26: -8.795239719 | N26: -13.40024286 | O26: -7.555248648 | P26: -14.13651189 | Q26: 4.392503074 | R26: 0.4318704852 | S26: -6.399104967 | T26: -13.97947735 | U26: 15.37447011 | V26: 16.02881002 | W26: 13.69535586 | X26: -0.8249143937 | Y26: 4.335909549 | Z26: 0.0925 | AA26: -0.4427963511 | AB26: 4.403484332 | AC26: -4.370346358 | AD26: -13.29781011 | AE26: 13.28389053 | AF26: -132.10453 | AG26: -8.77383069 | AH26: 12.84109418 | AI26: 15.55229259 | AJ26: 4.403484332 | AK26: 0.4427963511 | AL26: 0.09375 | AM26: -0.448238528 | AN26: 4.386655656 | AO26: -4.353741495 | AP26: -13.46294077 | AQ26: 13.44715584 | AR26: -131.5996697 | AS26: -8.740397151 | AT26: -13.9111793 | AU26: 16.42910381 | AV26: 4.386655656 | AW26: 0.448238528 | AX26: 0.09923076923 | AY26: -0.4721003804 | AZ26: 4.312868384 | BA26: -4.280040737 | BB26: -14.18420819 | BC26: 14.16301141 | BD26: -129.3860515 | BE26: -8.592909121 | BF26: -14.65630857 | BG26: 16.98956939 | BH26: 4.312868384 | BI26: 0.4721003804 | BJ26: 0.1 | BK26: -0.475384339 | BL26: 4.301880895 | BM26: -4.269146113 | BN26: -14.28373592 | BO26: 14.26153017 | BP26: -129.0564269 | BQ26: -8.571027008 | BR26: -14.75912026 | BS26: 17.06734118 | BT26: 4.301880895 | BU26: 0.475384339 | BV26: -0.04402736644 | BW26: -0.1296837238 | BX26: 0.1295611456 | BY26: -1.317750922 | BZ26: -0.4428773268 | CA26: 4.360082143 | CB26: -4.370346358 | CC26: -13.29781011 | CD26: -0.04370346358 | CE26: -0.1329781011 | CF26: 0.1328389053 | CG26: -1.3210453 | CH26: -0.44828965 | CI26: 4.342945134 | CJ26: -4.353229345 | CK26: -13.46345552 | CL26: -0.04353741495 | CM26: -0.1346294077 | CN26: 0.1344715584 | CO26: -1.315996697 | CP26: -0.4719455483 | CQ26: 4.267167259 | CR26: -4.277576651 | CS26: -14.16813593 | CT26: -0.04280040737 | CU26: -0.1418420819 | CV26: 0.1416301141 | CW26: -1.293860515 | CX26: -0.6493156548 | CY26: 4.783091117 | CZ26: -7.208185511 | DA26: -12.47400375 | DB26: -0.04269146113 | DC26: -0.1428373592 | DD26: 0.1426153017 | DE26: -1.290564269 | DF26: -0.475239255 | DG26: 4.256513501 | DH26: -4.266916631 | DI26: -14.27500302 | DJ26: -0.8558850929 | DK26: 4.196572439 | DL26: -8.523430131 | DM26: -14.75024227 | DN26: 17.03580078 | DO26: 14.25717765 | DP26: -127.695405
A27: 0.1 | B27: -0.475239255 | C27: 4.256513501 | D27: -4.266916631 | E27: -14.27500302 | F27: 4.282961537 | G27: 0.111189396 | H27: 6.370683115 | I27: 14.25717765 | J27: -127.695405 | K27: 14.25717765 | L27: -127.695405 | M27: -8.523430131 | N27: -14.75024227 | O27: -7.008281401 | P27: -15.52747565 | Q27: 4.256513501 | R27: 0.475239255 | S27: -5.737442429 | T27: -15.34190161 | U27: 16.3796273 | V27: 17.03580078 | W27: 14.89907006 | X27: -0.897807324 | Y27: 4.187803904 | Z27: 0.1025 | AA27: -0.4858174392 | AB27: 4.267154784 | AC27: -4.231273687 | AD27: -14.59424153 | AE27: 14.57452318 | AF27: -128.0146435 | AG27: -8.498428471 | AH27: 14.08870574 | AI27: 16.45341654 | AJ27: 4.267154784 | AK27: 0.4858174392 | AL27: 0.10375 | AM27: -0.4910837586 | AN27: 4.24871196 | AO27: -4.213055533 | AP27: -14.75425983 | AQ27: 14.73251276 | AR27: -127.4613588 | AS27: -8.461767492 | AT27: -15.24534359 | AU27: 17.43622695 | AV27: 4.24871196 | AW27: 0.4910837586 | AX27: 0.1092307692 | AY27: -0.5141745438 | AZ27: 4.167847266 | BA27: -4.13231003 | BB27: -15.45284613 | BC27: 15.42523631 | BD27: -125.035418 | BE27: -8.300157296 | BF27: -15.96702067 | BG27: 17.99550945 | BH27: 4.167847266 | BI27: 0.5141745438 | BJ27: 0.11 | BK27: -0.5173441164 | BL27: 4.155886476 | BM27: -4.120444464 | BN27: -15.54902722 | BO27: 15.52032349 | BP27: -124.6765943 | BQ27: -8.27633094 | BR27: -16.06637133 | BS27: 18.07279562 | BT27: 4.155886476 | BU27: 0.5173441164 | BV27: -0.04266916631 | BW27: -0.1427500302 | BX27: 0.1425717765 | BY27: -1.27695405 | BZ27: -0.4859065466 | CA27: 4.220825993 | CB27: -4.231273687 | CC27: -14.59424153 | CD27: -0.04231273687 | CE27: -0.1459424153 | CF27: 0.1457452318 | CG27: -1.280146435 | CH27: -0.4911399466 | CI27: 4.202084381 | CJ27: -4.21255968 | CK27: -14.75475864 | CL27: -0.04213055533 | CM27: -0.1475425983 | CN27: 0.1473251276 | CO27: -1.274613588 | CP27: -0.514005598 | CQ27: 4.119290712 | CR27: -4.129926583 | CS27: -15.43549534 | CT27: -0.0413231003 | CU27: -0.1545284613 | CV27: 0.1542523631 | CW27: -1.25035418 | CX27: -0.7205783763 | CY27: 4.687238408 | CZ27: -7.003094182 | DA27: -13.90737472 | DB27: -0.04120444464 | DC27: -0.1554902722 | DD27: 0.1552032349 | DE27: -1.246765943 | DF27: -0.5171851157 | DG27: 4.107689906 | DH27: -4.118322976 | DI27: -15.53975303 | DJ27: -0.9246860622 | DK27: 4.035536209 | DL27: -8.226012882 | DM27: -16.05693815 | DN27: 18.0414121 | DO27: 15.51555347 | DP27: -123.2306972
A28: 0.11 | B28: -0.5171851157 | C28: 4.107689906 | D28: -4.118322976 | E28: -15.53975303 | F28: 4.140120386 | G28: 0.1252475101 | H28: 7.176153721 | I28: 15.51555347 | J28: -123.2306972 | K28: 15.51555347 | L28: -123.2306972 | M28: -8.226012882 | N28: -16.05693815 | O28: -6.41359228 | P28: -16.8629293 | Q28: 4.107689906 | R28: 0.5171851157 | S28: -5.032247628 | T28: -16.64708959 | U28: 17.39106403 | V28: 18.0414121 | W28: 16.07620939 | X28: -0.9649945178 | Y28: 4.026087727 | Z28: 0.1125 | AA28: -0.5273839509 | AB28: 4.117959131 | AC28: -4.079534092 | AD28: -15.84782977 | AE28: 15.82151853 | AF28: -123.5387739 | AG28: -8.197493223 | AH28: 15.29413458 | AI28: 17.35250551 | AJ28: 4.117959131 | AK28: 0.5273839509 | AL28: 0.11375 | AM28: -0.5324586474 | AN28: 4.097956314 | AO28: -4.059757194 | AP28: -16.00225324 | AQ28: 15.97375942 | AR28: -122.9386894 | AS28: -8.157713508 | AT28: -16.53471189 | AU28: 18.4375971 | AV28: 4.097956314 | AW28: 0.5324586474 | AX28: 0.1192307692 | AY28: -0.5547092397 | AZ28: 4.010251657 | BA28: -3.972208705 | BB28: -16.67605183 | BC28: 16.64127719 | BD28: -120.3075497 | BE28: -7.982460362 | BF28: -17.23076107 | BG28: 18.98996578 | BH28: 4.010251657 | BI28: 0.5547092397 | BJ28: 0.12 | BK28: -0.557754938 | BL28: 3.997352737 | BM28: -3.959407723 | BN28: -16.7685961 | BO28: 16.73264814 | BP28: -119.9205821 | BQ28: -7.956760459 | BR28: -17.32635103 | BS28: 19.06600318 | BT28: 3.997352737 | BU28: 0.557754938 | BV28: -0.04118322976 | BW28: -0.1553975303 | BX28: 0.1551555347 | BY28: -1.232306972 | BZ28: -0.5274809231 | CA28: 4.068840523 | CB28: -4.079534092 | CC28: -15.84782977 | CD28: -0.04079534092 | CE28: -0.1584782977 | CF28: 0.1582151853 | CG28: -1.235387739 | CH28: -0.5325197331 | CI28: 4.048549366 | CJ28: -4.059279124 | CK28: -16.00273461 | CL28: -0.04059757194 | CM28: -0.1600225324 | CN28: 0.1597375942 | CO28: -1.229386894 | CP28: -0.5545266861 | CQ28: 3.958983178 | CR28: -3.969913032 | CS28: -16.65747362 | CT28: -0.03972208705 | CU28: -0.1667605183 | CV28: 0.1664127719 | CW28: -1.203075497 | CX28: -0.7897010809 | CY28: 4.577271063 | CZ28: -6.776982195 | DA28: -15.2999917 | DB28: -0.03959407723 | DC28: -0.167685961 | DD28: 0.1673264814 | DE28: -1.199205821 | DF28: -0.5575824965 | DG28: 3.946469435 | DH28: -3.95740058 | DI28: -16.75880804 | DJ28: -0.9874492313 | DK28: 3.861406901 | DL28: -7.903870015 | DM28: -17.31639053 | DN28: 19.03492953 | DO28: 16.7274749 | DP28: -118.394083
A29: 0.12 | B29: -0.5575824965 | C29: 3.946469435 | D29: -3.95740058 | E29: -16.75880804 | F29: 3.985664215 | G29: 0.1403573985 | H29: 8.041886559 | I29: 16.7274749 | J29: -118.394083 | K29: 16.7274749 | L29: -118.394083 | M29: -7.903870015 | N29: -17.31639053 | O29: -5.774047074 | P29: -18.13805179 | Q29: 3.946469435 | R29: 0.5575824965 | S29: -4.286741531 | T29: -17.8903948 | U29: 18.3968035 | V29: 19.03492953 | W29: 17.21971737 | X29: -1.026013285 | Y29: 3.851339504 | Z29: 0.1225 | AA29: -0.5673714512 | AB29: 3.956335608 | AC29: -3.915581893 | AD29: -17.05479325 | AE29: 17.02114354 | AF29: -118.6900682 | AG29: -7.871917501 | AH29: 16.45377209 | AI29: 18.23989312 | AJ29: 3.956335608 | AK29: 0.5673714512 | AL29: 0.12375 | AM29: -0.5722393331 | AN29: 3.934831663 | AO29: -3.894305463 | AP29: -17.20315583 | AQ29: 17.16717999 | AR29: -118.0449499 | AS29: -7.829137127 | AT29: -17.77539516 | AU29: 19.42318361 | AV29: 3.934831663 | AW29: 0.5722393331 | AX29: 0.1292307692 | AY29: -0.5935831226 | AZ29: 3.840545136 | BA29: -3.800216112 | BB29: -17.85013296 | BC29: 17.80749368 | BD29: -115.2163541 | BE29: -7.640761248 | BF29: -18.44371608 | BG29: 19.96376456 | BH29: 3.840545136 | BI29: 0.5935831226 | BJ29: 0.13 | BK29: -0.5964958288 | BL29: 3.826746089 | BM29: -3.786518039 | BN29: -17.93876092 | BO29: 17.89487486 | BP29: -114.8023827 | BQ29: -7.613264129 | BR29: -18.53525675 | BS29: 20.03790243 | BT29: 3.826746089 | BU29: 0.5964958288 | BV29: -0.0395740058 | BW29: -0.1675880804 | BX29: 0.167274749 | BY29: -1.18394083 | BZ29: -0.567475998 | CA29: 3.904572414 | CB29: -3.915581893 | CC29: -17.05479325 | CD29: -0.03915581893 | CE29: -0.1705479325 | CF29: 0.1702114354 | CG29: -1.186900682 | CH29: -0.5723051336 | CI29: 3.882791446 | CJ29: -3.893846606 | CK29: -17.20361831 | CL29: -0.03894305463 | CM29: -0.1720315583 | CN29: 0.1716717999 | CO29: -1.180449499 | CP29: -0.5933875077 | CQ29: 3.78671645 | CR29: -3.798015085 | CS29: -17.83038215 | CT29: -0.03800216112 | CU29: -0.1785013296 | CV29: 0.1780749368 | CW29: -1.152163541 | CX29: -0.8564762669 | CY29: 4.453509626 | CZ29: -6.5305214 | DA29: -16.64766017 | DB29: -0.03786518039 | DC29: -0.1793876092 | DD29: 0.1789487486 | DE29: -1.148023827 | DF29: -0.5963104629 | DG29: 3.773326636 | DH29: -3.784631251 | DI29: -17.92848797 | DJ29: -1.043735438 | DK29: 3.674805628 | DL29: -7.557957887 | DM29: -18.52479843 | DN29: 20.00727078 | DO29: 17.88931389 | DP29: -113.1997991
A30: 0.13 | B30: -0.5963104629 | C30: 3.773326636 | D30: -3.784631251 | E30: -17.92848797 | F30: 3.820154456 | G30: 0.1567368606 | H30: 8.980360608 | I30: 17.88931389 | J30: -113.1997991 | K30: 17.88931389 | L30: -113.1997991 | M30: -7.557957887 | N30: -18.52479843 | O30: -5.092736673 | P30: -19.3482536 | Q30: 3.773326636 | R30: 0.5963104629 | S30: -3.504353668 | T30: -19.0674138 | U30: 19.38676774 | V30: 20.00727078 | W30: 18.32359447 | X30: -1.080430695 | Y30: 3.664184709 | Z30: 0.1325 | AA30: -0.6056602328 | AB30: 3.782759953 | AC30: -3.739907966 | AD30: -18.21148746 | AE30: 18.16980698 | AF30: -113.4827986 | AG30: -7.522667918 | AH30: 17.56414675 | AI30: 19.10732278 | AJ30: 3.782759953 | AK30: 0.6056602328 | AL30: 0.13375 | AM30: -0.6103067275 | AN30: 3.759818276 | AO30: -3.717195707 | AP30: -18.35334096 | AQ30: 18.30920182 | AR30: -112.7945483 | AS30: -7.477013984 | AT30: -18.96364769 | AU30: 20.38444681 | AV30: 3.759818276 | AW30: 0.6103067275 | AX30: 0.1392307692 | AY30: -0.6306798193 | AZ30: 3.65922785 | BA30: -3.616847197 | BB30: -18.97154185 | BC30: 18.92039458 | BD30: -109.7768355 | BE30: -7.276075047 | BF30: -19.60222167 | BG30: 20.90904978 | BH30: 3.65922785 | BI30: 0.6306798193 | BJ30: 0.14 | BK30: -0.633450814 | BL30: 3.6445694 | BM30: -3.602293047 | BN30: -19.05598557 | BO30: 19.00352442 | BP30: -109.337082 | BQ30: -7.246862447 | BR30: -19.68943638 | BS30: 20.98072736 | BT30: 3.6445694 | BU30: 0.633450814 | BV30: -0.03784631251 | BW30: -0.1792848797 | BX30: 0.1788931389 | BY30: -1.131997991 | BZ30: -0.605772041 | CA30: 3.728505416 | CB30: -3.739907966 | CC30: -18.21148746 | CD30: -0.03739907966 | CE30: -0.1821148746 | CF30: 0.1816980698 | CG30: -1.134827986 | CH30: -0.6103770459 | CI30: 3.70529887 | CJ30: -3.716757437 | CK30: -18.35378315 | CL30: -0.03717195707 | CM30: -0.1835334096 | CN30: 0.1830920182 | CO30: -1.127945483 | CP30: -0.6304717287 | CQ30: 3.60299844 | CR30: -3.614747406 | CS30: -18.9506768 | CT30: -0.03616847197 | CU30: -0.1897154185 | CV30: 0.1892039458 | CW30: -1.097768355 | CX30: -0.9207034101 | CY30: 4.316316203 | CZ30: -6.264444747 | DA30: -17.94631763 | DB30: -0.03602293047 | DC30: -0.1905598557 | DD30: 0.1900352442 | DE30: -1.09337082 | DF30: -0.6332530786 | DG30: 3.588772069 | DH30: -3.60053226 | DI30: -19.04525815 | DJ30: -1.093137012 | DK30: 3.476398409 | DL30: -7.189304329 | DM30: -19.67851123 | DN30: 20.95065395 | DO30: 18.99759236 | DP30: -107.6631621
A31: 0.14 | B31: -0.6332530786 | C31: 3.588772069 | D31: -3.60053226 | E31: -19.04525815 | F31: 3.644213828 | G31: 0.1746560825 | H31: 10.00705639 | I31: 18.99759236 | J31: -107.6631621 | K31: 18.99759236 | L31: -107.6631621 | M31: -7.189304329 | N31: -19.67851123 | O31: -4.3729634 | P31: -20.48919452 | Q31: 3.588772069 | R31: 0.6332530786 | S31: -2.688707254 | T31: -20.17400309 | U31: 20.35238432 | V31: 20.95065395 | W31: 19.3826131 | X31: -1.12784576 | Y31: 3.465293403 | Z31: 0.1425 | AA31: -0.6421356743 | AB31: 3.597743999 | AC31: -3.553038279 | AD31: -19.31441606 | AE31: 19.26407023 | AF31: -107.93232 | AG31: -7.150782279 | AH31: 18.62193456 | AI31: 19.94768492 | AJ31: 3.597743999 | AK31: 0.6421356743 | AL31: 0.14375 | AM31: -0.6465468721 | AN31: 3.573432335 | AO31: -3.528958192 | AP31: -19.44933146 | AQ31: 19.39640616 | AR31: -107.2029701 | AS31: -7.102390527 | AT31: -20.09587833 | AU31: 21.31403943 | AV31: 3.573432335 | AW31: 0.6465468721 | AX31: 0.1492307692 | AY31: -0.6658882775 | AZ31: 3.466835038 | BA31: -3.422650966 | BB31: -20.03688619 | BC31: 19.97664833 | BD31: -104.0050511 | BE31: -6.889486003 | BF31: -20.70277447 | BG31: 21.81902583 | BH31: 3.466835038 | BI31: 0.6658882775 | BJ31: 0.15 | BK31: -0.6685092655 | BL31: 3.451360507 | BM31: -3.407284313 | BN31: -20.11689008 | BO31: 20.05527796 | BP31: -103.5408152 | BQ31: -6.85864482 | BR31: -20.78539935 | BS31: 21.88775536 | BT31: 3.451360507 | BU31: 0.6685092655 | BV31: -0.0360053226 | BW31: -0.1904525815 | BX31: 0.1899759236 | BY31: -1.076631621 | BZ31: -0.6422544093 | CA31: 3.541158924 | CB31: -3.553038279 | CC31: -19.31441606 | CD31: -0.03553038279 | CE31: -0.1931441606 | CF31: 0.1926407023 | CG31: -1.0793232 | CH31: -0.6466214978 | CI31: 3.516595345 | CJ31: -3.52854182 | CK31: -19.44975201 | CL31: -0.03528958192 | CM31: -0.1944933146 | CN31: 0.1939640616 | CO31: -1.072029701 | CP31: -0.6656683344 | CQ31: 3.40837168 | CR31: -3.420658696 | CS31: -20.01496864 | CT31: -0.03422650966 | CU31: -0.2003688619 | CV31: 0.1997664833 | CW31: -1.040050511 | CX31: -0.9821895663 | CY31: 4.166093406 | CZ31: -5.9795441 | DA31: -19.19204578 | DB31: -0.03407284313 | DC31: -0.2011689008 | DD31: 0.2005527796 | DE31: -1.035408152 | DF31: -0.6682997527 | DG31: 3.393350797 | DH31: -3.405654798 | DI31: -20.10574002 | DJ31: -1.135279845 | DK31: 3.266893611 | DL31: -6.799005596 | DM31: -20.77403977 | DN31: 21.85834407 | DO31: 20.04899258 | DP31: -101.8005239
A32: 0.15 | B32: -0.6682997527 | C32: 3.393350797 | D32: -3.405654798 | E32: -20.10574002 | F32: 3.458533532 | G32: 0.1944552862 | H32: 11.1414672 | I32: 20.04899258 | J32: -101.8005239 | K32: 20.04899258 | L32: -101.8005239 | M32: -6.799005596 | N32: -20.77403977 | O32: -3.618226385 | P32: -21.5568004 | Q32: 3.393350797 | R32: 0.6682997527 | S32: -1.843603416 | T32: -21.20629496 | U32: 21.28628242 | V32: 21.85834407 | W32: 20.39213736 | X32: -1.167891473 | Y32: 3.255377659 | Z32: 0.1525 | AA32: -0.6766885835 | AB32: 3.401834174 | AC32: -3.355532317 | AD32: -20.36024133 | AE32: 20.30065751 | AF32: -102.0550252 | AG32: -6.757366491 | AH32: 19.62396892 | AI32: 20.75481048 | AJ32: 3.401834174 | AK32: 0.6766885835 | AL32: 0.15375 | AM32: -0.6808512791 | AN32: 3.376224412 | AO32: -3.330156495 | AP32: -20.48781011 | AQ32: 20.42553837 | AR32: -101.2867323 | AS32: -6.706380907 | AT32: -21.16866139 | AU32: 22.2055797 | AV32: 3.376224412 | AW32: 0.6808512791 | AX32: 0.1592307692 | AY32: -0.6991030984 | AZ32: 3.263935452 | BA32: -3.218208833 | BB32: -21.04293932 | BC32: 20.97309295 | BD32: -97.91806357 | BE32: -6.482144285 | BF32: -21.74204241 | BG32: 22.68776328 | BH32: 3.263935452 | BI32: 0.6991030984 | BJ32: 0.16 | BK32: -0.7015662335 | BL32: 3.247690636 | BM32: -3.202075684 | BN32: -21.1182609 | BO32: 21.04698701 | BP32: -97.43071909 | BQ32: -6.449766321 | BR32: -21.81982714 | BS32: 22.75311719 | BT32: 3.247690636 | BU32: 0.7015662335 | BV32: -0.03405654798 | BW32: -0.2010574002 | BX32: 0.2004899258 | BY32: -1.018005239 | BZ32: -0.6768138897 | CA32: 3.343086447 | CB32: -3.355532317 | CC32: -20.36024133 | CD32: -0.03355532317 | CE32: -0.2036024133 | CF32: 0.2030065751 | CG32: -1.020550252 | CH32: -0.6809299887 | CI32: 3.317238487 | CJ32: -3.329763269 | CK32: -20.48820777 | CL32: -0.03330156495 | CM32: -0.2048781011 | CN32: 0.2042553837 | CO32: -1.012867323 | CP32: -0.6988719611 | CQ32: 3.203411723 | CR32: -3.216330048 | CS32: -21.02003419 | CT32: -0.03218208833 | CU32: -0.2104293932 | CV32: 0.2097309295 | CW32: -0.9791806357 | CX32: -1.040749951 | CY32: 4.003283167 | CZ32: -5.676667886 | DA32: -20.3810824 | DB32: -0.03202075684 | DC32: -0.211182609 | DD32: 0.2104698701 | DE32: -0.9743071909 | DF32: -0.7013455706 | DG32: 3.187640778 | DH32: -3.200582321 | DI32: -21.1067213 | DJ32: -1.169825301 | DK32: 3.047039236 | DL32: -6.388223099 | DM32: -21.80806687 | DN32: 22.72446204 | DO32: 21.04036712 | DP32: -95.62922335
A33: 0.16 | B33: -0.7013455706 | C33: 3.187640778 | D33: -3.200582321 | E33: -21.1067213 | F33: 3.263884088 | G33: 0.2165696349 | H33: 12.40852605 | I33: 21.04036712 | J33: -95.62922335 | K33: 21.04036712 | L33: -95.62922335 | M33: -6.388223099 | N33: -21.80806687 | O33: -2.832206031 | P33: -22.54727886 | Q33: 3.187640778 | R33: 0.7013455706 | S33: -0.9730045996 | T33: -22.16071218 | U33: 22.18206263 | V33: 22.72446204 | W33: 21.3480072 | X33: -1.200236695 | Y33: 3.035188827 | Z33: 0.1625 | AA33: -0.7092155241 | AB33: 3.19560988 | AC33: -3.147981403 | AD33: -21.34579436 | AE33: 21.27646572 | AF33: -95.86829641 | AG33: -6.343591283 | AH33: 20.5672502 | AI33: 21.52331134 | AJ33: 3.19560988 | AK33: 0.7092155241 | AL33: 0.16375 | AM33: -0.7131172564 | AN33: 3.168777843 | AO33: -3.121385821 | AP33: -21.46562973 | AQ33: 21.39351769 | AR33: -95.06333529 | AS33: -6.290163664 | AT33: -22.17874699 | AU33: 23.0534808 | AV33: 3.168777843 | AW33: 0.7131172564 | AX33: 0.1692307692 | AY33: -0.7302248518 | AZ33: 3.05112968 | BA33: -3.004132887 | BB33: -21.98664994 | BC33: 21.90674555 | BD33: -91.5338904 | BE33: -6.055262567 | BF33: -22.71687479 | BG33: 23.51005327 | BH33: 3.05112968 | BI33: 0.7302248518 | BJ33: 0.17 | BK33: -0.7325227606 | BL33: 3.03416271 | BM33: -2.987281544 | BN33: -22.05706062 | BO33: 21.97568282 | BP33: -91.02488131 | BQ33: -6.021444255 | BR33: -22.78958338 | BS33: 23.57165462 | BT33: 3.03416271 | BU33: 0.7325227606 | BV33: -0.03200582321 | BW33: -0.211067213 | BX33: 0.2104036712 | BY33: -0.9562922335 | BZ33: -0.7093470264 | CA33: 3.134873975 | CB33: -3.147981403 | CC33: -21.34579436 | CD33: -0.03147981403 | CE33: -0.2134579436 | CF33: 0.2127646572 | CG33: -0.9586829641 | CH33: -0.7131998142 | CI33: 3.10781818 | CJ33: -3.121016917 | CK33: -21.46600328 | CL33: -0.03121385821 | CM33: -0.2146562973 | CN33: 0.2139351769 | CO33: -0.9506333529 | CP33: -0.7299832124 | CQ33: 2.988725436 | CR33: -3.002373212 | CS33: -21.96282517 | CT33: -0.03004132887 | CU33: -0.2198664994 | CV33: 0.2190674555 | CW33: -0.915338904 | CX33: -1.096208493 | CY33: 3.828365443 | CZ33: -5.356718563 | DA33: -21.50983266 | DB33: -0.02987281544 | DC33: -0.2205706062 | DD33: 0.2197568282 | DE33: -0.9102488131 | DF33: -0.7322916082 | DG33: 2.972251157 | DH33: -2.985928801 | DI33: -22.04516578 | DJ33: -1.196471979 | DK33: 2.817620049 | DL33: -5.958179958 | DM33: -22.77745739 | DN33: 23.54384152 | DO33: 21.96874825 | DP33: -89.1675347
A34: 0.17 | B34: -0.7322916082 | C34: 2.972251157 | D34: -2.985928801 | E34: -22.04516578 | F34: 3.061131807 | G34: 0.2415650235 | H34: 13.84065633 | I34: 21.96874825 | J34: -89.1675347 | K34: 21.96874825 | L34: -89.1675347 | M34: -5.958179958 | N34: -22.77745739 | O34: -2.018747658 | P34: -23.45713391 | Q34: 2.972251157 | R34: 0.7322916082 | S34: -0.08101720539 | T34: -23.03398161 | U34: 23.03412409 | V34: 23.54384152 | W34: 22.24646275 | X34: -1.224587887 | Y34: 2.805514649 | Z34: 0.1725 | AA34: -0.7396191256 | AB34: 2.979681785 | AC34: -2.931006931 | AD34: -22.26808462 | AE34: 22.18857377 | AF34: -89.39045354 | AG34: -5.910688715 | AH34: 21.44895464 | AI34: 22.24845829 | AJ34: 2.979681785 | AK34: 0.7396191256 | AL34: 0.17375 | AM34: -0.7432482146 | AN34: 2.951707006 | AO34: -2.903271214 | AP34: -22.37982268 | AQ34: 22.29744644 | AR34: -88.55121019 | AS34: -5.85497822 | AT34: -23.1230709 | AU34: 23.85282327 | AV34: 2.951707006 | AW34: 0.7432482146 | AX34: 0.1792307692 | AY34: -0.7591603741 | AZ34: 2.829048363 | BA34: -2.781064055 | BB34: -22.86515143 | BC34: 22.77481122 | BD34: -84.87145088 | BE34: -5.610112418 | BF34: -23.62431181 | BG34: 24.28129876 | BH34: 2.829048363 | BI34: 0.7591603741 | BJ34: 0.18 | BK34: -0.7612861779 | BL34: 2.811409565 | BM34: -2.76354497 | BN34: -22.93043716 | BO34: 22.83858534 | BP34: -84.34228695 | BQ34: -5.574954535 | BR34: -23.69172334 | BS34: 24.33881412 | BT34: 2.811409565 | BU34: 0.7612861779 | BV34: -0.02985928801 | BW34: -0.2204516578 | BX34: 0.2196874825 | BY34: -0.891675347 | BZ34: -0.7397564302 | CA34: 2.917138242 | CB34: -2.931006931 | CC34: -22.26808462 | CD34: -0.02931006931 | CE34: -0.2226808462 | CF34: 0.2218857377 | CG34: -0.8939045354 | CH34: -0.7433343735 | CI34: 2.888954826 | CJ34: -2.902927736 | CK34: -22.380171 | CL34: -0.02903271214 | CM34: -0.2237982268 | CN34: 0.2229744644 | CO34: -0.8855121019 | CP34: -0.7589089561 | CQ34: 2.764949212 | CR34: -2.779428757 | CS34: -22.84047776 | CT34: -0.02781064055 | CU34: -0.2286515143 | CV34: 0.2277481122 | CW34: -0.8487145088 | CX34: -1.148398367 | CY34: 3.641856801 | CZ34: -5.020649935 | DA34: -22.57488001 | DB34: -0.0276354497 | DC34: -0.2293043716 | DD34: 0.2283858534 | DE34: -0.8434228695 | DF34: -0.7610452281 | DG34: 2.74782046 | DH34: -2.762336897 | DI34: -22.91822246 | DJ34: -1.214957304 | DK34: 2.579454568 | DL34: -5.510157357 | DM34: -23.67926769 | DN34: 24.31192202 | DO34: 22.83135684 | DP34: -82.4346138
A35: 0.18 | B35: -0.7610452281 | C35: 2.74782046 | D35: -2.762336897 | E35: -22.91822246 | F35: 2.851264127 | G35: 0.2701904919 | H35: 15.48077485 | I35: 22.83135684 | J35: -82.4346138 | K35: 22.83135684 | L35: -82.4346138 | M35: -5.510157357 | N35: -23.67926769 | O35: -1.181844368 | P35: -24.28317929 | Q35: 2.74782046 | R35: 0.7610452281 | S35: 0.8281264447 | T35: -23.82314647 | U35: 23.83753556 | V35: 24.31192202 | W35: 23.08409465 | X35: -1.240690672 | Y35: 2.567176226 | Z35: 0.1825 | AA35: -0.7678083744 | AB35: 2.754690011 | AC35: -2.705258505 | AD35: -23.124309 | AE35: 23.03425123 | AF35: -82.64070034 | AG35: -5.459948516 | AH35: 22.26644286 | AI35: 22.92608809 | AJ35: 2.754690011 | AK35: 0.7678083744 | AL35: 0.18375 | AM35: -0.7711539565 | AN35: 2.725655499 | AO35: -2.676465691 | AP35: -23.22760987 | AQ35: 23.13461869 | AR35: -81.76966497 | AS35: -5.402121189 | AT35: -23.99876383 | AU35: 24.59925972 | AV35: 2.725655499 | AW35: 0.7711539565 | AX35: 0.1892307692 | AY35: -0.7858230473 | AZ35: 2.598350329 | BA35: -2.549670184 | BB35: -23.67577054 | BC35: 23.57469142 | BD35: -77.95050988 | BE35: -5.148020514 | BF35: -24.46159358 | BG35: 24.99743339 | BH35: 2.598350329 | BI35: 0.7858230473 | BJ35: 0.19 | BK35: -0.7877703825 | BL35: 2.580092074 | BM35: -2.531535806 | BN35: -23.73573247 | BO35: 23.63311148 | BP35: -77.40276221 | BQ35: -5.11162788 | BR35: -24.52350285 | BS35: 25.05056749 | BT35: 2.580092074 | BU35: 0.7877703825 | BV35: -0.02762336897 | BW35: -0.2291822246 | BX35: 0.2283135684 | BY35: -0.824346138 | BZ35: -0.7679510703 | CA35: 2.690524904 | CB35: -2.705258505 | CC35: -23.124309 | CD35: -0.02705258505 | CE35: -0.23124309 | CF35: 0.2303425123 | CG35: -0.8264070034 | CH35: -0.7712434585 | CI35: 2.661297507 | CJ35: -2.676148668 | CK35: -23.22793188 | CL35: -0.02676465691 | CM35: -0.2322760987 | CN35: 0.2313461869 | CO35: -0.8176966497 | CP35: -0.7855626033 | CQ35: 2.532747075 | CR35: -2.548164159 | CS35: -23.65032127 | CT35: -0.02549670184 | CU35: -0.2367577054 | CV35: 0.2357469142 | CW35: -0.7795050988 | CX35: -1.197162492 | CY35: 3.444308891 | CZ35: -4.669464309 | DA35: -23.57299651 | DB35: -0.02531535806 | DC35: -0.2373573247 | DD35: 0.2363311148 | DE35: -0.7740276221 | DF35: -0.7875203566 | DG35: 2.515014706 | DH35: -2.53047602 | DI35: -23.72323427 | DJ35: -1.225058946 | DK35: 2.333391922 | DL35: -5.045490725 | DM35: -24.51075462 | DN35: 25.02466921 | DO35: 23.6256107 | DP35: -75.45044117
A36: 0.19 | B36: -0.7875203566 | C36: 2.515014706 | D36: -2.53047602 | E36: -23.72323427 | F36: 2.635429241 | G36: 0.3034564712 | H36: 17.38677506 | I36: 23.6256107 | J36: -75.45044117 | K36: 23.6256107 | L36: -75.45044117 | M36: -5.045490725 | N36: -24.51075462 | O36: -0.3256192274 | P36: -25.02255065 | Q36: 2.515014706 | R36: 0.7875203566 | S36: 1.750086756 | T36: -24.52557744 | U36: 24.58793916 | V36: 25.02466921 | W36: 23.85781115 | X36: -1.248331224 | Y36: 2.321024868 | Z36: 0.1925 | AA36: -0.7936988866 | AB36: 2.521302242 | AC36: -2.471411993 | AD36: -23.91186037 | AE36: 23.8109666 | AF36: -75.63906727 | AG36: -4.992714235 | AH36: 23.01726771 | AI36: 23.55253295 | AJ36: 2.521302242 | AK36: 0.7936988866 | AL36: 0.19375 | AM36: -0.7967509469 | AN36: 2.491294231 | AO36: -2.441648285 | AP36: -24.0064092 | AQ36: 23.90252841 | AR36: -74.73882693 | AS36: -4.932942516 | AT36: -24.80316015 | AU36: 25.28894374 | AV36: 2.491294231 | AW36: 0.7967509469 | AX36: 0.1992307692 | AY36: -0.8101330577 | AZ36: 2.359720642 | BA36: -2.310644043 | BB36: -24.41603547 | BC36: 24.30399173 | BD36: -70.79161926 | BE36: -4.670364685 | BF36: -25.22616852 | BG36: 25.65486084 | BH36: 2.359720642 | BI36: 0.8101330577 | BJ36: 0.2 | BK36: -0.8118960952 | BL36: 2.340897188 | BM36: -2.291948664 | BN36: -24.47049056 | BO36: 24.35688285 | BP36: -70.22691563 | BQ36: -4.632845852 | BR36: -25.28238665 | BS36: 25.70335261 | BT36: 2.340897188 | BU36: 0.8118960952 | BV36: -0.0253047602 | BW36: -0.2372323427 | BX36: 0.236256107 | BY36: -0.7545044117 | BZ36: -0.7938465467 | CA36: 2.45570662 | CB36: -2.471411993 | CC36: -23.91186037 | CD36: -0.02471411993 | CE36: -0.2391186037 | CF36: 0.238109666 | CG36: -0.7563906727 | CH36: -0.7968435241 | CI36: 2.425522066 | CJ36: -2.441358666 | CK36: -24.00670393 | CL36: -0.02441648285 | CM36: -0.240064092 | CN36: 0.2390252841 | CO36: -0.7473882693 | CP36: -0.8098643676 | CQ36: 2.292808718 | CR36: -2.309271798 | CS36: -24.38988629 | CT36: -0.02310644043 | CU36: -0.2441603547 | CV36: 0.2430399173 | CW36: -0.7079161926 | CX36: -1.242354006 | CY36: 3.236306815 | CZ36: -4.304209504 | DA36: -24.50115263 | DB36: -0.02291948664 | DC36: -0.2447049056 | DD36: 0.2435688285 | DE36: -0.7022691563 | DF36: -0.8116377417 | DG36: 2.274525426 | DH36: -2.291040336 | DI36: -24.45774609 | DJ36: -1.226596058 | DK36: 2.080308594 | DL36: -4.565565762 | DM36: -25.26938384 | DN36: 25.67851534 | DO36: 24.34913225 | DP36: -68.23576278
A37: 0.2 | B37: -0.8116377417 | C37: 2.274525426 | D37: -2.291040336 | E37: -24.45774609 | F37: 2.414999324 | G37: 0.342753792 | H37: 19.63834569 | I37: 24.34913225 | J37: -68.23576278 | K37: 24.34913225 | L37: -68.23576278 | M37: -4.565565762 | N37: -25.26938384 | O37: 0.5456931637 | P37: -25.67271643 | Q37: 2.274525426 | R37: 0.8116377417 | S37: 2.680436031 | T37: -25.13898232 | U37: 25.28147878 | V37: 25.67851534 | W37: 24.5648165 | X37: -1.247337468 | Y37: 2.067938823 | Z37: 0.2025 | AA37: -0.8172131605 | AB37: 2.280211739 | AC37: -2.230167506 | AD37: -24.6283355 | AE37: 24.51639482 | AF37: -68.40635218 | AG37: -4.510379245 | AH37: 23.69918165 | AI37: 24.12456698 | AJ37: 2.280211739 | AK37: 0.8172131605 | AL37: 0.20375 | AM37: -0.819962563 | AN37: 2.249319435 | AO37: -2.199522012 | AP37: -24.71384344 | AQ37: 24.59887689 | AR37: -67.47958306 | AS37: -4.448841447 | AT37: -25.533806 | AU37: 25.91847679 | AV37: 2.249319435 | AW37: 0.819962563 | AX37: 0.2092307692 | AY37: -0.8320176356 | AZ37: 2.113868562 | BA37: -2.064701245 | BB37: -25.08368346 | BC37: 24.96052907 | BD37: -63.41605687 | BE37: -4.178569807 | BF37: -25.9157011 | BG37: 26.25040969 | BH37: 2.113868562 | BI37: 0.8320176356 | BJ37: 0.21 | BK37: -0.8335910978 | BL37: 2.094535897 | BM37: -2.045500838 | BN37: -25.13246505 | BO37: 25.00773293 | BP37: -62.83607691 | BQ37: -4.140036735 | BR37: -25.96605614 | BS37: 26.29402928 | BT37: 2.094535897 | BU37: 0.8335910978 | BV37: -0.02291040336 | BW37: -0.2445774609 | BX37: 0.2434913225 | BY37: -0.6823576278 | BZ37: -0.8173653426 | CA37: 2.213381061 | CB37: -2.230167506 | CC37: -24.6283355 | CD37: -0.02230167506 | CE37: -0.246283355 | CF37: 0.2451639482 | CG37: -0.6840635218 | CH37: -0.8200579382 | CI37: 2.182329095 | CJ37: -2.199260664 | CK37: -24.71410999 | CL37: -0.02199522012 | CM37: -0.2471384344 | CN37: 0.2459887689 | CO37: -0.6747958306 | CP37: -0.8317415036 | CQ37: 2.045847449 | CR37: -2.063466888 | CS37: -25.05691221 | CT37: -0.02064701245 | CU37: -0.2508368346 | CV37: 0.2496052907 | CW37: -0.6341605687 | CX37: -1.283836709 | CY37: 3.018467397 | CZ37: -3.925975724 | DA37: -25.35652639 | DB37: -0.02045500838 | DC37: -0.2513246505 | DD37: 0.2500773293 | DE37: -0.6283607691 | DF37: -0.8333251903 | DG37: 2.027067613 | DH37: -2.044746687 | DI37: -25.11951231 | DJ37: -1.219430334 | DK37: 1.821105061 | DL37: -4.0718143 | DM37: -25.9528375 | DN37: 26.27031492 | DO37: 24.99975571 | DP37: -60.8120284
A38: 0.21 | B38: -0.8333251903 | C38: 2.027067613 | D38: -2.044746687 | E38: -25.11951231 | F38: 2.191673786 | G38: 0.3900375946 | H38: 22.34750802 | I38: 24.99975571 | J38: -60.8120284 | K38: 24.99975571 | L38: -60.8120284 | M38: -4.0718143 | N38: -25.9528375 | O38: 1.427765642 | P38: -26.2314874 | Q38: 2.027067613 | R38: 0.8333251903 | S38: 3.614678091 | T38: -25.6614145 | U38: 25.91474661 | V38: 26.27031492 | W38: 25.20259685 | X38: -1.23758011 | Y38: 1.808819907 | Z38: 0.2125 | AA38: -0.8382808086 | AB38: 2.032135283 | AC38: -1.982247298 | AD38: -25.27154238 | AE38: 25.14842426 | AF38: -60.96405848 | AG38: -4.01438258 | AH38: 24.31014345 | AI38: 24.6393657 | AJ38: 2.032135283 | AK38: 0.8382808086 | AL38: 0.21375 | AM38: -0.8407193233 | AN38: 2.000450598 | AO38: -1.950811767 | AP38: -25.34774746 | AQ38: 25.2215797 | AR38: -60.01351795 | AS38: -3.951262365 | AT38: -26.18846678 | AU38: 26.48486863 | AV38: 2.000450598 | AW38: 0.8407193233 | AX38: 0.2192307692 | AY38: -0.8514112724 | AZ38: 1.861525444 | BA38: -1.812578109 | BB38: -25.6766677 | BC38: 25.54233817 | BD38: -55.84576332 | BE38: -3.674103553 | BF38: -26.52807897 | BG38: 26.78129965 | BH38: 1.861525444 | BI38: 0.8514112724 | BJ38: 0.22 | BK38: -0.8527904494 | BL38: 1.841741116 | BM38: -1.792930157 | BN38: -25.71962598 | BO38: 25.58371348 | BP38: -55.25223349 | BQ38: -3.634671273 | BR38: -26.57241643 | BS38: 26.8198462 | BT38: 1.841741116 | BU38: 0.8527904494 | BV38: -0.02044746687 | BW38: -0.2511951231 | BX38: 0.2499975571 | BY38: -0.608120284 | BZ38: -0.838437057 | CA38: 1.964268833 | CB38: -1.982247298 | CC38: -25.27154238 | CD38: -0.01982247298 | CE38: -0.2527154238 | CF38: 0.2514842426 | CG38: -0.6096405848 | CH38: -0.8408172109 | CI38: 1.932441858 | CJ38: -1.950579473 | CK38: -25.347985 | CL38: -0.01950811767 | CM38: -0.2534774746 | CN38: 0.252215797 | CO38: -0.6001351795 | CP38: -0.8511285254 | CQ38: 1.792598073 | CR38: -1.811485336 | CS38: -25.64935412 | CT38: -0.01812578109 | CU38: -0.256766677 | CV38: 0.2554233817 | CW38: -0.5584576332 | CX38: -1.32148547 | CY38: 2.791437353 | CZ38: -3.53589231 | DA38: -26.13651202 | DB38: -0.01792930157 | DC38: -0.2571962598 | DD38: 0.2558371348 | DE38: -0.5525223349 | DF38: -0.852517784 | DG38: 1.773377597 | DH38: -1.792332441 | DI38: -25.70650362 | DJ38: -1.203466864 | DK38: 1.556702341 | DL38: -3.565710037 | DM38: -26.5590214 | DN38: 26.79731154 | DO38: 25.57553352 | DP38: -53.2013279
A39: 0.22 | B39: -0.852517784 | C39: 1.773377597 | D39: -1.792332441 | E39: -25.70650362 | F39: 1.967652071 | G39: 0.4481140124 | H39: 25.67504165 | I39: 25.57553352 | J39: -53.2013279 | K39: 25.57553352 | L39: -53.2013279 | M39: -3.565710037 | N39: -26.5590214 | O39: 2.3161979 | P39: -26.6970248 | Q39: 1.773377597 | R39: 0.852517784 | S39: 4.548268246 | T39: -26.09127985 | U39: 26.48474331 | V39: 26.79731154 | W39: 25.76891119 | X39: -1.218973455 | Y39: 1.544590038 | Z39: 0.2225 | AA39: -0.856838768 | AB39: 1.777811041 | AC39: -1.728393607 | AD39: -25.83950694 | AE39: 25.70516304 | AF39: -53.33433122 | AG39: -3.506204647 | AH39: 24.84832427 | AI39: 25.09447529 | AJ39: 1.777811041 | AK39: 0.856838768 | AL39: 0.22375 | AM39: -0.8589590957 | AN39: 1.745428322 | AO39: -1.696262153 | AP39: -25.90617485 | AQ39: 25.76877287 | AR39: -52.36284966 | AS39: -3.441690475 | AT39: -26.76513395 | AU39: 26.98550775 | AV39: 1.745428322 | AW39: 0.8589590957 | AX39: 0.2292307692 | AY39: -0.8682559172 | AZ39: 1.603442556 | BA39: -1.555029456 | BB39: -26.19316355 | BC39: 26.04767751 | BD39: -48.10327668 | BE39: -3.158472011 | BF39: -27.06141947 | BG39: 27.24511642 | BH39: 1.603442556 | BI39: 0.8682559172 | BJ39: 0.23 | BK39: -0.8694366808 | BL39: 1.583265505 | BM39: -1.534992781 | BN39: -26.23016607 | BO39: 26.08310043 | BP39: -47.49796515 | BQ39: -3.118258286 | BR39: -27.09960275 | BS39: 27.27841645 | BT39: 1.583265505 | BU39: 0.8694366808 | BV39: -0.01792332441 | BW39: -0.2570650362 | BX39: 0.2557553352 | BY39: -0.532013279 | BZ39: -0.8569986151 | CA39: 1.709111337 | CB39: -1.728393607 | CC39: -25.83950694 | CD39: -0.01728393607 | CE39: -0.2583950694 | CF39: 0.2570516304 | CG39: -0.5333433122 | CH39: -0.8590592027 | CI39: 1.676604136 | CJ39: -1.696059607 | CK39: -25.90638267 | CL39: -0.01696262153 | CM39: -0.2590617485 | CN39: 0.2576877287 | CO39: -0.5236284966 | CP39: -0.8679674016 | CQ39: 1.533814707 | CR39: -1.554081536 | CS39: -26.16538906 | CT39: -0.01555029456 | CU39: -0.2619316355 | CV39: 0.2604767751 | CW39: -0.4810327668 | CX39: -1.355186609 | CY39: 2.55589137 | CZ39: -3.135124359 | DA39: -26.83872781 | DB39: -0.01534992781 | DC39: -0.2623016607 | DD39: 0.2608310043 | DE39: -0.4749796515 | DF39: -0.8691580738 | DG39: 1.514210848 | DH39: -1.534553288 | DI39: -26.21691327 | DJ39: -1.17865481 | DK39: 1.288038465 | DL39: -3.048764136 | DM39: -27.08607134 | DN39: 27.25711326 | DO39: 26.07474221 | DP39: -45.42632544
A40: 0.23 | B40: -0.8691580738 | C40: 1.514210848 | D40: -1.534553288 | E40: -26.21691327 | F40: 1.745929623 | G40: 0.5210829486 | H40: 29.85585373 | I40: 26.07474221 | J40: -45.42632544 | K40: 26.07474221 | L40: -45.42632544 | M40: -3.048764136 | N40: -27.08607134 | O40: 3.206536281 | P40: -27.06784713 | Q40: 1.514210848 | R40: 0.8691580738 | S40: 5.476633556 | T40: -26.42734233 | U40: 26.9888484 | V40: 27.25711326 | W40: 26.26178583 | X40: -1.191476048 | Y40: 1.276187712 | Z40: 0.2325 | AA40: -0.8728314899 | AB40: 1.517996375 | AC40: -1.469366432 | AD40: -26.33047908 | AE40: 26.1849447 | AF40: -45.53989125 | AG40: -2.987362807 | AH40: 25.31211321 | AI40: 25.48778946 | AJ40: 1.517996375 | AK40: 0.8728314899 | AL40: 0.23375 | AM40: -0.874627284 | AN40: 1.48501212 | AO40: -1.436635251 | AP40: -26.38740394 | AQ40: 26.23881852 | AR40: -44.55036361 | AS40: -2.921647371 | AT40: -27.26203123 | AU40: 27.41813943 | AV40: 1.48501212 | AW40: 0.874627284 | AX40: 0.2392307692 | AY40: -0.8825011502 | AZ40: 1.340388849 | BA40: -1.292826342 | BB40: -26.63157421 | BC40: 26.47503451 | BD40: -40.21166546 | BE40: -2.633215191 | BF40: -27.51407536 | BG40: 27.63979314 | BH40: 1.340388849 | BI40: 0.8825011502 | BJ40: 0.24 | BK40: -0.8834799663 | BL40: 1.319879228 | BM40: -1.272460931 | BN40: -26.66250626 | BO40: 26.50439899 | BP40: -39.59637685 | BQ40: -2.592340159 | BR40: -27.54598622 | BS40: 27.6676993 | BT40: 1.319879228 | BU40: 0.8834799663 | BV40: -0.01534553288 | BW40: -0.2621691327 | BX40: 0.2607474221 | BY40: -0.4542632544 | BZ40: -0.872994457 | CA40: 1.448668565 | CB40: -1.469366432 | CC40: -26.33047908 | CD40: -0.01469366432 | CE40: -0.2633047908 | CF40: 0.261849447 | CG40: -0.4553989125 | CH40: -0.8747293106 | CI40: 1.415578019 | CJ40: -1.43646306 | CK40: -26.38758139 | CL40: -0.01436635251 | CM40: -0.2638740394 | CN40: 0.2623881852 | CO40: -0.4455036361 | CP40: -0.8822077299 | CQ40: 1.270268535 | CR40: -1.292026114 | CS40: -26.60342167 | CT40: -0.01292826342 | CU40: -0.2663157421 | CV40: 0.2647503451 | CW40: -0.4021166546 | CX40: -1.384838236 | CY40: 2.312530103 | CZ40: -2.724869252 | DA40: -27.46102344 | DB40: -0.01272460931 | DC40: -0.2666250626 | DD40: 0.2650439899 | DE40: -0.3959637685 | DF40: -0.8831962518 | DG40: 1.250339736 | DH40: -1.272180977 | DI40: -26.6491626 | DJ40: -1.144987867 | DK40: 1.016064889 | DL40: -2.522520713 | DM40: -27.53235885 | DN40: 27.64767431 | DO40: 26.49588755 | DP40: -37.51019208
A41: 0.24 | B41: -0.8831962518 | C41: 1.250339736 | D41: -1.272180977 | E41: -26.6491626 | F41: 1.530811901 | G41: 0.6149850278 | H41: 35.23604656 | I41: 26.49588755 | J41: -37.51019208 | K41: 26.49588755 | L41: -37.51019208 | M41: -2.522520713 | N41: -27.53235885 | O41: 4.094293851 | P41: -27.34283549 | Q41: 1.250339736 | R41: 0.8831962518 | S41: 6.395193262 | T41: -26.6687281 | U41: 27.42479818 | V41: 27.64767431 | W41: 26.67951109 | X41: -1.155091098 | Y41: 1.004564398 | Z41: 0.2425 | AA41: -0.886211105 | AB41: 1.253465585 | AC41: -1.205941258 | AD41: -26.74293808 | AE41: 26.58633315 | AF41: -37.60396756 | AG41: -2.459406843 | AH41: 25.70012204 | AI41: 25.81753193 | AJ41: 1.253465585 | AK41: 0.886211105 | AL41: 0.24375 | AM41: -0.8876769904 | AN41: 1.219978157 | AO41: -1.172708341 | AP41: -26.78994304 | AQ41: 26.63030971 | AR41: -36.5993447 | AS41: -2.392686498 | AT41: -27.67762003 | AU41: 27.78084951 | AV41: 1.219978157 | AW41: 0.8876769904 | AX41: 0.2492307692 | AY41: -0.8941043342 | AZ41: 1.073148661 | BA41: -1.026753759 | BB41: -26.9905356 | BC41: 26.82313003 | BD41: -32.19445983 | BE41: -2.09990242 | BF41: -27.88463994 | BG41: 27.9635966 | BH41: 1.073148661 | BI41: 0.8941043342 | BJ41: 0.25 | BK41: -0.8948782731 | BL41: 1.052367661 | BM41: -1.006120582 | BN41: -27.01530057 | BO41: 26.84634819 | BP41: -31.57102982 | BQ41: -2.058488243 | BR41: -27.91017885 | BS41: 27.9859868 | BT41: 1.052367661 | BU41: 0.8948782731 | BV41: -0.01272180977 | BW41: -0.266491626 | BX41: 0.2649588755 | BY41: -0.3751019208 | BZ41: -0.8863767042 | CA41: 1.18371683 | CB41: -1.205941258 | CC41: -26.74293808 | CD41: -0.01205941258 | CE41: -0.2674293808 | CF41: 0.2658633315 | CG41: -0.3760396756 | CH41: -0.8877806313 | CI41: 1.150141633 | CJ41: -1.17256702 | CK41: -26.79008956 | CL41: -0.01172708341 | CM41: -0.2678994304 | CN41: 0.2663030971 | CO41: -0.365993447 | CP41: -0.8938068874 | CQ41: 1.002745506 | CR41: -1.026103618 | CS41: -26.96208906 | CT41: -0.01026753759 | CU41: -0.269905356 | CV41: 0.2682313003 | CW41: -0.3219445983 | CX41: -1.410350561 | CY41: 2.06207809 | CZ41: -2.306353075 | DA41: -28.00148652 | DB41: -0.01006120582 | DC41: -0.2701530057 | DD41: 0.2684634819 | DE41: -0.3157102982 | DF41: -0.8945903004 | DG41: 0.9825512231 | DH41: -1.006001004 | DI41: -27.00190596 | DJ41: -1.102504537 | DK41: 0.7417428512 | DL41: -1.988552227 | DM41: -27.89649626 | DN41: 27.96728166 | DO41: 26.83770901 | DP41: -29.47653669
A42: 0.25 | B42: -0.8945903004 | C42: 0.9825512231 | D42: -1.006001004 | E42: -27.00190596 | F42: 1.328795963 | G42: 0.738573443 | H42: 42.31714115 | I42: 26.83770901 | J42: -29.47653669 | K42: 26.83770901 | L42: -29.47653669 | M42: -1.988552227 | N42: -27.89649626 | O42: 4.97497067 | P42: -27.52123744 | Q42: 0.9825512231 | R42: 0.8945903004 | S42: 7.299379329 | T42: -26.81492817 | U42: 27.7906695 | V42: 27.96728166 | W42: 27.02063958 | X42: -1.109866717 | Y42: 0.7306809028 | Z42: 0.2525 | AA42: -0.8969375672 | AB42: 0.9850076012 | AC42: -0.9389067313 | AD42: -27.0755973 | AE42: 26.90812702 | AF42: -29.55022803 | AG42: -1.923914332 | AH42: 26.01118945 | AI42: 26.08224344 | AJ42: 0.9850076012 | AK42: 0.8969375672 | AL42: 0.25375 | AM42: -0.8980691567 | AN42: 0.9511169323 | AO42: -0.9052715726 | AP42: -27.11253509 | AQ42: 26.9420747 | AR42: -28.53350797 | AS42: -1.856388505 | AT42: -28.01060424 | AU42: 28.07205244 | AV42: 0.9511169323 | AW42: 0.8980691567 | AX42: 0.2592307692 | AY42: -0.9030307413 | AZ42: 0.8025193842 | BA42: -0.7576082785 | BB42: -27.26892066 | BC42: 27.09092224 | BD42: -24.07558153 | BE42: -1.560127663 | BF42: -28.1719514 | BG42: 28.21511729 | BH42: 0.8025193842 | BI42: 0.9030307413 | BJ42: 0.26 | BK42: -0.9035974868 | BL42: 0.7815290455 | BM42: -0.7367691076 | BN42: -27.28744034 | BO42: 27.1079246 | BP42: -23.44587137 | BQ42: -1.518298153 | BR42: -28.19103782 | BS42: 28.23189407 | BT42: 0.7815290455 | BU42: 0.9035974868 | BV42: -0.01006001004 | BW42: -0.2700190596 | BX42: 0.2683770901 | BY42: -0.2947653669 | BZ42: -0.8971053029 | CA42: 0.9150464582 | CB42: -0.9389067313 | CC42: -27.0755973 | CD42: -0.009389067313 | CE42: -0.270755973 | CF42: 0.2690812702 | CG42: -0.2955022803 | CH42: -0.8981741015 | CI42: 0.8810868189 | CJ42: -0.9051615444 | CK42: -27.11265023 | CL42: -0.009052715726 | CM42: -0.2711253509 | CN42: 0.269420747 | CO42: -0.2853350797 | CP42: -0.9027301587 | CQ42: 0.7320439963 | CR42: -0.7571101695 | CS42: -27.24026509 | CT42: -0.007576082785 | CU42: -0.2726892066 | CV42: 0.2709092224 | CW42: -0.2407558153 | CX42: -1.431646168 | CY42: 1.8052816 | CZ42: -1.880826951 | DA42: -28.45844849 | DB42: -0.007367691076 | DC42: -0.2728744034 | DD42: 0.271079246 | DE42: -0.2344587137 | DF42: -0.9033061181 | DG42: 0.7116445185 | DH42: -0.7368102627 | DI42: -27.27403483 | DJ42: -1.05128819 | DK42: 0.4660397038 | DL42: -1.448454781 | DM42: -28.17734095 | DN42: 28.21454526 | DO42: 27.09918354 | DP42: -21.34933556
A43: 0.26 | B43: -0.9033061181 | C43: 0.7116445185 | D43: -0.7368102627 | E43: -27.27403483 | F43: 1.149956462 | G43: 0.9035251721 | H43: 51.76817904 | I43: 27.09918354 | J43: -21.34933556 | K43: 27.09918354 | L43: -21.34933556 | M43: -1.448454781 | N43: -28.17734095 | O43: 5.844074179 | P43: -27.60266946 | Q43: 0.7116445185 | R43: 0.9033061181 | S43: 8.184656996 | T43: -26.86579963 | U43: 28.08486781 | V43: 28.21454526 | W43: 27.28398551 | X43: -1.055895945 | Y43: 0.4555036953 | Z43: 0.2625 | AA43: -0.9049787739 | AB43: 0.7134236298 | AC43: -0.6690623039 | AD43: -27.32740817 | AE43: 27.14936322 | AF43: -21.40270889 | AG43: -1.382485934 | AH43: 26.24438444 | AI43: 26.2807721 | AJ43: 0.7134236298 | AK43: 0.9049787739 | AL43: 0.26375 | AM43: -0.9057726809 | AN43: 0.6792309278 | AO43: -0.6351255998 | AP43: -27.35416156 | AQ43: 27.17318043 | AR43: -20.37692784 | AS43: -1.314356528 | AT43: -28.25993424 | AU43: 28.29048279 | AV43: 0.6792309278 | AW43: 0.9057726809 | AX43: 0.2692307692 | AY43: -0.9092536577 | AZ43: 0.5293090808 | BA43: -0.4861956687 | BB43: -27.4658428 | BC43: 27.27760973 | BD43: -15.87927243 | BE43: -1.015504749 | BF43: -28.37509646 | BG43: 28.39326238 | BH43: 0.5293090808 | BI43: 0.9092536577 | BJ43: 0.27 | BK43: -0.9096115138 | BL43: 0.5081721134 | BM43: -0.4652128919 | BN43: -27.47805762 | BO43: 27.28834541 | BP43: -15.2451634 | BQ43: -0.9733850054 | BR43: -28.38766914 | BS43: 28.40435244 | BT43: 0.5081721134 | BU43: 0.9096115138 | BV43: -0.007368102627 | BW43: -0.2727403483 | BX43: 0.2709918354 | BY43: -0.2134933556 | BZ43: -0.9051481438 | CA43: 0.6434594314 | CB43: -0.6690623039 | CC43: -27.32740817 | CD43: -0.006690623039 | CE43: -0.2732740817 | CF43: 0.2714936322 | CG43: -0.2140270889 | CH43: -0.9058786155 | CI43: 0.6092167754 | CJ43: -0.6350471941 | CK43: -27.35424496 | CL43: -0.006351255998 | CM43: -0.2735416156 | CN43: 0.2717318043 | CO43: -0.2037692784 | CP43: -0.9089508392 | CQ43: 0.4589724239 | CR43: -0.4858510828 | CS43: -27.43706386 | CT43: -0.004861956687 | CU43: -0.274658428 | CV43: 0.2727760973 | CW43: -0.1587927243 | CX43: -1.448660244 | CY43: 1.542906399 | CZ43: -1.449563307 | DA43: -28.83048975 | DB43: -0.004652128919 | DC43: -0.2747805762 | DD43: 0.2728834541 | DE43: -0.152451634 | DF43: -0.9093176214 | DG43: 0.4384286943 | DH43: -0.4654146568 | DI43: -27.46468137 | DJ43: -0.991466927 | DK43: 0.1899252203 | DL43: -0.9038433511 | DM43: -28.37399899 | DN43: 28.38839114 | DO43: 27.27952864 | DP43: -13.15286083
A44: 0.27 | B44: -0.9093176214 | C44: 0.4384286943 | D44: -0.4654146568 | E44: -27.46468137 | F44: 1.00949406 | G44: 1.121529345 | H44: 64.25889807 | I44: 27.27952864 | J44: -13.15286083 | K44: 27.27952864 | L44: -13.15286083 | M44: -0.9038433511 | N44: -28.37399899 | O44: 6.697139598 | P44: -27.58711787 | Q44: 0.4384286943 | R44: 0.9093176214 | S44: 9.046545249 | T44: -26.82156535 | U44: 28.30611857 | V44: 28.38839114 | W44: 27.46862453 | X44: -0.9933165746 | Y44: 0.1800012201 | Z44: 0.2725 | AA44: -0.910310661 | AB44: 0.439524766 | AC44: -0.3972158352 | AD44: -27.49756352 | AE44: 27.30931983 | AF44: -13.18574298 | AG44: -0.8367406012 | AH44: 26.39900917 | AI44: 26.41226647 | AJ44: 0.439524766 | AK44: 0.910310661 | AL44: 0.27375 | AM44: -0.91076451 | AN44: 0.4051322089 | AO44: -0.3630791854 | AP44: -27.5140457 | AQ44: 27.3229353 | AR44: -12.15396627 | AS44: -0.7682113943 | AT44: -28.42481021 | AU44: 28.43518919 | AV44: 0.4051322089 | AW44: 0.91076451 | AX44: 0.2792307692 | AY44: -0.9127544632 | AZ44: 0.2543340738 | BA44: -0.2133284823 | BB44: -27.58065878 | BC44: 27.3826339 | BD44: -7.630022215 | BE44: -0.4676625561 | BF44: -28.49341324 | BG44: 28.49725086 | BH44: 0.2543340738 | BI44: 0.9127544632 | BJ44: 0.28 | BK44: -0.9129023593 | BL44: 0.2331136677 | BM44: -0.1922649178 | BN44: -27.58652803 | BO44: 27.38707078 | BP44: -6.99341003 | BQ44: -0.4253785854 | BR44: -28.49943039 | BS44: 28.50260478 | BT44: 0.2331136677 | BU44: 0.9129023593 | BV44: -0.004654146568 | BW44: -0.2746468137 | BX44: 0.2727952864 | BY44: -0.1315286083 | BZ44: -0.9104811581 | CA44: 0.3697669909 | CB44: -0.3972158352 | CC44: -27.49756352 | CD44: -0.003972158352 | CE44: -0.2749756352 | CF44: 0.2730931983 | CG44: -0.1318574298 | CH44: -0.9108711172 | CI44: 0.3353436581 | CJ44: -0.3630326367 | CK44: -27.51409708 | CL44: -0.003630791854 | CM44: -0.275140457 | CN44: 0.273229353 | CO44: -0.1215396627 | CP44: -0.9124503153 | CQ44: 0.1843468351 | CR44: -0.2131384506 | CS44: -27.55184257 | CT44: -0.002133284823 | CU44: -0.2758065878 | CV44: 0.273826339 | CW44: -0.07630022215 | CX44: -1.461340783 | CY44: 1.275735481 | CZ44: -1.013852062 | DA44: -29.11644408 | DB44: -0.001922649178 | DC44: -0.2758652803 | DD44: 0.2738707078 | DE44: -0.0699341003 | DF44: -0.9126068232 | DG44: 0.163720269 | DH44: -0.1926266877 | DI44: -27.57322108 | DJ44: -0.9232132385 | DK44: -0.0856320987 | DL44: -0.3563469566 | DM44: -28.48582791 | DN44: 28.4880567 | DO44: 27.37820469 | DP44: -4.911608069
A45: 0.28 | B45: -0.9126068232 | C45: 0.163720269 | D45: -0.1926266877 | E45: -27.57322108 | F45: 0.9271761106 | G45: 1.3932861 | H45: 79.82941321 | I45: 27.37820469 | J45: -4.911608069 | K45: 27.37820469 | L45: -4.911608069 | M45: -0.3563469566 | N45: -28.48582791 | O45: 7.529750266 | P45: -27.47493832 | Q45: 0.163720269 | R45: 0.9126068232 | S45: 9.880637123 | T45: -26.68281227 | U45: 28.45346131 | V45: 28.4880567 | W45: 27.57389392 | X45: -0.9223107715 | Y45: -0.09485979565 | Z45: 0.2825 | AA45: -0.9129172761 | AB45: 0.1641295696 | AC45: -0.1241811759 | AD45: -27.5855001 | AE45: 27.38751828 | AF45: -4.923887089 | AG45: -0.2883107456 | AH45: 26.47460101 | AI45: 26.47617082 | AJ45: 0.1641295696 | AK45: 0.9129172761 | AL45: 0.28375 | AM45: -0.9130297096 | AN45: 0.1296400009 | AO45: -0.08994677807 | AP45: -27.59165496 | AQ45: 27.39089129 | AR45: -3.889200028 | AS45: -0.219586779 | AT45: -28.50468467 | AU45: 28.50553046 | AV45: 0.1296400009 | AW45: 0.9130297096 | AX45: 0.2892307692 | AY45: -0.9135226871 | AZ45: -0.02158349261 | BA45: 0.0601763761 | BB45: -27.61297077 | BC45: 27.40568061 | BD45: 0.6475047784 | BE45: 0.08175986871 | BF45: -28.52649346 | BG45: 28.52661062 | BH45: -0.02158349261 | BI45: 0.9135226871 | BJ45: 0.29 | BK45: -0.9134601812 | BL45: -0.04282385622 | BM45: 0.08125766888 | BN45: -27.61247269 | BO45: 27.40380544 | BP45: 1.284715687 | BQ45: 0.1240815251 | BR45: -28.52593287 | BS45: 28.52620273 | BT45: -0.04282385622 | BU45: 0.9134601812 | BV45: -0.001926266877 | BW45: -0.2757322108 | BX45: 0.2737820469 | BY45: -0.04911608069 | BZ45: -0.9130883899 | CA45: 0.09478721626 | CB45: -0.1241811759 | CC45: -27.5855001 | CD45: -0.001241811759 | CE45: -0.275855001 | CF45: 0.2738751828 | CG45: -0.04923887089 | CH45: -0.9131366702 | CI45: 0.06028615516 | CJ45: -0.08993222559 | CK45: -27.59167415 | CL45: -0.0008994677807 | CM45: -0.2759165496 | CN45: 0.2739089129 | CO45: -0.03889200028 | CP45: -0.9132181203 | CQ45: -0.09101153347 | CR45: 0.06021128532 | CS45: -27.58420353 | CT45: 0.000601763761 | CU45: -0.2761297077 | CV45: 0.2740568061 | CW45: 0.006475047784 | CX45: -1.46964874 | CY45: 1.004566719 | CZ45: -0.5749967749 | DA45: -29.31540226 | DB45: 0.0008125766888 | DC45: -0.2761247269 | DD45: 0.2740380544 | DE45: 0.01284715687 | DF45: -0.913163886 | DG45: -0.1116592324 | DH45: 0.08073697754 | DI45: -27.59927495 | DJ45: -0.8467434591 | DK45: -0.3596687105 | DL45: 0.1923962099 | DM45: -28.51243883 | DN45: 28.51308795 | DO45: 27.39491658 | DP45: 3.349776972
A46: 0.29 | B46: -0.913163886 | C46: -0.1116592324 | D46: 0.08073697754 | E46: -27.59927495 | F46: 0.919965253 | G46: 1.692469636 | H46: 96.97136711 | I46: 27.39491658 | J46: 3.349776972 | K46: 27.39491658 | L46: 3.349776972 | M46: 0.1923962099 | N46: -28.51243883 | O46: 8.337557817 | P46: -27.26685376 | Q46: -0.1116592324 | R46: 0.913163886 | S46: 10.68261975 | T46: -26.45048819 | U46: 28.52624564 | V46: 28.51308795 | W46: 27.59939304 | X46: -0.8431044951 | Y46: -0.3681180207 | Z46: 0.2925 | AA46: -0.9127908253 | AB46: -0.1119383805 | AC46: 0.149224269 | AD46: -27.5909005 | AE46: 27.38372476 | AF46: 3.358151414 | AG46: 0.2611626495 | AH46: 26.47093393 | AI46: 26.47222222 | AJ46: -0.1119383805 | AK46: 0.9127908253 | AL46: 0.29375 | AM46: -0.9125615079 | AN46: -0.146421759 | AO46: 0.1834539249 | AP46: -27.58670281 | AQ46: 27.37684524 | AR46: 4.39265277 | AS46: 0.3298756839 | AT46: -28.49926432 | AU46: 28.50117339 | AV46: -0.146421759 | AW46: 0.9125615079 | AX46: 0.2992307692 | AY46: -0.9115560392 | AZ46: -0.2976181109 | BA46: 0.3335000959 | BB46: -27.5626277 | BC46: 27.34668118 | BD46: 8.928543328 | BE46: 0.6311182069 | BF46: -28.47418374 | BG46: 28.48117711 | BH46: -0.2976181109 | BI46: 0.9115560392 | BJ46: 0.3 | BK46: -0.9112833192 | BL46: -0.3188148491 | BM46: 0.3545360045 | BN46: -27.55575959 | BO46: 27.33849958 | BP46: 9.564445473 | BQ46: 0.6733508536 | BR46: -28.46704291 | BS46: 28.47500541 | BT46: -0.3188148491 | BU46: 0.9112833192 | BV46: 0.0008073697754 | BW46: -0.2759927495 | BX46: 0.2739491658 | BY46: 0.03349776972 | BZ46: -0.9129620435 | CA46: -0.1806574198 | CB46: 0.149224269 | CC46: -27.5909005 | CD46: 0.00149224269 | CE46: -0.275909005 | CF46: 0.2738372476 | CG46: 0.03358151414 | CH46: -0.9126685018 | CI46: -0.2151329603 | CJ46: 0.1834364377 | CK46: -27.58668973 | CL46: 0.001834539249 | CM46: -0.2758670281 | CN46: 0.2737684524 | CO46: 0.0439265277 | CP46: -0.9112519654 | CQ46: -0.3662787103 | CR46: 0.3333797787 | CS46: -27.53399559 | CT46: 0.003335000959 | CU46: -0.275626277 | CV46: 0.2734668118 | CW46: 0.08928543328 | CX46: -1.473558154 | CY46: 0.73021049 | CZ46: -0.1343107403 | DA46: -29.42671498 | DB46: 0.003545360045 | DC46: -0.2755575959 | DD46: 0.2733849958 | DE46: 0.09564445473 | DF46: -0.910987152 | DG46: -0.3868857345 | DH46: 0.3538579512 | DI46: -27.54271063 | DJ46: -0.7623170224 | DK46: -0.6312296887 | DL46: 0.7407436856 | DM46: -28.45369778 | DN46: 28.46333815 | DO46: 27.32961456 | DP46: 11.60657203
A47: 0.3 | B47: -0.910987152 | C47: -0.3868857345 | D47: 0.3538579512 | E47: -27.54271063 | F47: 0.9897364107 | G47: 1.972403071 | H47: 113.0103715 | I47: 27.32961456 | J47: 11.60657203 | K47: 27.32961456 | L47: 11.60657203 | M47: 0.7407436856 | N47: -28.45369778 | O47: 9.116302121 | P47: -26.96395101 | Q47: -0.3868857345 | R47: 0.910987152 | S47: 11.44829409 | T47: -26.12589714 | U47: 28.52412906 | V47: 28.46333815 | W47: 27.54498365 | X47: -0.7559667152 | Y47: -0.6388211707 | Z47: 0.3025 | AA47: -0.909931697 | AB47: -0.3878529488 | AC47: 0.4221819876 | AD47: -27.5136942 | AE47: 27.29795091 | AF47: 11.63558846 | AG47: 0.8100349364 | AH47: 26.38801921 | AI47: 26.40044914 | AJ47: -0.3878529488 | AK47: 0.909931697 | AL47: 0.30375 | AM47: -0.9093613165 | AN47: -0.4222268859 | AO47: 0.4563044262 | AP47: -27.49914971 | AQ47: 27.28083949 | AR47: 12.66680658 | AS47: 0.8785313121 | AT47: -28.40851103 | AU47: 28.42209205 | AV47: -0.4222268859 | AW47: 0.9093613165 | AX47: 0.3092307692 | AY47: -0.9068604172 | AZ47: -0.5729433796 | BA47: 0.6058244119 | BB47: -27.42972587 | BC47: 27.20581252 | BD47: 17.18830139 | BE47: 1.178767791 | BF47: -28.33658629 | BG47: 28.36109335 | BH47: -0.5729433796 | BI47: 0.9068604172 | BJ47: 0.31 | BK47: -0.9063783003 | BL47: -0.5940329981 | BM47: 0.62675196 | BN47: -27.4165041 | BO47: 27.19134901 | BP47: 17.82098994 | BQ47: 1.220784958 | BR47: -28.3228824 | BS47: 28.34917959 | BT47: -0.5940329981 | BU47: 0.9063783003 | BV47: 0.003538579512 | BW47: -0.2754271063 | BX47: 0.2732961456 | BY47: 0.1160657203 | BZ47: -0.9101025071 | CA47: -0.455742511 | CB47: 0.4221819876 | CC47: -27.5136942 | CD47: 0.004221819876 | CE47: -0.275136942 | CF47: 0.2729795091 | CG47: 0.1163558846 | CH47: -0.9094680233 | CI47: -0.4900892906 | CJ47: 0.4562549517 | CK47: -27.49910438 | CL47: 0.004563044262 | CM47: -0.2749914971 | CN47: 0.2728083949 | CO47: 0.1266680658 | CP47: -0.9065577467 | CQ47: -0.6406304546 | CR47: 0.6055492289 | CS47: -27.40131472 | CT47: 0.006058244119 | CU47: -0.2742972587 | CV47: 0.2720581252 | CW47: 0.1718830139 | CX47: -1.473056225 | CY47: 0.4534872523 | CZ47: 0.306886938 | DA47: -29.44999492 | DB47: 0.0062675196 | DC47: -0.274165041 | DD47: 0.2719134901 | DE47: 0.1782098994 | DF47: -0.9060831477 | DG47: -0.6611350774 | DH47: 0.6259185751 | DI47: -27.4036431 | DJ47: -0.6702355185 | DK47: -0.8993723427 | DL47: 1.287053652 | DM47: -28.30972625 | DN47: 28.338968 | DO47: 27.18249443 | DP47: 19.83405232
A48: 0.31 | B48: -0.9060831477 | C48: -0.6611350774 | D48: 0.6259185751 | E48: -27.4036431 | F48: 1.121644445 | G48: 2.201154009 | H48: 126.1168348 | I48: 27.18249443 | J48: 19.83405232 | K48: 27.18249443 | L48: 19.83405232 | M48: 1.287053652 | N48: -28.30972625 | O48: 9.861830886 | P48: -26.56767583 | Q48: -0.6611350774 | R48: 0.9060831477 | S48: 12.17359416 | T48: -25.71069332 | U48: 28.44707622 | V48: 28.338968 | W48: 27.41079038 | X48: -0.6612084334 | Y48: -0.906029618 | Z48: 0.3125 | AA48: -0.9043484607 | AB48: -0.6627879151 | AC48: 0.6938748111 | AD48: -27.35405797 | AE48: 27.13045382 | AF48: 19.88363745 | AG48: 1.356662726 | AH48: 26.22610536 | AI48: 26.26117164 | AJ48: -0.6627879151 | AK48: 0.9043484607 | AL48: 0.31375 | AM48: -0.9034387258 | AN48: -0.6969494194 | AO48: 0.7277878784 | AP48: -27.32920342 | AQ48: 27.10316177 | AR48: 20.90848258 | AS48: 1.424737298 | AT48: -28.23264215 | AU48: 28.26856839 | AV48: -0.6969494194 | AW48: 0.9034387258 | AX48: 0.3192307692 | AY48: -0.8994498884 | AZ48: -0.8467344766 | BA48: 0.8763340535 | BB48: -27.21460885 | BC48: 26.98349665 | BD48: 25.4020343 | BE48: 1.72306853 | BF48: -28.11405874 | BG48: 28.16681139 | BH48: -0.8467344766 | BI48: 0.8994498884 | BJ48: 0.32 | BK48: -0.8987598187 | BL48: -0.8676537603 | BM48: 0.8970905894 | BN48: -27.19506883 | BO48: 26.96279456 | BP48: 26.02961281 | BQ48: 1.76474435 | BR48: -28.09382865 | BS48: 28.14920124 | BT48: -0.8676537603 | BU48: 0.8987598187 | BV48: 0.006259185751 | BW48: -0.274036431 | BX48: 0.2718249443 | BY48: 0.1983405232 | BZ48: -0.9045183512 | CA48: -0.7296441852 | CB48: 0.6938748111 | CC48: -27.35405797 | CD48: 0.006938748111 | CE48: -0.2735405797 | CF48: 0.2713045382 | CG48: 0.1988363745 | CH48: -0.9035448261 | CI48: -0.7637592808 | CJ48: 0.727706565 | CK48: -27.32912594 | CL48: 0.007277878784 | CM48: -0.2732920342 | CN48: 0.2710316177 | CO48: 0.2090848258 | CP48: -0.8991495273 | CQ48: -0.9132447236 | CR48: 0.8759048292 | CS48: -27.18650387 | CT48: 0.008763340535 | CU48: -0.2721460885 | CV48: 0.2698349665 | CW48: 0.254020343 | CX48: -1.468143362 | CY48: 0.1752250908 | CZ48: 0.7472752967 | DA48: -29.38511808 | DB48: 0.008970905894 | DC48: -0.2719506883 | DD48: 0.2696279456 | DE48: 0.2602961281 | DF48: -0.8984665643 | DG48: -0.9335854845 | DH48: 0.8961043685 | DI48: -27.18243441 | DJ48: -0.5708415557 | DK48: -1.163169782 | DL48: 1.829689853 | DM48: -28.08090098 | DN48: 28.14044713 | DO48: 26.95399693 | DP48: 28.00756453
A49: 0.32 | B49: -0.8984665643 | C49: -0.9335854845 | D49: 0.8961043685 | E49: -27.18243441 | F49: 1.295694418 | G49: 2.375361314 | H49: 136.0981781 | I49: 26.95399693 | J49: 28.00756453 | K49: 26.95399693 | L49: 28.00756453 | M49: 1.829689853 | N49: -28.08090098 | O49: 10.57011885 | P49: -26.07982654 | Q49: -0.9335854845 | R49: 0.8984665643 | S49: 12.85460586 | T49: -25.20687366 | U49: 28.29535954 | V49: 28.14044713 | W49: 27.19720103 | X49: -0.5591815099 | Y49: -1.168819945 | Z49: 0.3225 | AA49: -0.8960578409 | AB49: -0.9359194482 | AC49: 0.9634893608 | AD49: -27.1124155 | AE49: 26.88173523 | AF49: 28.07758345 | AG49: 1.899408809 | AH49: 25.98567739 | AI49: 26.05500303 | AJ49: -0.9359194482 | AK49: 0.8960578409 | AL49: 0.32375 | AM49: -0.8948114765 | AN49: -0.9697660963 | AO49: 0.9970915298 | AP49: -27.07731852 | AQ49: 26.84434429 | AR49: 29.09298289 | AS49: 1.966857626 | AT49: -27.97213 | AU49: 28.04119444 | AV49: -0.9697660963 | AW49: 0.8948114765 | AX49: 0.3292307692 | AY49: -0.8893466479 | AZ49: -1.118170631 | BA49: 1.144219186 | BB49: -26.9178666 | BC49: 26.68039944 | BD49: 33.54511892 | BE49: 2.262389817 | BF49: -27.80721325 | BG49: 27.89909526 | BH49: -1.118170631 | BI49: 0.8893466479 | BJ49: 0.33 | BK49: -0.8884506921 | BL49: -1.138856833 | BM49: 1.16474257 | BN49: -26.89206266 | BO49: 26.65352076 | BP49: 34.16570498 | BQ49: 2.303599403 | BR49: -27.78051335 | BS49: 27.87585859 | BT49: -1.138856833 | BU49: 0.8884506921 | BV49: 0.008961043685 | BW49: -0.2718243441 | BX49: 0.2695399693 | BY49: 0.2800756453 | BZ49: -0.8962263034 | CA49: -1.001541571 | CB49: 0.9634893608 | CC49: -27.1124155 | CD49: 0.009634893608 | CE49: -0.271124155 | CF49: 0.2688173523 | CG49: 0.2807758345 | CH49: -0.8949166526 | CI49: -1.035322685 | CJ49: 0.9969786209 | CK49: -27.07720912 | CL49: 0.009970915298 | CM49: -0.2707731852 | CN49: 0.2684434429 | CO49: 0.2909298289 | CP49: -0.8890494954 | CQ49: -1.183304135 | CR49: 1.143637206 | CS49: -26.89015213 | CT49: 0.01144219186 | CU49: -0.269178666 | CV49: 0.2668039944 | CW49: 0.3354511892 | CX49: -1.458833179 | CY49: -0.10374276 | CZ49: 1.185535468 | DA49: -29.23222435 | DB49: 0.0116474257 | DC49: -0.2689206266 | DD49: 0.2665352076 | DE49: 0.3416570498 | DF49: -0.8881602139 | DG49: -1.203420024 | DH49: 1.163606466 | DI49: -26.87969281 | DJ49: -0.464517434 | DK49: -1.421714413 | DL49: 2.36702649 | DM49: -27.76785302 | DN49: 27.86855712 | DO49: 26.64480642 | DP49: 36.10260072
A50: 0.33 | B50: -0.8881602139 | C50: -1.203420024 | D50: 1.163606466 | E50: -26.87969281 | F50: 1.495676542 | G50: 2.505796391 | H50: 143.5715575 | I50: 26.64480642 | J50: 36.10260072 | K50: 26.64480642 | L50: 36.10260072 | M50: 2.36702649 | N50: -27.76785302 | O50: 11.23728647 | P50: -25.50254632 | Q50: -1.203420024 | R50: 0.8881602139 | S50: 13.48758513 | T50: -24.61676896 | U50: 28.06956122 | V50: 27.86855712 | W50: 26.90486695 | X50: -0.4502773011 | Y50: -1.426288425 | Z50: 0.3325 | AA50: -0.8850846677 | AB50: -1.206428574 | AC50: 1.230218482 | AD50: -26.78943631 | AE50: 26.55254003 | AF50: 36.19285722 | AG50: 2.436647056 | AH50: 25.66745536 | AI50: 25.78285309 | AJ50: -1.206428574 | AK50: 0.8850846677 | AL50: 0.33375 | AM50: -0.8835054062 | AN50: -1.239858818 | AO50: 1.263409157 | AP50: -26.74419524 | AQ50: 26.50516219 | AR50: 37.19576454 | AS50: 2.503267976 | AT50: -27.62770064 | AU50: 27.74087586 | AV50: -1.239858818 | AW50: 0.8835054062 | AX50: 0.3392307692 | AY50: -0.8765809522 | AZ50: -1.386437581 | BA50: 1.408677835 | BB50: -26.54033384 | BC50: 26.29742857 | BD50: 41.59312742 | BE50: 2.795115415 | BF50: -27.41691479 | BG50: 27.5590255 | BH50: -1.386437581 | BI50: 0.8765809522 | BJ50: 0.34 | BK50: -0.8754817932 | BL50: -1.406828611 | BM50: 1.428906626 | BN50: -26.50833912 | BO50: 26.2644538 | BP50: 42.20485832 | BQ50: 2.835735237 | BR50: -27.38382092 | BS50: 27.53025685 | BT50: -1.406828611 | BU50: 0.8754817932 | BV50: 0.01163606466 | BW50: -0.2687969281 | BX50: 0.2664480642 | BY50: 0.3610260072 | BZ50: -0.8852511977 | CA50: -1.270619256 | CB50: 1.230218482 | CC50: -26.78943631 | CD50: 0.01230218482 | CE50: -0.2678943631 | CF50: 0.2655254003 | CG50: 0.3619285722 | CH50: -0.8836093433 | CI50: -1.303965026 | CJ50: 1.263264991 | CK50: -26.74405421 | CL50: 0.01263409157 | CM50: -0.2674419524 | CN50: 0.2650516219 | CO50: 0.3719576454 | CP50: -0.8762878978 | CQ50: -1.44999842 | CR50: 1.407944842 | CS50: -26.51309313 | CT50: 0.01408677835 | CU50: -0.2654033384 | CV50: 0.2629742857 | CW50: 0.4159312742 | CX50: -1.445152461 | CY50: -0.3825804102 | CZ50: 1.620354629 | DA50: -28.99171717 | DB50: 0.01428906626 | DC50: -0.2650833912 | DD50: 0.262644538 | DE50: 0.4220485832 | DF50: -0.8751949608 | DG50: -1.469829059 | DH50: 1.427624041 | DI50: -26.49627105 | DJ50: -0.3516836323 | DK50: -1.674121353 | DL50: 2.8974531 | DM50: -27.37146601 | DN50: 27.5243962 | DO50: 26.25584882 | DP50: 44.09487176
A51: 0.34 | B51: -0.8751949608 | C51: -1.469829059 | D51: 1.427624041 | E51: -26.49627105 | F51: 1.710661767 | G51: 2.604532868 | H51: 149.2287409 | I51: 26.25584882 | J51: 44.09487176 | K51: 26.25584882 | L51: 44.09487176 | M51: 2.8974531 | N51: -27.37146601 | O51: 11.85961804 | P51: -24.83831407 | Q51: -1.469829059 | R51: 0.8751949608 | S51: 14.06897542 | T51: -23.9430338 | U51: 27.77057682 | V51: 27.5243962 | W51: 26.5347035 | X51: -0.3349251138 | Y51: -1.677554425 | Z51: 0.3425 | AA51: -0.8714618016 | AB51: -1.473503631 | AC51: 1.493263663 | AD51: -26.38603387 | AE51: 26.14385405 | AF51: 44.20510894 | AG51: 2.966767294 | AH51: 25.27239225 | AI51: 25.44593323 | AJ51: -1.473503631 | AK51: 0.8714618016 | AL51: 0.34375 | AM51: -0.8695543723 | AN51: -1.506417103 | AO51: 1.52594348 | AP51: -26.33077748 | AQ51: 26.08663117 | AR51: 45.1925131 | AS51: 3.032360584 | AT51: -27.20033186 | AU51: 27.36883746 | AV51: -1.506417103 | AW51: 0.8695543723 | AX51: 0.3492307692 | AY51: -0.8611910282 | AZ51: -1.650730018 | BA51: 1.668918286 | BB51: -26.08308775 | BC51: 25.83573085 | BD51: 49.52190055 | BE51: 3.319648304 | BF51: -26.94427878 | BG51: 27.14800589 | BH51: -1.650730018 | BI51: 0.8611910282 | BJ51: 0.35 | BK51: -0.8598919575 | BL51: -1.670764629 | BM51: 1.688791925 | BN51: -26.04499398 | BO51: 25.79675872 | BP51: 50.12293887 | BQ51: 3.359556554 | BR51: -26.90488594 | BS51: 27.11382502 | BT51: -1.670764629 | BU51: 0.8598919575 | BV51: 0.01427624041 | BW51: -0.2649627105 | BX51: 0.2625584882 | BY51: 0.4409487176 | BZ51: -0.8716259007 | CA51: -1.536069736 | CB51: 1.493263663 | CC51: -26.38603387 | CD51: 0.01493263663 | CE51: -0.2638603387 | CF51: 0.2614385405 | CG51: 0.4420510894 | CH51: -0.8696567592 | CI51: -1.568880033 | CJ51: 1.525768489 | CK51: -26.33060524 | CL51: 0.0152594348 | CM51: -0.2633077748 | CN51: 0.2608663117 | CO51: 0.451925131 | CP51: -0.8609029494 | CQ51: -1.712526848 | CR51: 1.668036475 | CS51: -26.05640267 | CT51: 0.01668918286 | CU51: -0.2608308775 | CV51: 0.2583573085 | CW51: 0.4952190055 | CX51: -1.427141085 | CY51: -0.6604518193 | CZ51: 2.050429933 | DA51: -28.66426257 | DB51: 0.01688791925 | DC51: -0.2604499398 | DD51: 0.2579675872 | DE51: 0.5012293887 | DF51: -0.8596096295 | DG51: -1.732012675 | DH51: 1.687366699 | DI51: -26.03326401 | DJ51: -0.2327971184 | DK51: -1.919531745 | DL51: 3.419379374 | DM51: -26.89287364 | DN51: 27.10938598 | DO51: 25.78828889 | DP51: 51.96038024
A52: 0.35 | B52: -0.8596096295 | C52: -1.732012675 | D52: 1.687366699 | E52: -26.03326401 | F52: 1.933596809 | G52: 2.680903985 | H52: 153.6044836 | I52: 25.78828889 | J52: 51.96038024 | K52: 25.78828889 | L52: 51.96038024 | M52: 3.419379374 | N52: -26.89287364 | O52: 12.43357909 | P52: -24.08993398 | Q52: -1.732012675 | R52: 0.8596096295 | S52: 14.59542448 | T52: -23.18863505 | U52: 27.39962065 | V52: 27.10938598 | W52: 26.08789071 | X52: -0.2135904811 | Y52: -1.921763702 | Z52: 0.3525 | AA52: -0.855230036 | AB52: -1.736342706 | AC52: 1.751837421 | AD52: -25.90336306 | AE52: 25.65690108 | AF52: 52.09028119 | AG52: 3.488180127 | AH52: 24.80167104 | AI52: 25.04576386 | AJ52: -1.736342706 | AK52: 0.855230036 | AL52: 0.35375 | AM52: -0.8530001503 | AN52: -1.768640519 | AO52: 1.783908548 | AP52: -25.83825021 | AQ52: 25.59000451 | AR52: 53.05921557 | AS52: 3.552549067 | AT52: -26.69125036 | AU52: 26.92663088 | AV52: -1.768640519 | AW52: 0.8530001503 | AX52: 0.3592307692 | AY52: -0.8432229592 | AZ52: -1.910254006 | BA52: 1.924161457 | BB52: -25.5474449 | BC52: 25.29668878 | BD52: 57.30762017 | BE52: 3.834415463 | BF52: -26.39066785 | BG52: 26.66777253 | BH52: -1.910254006 | BI52: 0.8432229592 | BJ52: 0.36 | BK52: -0.8417278665 | BL52: -1.929871977 | BM52: 1.943620448 | BN52: -25.50336211 | BO52: 25.251836 | BP52: 57.8961593 | BQ52: 3.873492425 | BR52: -26.34508998 | BS52: 26.62832532 | BT52: -1.929871977 | BU52: 0.8417278665 | BV52: 0.01687366699 | BW52: -0.2603326401 | BX52: 0.2578828889 | BY52: 0.5196038024 | BZ52: -0.8553912128 | CA52: -1.797095835 | CB52: 1.751837421 | CC52: -25.90336306 | CD52: 0.01751837421 | CE52: -0.2590336306 | CF52: 0.2565690108 | CG52: 0.5209028119 | CH52: -0.8531006805 | CI52: -1.829272068 | CJ52: 1.783703254 | CK52: -25.83804724 | CL52: 0.01783908548 | CM52: -0.2583825021 | CN52: 0.2559000451 | CO52: 0.5305921557 | CP52: -0.8429407183 | CQ52: -1.970100638 | CR52: 1.923133468 | CS52: -25.52139571 | CT52: 0.01924161457 | CU52: -0.255474449 | CV52: 0.2529668878 | CW52: 0.5730762017 | CX52: -1.404851906 | CY52: -0.9365233023 | CZ52: 2.474472415 | DA52: -28.2507873 | DB52: 0.01943620448 | DC52: -0.2550336211 | DD52: 0.25251836 | DE52: 0.578961593 | DF52: -0.8414508882 | DG52: -1.989183082 | DH52: 1.942056849 | DI52: -25.4920056 | DJ52: -0.1083494862 | DK52: -2.157115973 | DL52: 3.931239931 | DM52: -26.33345648 | DN52: 26.6252808 | DO52: 25.24352665 | DP52: 59.67549246
A53: 0.36 | B53: -0.8414508882 | C53: -1.989183082 | D53: 1.942056849 | E53: -25.4920056 | F53: 2.159835394 | G53: 2.741405967 | H53: 157.0709918 | I53: 25.24352665 | J53: 59.67549246 | K53: 25.24352665 | L53: 59.67549246 | M53: 3.931239931 | N53: -26.33345648 | O53: 12.95583316 | P53: -23.26052375 | Q53: -1.989183082 | R53: 0.8414508882 | S53: 15.06380026 | T53: -22.35683925 | U53: 26.95823325 | V53: 26.6252808 | W53: 25.56587441 | X53: -0.08677326854 | Y53: -2.158091595 | Z53: 0.3625 | AA53: -0.8364379741 | AB53: -1.99415604 | AC53: 2.005165665 | AD53: -25.34281687 | AE53: 25.09313922 | AF53: 59.82468119 | AG53: 3.999321705 | AH53: 24.25670125 | AI53: 24.58418454 | AJ53: -1.99415604 | AK53: 0.8364379741 | AL53: 0.36375 | AM53: -0.833892309 | AN53: -2.025741085 | AO53: 2.036532089 | AP53: -25.26803601 | AQ53: 25.01676927 | AR53: 60.77223254 | AS53: 4.062273174 | AT53: -26.10192832 | AU53: 26.41614517 | AV53: -2.025741085 | AW53: 0.833892309 | AX53: 0.3692307692 | AY53: -0.8227305466 | AZ53: -2.164229359 | BA53: 2.173643228 | BB53: -24.93495743 | BC53: 24.6819164 | BD53: 64.92688077 | BE53: 4.337872587 | BF53: -25.75768798 | BG53: 26.12040636 | BH53: -2.164229359 | BI53: 0.8227305466 | BJ53: 0.37 | BK53: -0.8210439086 | BL53: -2.183371677 | BM53: 2.192629318 | BN53: -24.88501368 | BO53: 24.63131726 | BP53: 65.50115032 | BQ53: 4.376000995 | BR53: -25.70605759 | BS53: 26.07586588 | BT53: -2.183371677 | BU53: 0.8210439086 | BV53: 0.01942056849 | BW53: -0.254920056 | BX53: 0.2524352665 | BY53: 0.5967549246 | BZ53: -0.8365957461 | CA53: -2.052913096 | CB53: 2.005165665 | CC53: -25.34281687 | CD53: 0.02005165665 | CE53: -0.2534281687 | CF53: 0.2509313922 | CG53: 0.5982468119 | CH53: -0.8339906815 | CI53: -2.08435851 | CJ53: 2.036297109 | CK53: -25.26780291 | CL53: 0.02036532089 | CM53: -0.2526803601 | CN53: 0.2501676927 | CO53: 0.6077223254 | CP53: -0.8224549885 | CQ53: -2.221945322 | CR53: 2.172472141 | CS53: -24.90962255 | CT53: 0.02173643228 | CU53: -0.2493495743 | CV53: 0.246819164 | CW53: 0.6492688077 | CX53: -1.3783506 | CY53: -1.209966031 | CZ53: 2.891210853 | DA53: -27.75247619 | DB53: 0.02192629318 | DC53: -0.2488501368 | DD53: 0.2463131726 | DE53: 0.6550115032 | DF53: -0.8207731092 | DG53: -2.240566983 | DH53: 2.190932026 | DI53: -24.87406486 | DJ53: 0.02113507022 | DK53: -2.38607674 | DL53: 4.431499009 | DM53: -25.69483797 | DN53: 26.07418037 | DO53: 24.62319328 | DP53: 67.21700949
A54: 0.37 | B54: -0.8207731092 | C54: -2.240566983 | D54: 2.190932026 | E54: -24.87406486 | F54: 2.386170342 | G54: 2.790450088 | H54: 159.881013 | I54: 24.62319328 | J54: 67.21700949 | K54: 24.62319328 | L54: 67.21700949 | M54: 4.431499009 | N54: -25.69483797 | O54: 13.42325764 | P54: -22.35350165 | Q54: -2.240566983 | R54: 0.8207731092 | S54: 15.47120594 | T54: -21.45119873 | U54: 26.44829182 | V54: 26.07418037 | W54: 24.97036816 | X54: 0.04499438321 | Y54: -2.38574609 | Z54: 0.3725 | AA54: -0.8151418842 | AB54: -2.246168401 | AC54: 2.252490009 | AD54: -24.70602234 | AE54: 24.45425653 | AF54: 67.38505202 | AG54: 4.49865841 | AH54: 23.63911464 | AI54: 24.06336777 | AJ54: -2.246168401 | AK54: 0.8151418842 | AL54: 0.37375 | AM54: -0.8122880619 | AN54: -2.276945639 | AO54: 2.28305783 | AP54: -24.62179102 | AQ54: 24.36864186 | AR54: 68.30836918 | AS54: 4.560003469 | AT54: -25.43407909 | AU54: 25.83962095 | AV54: -2.276945639 | AW54: 0.8122880619 | AX54: 0.3792307692 | AY54: -0.7997751488 | AZ54: -2.411891994 | BA54: 2.416616733 | BB54: -24.24740862 | BC54: 23.99325446 | BD54: 72.35675982 | BE54: 4.828508727 | BF54: -25.04718377 | BG54: 25.50834983 | BH54: -2.411891994 | BI54: 0.7997751488 | BJ54: 0.38 | BK54: -0.7979020156 | BL54: -2.430501032 | BM54: 2.435073082 | BN54: -24.19174957 | BO54: 23.93706047 | BP54: 72.91503096 | BQ54: 4.865574114 | BR54: -24.98965159 | BS54: 25.45891785 | BT54: -2.430501032 | BU54: 0.7979020156 | BV54: 0.02190932026 | BW54: -0.2487406486 | BX54: 0.2462319328 | BY54: 0.6721700949 | BZ54: -0.8152957791 | CA54: -2.302752145 | CB54: 2.252490009 | CC54: -24.70602234 | CD54: 0.02252490009 | CE54: -0.2470602234 | CF54: 0.2445425653 | CG54: 0.6738505202 | CH54: -0.8123839823 | CI54: -2.333372107 | CJ54: 2.282793866 | CK54: -24.62152846 | CL54: 0.0228305783 | CM54: -0.2462179102 | CN54: 0.2436864186 | CO54: 0.6830836918 | CP54: -0.7995070986 | CQ54: -2.467303077 | CR54: 2.415306052 | CS54: -24.22286437 | CT54: 0.02416616733 | CU54: -0.2424740862 | CV54: 0.2399325446 | CW54: 0.7235675982 | CX54: -1.347715472 | CY54: -1.47995852 | CZ54: 3.299395579 | DA54: -27.17076884 | DB54: 0.02435073082 | DC54: -0.2419174957 | DD54: 0.2393706047 | DE54: 0.7291503096 | DF54: -0.7976382058 | DG54: -2.485407896 | DH54: 2.43324718 | DI54: -24.18124151 | DJ54: 0.1551019388 | DK54: -2.605652031 | DL54: 4.918655076 | DM54: -24.97887971 | DN54: 25.45854669 | DO54: 23.92914617 | DP54: 74.56223689
A55: 0.38 | B55: -0.7976382058 | C55: -2.485407896 | D55: 2.43324718 | E55: -24.18124151 | F55: 2.610264185 | G55: 2.831047691 | H55: 162.2070843 | I55: 23.92914617 | J55: 74.56223689 | K55: 23.92914617 | L55: 74.56223689 | M55: 4.918655076 | N55: -24.97887971 | O55: 13.83295881 | P55: -21.37257238 | Q55: -2.485407896 | R55: 0.7976382058 | S55: 15.814994 | T55: -20.47553664 | U55: 25.8720242 | V55: 25.45854669 | W55: 24.30335641 | X55: 0.1811502699 | Y55: -2.603970756 | Z55: 0.3825 | AA55: -0.7914055306 | AB55: -2.491621416 | AC55: 2.493070046 | AD55: -23.99483591 | AE55: 23.74216592 | AF55: 74.74864248 | AG55: 4.984691461 | AH55: 22.95076039 | AI55: 23.48583725 | AJ55: -2.491621416 | AK55: 0.7914055306 | AL55: 0.38375 | AM55: -0.788252096 | AN55: -2.521498166 | AO55: 2.522747753 | AP55: -23.90140011 | AQ55: 23.64756288 | AR55: 75.64494498 | AS55: 5.044245919 | AT55: -24.68965221 | AU55: 25.1996695 | AV55: -2.521498166 | AW55: 0.788252096 | AX55: 0.3892307692 | AY55: -0.7744254977 | AZ55: -2.652496224 | BA55: 2.652354588 | BB55: -23.48680762 | BC55: 23.23276493 | BD55: 79.57488673 | BE55: 5.304850812 | BF55: -24.26123312 | BG55: 24.83442922 | BH55: -2.652496224 | BI55: 0.7744254977 | BJ55: 0.39 | BK55: -0.7723714777 | BL55: -2.670515914 | BM55: 2.670225946 | BN55: -23.42559617 | BO55: 23.17114433 | BP55: 80.11547741 | BQ55: 5.340741859 | BR55: -24.19796765 | BS55: 24.78033822 | BT55: -2.670515914 | BU55: 0.7723714777 | BV55: 0.0243324718 | BW55: -0.2418124151 | BX55: 0.2392914617 | BY55: 0.7456223689 | BZ55: -0.7915550878 | CA55: -2.545861 | CB55: 2.493070046 | CC55: -23.99483591 | CD55: 0.02493070046 | CE55: -0.2399483591 | CF55: 0.2374216592 | CG55: 0.7474864248 | CH55: -0.788345277 | CI55: -2.575563286 | CJ55: 2.522455596 | CK55: -23.90110885 | CL55: 0.02522747753 | CM55: -0.2390140011 | CN55: 0.2364756288 | CO55: 0.7564494498 | CP55: -0.7741657577 | CQ55: -2.705435002 | CR55: 2.650908239 | CS55: -23.46312801 | CT55: 0.02652354588 | CU55: -0.2348680762 | CV55: 0.2323276493 | CW55: 0.7957488673 | CX55: -1.313037224 | CY55: -1.7456891 | CZ55: 3.697802227 | DA55: -26.50735537 | DB55: 0.02670225946 | DC55: -0.2342559617 | DD55: 0.2317114433 | DE55: 0.8011547741 | DF55: -0.7721154472 | DG55: -2.722968432 | DH55: 2.6682769 | DI55: -23.41556061 | DJ55: 0.2929684185 | DK55: -2.81511791 | DL55: 5.391245332 | DM55: -24.18767606 | DN55: 24.78122675 | DO55: 23.16346342 | DP55: 81.68905295
A56: 0.39 | B56: -0.7721154472 | C56: -2.722968432 | D56: 2.6682769 | E56: -23.41556061 | F56: 2.830321421 | G56: 2.865289047 | H56: 164.1689695 | I56: 23.16346342 | J56: 81.68905295 | K56: 23.16346342 | L56: 81.68905295 | M56: 5.391245332 | N56: -24.18767606 | O56: 14.18228588 | P56: -20.32171171 | Q56: -2.722968432 | R56: 0.7721154472 | S56: 16.09277927 | T56: -19.43393093 | U56: 25.23202759 | V56: 24.78122675 | W56: 23.56709953 | X56: 0.3211044802 | Y56: -2.81204752 | Z56: 0.3925 | AA56: -0.7652999833 | AB56: -2.729775853 | AC56: 2.726185559 | AD56: -23.21133798 | AE56: 22.9589995 | AF56: 81.89327559 | AG56: 5.455961411 | AH56: 22.19369952 | AI56: 22.85449219 | AJ56: -2.729775853 | AK56: 0.7652999833 | AL56: 0.39375 | AM56: -0.7618563779 | AN56: -2.758662067 | AO56: 2.754884308 | AP56: -23.10897139 | AQ56: 22.85569134 | AR56: 82.75986201 | AS56: 5.513546375 | AT56: -23.87082776 | AU56: 24.49929819 | AV56: -2.758662067 | AW56: 0.7618563779 | AX56: 0.3992307692 | AY56: -0.7467574928 | AZ56: -2.885317006 | BA56: 2.880151078 | BB56: -22.65538368 | BC56: 22.40272478 | BD56: 86.55951019 | BE56: 5.765468084 | BF56: -23.40214117 | BG56: 24.10188444 | BH56: -2.885317006 | BI56: 0.7467574928 | BJ56: 0.4 | BK56: -0.7445287359 | BL56: -2.902693006 | BM56: 2.897383943 | BN56: -22.58879944 | BO56: 22.33586208 | BP56: 87.08079018 | BQ56: 5.800076949 | BR56: -23.33332818 | BS56: 24.04340027 | BT56: -2.902693006 | BU56: 0.7445287359 | BV56: 0.026682769 | BW56: -0.2341556061 | BX56: 0.2316346342 | BY56: 0.8168905295 | BZ56: -0.7654447549 | CA56: -2.781507333 | CB56: 2.726185559 | CC56: -23.21133798 | CD56: 0.02726185559 | CE56: -0.2321133798 | CF56: 0.229589995 | CG56: 0.8189327559 | CH56: -0.7619465407 | CI56: -2.810202408 | CJ56: 2.754564833 | CK56: -23.10865229 | CL56: 0.02754884308 | CM56: -0.2310897139 | CN56: 0.2285569134 | CO56: 0.8275986201 | CP56: -0.7465068406 | CQ56: -2.935623347 | CR56: 2.87857339 | CS56: -22.63264018 | CT56: 0.02880151078 | CU56: -0.2265538368 | CV56: 0.2240272478 | CW56: 0.8655951019 | CX56: -1.274418685 | CY56: -2.006358348 | CZ56: 4.085235403 | DA56: -25.76417158 | DB56: 0.02897383943 | DC56: -0.2258879944 | DD56: 0.2233586208 | DE56: 0.8708079018 | DF56: -0.7442812511 | DG56: -2.952532513 | DH56: 2.895317589 | DI56: -22.57926674 | DJ56: 0.4341261846 | DK56: -3.01379118 | DL56: 5.847850103 | DM56: -23.32354799 | DN56: 24.04548277 | DO56: 22.32843753 | DP56: 88.5759754
A57: 0.4 | B57: -0.7442812511 | C57: -2.952532513 | D57: 2.895317589 | E57: -22.57926674 | F57: 3.044897835 | G57: 2.89465512 | H57: 165.8515215 | I57: 22.32843753 | J57: 88.5759754 | K57: 22.32843753 | L57: 88.5759754 | M57: 5.847850103 | N57: -23.32354799 | O57: 14.46884402 | P57: -19.20515021 | Q57: -2.952532513 | R57: 0.7442812511 | S57: 16.30245086 | T57: -18.33069731 | U57: 24.53129365 | V57: 24.04548277 | W57: 22.76414177 | X57: 0.464241888 | Y57: -3.009299303 | Z57: 0.4025 | AA57: -0.7369034044 | AB57: -2.959913845 | AC57: 2.951138683 | AD57: -22.3578268 | AE57: 22.10710213 | AF57: 88.79741534 | AG57: 5.911052528 | AH57: 21.37019873 | AI57: 22.17263935 | AJ57: -2.959913845 | AK57: 0.7369034044 | AL57: 0.40375 | AM57: -0.7331799387 | AN57: -2.987722382 | AO57: 2.978772561 | AP57: -22.24683003 | AQ57: 21.99539816 | AR57: 89.63167146 | AS57: 5.966494943 | AT57: -22.98000997 | AU57: 23.74194432 | AV57: -2.987722382 | AW57: 0.7331799387 | AX57: 0.4092307692 | AY57: -0.7168539737 | AZ57: -3.109652124 | BA57: 3.099324262 | BB57: -21.75557953 | BC57: 21.50561921 | BD57: 93.28956371 | BE57: 6.208976386 | BF57: -22.4724335 | BG57: 23.31440875 | BH57: -3.109652124 | BI57: 0.7168539737 | BJ57: 0.41 | BK57: -0.7144571529 | BL57: -3.126331984 | BM57: 3.115867046 | BN57: -21.68381832 | BO57: 21.43371459 | BP57: 93.78995952 | BQ57: 6.24219903 | BR57: -22.39827548 | BS57: 23.25183419 | BT57: -3.126331984 | BU57: 0.7144571529 | BV57: 0.02895317589 | BW57: -0.2257926674 | BX57: 0.2232843753 | BY57: 0.885759754 | BZ57: -0.7370429571 | CA57: -3.00898068 | CB57: 2.951138683 | CC57: -22.3578268 | CD57: 0.02951138683 | CE57: -0.223578268 | CF57: 0.2210710213 | CG57: 0.8879741534 | CH57: -0.7332668133 | CI57: -3.036581964 | CJ57: 2.978426724 | CK57: -22.24648403 | CL57: 0.02978772561 | CM57: -0.2224683003 | CN57: 0.2199539816 | CO57: 0.8963167146 | CP57: -0.7166131598 | CQ57: -3.157173671 | CR57: 3.09761996 | CS57: -21.73384085 | CT57: 0.03099324262 | CU57: -0.2175557953 | CV57: 0.2150561921 | CW57: 0.9328956371 | CX57: -1.231974511 | CY57: -2.261181501 | CZ57: 4.460532275 | DA57: -24.94339331 | DB57: 0.03115867046 | DC57: -0.2168381832 | DD57: 0.2143371459 | DE57: 0.9378995952 | DF57: -0.7142189548 | DG57: -3.173407535 | DH57: 3.113689571 | DI57: -21.67481736 | DJ57: 0.5779438813 | DK57: -3.20103186 | DL57: 6.287097106 | DM57: -22.38903631 | DN57: 23.25503251 | DO57: 21.42656864 | DP57: 95.20222605
A58: 0.41 | B58: -0.7142189548 | C58: -3.173407535 | D58: 3.113689571 | E58: -21.67481736 | F58: 3.252787128 | G58: 2.920217547 | H58: 167.3161407 | I58: 21.42656864 | J58: 95.20222605 | K58: 21.42656864 | L58: 95.20222605 | M58: 6.287097106 | N58: -22.38903631 | O58: 14.69050639 | P58: -18.02735585 | Q58: -3.173407535 | R58: 0.7142189548 | S58: 16.442183 | T58: -17.17037127 | U58: 23.77324192 | V58: 23.25503251 | W58: 21.89732336 | X58: 0.6099247694 | Y58: -3.195092467 | Z58: 0.4125 | AA58: -0.7063008148 | AB58: -3.181341054 | AC58: 3.167255993 | AD58: -21.4368118 | AE58: 21.18902444 | AF58: 95.44023161 | AG58: 6.348597046 | AH58: 20.48272363 | AI58: 21.44403534 | AJ58: -3.181341054 | AK58: 0.7063008148 | AL58: 0.41375 | AM58: -0.7023086369 | AN58: -3.207987943 | AO58: 3.193742273 | AP58: -21.31751151 | AQ58: 21.06925911 | AR58: 96.23963829 | AS58: 6.401730216 | AT58: -22.01982014 | AU58: 22.93152042 | AV58: -3.207987943 | AW58: 0.7023086369 | AX58: 0.4192307692 | AY58: -0.6848044726 | AZ58: -3.324824304 | BA58: 3.30921802 | BB58: -20.79004426 | BC58: 20.54413418 | BD58: 99.74472913 | BE58: 6.634042324 | BF58: -21.47484873 | BG58: 22.47620176 | BH58: -3.324824304 | BI58: 0.6848044726 | BJ58: 0.42 | BK58: -0.6822467639 | BL58: -3.340757625 | BM58: 3.3250212 | BN58: -20.71331754 | BO58: 20.46740292 | BP58: 100.2227288 | BQ58: 6.665778826 | BR58: -21.39556431 | BS58: 22.40988129 | BT58: -3.340757625 | BU58: 0.6822467639 | BV58: 0.03113689571 | BW58: -0.2167481736 | BX58: 0.2142656864 | BY58: 0.9520222605 | BZ58: -0.7064347308 | CA58: -3.227594578 | CB58: 3.167255993 | CC58: -21.4368118 | CD58: 0.03167255993 | CE58: -0.214368118 | CF58: 0.2118902444 | CG58: 0.9544023161 | CH58: -0.7023919633 | CI58: -3.254018709 | CJ58: 3.19337111 | CK58: -21.31713962 | CL58: 0.03193742273 | CM58: -0.2131751151 | CN58: 0.2106925911 | CO58: 0.9623963829 | CP58: -0.6845742177 | CQ58: -3.369416939 | CR58: 3.307392207 | CS58: -20.76937615 | CT58: 0.0330921802 | CU58: -0.2079004426 | CV58: 0.2054413418 | CW58: 0.9974472913 | CX58: -1.185830838 | CY58: -2.509390813 | CZ58: 4.822566061 | DA58: -24.04743003 | DB58: 0.033250212 | DC58: -0.2071331754 | DD58: 0.2046740292 | DE58: 1.002227288 | DF58: -0.6820185656 | DG58: -3.384926451 | DH58: 3.322739123 | DI58: -20.70487561 | DJ58: 0.7237698298 | DK58: -3.376245494 | DL58: 6.707665574 | DM58: -21.38689418 | DN58: 22.41410315 | DO58: 20.46055697 | DP58: 101.5477935
A59: 0.42 | B59: -0.6820185656 | C59: -3.384926451 | D59: 3.322739123 | E59: -20.70487561 | F59: 3.452951839 | G59: 2.942767727 | H59: 168.6081708 | I59: 20.46055697 | J59: 101.5477935 | K59: 20.46055697 | L59: 101.5477935 | M59: 6.707665574 | N59: -21.38689418 | O59: 14.84542491 | P59: -16.79301579 | Q59: -3.384926451 | R59: 0.6820185656 | S59: 16.51044462 | T59: -15.95768933 | U59: 22.96176453 | V59: 22.41410315 | W59: 20.96979898 | X59: 0.7574955338 | Y59: -3.368839105 | Z59: 0.4225 | AA59: -0.6735838393 | AB59: -3.393388767 | AC59: 3.373890515 | AD59: -20.45100613 | AE59: 20.20751518 | AF59: 101.801663 | AG59: 6.767279282 | AH59: 19.53393134 | AI59: 20.67294228 | AJ59: -3.393388767 | AK59: 0.6735838393 | AL59: 0.42375 | AM59: -0.6693349019 | AN59: -3.418793459 | AO59: 3.399149909 | AP59: -20.32375405 | AQ59: 20.08004706 | AR59: 102.5638038 | AS59: 6.817943369 | AT59: -20.99308895 | AU59: 22.07247461 | AV59: -3.418793459 | AW59: 0.6693349019 | AX59: 0.4292307692 | AY59: -0.6507049457 | AZ59: -3.530183265 | BA59: 3.509204013 | BB59: -19.76162551 | BC59: 19.52114837 | BD59: 105.905498 | BE59: 7.039387279 | BF59: -20.41233046 | BG59: 21.59204038 | BH59: -3.530183265 | BI59: 0.6507049457 | BJ59: 0.43 | BK59: -0.647994007 | BL59: -3.54532185 | BM59: 3.524220281 | BN59: -19.68015974 | BO59: 19.43982021 | BP59: 106.3596555 | BQ59: 7.069542131 | BR59: -20.32815375 | BS59: 21.52236652 | BT59: -3.54532185 | BU59: 0.647994007 | BV59: 0.03322739123 | BW59: -0.2070487561 | BX59: 0.2046055697 | BY59: 1.015477935 | BZ59: -0.6737117178 | CA59: -3.43668864 | CB59: 3.373890515 | CC59: -20.45100613 | CD59: 0.03373890515 | CE59: -0.2045100613 | CF59: 0.2020751518 | CG59: 1.01801663 | CH59: -0.6694144306 | CI59: -3.461855726 | CJ59: 3.398754531 | CK59: -20.32335738 | CL59: 0.03399149909 | CM59: -0.2032375405 | CN59: 0.2008004706 | CO59: 1.025638038 | CP59: -0.6504859392 | CQ59: -3.571711544 | CR59: 3.507262155 | CS59: -19.74209056 | CT59: 0.03509204013 | CU59: -0.1976162551 | CV59: 0.1952114837 | CW59: 1.05905498 | CX59: -1.136124913 | CY59: -2.750237871 | CZ59: 5.170249411 | DA59: -23.07891778 | DB59: 0.03524220281 | DC59: -0.1968015974 | DD59: 0.1943982021 | DE59: 1.063596555 | DF59: -0.6477764915 | DG59: -3.586449789 | DH59: 3.521840434 | DI59: -19.67230249 | DJ59: 0.8709348406 | DK59: -3.538885273 | DL59: 7.108290223 | DM59: -20.32007898 | DN59: 21.52750333 | DO59: 19.43329474 | DP59: 107.5934937
A60: 0.43 | B60: -0.6477764915 | C60: -3.586449789 | D60: 3.521840434 | E60: -19.67230249 | F60: 3.644480274 | G60: 2.962901417 | H60: 169.7617463 | I60: 19.43329474 | J60: 107.5934937 | K60: 19.43329474 | L60: 107.5934937 | M60: 7.108290223 | N60: -20.32007898 | O60: 14.93203998 | P60: -15.50701718 | Q60: -3.586449789 | R60: 0.6477764915 | S60: 16.50600783 | T60: -14.69756941 | U60: 22.10128596 | V60: 21.52750333 | W60: 19.98506556 | X60: 0.9062795572 | Y60: -3.529999127 | Z60: 0.4325 | AA60: -0.6388504323 | AB60: -3.595415913 | AC60: 3.570423671 | AD60: -19.40331876 | AE60: 19.16551297 | AF60: 107.8624774 | AG60: 7.165839584 | AH60: 18.52666254 | AI60: 19.86420101 | AJ60: -3.595415913 | AK60: 0.6388504323 | AL60: 0.43375 | AM60: -0.6343574566 | AN60: -3.619501527 | AO60: 3.594380562 | AP60: -19.26849066 | AQ60: 19.0307237 | AR60: 108.5850458 | AS60: 7.213882089 | AT60: -19.90284812 | AU60: 21.16987147 | AV60: -3.619501527 | AW60: 0.6343574566 | AX60: 0.4392307692 | AY60: -0.6146574862 | AZ60: -3.725107677 | BA60: 3.698683567 | BB60: -18.67336108 | BC60: 18.43972459 | BD60: 111.7532303 | BE60: 7.423791244 | BF60: -19.28801857 | BG60: 20.66737373 | BH60: -3.725107677 | BI60: 0.6146574862 | BJ60: 0.44 | BK60: -0.6118014339 | BL60: -3.739405675 | BM60: 3.71286797 | BN60: -18.58739706 | BO60: 18.35404302 | BP60: 112.1821703 | BQ60: 7.452273645 | BR60: -19.19919849 | BS60: 20.59479559 | BT60: -3.739405675 | BU60: 0.6118014339 | BV60: 0.03521840434 | BW60: -0.1967230249 | BX60: 0.1943329474 | BY60: 1.075934937 | BZ60: -0.6389718904 | CA60: -3.635630545 | CB60: 3.570423671 | CC60: -19.40331876 | CD60: 0.03570423671 | CE60: -0.1940331876 | CF60: 0.1916551297 | CG60: 1.078624774 | CH60: -0.6344329495 | CI60: -3.659464406 | CJ60: 3.593962153 | CK60: -19.26807037 | CL60: 0.03594380562 | CM60: -0.1926849066 | CN60: 0.190307237 | CO60: 1.085850458 | CP60: -0.6144503837 | CQ60: -3.763445243 | CR60: 3.696631477 | CS60: -18.65501853 | CT60: 0.03698683567 | CU60: -0.1867336108 | CV60: 0.1843972459 | CW60: 1.117532303 | CX60: -1.083004681 | CY60: -2.982995846 | CZ60: 5.502537674 | DA60: -22.04071147 | DB60: 0.0371286797 | DC60: -0.1858739706 | DD60: 0.1835404302 | DE60: 1.121821703 | DF60: -0.6115952524 | DG60: -3.777367584 | DH60: 3.710397478 | DI60: -18.5801484 | DJ60: 1.018755119 | DK60: -3.688453962 | DL60: 7.487765062 | DM60: -19.19174365 | DN60: 20.60071965 | DO60: 18.34785757 | DP60: 113.3210275
A61: 0.44 | B61: -0.6115952524 | C61: -3.777367584 | D61: 3.710397478 | E61: -18.5801484 | F61: 3.82655911 | G61: 2.981075194 | H61: 170.803027 | I61: 18.34785757 | J61: 113.3210275 | K61: 18.34785757 | L61: 113.3210275 | M61: 7.487765062 | N61: -19.19174365 | O61: 14.94908892 | P61: -14.17442734 | Q61: -3.777367584 | R61: 0.6115952524 | S61: 16.42795495 | T61: -13.39509058 | U61: 21.19684306 | V61: 20.60071965 | W61: 18.94700409 | X61: 1.055588106 | Y61: -3.678082159 | Z61: 0.4425 | AA61: -0.6022045846 | AB61: -3.786811003 | AC61: 3.756267122 | AD61: -18.29684583 | AE61: 18.06613754 | AF61: 113.6043301 | AG61: 7.543078125 | AH61: 17.46393295 | AI61: 19.02332731 | AJ61: -3.786811003 | AK61: 0.6022045846 | AL61: 0.44375 | AM61: -0.5974810224 | AN61: -3.809504554 | AO61: 3.778849794 | AP61: -18.15484042 | AQ61: 17.92443067 | AR61: 114.2851366 | AS61: 7.588354348 | AT61: -18.75232144 | AU61: 20.22950027 | AV61: -3.809504554 | AW61: 0.5974810224 | AX61: 0.4492307692 | AY61: -0.5767700187 | AZ61: -3.909007045 | BA61: 3.877089462 | BB61: -17.52846996 | BC61: 17.30310056 | BD61: 117.2702113 | BE61: 7.786096507 | BF61: -18.10523997 | BG61: 19.7084503 | BH61: -3.909007045 | BI61: 0.5767700187 | BJ61: 0.45 | BK61: -0.5737774037 | BL61: -3.922421092 | BM61: 3.890399539 | BN61: -17.4382621 | BO61: 17.21332211 | BP61: 117.6726328 | BQ61: 7.812820632 | BR61: -18.0120395 | BS61: 19.633485 | BT61: -3.922421092 | BU61: 0.5737774037 | BV61: 0.03710397478 | BW61: -0.185801484 | BX61: 0.1834785757 | BY61: 1.133210275 | BZ61: -0.6023192587 | CA61: -3.823817955 | CB61: 3.756267122 | CC61: -18.29684583 | CD61: 0.03756267122 | CE61: -0.1829684583 | CF61: 0.1806613754 | CG61: 1.136043301 | CH61: -0.5975522535 | CI61: -3.846246352 | CJ61: 3.778409606 | CK61: -18.15439776 | CL61: 0.03778849794 | CM61: -0.1815484042 | CN61: 0.1792443067 | CO61: 1.142851366 | CP61: -0.5765754402 | CQ61: -3.944037008 | CR61: 3.874933285 | CS61: -17.5113755 | CT61: 0.03877089462 | CU61: -0.1752846996 | CV61: 0.1730310056 | CW61: 1.172702113 | CX61: -1.026628348 | CY61: -3.206961694 | CZ61: 5.818432034 | DA61: -20.93587638 | DB61: 0.03890399539 | DC61: -0.174382621 | DD61: 0.1721332211 | DE61: 1.176726328 | DF61: -0.5735831734 | DG61: -3.957101225 | DH61: 3.887845799 | DI61: -17.43164413 | DJ61: 1.166535249 | DK61: -3.824505625 | DL61: 7.844947023 | DM61: -18.00522731 | DN61: 19.64004593 | DO61: 17.2074952 | DP61: 118.7130367
A62: 0.45 | B62: -0.5735831734 | C62: -3.957101225 | D62: 3.887845799 | E62: -17.43164413 | F62: 3.998455672 | G62: 2.997644868 | H62: 171.7523994 | I62: 17.2074952 | J62: 118.7130367 | K62: 17.2074952 | L62: 118.7130367 | M62: 7.844947023 | N62: -18.00522731 | O62: 14.89561313 | P62: -12.80047318 | Q62: -3.957101225 | R62: 0.5735831734 | S62: 16.27568437 | T62: -12.05547224 | U62: 20.25419247 | V62: 19.64004593 | W62: 17.85994295 | X62: 1.204721341 | Y62: -3.812649243 | Z62: 0.4525 | AA62: -0.5637560121 | AB62: -3.966993978 | AC62: 3.930864537 | AD62: -17.13486154 | AE62: 16.91268036 | AF62: 119.0098193 | AG62: 7.897858514 | AH62: 16.34892435 | AI62: 18.15663781 | AJ62: -3.966993978 | AK62: 0.5637560121 | AL62: 0.45375 | AM62: -0.5588160054 | AN62: -3.988226602 | AO62: 3.952005387 | AP62: -16.98609927 | AQ62: 16.76448016 | AR62: 119.6467981 | AS62: 7.940231989 | AT62: -17.54491527 | AU62: 19.25802004 | AV62: -3.988226602 | AW62: 0.5588160054 | AX62: 0.4592307692 | AY62: -0.5371559758 | AZ62: -4.081323492 | BA62: 4.043887634 | BB62: -16.33034278 | BC62: 16.11467927 | BD62: 122.4397048 | BE62: 8.125211126 | BF62: -16.86749875 | BG62: 18.72248835 | BH62: -4.081323492 | BI62: 0.5371559758 | BJ62: 0.46 | BK62: -0.5340357577 | BL62: -4.093812845 | BM62: 4.056283541 | BN62: -16.23615839 | BO62: 16.02107273 | BP62: 122.8143853 | BQ62: 8.150096386 | BR62: -16.77019415 | BS62: 18.64573632 | BT62: -4.093812845 | BU62: 0.5340357577 | BV62: 0.03887845799 | BW62: -0.1743164413 | BX62: 0.172074952 | BY62: 1.187130367 | BZ62: -0.5638635589 | CA62: -4.000680335 | CB62: 3.930864537 | CC62: -17.13486154 | CD62: 0.03930864537 | CE62: -0.1713486154 | CF62: 0.1691268036 | CG62: 1.190098193 | CH62: -0.5588827615 | CI62: -4.021635189 | CJ62: 3.951544739 | CK62: -16.98563554 | CL62: 0.03952005387 | CM62: -0.1698609927 | CN62: 0.1676448016 | CO62: 1.196467981 | CP62: -0.5369745038 | CQ62: -4.112938792 | CR62: 4.041633825 | CS62: -16.31454843 | CT62: 0.04043887634 | CU62: -0.1633034278 | CV62: 0.1611467927 | CW62: 1.224397048 | CX62: -0.9671639108 | CY62: -3.421458269 | CZ62: 6.116982518 | DA62: -19.76767922 | DB62: 0.04056283541 | DC62: -0.1623615839 | DD62: 0.1602107273 | DE62: 1.228143853 | DF62: -0.5338540601 | DG62: -4.125105203 | DH62: 4.053654198 | DI62: -16.23019134 | DJ62: 1.313571246 | DK62: -3.946647143 | DL62: 8.178759401 | DM62: -16.7640454 | DN62: 18.65275646 | DO62: 16.0156218 | DP62: 123.7531561
A63: 0.46 | B63: -0.5338540601 | C63: -4.125105203 | D63: 4.053654198 | E63: -16.23019134 | F63: 4.159506352 | G63: 3.012892119 | H63: 172.6260026 | I63: 16.0156218 | J63: 123.7531561 | K63: 16.0156218 | L63: 123.7531561 | M63: 8.178759401 | N63: -16.7640454 | O63: 14.77096401 | P63: -11.39052 | Q63: -4.125105203 | R63: 0.5338540601 | S63: 16.04891503 | T63: -10.68405263 | U63: 19.27995472 | V63: 18.65275646 | W63: 16.72875439 | X63: 1.352971382 | Y63: -3.933314319 | Z63: 0.4625 | AA63: -0.523619827 | AB63: -4.135417966 | AC63: 4.093693252 | AD63: -15.92080845 | AE63: 15.70859481 | AF63: 124.062539 | AG63: 8.229111218 | AH63: 15.18497498 | AI63: 17.27141386 | AJ63: -4.135417966 | AK63: 0.523619827 | AL63: 0.46375 | AM63: -0.5184781658 | AN63: -4.155125129 | AO63: 4.113328996 | AP63: -15.76573028 | AQ63: 15.55434497 | AR63: 124.6537539 | AS63: 8.268454125 | AT63: -16.28420844 | AU63: 18.26315357 | AV63: -4.155125129 | AW63: 0.5184781658 | AX63: 0.4692307692 | AY63: -0.4959339588 | AZ63: -4.241533458 | BA63: 4.198578771 | BB63: -15.08253182 | BC63: 14.87801876 | BD63: 127.2460037 | BE63: 8.440112229 | BF63: -15.57846578 | BG63: 17.71790311 | BH63: -4.241533458 | BI63: 0.4959339588 | BJ63: 0.47 | BK63: -0.4926954792 | BL63: -4.253060112 | BM63: 4.210023401 | BN63: -14.98465028 | BO63: 14.78086438 | BP63: 127.5918034 | BQ63: 8.463083513 | BR63: -15.47734576 | BS63: 17.64006843 | BT63: -4.253060112 | BU63: 0.4926954792 | BV63: 0.04053654198 | BW63: -0.1623019134 | BX63: 0.160156218 | BY63: 1.237531561 | BZ63: -0.5237199246 | CA63: -4.165680681 | CB63: 4.093693252 | CC63: -15.92080845 | CD63: 0.04093693252 | CE63: -0.1592080845 | CF63: 0.1570859481 | CG63: 1.24062539 | CH63: -0.5185402471 | CI63: -4.185098281 | CJ63: 4.112849266 | CK63: -15.76524687 | CL63: 0.04113328996 | CM63: -0.1576573028 | CN63: 0.1555434497 | CO63: 1.246537539 | CP63: -0.4957661364 | CQ63: -4.269637187 | CR63: 4.196234078 | CS63: -15.06808572 | CT63: 0.04198578771 | CU63: -0.1508253182 | CV63: 0.1487801876 | CW63: 1.272460037 | CX63: -0.9047886515 | CY63: -3.625836381 | CZ63: 6.397290846 | DA63: -18.53957835 | DB63: 0.04210023401 | DC63: -0.1498465028 | DD63: 0.1478086438 | DE63: 1.275918034 | DF63: -0.4925268582 | DG63: -4.280868773 | DH63: 4.207326326 | DI63: -14.97935245 | DJ63: 1.459153667 | DK63: -4.054539522 | DL63: 8.4881951 | DM63: -15.47187931 | DN63: 17.64733706 | DO63: 14.77580575 | DP63: 128.4260632
A64: 0.47 | B64: -0.4925268582 | C64: -4.280868773 | D64: 4.207326326 | E64: -14.97935245 | F64: 4.309108975 | G64: 3.027043304 | H64: 173.4368057 | I64: 14.77580575 | J64: 128.4260632 | K64: 14.77580575 | L64: 128.4260632 | M64: 8.4881951 | N64: -15.47187931 | O64: 14.57480752 | P64: -9.950049803 | Q64: -4.280868773 | R64: 0.4925268582 | S64: 15.74768951 | T64: -9.286267104 | U64: 18.2818074 | V64: 17.64733706 | W64: 15.55900365 | X64: 1.499625429 | Y64: -4.039745504 | Z64: 0.4725 | AA64: -0.4819161936 | AB64: -4.291570945 | AC64: 4.244265841 | AD64: -14.65828729 | AE64: 14.45748581 | AF64: 128.7471284 | AG64: 8.535836786 | AH64: 13.97556962 | AI64: 16.37611235 | AJ64: -4.291570945 | AK64: 0.4819161936 | AL64: 0.47375 | AM64: -0.4765882715 | AN64: -4.309692637 | AO64: 4.262337698 | AP64: -14.49735338 | AQ64: 14.29764815 | AR64: 129.2907791 | AS64: 8.572030335 | AT64: -14.97394165 | AU64: 17.25394543 | AV64: -4.309692637 | AW64: 0.4765882715 | AX64: 0.4792307692 | AY64: -0.4532273822 | AZ64: -4.389149285 | BA64: 4.340699808 | BB64: -13.78874046 | BC64: 13.59682147 | BD64: 131.6744786 | BE64: 8.729849093 | BF64: -14.24196784 | BG64: 16.70460754 | BH64: -4.389149285 | BI64: 0.4532273822 | BJ64: 0.48 | BK64: -0.4498803369 | BL64: -4.399678095 | BM64: 4.351158901 | BN64: -13.6874524 | BO64: 13.49641011 | BP64: 131.9903428 | BQ64: 8.750836996 | BR64: -14.13733274 | BS64: 16.62652474 | BT64: -4.399678095 | BU64: 0.4498803369 | BV64: 0.04207326326 | BW64: -0.1497935245 | BX64: 0.1477580575 | BY64: 1.284260632 | BZ64: -0.4820085424 | CA64: -4.318317155 | CB64: 4.244265841 | CC64: -14.65828729 | CD64: 0.04244265841 | CE64: -0.1465828729 | CF64: 0.1445748581 | CG64: 1.287471284 | CH64: -0.4766454921 | CI64: -4.336138349 | CJ64: 4.261840323 | CK64: -14.49685172 | CL64: 0.04262337698 | CM64: -0.1449735338 | CN64: 0.1429764815 | CO64: 1.292907791 | CP64: -0.4530737119 | CQ64: -4.413654985 | CR64: 4.33827125 | CS64: -13.77568675 | CT64: 0.04340699808 | CU64: -0.1378874046 | CV64: 0.1359682147 | CW64: 1.316744786 | CX64: -0.8396886136 | CY64: -3.81947675 | CZ64: 6.658513135 | DA64: -17.25521366 | DB64: 0.04351158901 | DC64: -0.136874524 | DD64: 0.1349641011 | DE64: 1.319903428 | DF64: -0.4497252973 | DG64: -4.423917503 | DH64: 4.34840217 | DI64: -13.68284009 | DJ64: 1.602570751 | DK64: -4.147898974 | DL64: 8.772319673 | DM64: -14.13256539 | DN64: 16.63379082 | DO64: 13.49175892 | DP64: 132.7175251
A65: 0.48 | B65: -0.4497252973 | C65: -4.423917503 | D65: 4.34840217 | E65: -13.68284009 | F65: 4.446717768 | G65: 3.040282981 | H65: 174.1953833 | I65: 13.49175892 | J65: 132.7175251 | K65: 13.49175892 | L65: 132.7175251 | M65: 8.772319673 | N65: -14.13256539 | O65: 14.30712741 | P65: -8.484639201 | Q65: -4.423917503 | R65: 0.4497252973 | S65: 15.37237582 | T65: -7.867625927 | U65: 17.26874275 | V65: 16.63379082 | W65: 14.35718337 | X65: 1.643968922 | Y65: -4.131666141 | Z65: 0.4825 | AA65: -0.4387699684 | AB65: -4.434977296 | AC65: 4.382131568 | AD65: -13.35104628 | AE65: 13.16309905 | AF65: 133.0493189 | AG65: 8.817108864 | AH65: 12.72432908 | AI65: 15.48063175 | AJ65: -4.434977296 | AK65: 0.4387699684 | AL65: 0.48375 | AM65: -0.4332717366 | AN65: -4.451458215 | AO65: 4.398585441 | AP65: -13.18473463 | AQ65: 12.9981521 | AR65: 133.5437464 | AS65: 8.850043656 | AT65: -13.61800637 | AU65: 16.24110126 | AV65: -4.451458215 | AW65: 0.4332717366 | AX65: 0.4892307692 | AY65: -0.4091641048 | AZ65: -4.523720702 | BA65: 4.469825314 | BB65: -12.45281218 | BC65: 12.27492314 | BD65: 135.7116211 | BE65: 8.993546016 | BF65: -12.86197628 | BG65: 15.69440358 | BH65: -4.523720702 | BI65: 0.4091641048 | BJ65: 0.49 | BK65: -0.4057185144 | BL65: -4.533219486 | BM65: 4.479267562 | BN65: -12.34841862 | BO65: 12.17155543 | BP65: 135.9965846 | BQ65: 9.012487048 | BR65: -12.75413714 | BS65: 15.61707197 | BT65: -4.533219486 | BU65: 0.4057185144 | BV65: 0.0434840217 | BW65: -0.1368284009 | BX65: 0.1349175892 | BY65: 1.327175251 | BZ65: -0.4388542918 | CA65: -4.458124603 | CB65: 4.382131568 | CC65: -13.35104628 | CD65: 0.04382131568 | CE65: -0.1335104628 | CF65: 0.1316309905 | CG65: 1.330493189 | CH65: -0.4333239252 | CI65: -4.474294983 | CJ65: 4.39807191 | CK65: -13.1842162 | CL65: 0.04398585441 | CM65: -0.1318473463 | CN65: 0.129981521 | CO65: 1.335437464 | CP65: -0.4090250465 | CQ65: -4.544552631 | CR65: 4.467320162 | CS65: -12.44119086 | CT65: 0.04469825314 | CU65: -0.1245281218 | CV65: 0.1227492314 | CW65: 1.357116211 | CX65: -0.7720580454 | CY65: -4.00179189 | CZ65: 6.899862444 | DA65: -15.91839572 | DB65: 0.04479267562 | DC65: -0.1234841862 | DD65: 0.1217155543 | DE65: 1.359965846 | DF65: -0.4055775202 | DG65: -4.553814714 | DH65: 4.476459428 | DI65: -12.3445061 | DJ65: 1.743111603 | DK65: -4.226497784 | DL65: 9.030274143 | DM65: -12.75008362 | DN65: 15.62403544 | DO65: 12.16732561 | DP65: 136.6144414
A66: 0.49 | B66: -0.4055775202 | C66: -4.553814714 | D66: 4.476459428 | E66: -12.3445061 | F66: 4.571840065 | G66: 3.052763784 | H66: 174.9104807 | I66: 12.16732561 | J66: 136.6144414 | K66: 12.16732561 | L66: 136.6144414 | M66: 9.030274143 | N66: -12.75008362 | O66: 13.96822702 | P66: -6.999936937 | Q66: -4.553814714 | R66: 0.4055775202 | S66: 14.92366771 | T66: -6.433691866 | U66: 16.2514076 | V66: 15.62403544 | W66: 13.13108982 | X66: 1.785288722 | Y66: -4.208855635 | Z66: 0.4925 | AA66: -0.3943103258 | AB66: -4.565199251 | AC66: 4.506877742 | AD66: -12.00296999 | AE66: 11.82930978 | AF66: 136.9559775 | AG66: 9.072076993 | AH66: 11.43499945 | AI66: 14.59663637 | AJ66: -4.565199251 | AK66: 0.3943103258 | AL66: 0.49375 | AM66: -0.3886582454 | AN66: -4.57998897 | AO66: 4.521664379 | AP66: -11.83177502 | AQ66: 11.65974736 | AR66: 137.3996691 | AS66: 9.101653349 | AT66: -12.22043327 | AU66: 15.23742376 | AV66: -4.57998897 | AW66: 0.3886582454 | AX66: 0.4992307692 | AY66: -0.3638760464 | AZ66: -4.644836199 | BA66: 4.585568764 | BB66: -11.07871914 | BC66: 10.91628139 | BD66: 139.345086 | BE66: 9.230404962 | BF66: -11.44259519 | BG66: 14.70147477 | BH66: -4.644836199 | BI66: 0.3638760464 | BJ66: 0.5 | BK66: -0.3603422264 | BL66: -4.653275837 | BM66: 4.593965903 | BN66: -10.97153061 | BO66: 10.81026679 | BP66: 139.5982751 | BQ66: 9.247241741 | BR66: -11.33187284 | BS66: 14.62610071 | BT66: -4.653275837 | BU66: 0.3603422264 | BV66: 0.04476459428 | BW66: -0.123445061 | BX66: 0.1216732561 | BY66: 1.366144414 | BZ66: -0.3943863716 | CA66: -4.58467598 | CB66: 4.506877742 | CC66: -12.00296999 | CD66: 0.04506877742 | CE66: -0.1200296999 | CF66: 0.1182930978 | CG66: 1.369559775 | CH66: -0.3887052458 | CI66: -4.599146042 | CJ66: 4.52113623 | CK66: -11.83124137 | CL66: 0.04521664379 | CM66: -0.1183177502 | CN66: 0.1165974736 | CO66: 1.373996691 | CP66: -0.3637520164 | CQ66: -4.661929564 | CR66: 4.582994519 | CS66: -11.06856596 | CT66: 0.04585568764 | CU66: -0.1107871914 | CV66: 0.1091628139 | CW66: 1.39345086 | CX66: -0.7020988205 | CY66: -4.172227885 | CZ66: 7.120611139 | DA66: -14.53309447 | DB66: 0.04593965903 | DC66: -0.1097153061 | DD66: 0.1081026679 | DE66: 1.395982751 | DF66: -0.3602156998 | DG66: -4.670162823 | DH66: 4.591114773 | DI66: -10.96833005 | DJ66: 1.880069378 | DK66: -4.290164947 | DL66: 9.261277596 | DM66: -11.32854575 | DN66: 14.63240279 | DO66: 10.80647099 | DP66: 140.1048847
A67: 0.5 | B67: -0.3602156998 | C67: -4.670162823 | D67: 4.591114773 | E67: -10.96833005 | F67: 4.684034174 | G67: 3.064613774 | H67: 175.5894351 | I67: 10.80647099 | J67: 140.1048847 | K67: 10.80647099 | L67: 140.1048847 | M67: 9.261277596 | N67: -11.32854575 | O67: 13.55872987 | P67: -5.501641201 | Q67: -4.670162823 | R67: 0.3602156998 | S67: 14.40258365 | T67: -4.990057636 | U67: 15.24254214 | V67: 14.63240279 | W67: 11.89044149 | X67: 1.92287631 | Y67: -4.27115006 | Z67: 0.5025 | AA67: -0.3486703724 | AB67: -4.68183823 | AC67: 4.618130951 | AD67: -10.61806784 | AE67: 10.46011117 | AF67: 140.4551469 | AG67: 9.299969181 | AH67: 10.1114408 | AI67: 13.73792786 | AJ67: -4.68183823 | AK67: 0.3486703724 | AL67: 0.50375 | AM67: -0.3428813648 | AN67: -4.694891354 | AO67: 4.63120609 | AP67: -10.4424989 | AQ67: 10.28644094 | AR67: 140.8467406 | AS67: 9.326097443 | AT67: -10.78538027 | AU67: 14.25834917 | AV67: -4.694891354 | AW67: 0.3428813648 | AX67: 0.5092307692 | AY67: -0.3174987929 | AZ67: -4.75212428 | BA67: 4.687583699 | BB67: -9.670550421 | BC67: 9.524963788 | BD67: 142.5637284 | BE67: 9.439707979 | BF67: -9.988049214 | BG67: 13.74296961 | BH67: -4.75212428 | BI67: 0.3174987929 | BJ67: 0.51 | BK67: -0.3138873233 | BL67: -4.759478808 | BM67: 4.694910594 | BN67: -9.560886015 | BO67: 9.416619698 | BP67: 142.7843642 | BQ67: 9.454389402 | BR67: -9.874773338 | BS67: 13.67101413 | BT67: -4.759478808 | BU67: 0.3138873233 | BV67: 0.04591114773 | BW67: -0.1096833005 | BX67: 0.1080647099 | BY67: 1.401048847 | BZ67: -0.3487379128 | CA67: -4.697583648 | CB67: 4.618130951 | CC67: -10.61806784 | CD67: 0.04618130951 | CE67: -0.1061806784 | CF67: 0.1046011117 | CG67: 1.404551469 | CH67: -0.3429230364 | CI67: -4.710308948 | CJ67: 4.630664902 | CK67: -10.44195162 | CL67: 0.0463120609 | CM67: -0.104424989 | CN67: 0.1028644094 | CO67: 1.408467406 | CP67: -0.3173901626 | CQ67: -4.765425441 | CR67: 4.684948067 | CS67: -9.661896735 | CT67: 0.04687583699 | CU67: -0.09670550421 | CV67: 0.09524963788 | CW67: 1.425637284 | CX67: -0.6300198354 | CY67: -4.330266075 | CZ67: 7.320093087 | DA67: -13.10342747 | DB67: 0.04694910594 | DC67: -0.09560886015 | DD67: 0.09416619698 | DE67: 1.427843642 | DF67: -0.3137756428 | DG67: -4.772604547 | DH67: 4.692025004 | DI67: -9.558407458 | DJ67: 2.012744473 | DK67: -4.338786582 | DL67: 9.464629551 | DM67: -9.8721831 | DN67: 13.67622798 | DO67: 9.413269285 | DP67: 143.1781364
A68: 0.51 | B68: -0.3137756428 | C68: -4.772604547 | D68: 4.692025004 | E68: -9.558407458 | F68: 4.78290804 | G68: 3.075941976 | H68: 176.2384933 | I68: 9.413269285 | J68: 143.1781364 | K68: 9.413269285 | L68: 143.1781364 | M68: 9.464629551 | N68: -9.8721831 | O68: 13.07957862 | P68: -3.995476783 | Q68: -4.772604547 | R68: 0.3137756428 | S68: 13.81046442 | T68: -3.542323269 | U68: 14.25752368 | V68: 13.67622798 | W68: 10.64792242 | X68: 2.056030979 | Y68: -4.318442535 | Z68: 0.5125 | AA68: -0.3019867474 | AB68: -4.784536059 | AC68: 4.715558177 | AD68: -9.200462117 | AE68: 9.059602422 | AF68: 143.5360818 | AG68: 9.500094235 | AH68: 8.757615674 | AI68: 12.92082129 | AJ68: -4.784536059 | AK68: 0.3019867474 | AL68: 0.51375 | AM68: -0.296078144 | AN68: -4.795812361 | AO68: 4.72688268 | AP68: -9.021042014 | AQ68: 8.882344321 | AR68: 143.8743708 | AS68: 9.522695041 | AT68: -9.317120158 | AU68: 13.32255414 | AV68: -4.795812361 | AW68: 0.296078144 | AX68: 0.5192307692 | AY68: -0.2701711909 | AZ68: -4.845254611 | BA68: 4.775564759 | BB68: -8.23249979 | BC68: 8.105135727 | BD68: 145.3576383 | BE68: 9.62081937 | BF68: -8.50267098 | BG68: 12.83960977 | BH68: -4.845254611 | BI68: 0.2701711909 | BJ68: 0.52 | BK68: -0.2664928836 | BL68: -4.851501292 | BM68: 4.781799479 | BN68: -8.120686222 | BO68: 7.994786508 | BP68: 145.5450388 | BQ68: 9.633300771 | BR68: -8.387179105 | BS68: 12.77283277 | BT68: -4.851501292 | BU68: 0.2664928836 | BV68: 0.04692025004 | BW68: -0.09558407458 | BX68: 0.09413269285 | BY68: 1.431781364 | BZ68: -0.3020455803 | CA68: -4.796500566 | CB68: 4.715558177 | CC68: -9.200462117 | CD68: 0.04715558177 | CE68: -0.09200462117 | CF68: 0.09059602422 | CG68: 1.435360818 | CH68: -0.296114362 | CI68: -4.807441854 | CJ68: 4.726330075 | CK68: -9.020482725 | CL68: 0.0472688268 | CM68: -0.09021042014 | CN68: 0.08882344321 | CO68: 1.438743708 | CP68: -0.2700782852 | CQ68: -4.854721245 | CR68: 4.772875632 | CS68: -8.225372499 | CT68: 0.04775564759 | CU68: -0.0823249979 | CV68: 0.08105135727 | CW68: 1.453576383 | CX68: -0.5560363855 | CY68: -4.475424633 | CZ68: 7.497705672 | DA68: -11.63364767 | DB68: 0.04781799479 | DC68: -0.08120686222 | DD68: 0.07994786508 | DE68: 1.455450388 | DF68: -0.2663963837 | DG68: -4.860824009 | DH68: 4.778888067 | DI68: -8.11893757 | DJ68: 2.140447701 | DK68: -4.372306109 | DL68: 9.639712076 | DM68: -8.385333954 | DN68: 12.77645782 | DO68: 7.991891512 | DP68: 145.8247203
A69: 0.52 | B69: -0.2663963837 | C69: -4.860824009 | D69: 4.778888067 | E69: -8.11893757 | F69: 4.868118433 | G69: 3.086842646 | H69: 176.8630556 | I69: 7.991891512 | J69: 145.8247203 | K69: 7.991891512 | L69: 145.8247203 | M69: 9.639712076 | N69: -8.385333954 | O69: 12.53203292 | P69: -2.487172168 | Q69: -4.860824009 | R69: 0.2663963837 | S69: 13.14896924 | T69: -2.096073512 | U69: 13.31498841 | V69: 12.77645782 | W69: 9.42098288 | X69: 2.184063012 | Y69: -4.350683376 | Z69: 0.5225 | AA69: -0.2543992142 | AB69: -4.872976069 | AC69: 4.798867796 | AD69: -7.754375769 | AE69: 7.631976427 | AF69: 146.1892821 | AG69: 9.671843865 | AH69: 7.377577213 | AI69: 12.16442392 | AJ69: -4.872976069 | AK69: 0.2543992142 | AL69: 0.52375 | AM69: -0.2483887045 | AN69: -4.882440618 | AO69: 4.808407766 | AP69: -7.571639167 | AQ69: 7.451661136 | AR69: 146.4732185 | AS69: 9.690848384 | AT69: -7.820027871 | AU69: 12.45252498 | AV69: -4.882440618 | AW69: 0.2483887045 | AX69: 0.5292307692 | AY69: -0.2220349312 | AZ69: -4.923939025 | BA69: 4.849248602 | BB69: -6.768853258 | BC69: 6.661047936 | BD69: 147.7181707 | BE69: 9.773187626 | BF69: -6.990888189 | BG69: 12.01614389 | BH69: -4.923939025 | BI69: 0.2220349312 | BJ69: 0.53 | BK69: -0.2183007985 | BL69: -4.929058428 | BM69: 4.854372485 | BN69: -6.655223896 | BO69: 6.549023955 | BP69: 147.8717528 | BQ69: 9.783430912 | BR69: -6.873524694 | BS69: 11.95662419 | BT69: -4.929058428 | BU69: 0.2183007985 | BV69: 0.04778888067 | BW69: -0.0811893757 | BX69: 0.07991891512 | BY69: 1.458247203 | BZ69: -0.2544491636 | CA69: -4.881121353 | CB69: 4.798867796 | CC69: -7.754375769 | CD69: 0.04798867796 | CE69: -0.07754375769 | CF69: 0.07631976427 | CG69: 1.461892821 | CH69: -0.2484193605 | CI69: -4.890244695 | CJ69: 4.807845399 | CK69: -7.571069539 | CL69: 0.04808407766 | CM69: -0.07571639167 | CN69: 0.07451661136 | CO69: 1.464732185 | CP69: -0.2219580283 | CQ69: -4.929540264 | CR69: 4.846514029 | CS69: -6.763274707 | CT69: 0.04849248602 | CU69: -0.06768853258 | CV69: 0.06661047936 | CW69: 1.477181707 | CX69: -0.4803695225 | CY69: -4.607260031 | CZ69: 7.652911605 | DA69: -10.12813069 | DB69: 0.04854372485 | DC69: -0.06655223896 | DD69: 0.06549023955 | DE69: 1.478717528 | DF69: -0.218219768 | DG69: -4.934547704 | DH69: 4.851443968 | DI69: -6.654210866 | DJ69: 2.262503443 | DK69: -4.390724209 | DL69: 9.785991672 | DM69: -6.872430634 | DN69: 11.95809081 | DO69: 6.54659304 | DP69: 148.0364311
A70: 0.53 | B70: -0.218219768 | C70: -4.934547704 | D70: 4.851443968 | E70: -6.654210866 | F70: 4.939370498 | G70: 3.097398597 | H70: 177.4678671 | I70: 6.54659304 | J70: 148.0364311 | K70: 6.54659304 | L70: 148.0364311 | M70: 9.785991672 | N70: -6.872430634 | O70: 11.91766563 | P70: -0.9824366757 | Q70: -4.934547704 | R70: 0.218219768 | S70: 12.42007065 | T70: -0.6568553617 | U70: 12.43742795 | V70: 11.95809081 | W70: 8.23498821 | X70: 2.30629683 | Y70: -4.367880017 | Z70: 0.5325 | AA70: -0.2060502419 | AB70: -4.946884074 | AC70: 4.86781045 | AD70: -6.284119788 | AE70: 6.181507256 | AF70: 148.4065222 | AG70: 9.814694524 | AH70: 5.975457014 | AI70: 11.49061857 | AJ70: -4.946884074 | AK70: 0.2060502419 | AL70: 0.53375 | AM70: -0.1999558202 | AN70: -4.954507338 | AO70: 4.875537334 | AP70: -6.098611635 | AQ70: 5.998674606 | AR70: 148.6352201 | AS70: 9.830044672 | AT70: -6.298567455 | AU70: 11.6748332 | AV70: -4.954507338 | AW70: 0.1999558202 | AX70: 0.5392307692 | AY70: -0.1732341252 | AZ70: -4.987932421 | BA70: 4.908414685 | BB70: -5.283976294 | BC70: 5.197023756 | BD70: 149.6379726 | BE70: 9.896347106 | BF70: -5.457210419 | BG70: 11.30127566 | BH70: -4.987932421 | BI70: 0.1732341252 | BJ70: 0.54 | BK70: -0.1694553464 | BL70: -4.991908475 | BM70: 4.912412396 | BN70: -5.168870161 | BO70: 5.083660393 | BP70: 149.7572543 | BQ70: 9.904320871 | BR70: -5.338325508 | BS70: 11.25136841 | BT70: -4.991908475 | BU70: 0.1694553464 | BV70: 0.04851443968 | BW70: -0.06654210866 | BX70: 0.0654659304 | BY70: 1.480364311 | BZ70: -0.2060911581 | CA70: -4.951183231 | CB70: 4.86781045 | CC70: -6.284119788 | CD70: 0.0486781045 | CE70: -0.06284119788 | CF70: 0.06181507256 | CG70: 1.484065222 | CH70: -0.1999808224 | CI70: -4.958460114 | CJ70: 4.874966888 | CK70: -6.098033368 | CL70: 0.04875537334 | CM70: -0.06098611635 | CN70: 0.05998674606 | CO70: 1.486352201 | CP70: -0.1731734553 | CQ70: -4.989648949 | CR70: 4.905642854 | CS70: -5.279964206 | CT70: 0.04908414685 | CU70: -0.05283976294 | CV70: 0.05197023756 | CW70: 1.496379726 | CX70: -0.4032453938 | CY70: -4.725368399 | CZ70: 7.785240559 | DA70: -8.591361884 | DB70: 0.04912412396 | DC70: -0.05168870161 | DD70: 0.05083660393 | DE70: 1.497572543 | DF70: -0.1693900278 | DG70: -4.993545352 | DH70: 4.909475541 | DI70: -5.168596271 | DJ70: 2.378252752 | DK70: -4.394098543 | DL70: 9.903020893 | DM70: -5.337986299 | DN70: 11.25006313 | DO70: 5.081700835 | DP70: 149.8063606
A71: 0.54 | B71: -0.1693900278 | C71: -4.993545352 | D71: 4.909475541 | E71: -5.168596271 | F71: 4.996417533 | G71: 3.10768386 | H71: 178.0571692 | I71: 5.081700835 | J71: 149.8063606 | K71: 5.081700835 | L71: 149.8063606 | M71: 9.903020893 | N71: -5.337986299 | O71: 11.23835787 | P71: 0.5130622776 | Q71: -4.993545352 | R71: 0.1693900278 | S71: 11.6260479 | T71: 0.7698442034 | U71: 11.65150848 | V71: 11.25006313 | W71: 7.128628024 | X71: 2.422074094 | Y71: -4.370096709 | Z71: 0.5425 | AA71: -0.1570845784 | AB71: -5.006029215 | AC71: 4.922179793 | AD71: -4.79408037 | AE71: 4.712537351 | AF71: 150.1808765 | AG71: 9.928209008 | AH71: 4.555452773 | AI71: 10.92343737 | AJ71: -5.006029215 | AK71: 0.1570845784 | AL71: 0.54375 | AM71: -0.1509244903 | AN71: -5.011787158 | AO71: 4.928070465 | AP71: -4.606354274 | AQ71: 4.527734708 | AR71: 150.3536147 | AS71: 9.939857623 | AT71: -4.757278764 | AU71: 11.01964023 | AV71: -5.011787158 | AW71: 0.1509244903 | AX71: 0.5492307692 | AY71: -0.1239148733 | AZ71: -5.037033523 | BA71: 4.952885934 | BB71: -3.782300809 | BC71: 3.717446199 | BD71: 151.1110057 | BE71: 9.989919457 | BF71: -3.906215682 | BG71: 10.72646315 | BH71: -5.037033523 | BI71: 0.1239148733 | BJ71: 0.55 | BK71: -0.1201027614 | BL71: -5.03985357 | BM71: 4.955745508 | BN71: -3.666061573 | BO71: 3.603082842 | BP71: 151.1956071 | BQ71: 9.995599078 | BR71: -3.786164335 | BS71: 10.68864076 | BT71: -5.03985357 | BU71: 0.1201027614 | BV71: 0.04909475541 | BW71: -0.05168596271 | BX71: 0.05081700835 | BY71: 1.498063606 | BZ71: -0.157116339 | CA71: -5.006466843 | CB71: 4.922179793 | CC71: -4.79408037 | CD71: 0.04922179793 | CE71: -0.0479408037 | CF71: 0.04712537351 | CG71: 1.501808765 | CH71: -0.1509437639 | CI71: -5.011874262 | CJ71: 4.927493647 | CK71: -4.605769093 | CL71: 0.04928070465 | CM71: -0.04606354274 | CN71: 0.04527734708 | CO71: 1.503536147 | CP71: -0.123870618 | CQ71: -5.034857642 | CR71: 4.950085143 | CS71: -3.779868227 | CT71: 0.04952885934 | CU71: -0.03782300809 | CV71: 0.03717446199 | CW71: 1.511110057 | CX71: -0.3248945663 | CY71: -4.829386756 | CZ71: 7.894290587 | DA71: -7.027922918 | DB71: 0.04955745508 | DC71: -0.03666061573 | DD71: 0.03603082842 | DE71: 1.511956071 | DF71: -0.1200533502 | DG71: -5.03763061 | DH71: 4.952809107 | DI71: -3.666528129 | DJ71: 2.487056409 | DK71: -4.382543256 | DL71: 9.990439717 | DM71: -3.786581479 | DN71: 10.68396392 | DO71: 3.601600506 | DP71: 151.1289183
A72: 0.55 | B72: -0.1200533502 | C72: -5.03763061 | D72: 4.952809107 | E72: -3.666528129 | F72: 5.039060921 | G72: 3.117765851 | H72: 178.6348248 | I72: 3.601600506 | J72: 151.1289183 | K72: 3.601600506 | L72: 151.1289183 | M72: 9.990439717 | N72: -3.786581479 | O72: 10.49629263 | P72: 1.993721686 | Q72: -5.03763061 | R72: 0.1200533502 | S72: 10.76947908 | T72: 2.178620168 | U72: 10.98763239 | V72: 10.68396392 | W72: 6.162284201 | X72: 2.530756759 | Y72: -4.357453981 | Z72: 0.5525 | AA72: -0.1076488174 | AB72: -5.050224686 | AC72: 4.961813109 | AD72: -3.288705833 | AE72: 3.229464523 | AF72: 151.5067406 | AG72: 10.01203779 | AH72: 3.121815705 | AI72: 10.48745127 | AJ72: -5.050224686 | AK72: 0.1076488174 | AL72: 0.55375 | AM72: -0.101441505 | AN72: -5.054098839 | AO72: 4.965849939 | AP72: -3.099322408 | AQ72: 3.04324515 | AR72: 151.6229652 | AS72: 10.01994878 | AT72: -3.200763913 | AU72: 10.51875768 | AV72: -5.054098839 | AW72: 0.101441505 | AX72: 0.5592307692 | AY72: -0.07422482745 | AZ72: -5.07108551 | BA72: 4.982529264 | BB72: -2.268311926 | BC72: 2.226744823 | BD72: 152.1325653 | BE72: 10.05361477 | BF72: -2.342536753 | BG72: 10.3229186 | BH72: -5.07108551 | BI72: 0.07422482745 | BJ72: 0.56 | BK72: -0.07039079503 | BL72: -5.072740346 | BM72: 4.984242144 | BN72: -2.151286875 | BO72: 2.111723851 | BP72: 152.1822104 | BQ72: 10.05698249 | BR72: -2.22167767 | BS72: 10.2994538 | BT72: -5.072740346 | BU72: 0.07039079503 | BV72: 0.04952809107 | BW72: -0.03666528129 | BX72: 0.03601600506 | BY72: 1.511289183 | BZ72: -0.1076713274 | CA72: -5.04679693 | CB72: 4.961813109 | CC72: -3.288705833 | CD72: 0.04961813109 | CE72: -0.03288705833 | CF72: 0.03229464523 | CG72: 1.515067406 | CH72: -0.1014549923 | CI72: -5.050317465 | CJ72: 4.965268477 | CK72: -3.09873206 | CL72: 0.04965849939 | CM72: -0.03099322408 | CN72: 0.0304324515 | CO72: 1.516229652 | CP72: -0.07419711911 | CQ72: -5.065021173 | CR72: 4.979707898 | CS72: -2.267467174 | CT72: 0.04982529264 | CU72: -0.02268311926 | CV72: 0.02226744823 | CW72: 1.521325653 | CX72: -0.2455513378 | CY72: -4.918994129 | CZ72: 7.979729346 | DA72: -5.442478139 | DB72: 0.04984242144 | DC72: -0.02151286875 | DD72: 0.02111723851 | DE72: 1.521822104 | DF72: -0.07035743911 | DG72: -5.066661663 | DH72: 4.981314989 | DI72: -2.152492968 | DJ72: 2.588297902 | DK72: -4.356228248 | DL72: 10.04797665 | DM72: -2.222850407 | DN72: 10.29091341 | DO72: 2.110723173 | DP72: 151.9998499
A73: 0.56 | B73: -0.07035743911 | C73: -5.066661663 | D73: 4.981314989 | E73: -2.152492968 | F73: 5.067150144 | G73: 3.127707196 | H73: 179.2044219 | I73: 2.110723173 | J73: 151.9998499 | K73: 2.110723173 | L73: 151.9998499 | M73: 10.04797665 | N73: -2.222850407 | O73: 9.69394703 | P73: 3.454025146 | Q73: -5.066661663 | R73: 0.07035743911 | S73: 9.853231957 | T73: 3.564171037 | U73: 10.47804825 | V73: 10.29091341 | W73: 5.426483668 | X73: 2.631730045 | Y73: -4.33012789 | Z73: 0.5625 | AA73: -0.05789095962 | AB73: -5.079328317 | AC73: 4.986591797 | AD73: -1.772493343 | AE73: 1.736728789 | AF73: 152.3798495 | AG73: 10.06592011 | AH73: 1.678837829 | AI73: 10.20496174 | AJ73: -5.079328317 | AK73: 0.05789095962 | AL73: 0.56375 | AM73: -0.05165500623 | AN73: -5.08130584 | AO73: 4.988762708 | AP73: -1.582018531 | AQ73: 1.549650187 | AR73: 152.4391752 | AS73: 10.07006855 | AT73: -1.633673537 | AU73: 10.20172386 | AV73: -5.08130584 | AW73: 0.05165500623 | AX73: 0.5692307692 | AY73: -0.02431274908 | AZ73: -5.089976519 | BA73: 4.997255983 | BB73: -0.74653459 | BC73: 0.7293824725 | BD73: 152.6992956 | BE73: 10.0872325 | BF73: -0.7708473391 | BG73: 10.11664298 | BH73: -5.089976519 | BI73: 0.02431274908 | BJ73: 0.57 | BK73: -0.02046827443 | BL73: -5.090460422 | BM73: 4.997817046 | BN73: -0.6290735935 | BO73: 0.614048233 | BP73: 152.7138127 | BQ73: 10.08827747 | BR73: -0.6495418679 | BS73: 10.10916648 | BT73: -5.090460422 | BU73: 0.02046827443 | BV73: 0.04981314989 | BW73: -0.02152492968 | BX73: 0.02110723173 | BY73: 1.519998499 | BZ73: -0.05790415164 | CA73: -5.072042896 | CB73: 4.986591797 | CC73: -1.772493343 | CD73: 0.04986591797 | CE73: -0.01772493343 | CF73: 0.01736728789 | CG73: 1.523798495 | CH73: -0.05166266688 | CI73: -5.073664763 | CJ73: 4.988178342 | CK73: -1.581424782 | CL73: 0.04988762708 | CM73: -0.01582018531 | CN73: 0.01549650187 | CO73: 1.524391752 | CP73: -0.02430167062 | CQ73: -5.080039322 | CR73: 4.994422488 | CS73: -0.7472812435 | CT73: 0.04997255983 | CU73: -0.0074653459 | CV73: 0.007293824725 | CW73: 1.526992956 | CX73: -0.1654530359 | CY73: -4.993912541 | CZ73: 8.04129511 | DA73: -3.839760655 | DB73: 0.04997817046 | DC73: -0.006290735935 | DD73: 0.00614048233 | DE73: 1.527138127 | DF73: -0.02045107359 | DG73: -5.080541677 | DH73: 4.994907899 | DI73: -0.6310160984 | DJ73: 2.68138634 | DK73: -4.315378231 | DL73: 10.07544958 | DM73: -0.651467172 | DN73: 10.09648917 | DO73: 0.6135322076 | DP73: 152.4162503
A74: 0.57 | B74: -0.02045107359 | C74: -5.080541677 | D74: 4.994907899 | E74: -0.6310160984 | F74: 5.080582839 | G74: 3.137567303 | H74: 179.7693644 | I74: 0.6135322076 | J74: 152.4162503 | K74: 0.6135322076 | L74: 152.4162503 | M74: 10.07544958 | N74: -0.651467172 | O74: 8.834083388 | P74: 4.888564649 | Q74: -5.080541677 | R74: 0.02045107359 | S74: 8.880453482 | T74: 4.921319902 | U74: 10.15292291 | V74: 10.09648917 | W74: 5.034608847 | X74: 2.724405335 | Y74: -4.288349047 | Z74: 0.5725 | AA74: -0.007959969262 | AB74: -5.093243031 | AC74: 4.99644173 | AD74: -0.2499754726 | AE74: 0.2387990779 | AF74: 152.7972909 | AG74: 10.08968476 | AH74: 0.2308391086 | AI74: 10.09232507 | AJ74: -5.093243031 | AK74: 0.007959969262 | AL74: 0.57375 | AM74: -0.001714043977 | AN74: -5.093316755 | AO74: 4.996740229 | AP74: -0.05897885896 | AQ74: 0.0514213193 | AR74: 152.7995026 | AS74: 10.09005698 | AT74: -0.06069290294 | AU74: 10.09023952 | AV74: -5.093316755 | AW74: 0.001714043977 | AX74: 0.5792307692 | AY74: 0.02567193612 | AZ74: -5.093640004 | BA74: 4.997022057 | BB74: 0.7784799536 | BC74: -0.7701580837 | BD74: 152.8092001 | BE74: 10.09066206 | BF74: 0.8041518897 | BG74: 10.12265386 | BH74: -5.093640004 | BI74: -0.02567193612 | BJ74: 0.58 | BK74: 0.02951534353 | BL74: -5.092950754 | BM74: 4.996429628 | BN74: 0.8960254922 | BO74: -0.8854603059 | BP74: 152.7885226 | BQ74: 10.08938038 | BR74: 0.9255408357 | BS74: 10.1317433 | BT74: -5.092950754 | BU74: -0.02951534353 | BV74: 0.04994907899 | BW74: -0.006310160984 | BX74: 0.006135322076 | BY74: 1.524162503 | BZ74: -0.007963803839 | CA74: -5.082119217 | CB74: 4.99644173 | CC74: -0.2499754726 | CD74: 0.0499644173 | CE74: -0.002499754726 | CF74: 0.002387990779 | CG74: 1.527972909 | CH74: -0.001715855066 | CI74: -5.081836311 | CJ74: 4.996154708 | CK74: -0.05838348298 | CL74: 0.04996740229 | CM74: -0.0005897885896 | CN74: 0.000514213193 | CO74: 1.527995026 | CP74: 0.02566635161 | CQ74: -5.07985715 | CR74: 4.994184917 | CS74: 0.776143083 | CT74: 0.04997022057 | CU74: 0.007784799536 | CV74: -0.007701580837 | CW74: 1.528092001 | CX74: -0.08483930813 | CY74: -5.053907872 | CZ74: 8.078797567 | DA74: -2.224558206 | DB74: 0.04996429628 | DC74: 0.008960254922 | DD74: -0.008854603059 | DE74: 1.527885226 | DF74: 0.02951633787 | DG74: -5.079219117 | DH74: 4.993547198 | DI74: 0.8933519059 | DJ74: 2.765759252 | DK74: -4.260271566 | DL74: 10.07276632 | DM74: 0.9228682438 | DN74: 10.11495462 | DO74: -0.885490136 | DP74: 152.3765735
A75: 0.58 | B75: 0.02951633787 | C75: -5.079219117 | D75: 4.993547198 | E75: 0.8933519059 | F75: 5.079304879 | G75: -3.135781523 | H75: -179.6670467 | I75: -0.885490136 | J75: 152.3765735 | K75: -0.885490136 | L75: 152.3765735 | M75: 10.07276632 | N75: 0.9228682438 | O75: 7.919738916 | P75: 6.292061868 | Q75: -5.079219117 | R75: -0.02951633787 | S75: 7.85455813 | T75: 6.245034944 | U75: 10.03466715 | V75: 10.11495462 | W75: 5.072828723 | X75: 2.808222971 | Y75: -4.232401423 | Z75: 0.5825 | AA75: 0.04199467155 | AB75: -5.091917165 | AC75: 4.991333473 | AD75: 1.27429334 | AE75: -1.259840146 | AF75: 152.757515 | AG75: 10.08325064 | AH75: -1.217845475 | AI75: 10.15652948 | AJ75: -5.091917165 | AK75: -0.04199467155 | AL75: 0.58375 | AM75: 0.04823186989 | AN75: -5.090085615 | AO75: 4.989758673 | AP75: 1.465240233 | AQ75: -1.446956097 | AR75: 152.7025684 | AS75: 10.07984429 | AT75: 1.513472103 | AU75: 10.19283369 | AV75: -5.090085615 | AW75: -0.04823186989 | AX75: 0.5892307692 | AY75: 0.07557958569 | AZ75: -5.082054971 | BA75: 4.981828241 | BB75: 2.302167772 | BC75: -2.267387571 | BD75: 152.4616491 | BE75: 10.06388321 | BF75: 2.377747358 | BG75: 10.34095875 | BH75: -5.082054971 | BI75: -0.07557958569 | BJ75: 0.59 | BK75: 0.07941041961 | BL75: -5.080193859 | BM75: 4.980084096 | BN75: 2.419445964 | BO75: -2.382312588 | BP75: 152.4058158 | BQ75: 10.06027796 | BR75: 2.498856383 | BS75: 10.36597684 | BT75: -5.080193859 | BU75: -0.07941041961 | BV75: 0.04993547198 | BW75: 0.008933519059 | BX75: -0.00885490136 | BY75: 1.523765735 | BZ75: 0.04200020586 | CA75: -5.076985738 | CB75: 4.991333473 | CC75: 1.27429334 | CD75: 0.04991333473 | CE75: 0.0127429334 | CF75: -0.01259840146 | CG75: 1.52757515 | CH75: 0.04823591376 | CI75: -5.07479765 | CJ75: 4.989173751 | CK75: 1.465835454 | CL75: 0.04989758673 | CM75: 0.01465240233 | CN75: -0.01446956097 | CO75: 1.527025684 | CP75: 0.07555735497 | CQ75: -5.064465196 | CR75: 4.978995949 | CS75: 2.298246634 | CT75: 0.04981828241 | CU75: 0.02302167772 | CV75: -0.02267387571 | CW75: 1.524616491 | CX75: -0.003951405492 | CY75: -5.098790588 | CZ75: 8.092118413 | DA75: -0.6016988683 | DB75: 0.04980084096 | DC75: 0.02419445964 | DD75: -0.02382312588 | DE75: 1.524058158 | DF75: 0.07939520452 | DG75: -5.062687934 | DH75: 4.977237014 | DI75: 2.41604882 | DJ75: 2.840885295 | DK75: -4.191238892 | DL75: 10.03992495 | DM75: 2.495444024 | DN75: 10.34540158 | DO75: -2.381856136 | DP75: 151.880638
A76: 0.59 | B76: 0.07939520452 | C76: -5.062687934 | D76: 4.977237014 | E76: 2.41604882 | F76: 5.06331045 | G76: -3.125911518 | H76: -179.1015371 | I76: -2.381856136 | J76: 151.880638 | K76: -2.381856136 | L76: 151.880638 | M76: 10.03992495 | N76: 2.495444024 | O76: 6.954214264 | P76: 7.659388866 | Q76: -5.062687934 | R76: -0.07939520452 | S76: 6.779215013 | T76: 7.530449269 | U76: 10.1323947 | V76: 10.34540158 | W76: 5.532646762 | X76: 2.882654943 | Y76: -4.162620953 | Z76: 0.5925 | AA76: 0.09182341046 | AB76: -5.075344654 | AC76: 4.971282373 | AD76: 2.795750415 | AE76: -2.754702314 | AF76: 152.2603396 | AG76: 10.04662703 | AH76: -2.662878903 | AI76: 10.39353831 | AJ76: -5.075344654 | AK76: -0.09182341046 | AL76: 0.59375 | AM76: 0.0980332092 | AN76: -5.071612059 | AO76: 4.967838996 | AP76: 2.986075839 | AQ76: -2.940996276 | AR76: 152.1483618 | AS76: 10.03945105 | AT76: 3.084109049 | AU76: 10.50249047 | AV76: -5.071612059 | AW76: -0.0980332092 | AX76: 0.5992307692 | AY76: 0.1252607883 | AZ76: -5.055246066 | BA76: 4.951720074 | BB76: 3.819965899 | BC76: -3.757823649 | BD76: 151.657382 | BE76: 10.00696614 | BF76: 3.945226687 | BG76: 10.75658798 | BH76: -5.055246066 | BI76: -0.1252607883 | BJ76: 0.6 | BK76: 0.1290675802 | BL76: -5.052217893 | BM76: 4.94882944 | BN76: 3.936625424 | BO76: -3.872027406 | BP76: 151.5665368 | BQ76: 10.00104733 | BR76: 4.065693004 | BS76: 10.79586992 | BT76: -5.052217893 | BU76: -0.1290675802 | BV76: 0.04977237014 | BW76: 0.0241604882 | BX76: -0.02381856136 | BY76: 1.51880638 | BZ76: 0.09183829706 | CA76: -5.056647812 | CB76: 4.971282373 | CC76: 2.795750415 | CD76: 0.04971282373 | CE76: 0.02795750415 | CF76: -0.02754702314 | CG76: 1.522603396 | CH76: 0.0980430959 | CI76: -5.05255984 | CJ76: 4.967256423 | CK76: 2.986669123 | CL76: 0.04967838996 | CM76: 0.02986075839 | CN76: -0.02940996276 | CO76: 1.521483618 | CP76: 0.125221978 | CQ76: -5.033899529 | CR76: 4.948901109 | CS76: 3.814471191 | CT76: 0.04951720074 | CU76: 0.03819965899 | CV76: -0.03757823649 | CW76: 1.51657382 | CX76: 0.07696854002 | CY76: -5.128416341 | CZ76: 8.081211718 | DA76: 1.023963381 | DB76: 0.0494882944 | DC76: 0.03936625424 | DD76: -0.03872027406 | DE76: 1.515665368 | DF76: 0.1290362013 | DG76: -5.030987609 | DH76: 4.946026228 | DI76: 3.932514417 | DJ76: 2.906266841 | DK76: -4.108661547 | DL76: 9.977013837 | DM76: 4.061550618 | DN76: 10.77204709 | DO76: -3.871086038 | DP76: 150.9296283
A77: 0.6 | B77: 0.1290362013 | C77: -5.030987609 | D77: 4.946026228 | E77: 3.932514417 | F77: 5.032642115 | G77: -3.115949991 | H77: -178.5307837 | I77: -3.871086038 | J77: 150.9296283 | K77: -3.871086038 | L77: 150.9296283 | M77: 9.977013837 | N77: 4.061550618 | O77: 5.941060863 | P77: 8.985588147 | Q77: -5.030987609 | R77: -0.1290362013 | S77: 5.658333884 | T77: 8.772880016 | U77: 10.43935659 | V77: 10.77204709 | W77: 6.318848399 | X77: 2.94720746 | Y77: -4.079393932 | Z77: 0.6025 | AA77: 0.1413770726 | AB77: -5.043565078 | AC77: 4.936348513 | AD77: 4.309838488 | AE77: -4.241312177 | AF77: 151.3069523 | AG77: 9.979913591 | AH77: -4.099935104 | AI77: 10.78926055 | AJ77: -5.043565078 | AK77: -0.1413770726 | AL77: 0.60375 | AM77: 0.1475408812 | AN77: -5.037941363 | AO77: 4.931046873 | AP77: 4.498972178 | AQ77: -4.426226435 | AR77: 151.1382409 | AS77: 9.968988235 | AT77: 4.646513059 | AU77: 10.9986731 | AV77: -5.037941363 | AW77: -0.1475408812 | AX77: 0.6092307692 | AY77: 0.1745668111 | AZ77: -5.013283534 | BA77: 4.906787747 | BB77: 5.327325998 | BC77: -5.237004334 | BD77: 150.398506 | BE77: 9.920071281 | BF77: 5.50189281 | BG77: 11.34366073 | BH77: -5.013283534 | BI77: -0.1745668111 | BJ77: 0.61 | BK77: 0.1783381644 | BL77: -5.009096598 | BM77: 4.902759282 | BN77: 5.443017157 | BO77: -5.350144933 | BP77: 150.2728979 | BQ77: 9.91185588 | BR77: 5.621355321 | BS77: 11.39493408 | BT77: -5.009096598 | BU77: -0.1783381644 | BV77: 0.04946026228 | BW77: 0.03932514417 | BX77: -0.03871086038 | BY77: 1.509296283 | BZ77: 0.1414012668 | CA77: -5.021156323 | CB77: 4.936348513 | CC77: 4.309838488 | CD77: 0.04936348513 | CE77: 0.04309838488 | CF77: -0.04241312177 | CG77: 1.513069523 | CH77: 0.1475565811 | CI77: -5.015179456 | CJ77: 4.930468394 | CK77: 4.499561747 | CL77: 0.04931046873 | CM77: 0.04498972178 | CN77: -0.04426226435 | CO77: 1.511382409 | CP77: 0.1745115375 | CQ77: -4.988241675 | CR77: 4.903990549 | CS77: 5.320273136 | CT77: 0.04906787747 | CU77: 0.05327325998 | CV77: -0.05237004334 | CW77: 1.50398506 | CX77: 0.1576782399 | CY77: -5.142686428 | CZ77: 8.046104087 | DA77: 2.647563178 | DB77: 0.04902759282 | DC77: 0.05443017157 | DD77: -0.05350144933 | DE77: 1.502728979 | DF77: 0.1782907157 | DG77: -4.984203069 | DH77: 4.900008332 | DI77: 5.438204127 | DJ77: 2.961442426 | DK77: -4.012969794 | DL77: 9.884211401 | DM77: 5.616494842 | DN77: 11.36849371 | DO77: -5.348721471 | DP77: 149.5260921
A78: 0.61 | B78: 0.1782907157 | C78: -4.984203069 | D78: 4.900008332 | E78: 5.438204127 | F78: 4.987390882 | G78: -3.105836741 | H78: -177.9513371 | I78: -5.348721471 | J78: 149.5260921 | K78: -5.348721471 | L78: 149.5260921 | M78: 9.884211401 | N78: 5.616494842 | O78: 4.884067148 | P78: 10.26589195 | Q78: -4.984203069 | R78: -0.1782907157 | S78: 4.496050048 | T78: 9.967846651 | U78: 10.93491806 | V78: 11.36849371 | W78: 7.320119246 | X78: 3.001423384 | Y78: -3.983155216 | Z78: 0.6125 | AA78: 0.190507307 | AB78: -4.996663576 | AC78: 4.886636528 | AD78: 5.812019357 | AE78: -5.71521921 | AF78: 149.8999073 | AG78: 9.883300105 | AH78: -5.524711903 | AI78: 11.32263497 | AJ78: -4.996663576 | AK78: -0.190507307 | AL78: 0.61375 | AM78: 0.1966066726 | AN78: -4.989164334 | AO78: 4.879492504 | AP78: 5.999394241 | AQ78: -5.898200179 | AR78: 149.67493 | AS78: 9.868656838 | AT78: 6.196000914 | AU78: 11.65250253 | AV78: -4.989164334 | AW78: -0.1966066726 | AX78: 0.6192307692 | AY78: 0.223350045 | AZ78: -4.956283038 | BA78: 4.84716583 | BB78: 6.819727992 | BC78: -6.700501351 | BD78: 148.6884911 | BE78: 9.803448869 | BF78: 7.043078037 | BG78: 12.07114568 | BH78: -4.956283038 | BI78: -0.223350045 | BJ78: 0.62 | BK78: 0.2270746693 | BL78: -4.950949112 | BM78: 4.842011599 | BN78: 6.934103754 | BO78: -6.81224008 | BP78: 148.5284734 | BQ78: 9.792960711 | BR78: 7.161178424 | BS78: 12.13196422 | BT78: -4.950949112 | BU78: -0.2270746693 | BV78: 0.04900008332 | BW78: 0.05438204127 | BX78: -0.05348721471 | BY78: 1.495260921 | BZ78: 0.1905407365 | CA78: -4.970607558 | CB78: 4.886636528 | CC78: 5.812019357 | CD78: 0.04886636528 | CE78: 0.05812019357 | CF78: -0.0571521921 | CG78: 1.498999073 | CH78: 0.1966281387 | CI78: -4.962758448 | CJ78: 4.878919852 | CK78: 5.999978327 | CL78: 0.04879492504 | CM78: 0.05999394241 | CN78: -0.05898200179 | CO78: 1.4967493 | CP78: 0.2232784736 | CQ78: -4.927618402 | CR78: 4.844398773 | CS78: 6.811137066 | CT78: 0.0484716583 | CU78: 0.06819727992 | CV78: -0.06700501351 | CW78: 1.486884911 | CX78: 0.2379359748 | CY78: -5.14154812 | CZ78: 7.986894593 | DA78: 4.264238329 | DB78: 0.04842011599 | DC78: 0.06934103754 | DD78: -0.0681224008 | DE78: 1.485284734 | DF78: 0.2270112929 | DG78: -4.92246446 | DH78: 4.839321146 | DI78: 6.928602649 | DJ78: 3.005989069 | DK78: -3.904640854 | DL78: 9.761785606 | DM78: 7.155613942 | DN78: 12.103523 | DO78: -6.810338787 | DP78: 147.6739338
A79: 0.62 | B79: 0.2270112929 | C79: -4.92246446 | D79: 4.839321146 | E79: 6.928602649 | F79: 4.927696265 | G79: -3.0955079 | H79: -177.3595381 | I79: -6.810338787 | J79: 147.6739338 | K79: -6.810338787 | L79: 147.6739338 | M79: 9.761785606 | N79: 7.155613942 | O79: 3.787243708 | P79: 11.4957407 | Q79: -4.92246446 | R79: -0.2270112929 | S79: 3.296708268 | T79: 11.11108837 | U79: 11.58984772 | V79: 12.103523 | W79: 8.451305451 | X79: 3.044884528 | Y79: -3.874386234 | Z79: 0.6225 | AA79: 0.2390670311 | AB79: -4.934770621 | AC79: 4.822295299 | AD79: 7.297787483 | AE79: -7.172010934 | AF79: 148.0431186 | AG79: 9.75706592 | AH79: -6.932943903 | AI79: 11.96937954 | AJ79: -4.934770621 | AK79: -0.2390670311 | AL79: 0.62375 | AM79: 0.245083694 | AN79: -4.925417069 | AO79: 4.813330286 | AP79: 7.482841381 | AQ79: -7.35251082 | AR79: 147.7625121 | AS79: 9.738747355 | AT79: 7.727925075 | AU79: 12.43237813 | AV79: -4.925417069 | AW79: -0.245083694 | AX79: 0.6292307692 | AY79: 0.2714644465 | AZ79: -4.884405342 | BA79: 4.773032871 | BB79: 8.292693611 | BC79: -8.143933395 | BD79: 146.5321603 | BE79: 9.657438213 | BF79: 8.564158058 | BG79: 12.9077851 | BH79: -4.884405342 | BI79: -0.2714644465 | BJ79: 0.63 | BK79: 0.2751311914 | BL79: -4.877939642 | BM79: 4.766768306 | BN79: 8.405410657 | BO79: -8.253935741 | BP79: 146.3381893 | BQ79: 9.644707948 | BR79: 8.680541849 | BS79: 12.97583131 | BT79: -4.877939642 | BU79: -0.2751311914 | BV79: 0.04839321146 | BW79: 0.06928602649 | BX79: -0.06810338787 | BY79: 1.476739338 | BZ79: 0.2391095957 | CA79: -4.905142953 | CB79: 4.822295299 | CC79: 7.297787483 | CD79: 0.04822295299 | CE79: 0.07297787483 | CF79: -0.07172010934 | CG79: 1.480431186 | CH79: 0.245110862 | CI79: -4.895443867 | CJ79: 4.812765173 | CK79: 7.483418233 | CL79: 0.04813330286 | CM79: 0.07482841381 | CN79: -0.0735251082 | CO79: 1.477625121 | CP79: 0.2713767916 | CQ79: -4.852201368 | CR79: 4.770304238 | CS79: 8.282589331 | CT79: 0.04773032871 | CU79: 0.08292693611 | CV79: -0.08143933395 | CW79: 1.465321603 | CX79: 0.3175013179 | CY79: -5.124994845 | CZ79: 7.903754504 | DA79: 5.869144372 | DB79: 0.04766768306 | DC79: 0.08405410657 | DD79: -0.08253935741 | DE79: 1.463381893 | DF79: 0.275052077 | DG79: -4.845946787 | DH79: 4.764146406 | DI79: 8.399237494 | DJ79: 3.039524429 | DK79: -3.784196765 | DL79: 9.610093194 | DM79: 8.674289571 | DN79: 12.94593337 | DO79: -8.25156231 | DP79: 145.3784036
A80: 0.63 | B80: 0.275052077 | C80: -4.845946787 | D80: 4.764146406 | E80: 8.399237494 | F80: 4.853746379 | G80: -3.084894285 | H80: -176.7514228 | I80: -8.25156231 | J80: 145.3784036 | K80: -8.25156231 | L80: 145.3784036 | M80: 9.610093194 | N80: 8.674289571 | O80: 2.654807428 | P80: 12.67080062 | Q80: -4.845946787 | R80: -0.275052077 | S80: 2.064845709 | T80: 12.19858054 | U80: 12.3721039 | V80: 12.94593337 | W80: 9.656307859 | X80: 3.077213791 | Y80: -3.753612819 | Z80: 0.6325 | AA80: 0.2869108708 | AB80: -4.858061654 | AC80: 4.7435175 | AD80: 8.762683503 | AE80: -8.607326123 | AF80: 145.7418496 | AG80: 9.601579155 | AH80: -8.320415252 | AI80: 12.70510261 | AJ80: -4.858061654 | AK80: -0.2869108708 | AL80: 0.63375 | AM80: 0.2928268187 | AN80: -4.846880578 | AO80: 4.732758343 | AP80: 8.944860815 | AQ80: -8.78480456 | AR80: 145.4064173 | AS80: 9.579638921 | AT80: 9.237687634 | AU80: 13.30805601 | AV80: -4.846880578 | AW80: -0.2928268187 | AX80: 0.6392307692 | AY80: 0.318765975 | AZ80: -4.79785586 | BA80: 4.684610856 | BB80: 9.741799833 | BC80: -9.56297925 | BD80: 143.9356758 | BE80: 9.482466717 | BF80: 10.06056581 | BG80: 13.82505549 | BH80: -4.79785586 | BI80: -0.318765975 | BJ80: 0.64 | BK80: 0.3223638632 | BL80: -4.790276999 | BM80: 4.677254718 | BN80: 9.852519584 | BO80: -9.670915897 | BP80: 143.70831 | BQ80: 9.467531717 | BR80: 10.17488345 | BS80: 13.89828802 | BT80: -4.790276999 | BU80: -0.3223638632 | BV80: 0.04764146406 | BW80: 0.08399237494 | BX80: -0.0825156231 | BY80: 1.453784036 | BZ80: 0.286962443 | CA80: -4.824948694 | CB80: 4.7435175 | CC80: 8.762683503 | CD80: 0.047435175 | CE80: 0.08762683503 | CF80: -0.08607326123 | CG80: 1.457418496 | CH80: 0.2928596072 | CI80: -4.813427455 | CJ80: 4.732202462 | CK80: 8.9454287 | CL80: 0.04732758343 | CM80: 0.08944860815 | CN80: -0.0878480456 | CO80: 1.454064173 | CP80: 0.318662499 | CQ80: -4.762206641 | CR80: 4.681928817 | CS80: 9.730211456 | CT80: 0.04684610856 | CU80: 0.09741799833 | CV80: -0.0956297925 | CW80: 1.439356758 | CX80: 0.3961358558 | CY80: -5.093066243 | CZ80: 7.796926784 | DA80: 7.457469091 | DB80: 0.04677254718 | DC80: 0.09852519584 | DD80: -0.09670915897 | DE80: 1.4370831 | DF80: 0.3222692479 | DG80: -4.754869423 | DH80: 4.674709219 | DI80: 9.845692404 | DJ80: 3.061708813 | DK80: -3.652202054 | DL80: 9.429578643 | DM80: 10.16796165 | DN80: 13.86738611 | DO80: -9.668077436 | DP80: 142.6460827
A81: 0.64 | B81: 0.3222692479 | C81: -4.754869423 | D81: 4.674709219 | E81: 9.845692404 | F81: 4.765778079 | G81: -3.073919473 | H81: -176.1226124 | I81: -9.668077436 | J81: 142.6460827 | K81: -9.668077436 | L81: 142.6460827 | M81: 9.429578643 | N81: 10.16796165 | O81: =$M81*COS(omega*$A81)+$N81*SIN(omega*$A81) -> 1.491164681 | P81: 13.78698029 | Q81: -4.754869423 | R81: -0.3222692479 | S81: 0.8051740023 | T81: 13.22655013 | U81: 13.25103519 | V81: 13.86738611 | W81: 10.89910846 | X81: 3.09807714 | Y81: -3.621402868 | Z81: 0.6425 | AA81: 0.3338955954 | AB81: =C81+C81*dt/4 -> -4.766756597 | AC81: 4.650539026 | AD81: 10.20230761 | AE81: -10.01686786 | AF81: =-mew*g*AH81/AI81/mass-statherifoucault*AB81/mass -> 143.0026979 | AG81: 9.417295623 | AH81: -9.682972267 | AI81: 13.50723542 | AJ81: -4.766756597 | AK81: -0.3338955954 | AL81: 0.64375 | AM81: 0.3396931178 | AN81: -4.753780271 | AO81: 4.638017941 | AP81: 10.38106098 | AQ81: =-mew*g*S81/AU81-statherifoucault*AM81/mass -> -10.19079354 | AR81: =-mew*g*AT81/AU81-statherifoucault*AN81/mass -> 142.6134081 | AS81: 9.391798212 | AT81: 10.7207541 | AU81: 14.25273455 | AV81: -4.753780271 | AW81: -0.3396931178 | AX81: 0.6492307692 | AY81: =AM81+AO81*(12/13-3/8)*dt -> 0.3651130239 | AZ81: =AN81+AP81*(12/13-3/8)*dt -> -4.696884071 | BA81: 4.582164553 | BB81: 11.16269216 | BC81: =-mew*g*BE81/BG81-statherifoucault*AY81/mass -> -10.95339072 | BD81: =-mew*g*BF81/BG81-statherifoucault*AZ81/mass -> 140.9065221 | BE81: 9.279048624 | BF81: 11.52780519 | BG81: 14.79834571 | BH81: -4.696884071 | BI81: -0.3651130239 | BJ81: 0.65 | BK81: 0.3686312845 | BL81: -4.688214008 | BM81: 4.573738868 | BN81: 11.27108179 | BO81: -11.05893854 | BP81: 140.6464202 | BQ81: 9.261952876 | BR81: 11.63971308 | BS81: 14.87503585 | BT81: -4.688214008 | BU81: -0.3686312845 | BV81: 0.04674709219 | BW81: 0.09845692404 | BX81: -0.09668077436 | BY81: 1.426460827 | BZ81: 0.3339560209 | CA81: -4.730255192 | CB81: 4.650539026 | CC81: 10.20230761 | CD81: 0.04650539026 | CE81: 0.1020230761 | CF81: -0.1001686786 | CG81: 1.430026979 | CH81: 0.3397314288 | CI81: -4.716945097 | CJ81: 4.637472956 | CK81: 10.38161819 | CL81: 0.04638017941 | CM81: 0.1038106098 | CN81: -0.1019079354 | CO81: 1.426134081 | CP81: 0.3649940368 | CQ81: -4.657894076 | CR81: 4.579537136 | CS81: 11.14965341 | CT81: 0.04582164553 | CU81: 0.1116269216 | CV81: -0.1095339072 | CW81: 1.409065221 | CX81: 0.4736039023 | CY81: -5.045848071 | CZ81: 7.666725386 | DA81: 9.024446944 | DB81: 0.04573738868 | DC81: 0.1127108179 | DD81: -0.1105893854 | DE81: 1.406464202 | DF81: 0.3685214514 | DG81: -4.649495477 | DH81: 4.571277391 | DI81: 11.26362061 | DJ81: 3.072246996 | DK81: -3.509261267 | DL81: 9.220772867 | DM81: 11.63214206 | DN81: 14.84349626 | DO81: =-DL81/DN81*mew*g/mass-statherifoucault*DF81 -> -11.05564354 | DP81: =-DM81/DN81*mew*g/mass-statherifoucault*DG81 -> 139.4848643
A82: =A81+dt -> 0.65 | B82: 0.3685214514 | C82: -4.649495477 | D82: 4.571277391 | E82: 11.26362061 | F82: 4.664077213 | G82: -3.062497484 | H82: -175.4681806 | I82: =-mew*mass*g*DL81/DN81-statherifoucault*B82 -> -11.05564354 | J82: =-mew*mass*g*DM81/DN81-statherifoucault*C82 -> 139.4848643 | K82: -11.05564354 | L82: 139.4848643 | M82: 9.220772867 | N82: 11.63214206 | O82: 0.3008936455 | P82: =-$M82*SIN(omega*$A82)+$N82*COS(omega*$A82) -> 14.84044623 | Q82: -4.649495477 | R82: -0.3685214514 | S82: -0.4774395004 | T82: 14.19149002 | U82: 14.19951892 | V82: 14.84349626 | W82: 12.15589265 | X82: 3.107185413 | Y82: -3.478363848 | Z82: 0.6525 | AA82: 0.3798805472 | AB82: -4.661119216 | AC82: =D82+K82*dt/4 -> 4.543638282 | AD82: =E82+L82*dt/4 -> 11.61233277 | AE82: =-mew*g*AG81/AI81-statherifoucault*AA82/mass -> -11.39641641 | AF82: 139.8335765 | AG82: 9.204757497 | AH82: -11.01653587 | AI82: 14.35589158 | AJ82: -4.661119216 | AK82: -0.3798805472 | AL82: 0.65375 | AM82: 0.3855422881 | AN82: -4.64638531 | AO82: 4.529392761 | AP82: 11.78712474 | AQ82: -11.56626864 | AR82: 139.3915593 | AS82: 9.175778071 | AT82: 12.17266703 | AU82: 15.24364542 | AV82: -4.64638531 | AW82: -0.3855422881 | AX82: 0.6592307692 | AY82: 0.4103668446 | AZ82: -4.581782799 | BA82: =AO82+AQ82*(12/13-3/8)*dt -> 4.466000712 | BB82: =AP82+AR82*(12/13-3/8)*dt -> 12.55109771 | BC82: -12.31100534 | BD82: 137.453484 | BE82: 9.047783511 | BF82: 12.96146455 | BG82: 15.80702217 | BH82: -4.581782799 | BI82: -0.4103668446 | BJ82: 0.66 | BK82: 0.4137949451 | BL82: -4.572046775 | BM82: 4.456530708 | BN82: 12.65683116 | BO82: =-mew*g*BE82/BG82-statherifoucault*BK82 -> -12.41384835 | BP82: =-mew*g*BF82/BG82-statherifoucault*BL82 -> 137.1614033 | BQ82: 9.028577483 | BR82: 13.0706261 | BS82: 15.8857319 | BT82: -4.572046775 | BU82: -0.4137949451 | BV82: 0.04571277391 | BW82: 0.1126362061 | BX82: -0.1105564354 | BY82: 1.394848643 | BZ82: 0.3799496449 | CA82: -4.621336425 | CB82: 4.543638282 | CC82: 11.61233277 | CD82: 0.04543638282 | CE82: 0.1161233277 | CF82: -0.1139641641 | CG82: 1.398335765 | CH82: 0.3855860067 | CI82: -4.606276147 | CJ82: 4.528860304 | CK82: 11.7876696 | CL82: 0.04529392761 | CM82: 0.1178712474 | CN82: -0.1156626864 | CO82: 1.393915593 | CP82: 0.4102327026 | CQ82: -4.539566568 | CR82: 4.463435783 | CS82: 12.53664666 | CT82: 0.04466000712 | CU82: 0.1255109771 | CV82: -0.1231100534 | CW82: 1.37453484 | CX82: 0.5496732052 | CY82: -4.983471981 | CZ82: 7.513534329 | DA82: 10.56537336 | DB82: 0.04456530708 | DC82: 0.1265683116 | DD82: -0.1241384835 | DE82: 1.371614033 | DF82: 0.4136702232 | DG82: -4.530131036 | DH82: 4.45416062 | DI82: 12.64875789 | DJ82: 3.070889882 | DK82: -3.356016327 | DL82: 8.984291656 | DM82: 13.06242811 | DN82: 15.85384889 | DO82: -12.4101067 | DP82: 135.9039311
A83: 0.66 | B83: 0.4136702232 | C83: -4.530131036 | D83: 4.45416062 | E83: 12.64875789 | F83: 4.548979034 | G83: -3.050529913 | H83: -174.7824893 | I83: -12.4101067 | J83: 135.9039311 | K83: -12.4101067 | L83: 135.9039311 | M83: 8.984291656 | N83: 13.06242811 | O83: -0.9112741889 | P83: 15.82763735 | Q83: -4.530131036 | R83: -0.4136702232 | S83: -1.777991214 | T83: 15.09017223 | U83: 15.19455662 | V83: 15.85384889 | W83: 13.41009407 | X83: 3.104295942 | Y83: -3.325140141 | Z83: 0.6625 | AA83: 0.4247280616 | AB83: -4.541456363 | AC83: 4.423135354 | AD83: 12.98851772 | AE83: -12.74184185 | AF83: 136.2436909 | AG83: 8.964591717 | AH83: -12.31711379 | AI83: 15.23401446 | AJ83: -4.541456363 | AK83: -0.4247280616 | AL83: 0.66375 | AM83: 0.4302370717 | AN83: -4.525007836 | AO83: 4.407208051 | AP83: 13.15882233 | AQ83: -12.90711215 | AR83: 135.7502351 | AS83: 8.932215887 | AT83: 13.5890594 | AU83: 16.26182696 | AV83: -4.525007836 | AW83: -0.4302370717 | AX83: 0.6692307692 | AY83: 0.4543919619 | AZ83: -4.452887367 | BA83: 4.336467148 | BB83: 13.90283804 | BC83: -13.63175886 | BD83: 133.586621 | BE83: 8.789354515 | BF83: 14.35723 | BG83: 16.83397773 | BH83: -4.452887367 | BI83: -0.4543919619 | BJ83: 0.67 | BK83: 0.4577196398 | BL83: -4.442113831 | BM83: 4.32598118 | BN83: 14.00559698 | BO83: -13.73158919 | BP83: 133.2634149 | BQ83: 8.768095011 | BR83: 14.46331662 | BS83: 16.91351583 | BT83: -4.442113831 | BU83: -0.4577196398 | BV83: 0.0445416062 | BW83: 0.1264875789 | BX83: -0.124101067 | BY83: 1.359039311 | BZ83: 0.4248056248 | CA83: -4.498509141 | CB83: 4.423135354 | CC83: 12.98851772 | CD83: 0.04423135354 | CE83: 0.1298851772 | CF83: -0.1274184185 | CG83: 1.362436909 | CH83: 0.430286067 | CI83: -4.481742619 | CJ83: 4.406689715 | CK83: 13.1593532 | CL83: 0.04407208051 | CM83: 0.1315882233 | CN83: -0.1290711215 | CO83: 1.357502351 | CP83: 0.4542430667 | CQ83: -4.407569177 | CR83: 4.333972386 | CS83: 13.88701704 | CT83: 0.04336467148 | CU83: 0.1390283804 | CV83: -0.1363175886 | CW83: 1.33586621 | CX83: 0.6241156421 | CY83: -4.906115155 | CZ83: 7.337806564 | DA83: 12.07561885 | DB83: 0.0432598118 | DC83: 0.1400559698 | DD83: -0.1373158919 | DE83: 1.332634149 | DF83: 0.4575804025 | DG83: -4.397124279 | DH83: 4.323709578 | DI83: 13.9969354 | DJ83: 3.057435959 | DK83: -3.193143765 | DL83: 8.720833857 | DM83: 14.4545158 | DN83: 16.88152748 | DO83: -13.72741207 | DP83: 131.9137284
A84: 0.67 | B84: =DF83 -> 0.4575804025 | C84: =DG83 -> -4.397124279 | D84: =DH83 -> 4.323709578 | E84: =DI83 -> 13.9969354 | F84: =SQRT(B84^2+C84^2) -> 4.420868891 | G84: =-ATAN2(C84,B84) -> -3.037902315 | H84: =DEGREES(G84) -> -174.0589812 | I84: -13.72741207 | J84: 131.9137284 | K84: =I84/mass -> -13.72741207 | L84: =J84/mass -> 131.9137284 | M84: =D84-Q84 -> 8.720833857 | N84: =E84-R84 -> 14.4545158 | O84: -2.140473238 | P84: 16.74527827 | Q84: =-C84*omega -> -4.397124279 | R84: =B84*omega -> -0.4575804025 | S84: =D84*COS(omega*A84)+E84*SIN(omega*A93)-B84*omega*SIN(omega*A84)+C84*omega*COS(omega*A84) -> -3.091361456 | T84: =-D84*SIN(omega*A84)+E84*COS(omega*A93)-B84*omega*COS(omega*A84)-C84*omega*SIN(omega*A84) -> 15.91965987 | U84: =SQRT(S84^2+T84^2) -> 16.21703074 | V84: =SQRT(M84^2+N84^2) -> 16.88152748 | W84: =SQRT(D84^2+E84^2) -> 14.64952781 | X84: =B84*COS(omega*A84)+C84*SIN(omega*A84) -> 3.089213994 | Y84: =-B84*SIN(omega*A84)+C84*COS(omega*A84) -> -3.16241026 | Z84: =A84+dt/4 -> 0.6725 | AA84: =B84+AC84*dt/4 -> 0.4683038801 | AB84: -4.40811709 | AC84: 4.289391048 | AD84: 14.32671972 | AE84: -14.0491164 | AF84: 132.2435127 | AG84: =AC84-AJ84 -> 8.697508138 | AH84: =AE84-AK84 -> -13.58081252 | AI84: =SQRT(AG84^2+AH84^2) -> 16.12715463 | AJ84: =-AB84*omega -> -4.40811709 | AK84: =AA84*omega -> -0.4683038801 | AL84: =A84+3*dt/8 -> 0.67375 | AM84: =AA84+AO84*dt/8 -> 0.4736436672 | AN84: =AB84+AP84*dt/8 -> -4.39000206 | AO84: =AC84+AE84*dt/8 -> 4.271829652 | AP84: =AD84+AF84*dt/8 -> 14.49202411 | AQ84: -14.20931001 | AR84: 131.7000618 | AS84: =AO84-AV84 -> 8.661831712 | AT84: =AP84-AW84 -> 14.96566777 | AU84: =SQRT(AS84^2+AT84^2) -> 17.29157426 | AV84: =-AN84*omega -> -4.39000206 | AW84: =AM84*omega -> -0.4736436672 | AX84: =A84+12/13*dt -> 0.6792307692 | AY84: 0.4970565797 | AZ84: -4.31057462 | BA84: 4.193951703 | BB84: 15.21384175 | BC84: -14.91169739 | BD84: 129.3172386 | BE84: =BA84-BH84 -> 8.504526323 | BF84: =BB84-BI84 -> 15.71089833 | BG84: =SQRT(BE84^2+BF84^2) -> 17.86502993 | BH84: =-AZ84*omega -> -4.31057462 | BI84: =AY84*omega -> -0.4970565797 | BJ84: =A84+dt -> 0.68 | BK84: =AY84+BM84*(1-12/13)*dt -> 0.5002738729 | BL84: =AZ84+BN84*(1-12/13)*dt -> -4.298795145 | BM84: =BA84+BC84*(1-12/13)*dt -> 4.182481167 | BN84: =BB84+BD84*(1-12/13)*dt -> 15.31331655 | BO84: -15.00821619 | BP84: 128.9638544 | BQ84: =BM84-BT84 -> 8.481276312 | BR84: =BN84-BU84 -> 15.81359043 | BS84: =SQRT(BQ84^2+BR84^2) -> 17.94440554 | BT84: =-BL84*omega -> -4.298795145 | BU84: =BK84*omega -> -0.5002738729 | BV84: =dt*D84 -> 0.04323709578 | BW84: =dt*E84 -> 0.139969354 | BX84: =dt*K84 -> -0.1372741207 | BY84: =dt*L84 -> 1.319137284 | BZ84: =B84+BV84/4 -> 0.4683896764 | CA84: =C84+BW84/4 -> -4.36213194 | CB84: =D84+BX84/4 -> 4.289391048 | CC84: =E84+BY84/4 -> 14.32671972 | CD84: =dt*AC84 -> 0.04289391048 | CE84: =dt*AD84 -> 0.1432671972 | CF84: =dt*AE84 -> -0.140491164 | CG84: =dt*AF84 -> 1.322435127 | CH84: =B84+3/32*(BV84+3*CD84) -> 0.4736977925 | CI84: =C84+3/32*(BW84+3*CE84) -> -4.343708253 | CJ84: =D84+3/32*(BX84+3*CF84) -> 4.271326989 | CK84: =E84+3/32*(BY84+3*CG84) -> 14.4925394 | CL84: =dt*AO84 -> 0.04271829652 | CM84: =dt*AP84 -> 0.1449202411 | CN84: =dt*AQ84 -> -0.1420931001 | CO84: =dt*AR84 -> 1.317000618 | CP84: =B84+1932/2197*BV84-7200/2197*CD84+7296/2197*CL84 -> 0.496893377 | CQ84: =C84+1932/2197*BW84-7200/2197*CE84+7296/2197*CM84 -> -4.262288115 | CR84: =D84+1932/2197*BX84-7200/2197*CF84+7296/2197*CN84 -> 4.191534576 | CS84: =E84+1932/2197*BY84-7200/2197*CG84+7296/2197*CO84 -> 15.19669726 | CT84: =dt*BA84 -> 0.04193951703 | CU84: =dt*BB84 -> 0.1521384175 | CV84: =dt*BC84 -> -0.1491169739 | CW84: =dt*BD84 -> 1.293172386 | CX84: =B84+439/216*BW84-8*CD84+3680/513*CL84-845/4104*CT84 -> 0.696707905 | CY84: =C84+439/216*BX84-8*CE84+3680/513*CM84-845/4104*CU84 -> -4.813999796 | CZ84: =D84+439/216*BY84-8*CF84+3680/513*CN84-845/4104*CV84 -> 7.140062637 | DA84: =E84+439/216*BZ84-8*CG84+3680/513*CO84-845/4104*CW84 -> 13.55064293 | DB84: =dt*BM84 -> 0.04182481167 | DC84: =dt*BN84 -> 0.1531331655 | DD84: =dt*BO84 -> -0.1500821619 | DE84: =dt*BP84 -> 1.289638544 | DF84: =B84+25/216*BV84+1408/2565*CL84+2197/4104*CT84-DB84/5 -> 0.5001205371 | DG84: =C84+25/216*BW84+1408/2575*CM84+2197/4104*CU84-DC84/5 -> -4.250864461 | DH84: =D84+25/216*BX84+1408/2575*CN84+2197/4104*CV84-DD84/5 -> 4.180314851 | DI84: =E84+25/216*BY84+1408/2575*CO84+2197/4104*CW84-DE84/5 -> 15.3040922 | DJ84: =DF84*COS(omega*A84)+DG84*SIN(omega*A84) -> 3.031732575 | DK84: =-DF84*SIN(omega*A84)+DG84*COS(omega*A84) -> -3.021351818 | DL84: =DH84+omega*DG84 -> 8.431179311 | DM84: =DI84-omega*DF84 -> 15.80421274 | DN84: =SQRT(DL84^2+DM84^2) -> 17.9125075 | DO84: -15.00361611 | DP84: 127.5259338
A85: 0.68 | B85: 0.5001205371 | C85: -4.250864461 | D85: 4.180314851 | E85: 15.3040922 | F85: 4.280183316 | G85: -3.024479538 | H85: -173.2899128 | I85: -15.00361611 | J85: 127.5259338 | K85: -15.00361611 | L85: 127.5259338 | M85: 8.431179311 | N85: 15.80421274 | O85: -3.3817237 | P85: 17.5903914 | Q85: -4.250864461 | R85: -0.5001205371 | S85: -4.412335161 | T85: 16.6773179 | U85: 17.25113428 | V85: 17.9125075 | W85: 15.8647493 | X85: 3.061794005 | Y85: -2.990883931 | Z85: 0.6825 | AA85: 0.5104775516 | AB85: -4.261491622 | AC85: 4.14280581 | AD85: 15.62290703 | AE85: -15.31432655 | AF85: 127.8447487 | AG85: 8.404297432 | AH85: -14.803849 | AI85: 17.02310666 | AJ85: -4.261491622 | AK85: -0.5104775516 | AL85: 0.68375 | AM85: 0.5156321302 | AN85: -4.241763231 | AO85: 4.123662902 | AP85: 15.78271297 | AQ85: -15.46896391 | AR85: 127.2528969 | AS85: 8.365426133 | AT85: 16.2983451 | AU85: 18.31983645 | AV85: -4.241763231 | AW85: -0.5156321302 | AX85: 0.6892307692 | AY85: 0.538232975 | AZ85: -4.155261823 | BA85: 4.038881081 | BB85: 16.48015673 | BC85: -16.14698925 | BD85: 124.6578547 | BE85: 8.194142904 | BF85: 17.01838971 | BG85: 18.88834472 | BH85: -4.155261823 | BI85: -0.538232975 | BJ85: 0.69 | BK85: 0.5413302521 | BL85: -4.142511017 | BM85: 4.02646032 | BN85: 16.57604739 | BO85: -16.23990756 | BP85: 124.2753305 | BQ85: 8.168971337 | BR85: 17.11737764 | BS85: 18.96672639 | BT85: -4.142511017 | BU85: -0.5413302521 | BV85: 0.04180314851 | BW85: 0.153040922 | BX85: -0.1500361611 | BY85: 1.275259338 | BZ85: 0.5105713242 | CA85: -4.21260423 | CB85: 4.14280581 | CC85: 15.62290703 | CD85: 0.0414280581 | CE85: 0.1562290703 | CF85: -0.1531432655 | CG85: 1.278447487 | CH85: 0.5156912236 | CI85: -4.192577448 | CJ85: 4.123177417 | CK85: 15.78321112 | CL85: 0.04123662902 | CM85: 0.1578271297 | CN85: -0.1546896391 | CO85: 1.272528969 | CP85: 0.5380559535 | CQ85: -4.104149625 | CR85: 4.036548825 | CS85: 16.46173922 | CT85: 0.04038881081 | CU85: 0.1648015673 | CV85: -0.1614698925 | CW85: 1.246578547 | CX85: 0.7672321696 | CY85: -4.707392502 | CZ85: 6.920889148 | DA85: 14.98600777 | DB85: 0.0402646032 | DC85: 0.1657604739 | DD85: -0.1623990756 | DE85: 1.242753305 | DF85: 0.5411632769 | DG85: -4.091780773 | DH85: 4.024405774 | DI85: 16.56628752 | DJ85: 2.993677006 | DK85: -2.841377407 | DL85: 8.116186548 | DM85: 17.10745079 | DN85: 18.9350827 | DO85: -16.23489831 | DP85: 122.7534232
A86: 0.69 | B86: 0.5411632769 | C86: -4.091780773 | D86: 4.024405774 | E86: 16.56628752 | F86: 4.12741173 | G86: -3.010099613 | H86: -172.4660037 | I86: -16.23489831 | J86: 122.7534232 | K86: -16.23489831 | L86: 122.7534232 | M86: 8.116186548 | N86: 17.10745079 | O86: -4.629951991 | P86: 18.36030777 | Q86: -4.091780773 | R86: -0.5411632769 | S86: -5.735623078 | T86: 17.36082261 | U86: 18.28375054 | V86: 18.9350827 | W86: 17.0481003 | X86: 3.021940624 | Y86: -2.811299068 | Z86: 0.6925 | AA86: 0.5511228233 | AB86: -4.102010225 | AC86: 3.983818529 | AD86: 16.87317107 | AE86: -16.5336847 | AF86: 123.0603068 | AG86: 8.085828754 | AH86: -15.98256187 | AI86: 17.91153011 | AJ86: -4.102010225 | AK86: -0.5511228233 | AL86: 0.69375 | AM86: 0.5560767625 | AN86: -4.080726479 | AO86: 3.963151423 | AP86: 17.02699646 | AQ86: -16.68230288 | AR86: 122.4217944 | AS86: 8.043877902 | AT86: 17.58307322 | AU86: 19.33567779 | AV86: -4.080726479 | AW86: -0.5560767625 | AX86: 0.6992307692 | AY86: 0.5777978809 | AZ86: -3.987405441 | BA86: 3.871719571 | BB86: 17.69796206 | BC86: -17.33393643 | BD86: 119.6221632 | BE86: 7.859125012 | BF86: 18.27575994 | BG86: 19.89395002 | BH86: -3.987405441 | BI86: -0.5777978809 | BJ86: 0.7 | BK86: 0.58076587 | BL86: -3.973720842 | BM86: 3.858385773 | BN86: 17.78997911 | BO86: -17.4229761 | BP86: 119.2116253 | BQ86: 7.832106615 | BR86: 18.37074498 | BS86: 19.97063257 | BT86: -3.973720842 | BU86: -0.58076587 | BV86: 0.04024405774 | BW86: 0.1656628752 | BX86: -0.1623489831 | BY86: 1.227534232 | BZ86: 0.5512242914 | CA86: -4.050365054 | CB86: 3.983818529 | CC86: 16.87317107 | CD86: 0.03983818529 | CE86: 0.1687317107 | CF86: -0.165336847 | CG86: 1.230603068 | CH86: 0.556140647 | CI86: -4.028794085 | CJ86: 3.962684569 | CK86: 17.02747596 | CL86: 0.03963151423 | CM86: 0.1702699646 | CN86: -0.1668230288 | CO86: 1.224217944 | CP86: 0.5776075707 | CQ86: -3.933618725 | CR86: 3.869479168 | CS86: 17.67832583 | CT86: 0.03871719571 | CU86: 0.1769796206 | CV86: -0.1733393643 | CW86: 1.196221632 | CX86: 0.8354767494 | CY86: -4.586603487 | CZ86: 6.680937009 | DA86: 16.37739153 | DB86: 0.03858385773 | DC86: 0.1778997911 | DD86: -0.174229761 | DE86: 1.192116253 | DF86: 0.5805857553 | DG86: -3.920341087 | DH86: 3.856449149 | DI86: 17.77971259 | DJ86: 2.943217319 | DK86: -2.65398302 | DL86: 7.776790236 | DM86: 18.36029834 | DN86: 19.93938368 | DO86: -17.41757266 | DP86: 117.6102326
A87: 0.7 | B87: 0.5805857553 | C87: -3.920341087 | D87: 3.856449149 | E87: 17.77971259 | F87: 3.963099047 | G87: -2.994565596 | H87: -171.5759701 | I87: -17.41757266 | J87: 117.6102326 | K87: -17.41757266 | L87: 117.6102326 | M87: 7.776790236 | N87: 18.36029834 | O87: -5.880011681 | P87: 19.05267656 | Q87: -3.920341087 | R87: -0.5805857553 | S87: -7.055883377 | T87: 17.96816972 | U87: 19.3039015 | V87: 19.93938368 | W87: 18.19314101 | X87: 2.969609547 | Y87: -2.624418639 | Z87: 0.7025 | AA87: 0.5901180184 | AB87: -3.930141939 | AC87: 3.812905217 | AD87: 18.07373817 | AE87: -17.70354055 | AF87: 117.9042582 | AG87: 7.743047157 | AH87: -17.11342253 | AI87: 18.78361014 | AJ87: -3.930141939 | AK87: -0.5901180184 | AL87: 0.70375 | AM87: 0.5948564881 | AN87: -3.907365541 | AO87: 3.790775792 | AP87: 18.22111849 | AQ87: -17.84569464 | AR87: 117.2209662 | AS87: 7.698141333 | AT87: 18.81597498 | AU87: 20.32983754 | AV87: -3.907365541 | AW87: -0.5948564881 | AX87: 0.7092307692 | AY87: 0.6156328554 | AZ87: -3.807499796 | BA87: 3.692967658 | BB87: 18.86357956 | BC87: -18.46898566 | BD87: 114.2249939 | BE87: 7.500467453 | BF87: 19.47921241 | BG87: 20.87334971 | BH87: -3.807499796 | BI87: -0.6156328554 | BJ87: 0.71 | BK87: 0.6184626714 | BL87: -3.792921761 | BM87: 3.678760746 | BN87: 18.95144494 | BO87: -18.55388014 | BP87: 113.7876528 | BQ87: 7.471682507 | BR87: 19.56990761 | BS87: 20.94772835 | BT87: -3.792921761 | BU87: -0.6184626714 | BV87: 0.03856449149 | BW87: 0.1777971259 | BX87: -0.1741757266 | BY87: 1.176102326 | BZ87: 0.5902268782 | CA87: -3.875891805 | CB87: 3.812905217 | CC87: 18.07373817 | CD87: 0.03812905217 | CE87: 0.1807373817 | CF87: -0.1770354055 | CG87: 1.179042582 | CH87: 0.5949249723 | CI87: -3.852840218 | CJ87: 3.790328967 | CK87: 18.22157791 | CL87: 0.03790775792 | CM87: 0.1822111849 | CN87: -0.1784569464 | CO87: 1.172209662 | CP87: 0.6154298262 | CQ87: -3.751197844 | CR87: 3.690825815 | CS87: 18.84278259 | CT87: 0.03692967658 | CU87: 0.1886357956 | CV87: -0.1846898566 | CW87: 1.142249939 | CX87: 0.9012367305 | CY87: -4.451985681 | CZ87: 6.42091951 | DA87: 17.72060138 | DB87: 0.03678760746 | DC87: 0.1895144494 | DD87: -0.1855388014 | DE87: 1.137876528 | DF87: 0.6182699565 | DG87: -3.737050576 | DH87: 3.67694784 | DI87: 18.94070217 | DJ87: 2.880353025 | DK87: -2.459953495 | DL87: 7.413998416 | DM87: 19.55897212 | DN87: 20.91699699 | DO87: -18.5480987 | DP87: 112.1115173
A88: 0.71 | B88: 0.6182699565 | C88: -3.737050576 | D88: 3.67694784 | E88: 18.94070217 | F88: 3.78784962 | G88: -2.97763452 | H88: -170.605891 | I88: -18.5480987 | J88: 112.1115173 | K88: -18.5480987 | L88: 112.1115173 | M88: 7.413998416 | N88: 19.55897212 | O88: -7.12670481 | P88: 19.66547334 | Q88: -3.737050576 | R88: -0.6182699565 | S88: -8.367743556 | T88: 18.49768119 | U88: 20.30229892 | V88: 20.91699699 | W88: 19.29430341 | X88: 2.904808133 | Y88: -2.431027448 | Z88: 0.7125 | AA88: 0.6273464005 | AB88: -3.746393202 | AC88: 3.630577593 | AD88: 19.22098096 | AE88: -18.82039201 | AF88: 112.3917961 | AG88: 7.376970795 | AH88: -18.19304561 | AI88: 19.63177544 | AJ88: -3.746393202 | AK88: -0.6273464005 | AL88: 0.71375 | AM88: 0.6318552156 | AN88: -3.722191364 | AO88: 3.607052103 | AP88: 19.36147071 | AQ88: -18.95565647 | AR88: 111.6657409 | AS88: 7.329243467 | AT88: 19.99332592 | AU88: 21.29438638 | AV88: -3.722191364 | AW88: -0.6318552156 | AX88: 0.7192307692 | AY88: 0.6516246358 | AZ88: -3.616075611 | BA88: 3.503160524 | BB88: 19.97348486 | BC88: -19.54873907 | BD88: 108.4822683 | BE88: 7.119236135 | BF88: 20.6251095 | BG88: 21.81922696 | BH88: -3.616075611 | BI88: -0.6516246358 | BJ88: 0.72 | BK88: 0.6543078074 | BL88: -3.600647201 | BM88: 3.488123033 | BN88: 20.05693276 | BO88: -19.62923422 | BP88: 108.019416 | BQ88: 7.088770234 | BR88: 20.71124057 | BS88: 21.89077772 | BT88: -3.600647201 | BU88: -0.6543078074 | BV88: 0.0367694784 | BW88: 0.1894070217 | BX88: -0.185480987 | BY88: 1.121115173 | BZ88: 0.6274623261 | CA88: -3.68969882 | CB88: 3.630577593 | CC88: 19.22098096 | CD88: 0.03630577593 | CE88: 0.1922098096 | CF88: -0.1882039201 | CG88: 1.123917961 | CH88: 0.6319280946 | CI88: -3.665234659 | CJ88: 3.606626645 | CK88: 19.36190864 | CL88: 0.03607052103 | CM88: 0.1936147071 | CN88: -0.1895565647 | CO88: 1.116657409 | CP88: 0.6514094954 | CQ88: -3.557425342 | CR88: 3.501123653 | CS88: 19.95158867 | CT88: 0.03503160524 | CU88: 0.1997348486 | CV88: -0.1954873907 | CW88: 1.084822683 | CX88: 0.9643145874 | CY88: -4.303933703 | CZ88: 6.141610204 | DA88: 19.01158612 | DB88: 0.03488123033 | DC88: 0.2005693276 | DD88: -0.1962923422 | DE88: 1.08019416 | DF88: 0.6541030693 | DG88: -3.542450229 | DH88: 3.486439273 | DI88: 20.0457456 | DJ88: 2.805135522 | DK88: -2.260092731 | DL88: 7.028889502 | DM88: 20.69984867 | DN88: 21.86067297 | DO88: -19.62309208 | DP88: 106.2735069
A89: 0.72 | B89: 0.6541030693 | C89: -3.542450229 | D89: 3.486439273 | E89: 20.0457456 | F89: 3.602333196 | G89: -2.959002156 | H89: -169.5383351 | I89: -19.62309208 | J89: 106.2735069 | K89: -19.62309208 | L89: 106.2735069 | M89: 7.028889502 | N89: 20.69984867 | O89: -8.364803527 | P89: 20.19700682 | Q89: -3.542450229 | R89: -0.6541030693 | S89: -9.665822578 | T89: 18.94801061 | U89: 21.27099509 | V89: 21.86067297 | W89: 20.3466748 | X89: 2.827595817 | Y89: -2.23192884 | Z89: 0.7225 | AA89: 0.6626965232 | AB89: -3.551306355 | AC89: 3.437381542 | AD89: 20.31142937 | AE89: -19.88089569 | AF89: 106.5391907 | AG89: 6.988687897 | AH89: -19.21819917 | AI89: 20.4494728 | AJ89: -3.551306355 | AK89: -0.6626965232 | AL89: 0.72375 | AM89: 0.6669621862 | AN89: -3.525750601 | AO89: 3.412530423 | AP89: 20.44460335 | AQ89: -20.00886559 | AR89: 105.772518 | AS89: 6.938281024 | AT89: 21.11156554 | AU89: 22.22246483 | AV89: -3.525750601 | AW89: -0.6669621862 | AX89: 0.7292307692 | AY89: 0.6856654779 | AZ89: -3.413698448 | BA89: 3.302866448 | BB89: 21.02431812 | BC89: -20.56996434 | BD89: 102.4109534 | BE89: 6.716564896 | BF89: 21.70998359 | BG89: 22.72522017 | BH89: -3.413698448 | BI89: -0.6856654779 | BJ89: 0.73 | BK89: 0.6881939728 | BL89: -3.397465297 | BM89: 3.287043398 | BN89: 21.10309577 | BO89: -20.64581919 | BP89: 101.9239589 | BQ89: 6.684508696 | BR89: 21.79128975 | BS89: 22.79348515 | BT89: -3.397465297 | BU89: -0.6881939728 | BV89: 0.03486439273 | BW89: 0.200457456 | BX89: -0.1962309208 | BY89: 1.062735069 | BZ89: 0.6628191675 | CA89: -3.492335865 | CB89: 3.437381542 | CC89: 20.31142937 | CD89: 0.03437381542 | CE89: 0.2031142937 | CF89: -0.1988089569 | CG89: 1.065391907 | CH89: 0.6670392417 | CI89: -3.466531448 | CJ89: 3.412127605 | CK89: 20.44501849 | CL89: 0.03412530423 | CM89: 0.2044460335 | CN89: -0.2000886559 | CO89: 1.05772518 | CP89: 0.6854388705 | CQ89: -3.35287392 | CR89: 3.300940646 | CS89: 21.00138754 | CT89: 0.03302866448 | CU89: 0.2102431812 | CV89: -0.2056996434 | CW89: 1.024109534 | CX89: 1.024520776 | CY89: -4.1428827 | CZ89: 5.843840602 | DA89: 20.24644841 | DB89: 0.03287043398 | DC89: 0.2110309577 | DD89: -0.2064581919 | DE89: 1.019239589 | DF89: 0.6879778246 | DG89: -3.337115256 | DH89: 3.285493824 | DI89: 21.09149742 | DJ89: 2.717668319 | DK89: -2.055220336 | DL89: 6.62260908 | DM89: 21.77947524 | DN89: 22.76410536 | DO89: -20.63933474 | DP89: 100.1134577
A90: 0.73 | B90: 0.6879778246 | C90: -3.337115256 | D90: 3.285493824 | E90: 21.09149742 | F90: 3.4072939 | G90: -2.938281628 | H90: -168.3511363 | I90: -20.63933474 | J90: 100.1134577 | K90: -20.63933474 | L90: 100.1134577 | M90: 6.62260908 | N90: 21.77947524 | O90: -9.589071944 | P90: 20.64592435 | Q90: -3.337115256 | R90: -0.6879778246 | S90: -10.94475314 | T90: 19.3181472 | U90: 22.20311763 | V90: 22.76410536 | W90: 21.34585986 | X90: 2.738084297 | Y90: -2.027941346 | Z90: 0.7325 | AA90: 0.6960625633 | AB90: -3.345458044 | AC90: 3.233895487 | AD90: 21.34178106 | AE90: -20.8818769 | AF90: 100.3637413 | AG90: 6.579353532 | AH90: -20.18581433 | AI90: 21.23099134 | AJ90: -3.345458044 | AK90: -0.6960625633 | AL90: 0.73375 | AM90: 0.7000723047 | AN90: -3.318624 | AO90: 3.207793141 | AP90: 21.46723574 | AQ90: -21.00216914 | AR90: 99.55871999 | AS90: 6.526417141 | AT90: 22.16730805 | AU90: 23.10808661 | AV90: -3.318624 | AW90: -0.7000723047 | AX90: 0.7392307692 | AY90: 0.7176534786 | AZ90: -3.200967035 | BA90: 3.092685099 | BB90: 22.01289411 | BC90: -21.52960436 | BD90: 96.02901104 | BE90: 6.293652133 | BF90: 22.73054759 | BG90: 23.58575525 | BH90: -3.200967035 | BI90: -0.7176534786 | BJ90: 0.74 | BK90: 0.7200197278 | BL90: -3.183977217 | BM90: 3.076123865 | BN90: 22.08676258 | BO90: -21.60059183 | BP90: 95.51931652 | BQ90: 6.260101082 | BR90: 22.80678231 | BS90: 23.6503316 | BT90: -3.183977217 | BU90: -0.7200197278 | BV90: 0.03285493824 | BW90: 0.2109149742 | BX90: -0.2063933474 | BY90: 1.001134577 | BZ90: 0.6961915591 | CA90: -3.284386513 | CB90: 3.233895487 | CC90: 21.34178106 | CD90: 0.03233895487 | CE90: 0.2134178106 | CF90: -0.208818769 | CG90: 1.003637413 | CH90: 0.7001533061 | CI90: -3.257318218 | CJ90: 3.207414169 | CK90: 21.46762681 | CL90: 0.03207793141 | CM90: 0.2146723574 | CN90: -0.2100216914 | CO90: 0.9955871999 | CP90: 0.7174160827 | CQ90: -3.138148933 | CR90: 3.090876131 | CS90: 21.98899712 | CT90: 0.03092685099 | CU90: 0.2201289411 | CV90: -0.2152960436 | CW90: 0.9602901104 | CX90: 1.081674302 | CY90: -3.969307075 | CZ90: 5.528497696 | DA90: 21.42145655 | DB90: 0.03076123865 | DC90: 0.2208676258 | DD90: -0.2160059183 | DE90: 0.9551931652 | DF90: 0.7197928164 | DG90: -3.121653384 | DH90: 3.074713115 | DI90: 22.07478749 | DJ90: 2.618107035 | DK90: -1.846168222 | DL90: 6.196366499 | DM90: 22.79458031 | DN90: 23.62176643 | DO90: -21.59378449 | DP90: 93.64960152
A91: 0.74 | B91: 0.7197928164 | C91: -3.121653384 | D91: 3.074713115 | E91: 22.07478749 | F91: 3.203563882 | G91: -2.914972874 | H91: -167.0156431 | I91: -21.59378449 | J91: 93.64960152 | K91: -21.59378449 | L91: 93.64960152 | M91: 6.196366499 | N91: 22.79458031 | O91: -10.79428812 | P91: 21.01121589 | Q91: -3.121653384 | R91: -0.7197928164 | S91: -12.19920396 | T91: 19.60741838 | U91: 23.09267054 | V91: 23.62176643 | W91: 22.28789141 | X91: 2.636437505 | Y91: -1.81989528 | Z91: 0.7425 | AA91: 0.727344638 | AB91: -3.129457517 | AC91: 3.020728653 | AD91: 22.3089115 | AE91: -21.82033914 | AF91: 93.88372552 | AG91: 6.150186171 | AH91: -21.0929945 | AI91: 21.97132693 | AJ91: -3.129457517 | AK91: -0.727344638 | AL91: 0.74375 | AM91: 0.7310864546 | AN91: -3.101424685 | AO91: 2.993453229 | AP91: 22.42626615 | AQ91: -21.93259364 | AR91: 93.04274054 | AS91: 6.094877914 | AT91: 23.15735261 | AU91: 23.94599166 | AV91: -3.101424685 | AW91: -0.7310864546 | AX91: 0.7492307692 | AY91: 0.7474928809 | AZ91: -2.978511495 | BA91: 2.873245745 | BB91: 22.93621194 | BC91: -22.42478643 | BD91: 89.35534486 | BE91: 5.85175724 | BF91: 23.68370482 | BG91: 24.3959205 | BH91: -2.978511495 | BI91: -0.7474928809 | BJ91: 0.75 | BK91: 0.7496898008 | BL91: -2.960815382 | BM91: 2.855995909 | BN91: 23.00494682 | BO91: -22.49069403 | BP91: 88.82446147 | BQ91: 5.816811292 | BR91: 23.75463662 | BS91: 24.45645221 | BT91: -2.960815382 | BU91: -0.7496898008 | BV91: 0.03074713115 | BW91: 0.2207478749 | BX91: -0.2159378449 | BY91: 0.9364960152 | BZ91: 0.7274795992 | CA91: -3.066466415 | CB91: 3.020728653 | CC91: 22.3089115 | CD91: 0.03020728653 | CE91: 0.223089115 | CF91: -0.2182033914 | CG91: 0.9388372552 | CH91: 0.7311711593 | CI91: -3.038214457 | CJ91: 2.993099238 | CK91: 22.42663197 | CL91: 0.02993453229 | CM91: 0.2242626615 | CN91: -0.2193259364 | CO91: 0.9304274054 | CP91: 0.7472454072 | CQ91: -2.913886591 | CR91: 2.871559027 | CS91: 22.91141945 | CT91: 0.02873245745 | CU91: 0.2293621194 | CV91: -0.2242478643 | CW91: 0.8935534486 | CX91: 1.135603269 | CY91: -3.783719081 | CZ91: 5.196521323 | DA91: 22.5330557 | DB91: 0.02855995909 | DC91: 0.2300494682 | DD91: -0.2249069403 | DE91: 0.8882446147 | DF91: 0.7494528057 | DG91: -2.896703062 | DH91: 2.854728207 | DI91: 22.99263061 | DJ91: 2.506659191 | DK91: -1.633777168 | DL91: 5.751431269 | DM91: 23.74208341 | DN91: 24.42878398 | DO91: -22.48358417 | DP91: 86.90109186
A92: 0.75 | B92: 0.7494528057 | C92: -2.896703062 | D92: 2.854728207 | E92: 22.99263061 | F92: 2.992084246 | G92: -2.888418163 | H92: -165.4941702 | I92: -22.48358417 | J92: 86.90109186 | K92: -22.48358417 | L92: 86.90109186 | M92: 5.751431269 | N92: 23.74208341 | O92: -11.97526606 | P92: 21.29221664 | Q92: -2.896703062 | R92: -0.7494528057 | S92: -13.42390203 | T92: 19.81549095 | U92: 23.93438588 | V92: 24.42878398 | W92: 23.16917209 | X92: 2.522871359 | Y92: -1.608629306 | Z92: 0.7525 | AA92: 0.7564491038 | AB92: -2.903944819 | AC92: 2.798519246 | AD92: 23.20988334 | AE92: -22.69347312 | AF92: 87.11834458 | AG92: 5.702464066 | AH92: -21.93702401 | AI92: 22.6660786 | AJ92: -2.903944819 | AK92: -0.7564491038 | AL92: 0.75375 | AM92: 0.7599117943 | AN92: -2.874796343 | AO92: 2.770152405 | AP92: 23.31878127 | AQ92: -22.79735383 | AR92: 86.24389029 | AS92: 5.644948748 | AT92: 24.07869306 | AU92: 24.73153667 | AV92: -2.874796343 | AW92: -0.7599117943 | AX92: 0.7592307692 | AY92: 0.7750943604 | AZ92: -2.746991484 | BA92: 2.64520537 | BB92: 23.79146413 | BC92: -23.25283081 | BD92: 82.40974452 | BE92: 5.392196854 | BF92: 24.56655849 | BG92: 25.15137338 | BH92: -2.746991484 | BI92: -0.7750943604 | BJ92: 0.76 | BK92: 0.7771153747 | BL92: -2.728641595 | BM92: 2.627318577 | BN92: 23.85485624 | BO92: -23.31346124 | BP92: 81.85924784 | BQ92: 5.355960171 | BR92: 24.63197162 | BS92: 25.2075452 | BT92: -2.728641595 | BU92: -0.7771153747 | BV92: 0.02854728207 | BW92: 0.2299263061 | BX92: -0.2248358417 | BY92: 0.8690109186 | BZ92: 0.7565896262 | CA92: -2.839221485 | CB92: 2.798519246 | CC92: 23.20988334 | CD92: 0.02798519246 | CE92: 0.2320988334 | CF92: -0.2269347312 | CG92: 0.8711834458 | CH92: 0.7599999488 | CI92: -2.809869674 | CJ92: 2.769824453 | CK92: 23.31912073 | CL92: 0.02770152405 | CM92: 0.2331878127 | CN92: -0.2279735383 | CO92: 0.8624389029 | CP92: 0.7748375498 | CQ92: -2.680752081 | CR92: 2.64364595 | CS92: 23.76584978 | CT92: 0.0264520537 | CU92: 0.2379146413 | CV92: -0.2325283081 | CW92: 0.8240974452 | CX92: 1.186145389 | CY92: -3.586667321 | CZ92: 4.848901359 | DA92: 23.57787869 | DB92: 0.02627318577 | DC92: 0.2385485624 | DD92: -0.2331346124 | DE92: 0.8185924784 | DF92: 0.7768690054 | DG92: -2.662931569 | DH92: 2.626197716 | DI92: 23.84223555 | DJ92: 2.383583776 | DK92: -1.418893362 | DL92: 5.289129285 | DM92: 24.61910455 | DN92: 25.18084982 | DO92: -23.30607016 | DP92: 79.88794706
A93: 0.76 | B93: 0.7768690054 | C93: -2.662931569 | D93: 2.626197716 | E93: 23.84223555 | F93: 2.773937633 | G93: -2.857736032 | H93: -163.7362136 | I93: -23.30607016 | J93: 79.88794706 | K93: -23.30607016 | L93: 79.88794706 | M93: 5.289129285 | N93: 24.61910455 | O93: -13.12687772 | P93: 21.48860812 | Q93: -2.662931569 | R93: -0.7768690054 | S93: -14.61365473 | T93: 19.94237084 | U93: 24.7236134 | V93: 25.18084982 | W93: 23.98643597 | X93: 2.397653295 | Y93: -1.394986977 | Z93: 0.7625 | AA93: 0.7832888368 | AB93: -2.669588898 | AC93: 2.567932541 | AD93: 24.04195542 | AE93: -23.4986651 | AF93: 80.08766693 | AG93: 5.237521438 | AH93: -22.71537627 | AI93: 23.31136954 | AJ93: -2.669588898 | AK93: -0.7832888368 | AL93: 0.76375 | AM93: 0.7864620358 | AN93: -2.639411316 | AO93: 2.538559209 | AP93: 24.142065 | AQ93: -23.59386107 | AR93: 79.18233949 | AS93: 5.177970526 | AT93: 24.92852704 | AU93: 25.46061348 | AV93: -2.639411316 | AW93: -0.7864620358 | AX93: 0.7692307692 | AY93: 0.800375293 | AZ93: -2.507094229 | BA93: 2.409246701 | BB93: 24.57604513 | BC93: -24.01125879 | BD93: 75.21282688 | BE93: 4.916340931 | BF93: 25.37642042 | BG93: 25.84827115 | BH93: -2.507094229 | BI93: -0.800375293 | BJ93: 0.77 | BK93: 0.8022143518 | BL93: -2.488145075 | BM93: 2.390776502 | BN93: 24.63390115 | BO93: -24.06643055 | BP93: 74.64435224 | BQ93: 4.878921577 | BR93: 25.4361155 | BS93: 25.89980401 | BT93: -2.488145075 | BU93: -0.8022143518 | BV93: 0.02626197716 | BW93: 0.2384223555 | BX93: -0.2330607016 | BY93: 0.7988794706 | BZ93: 0.7834344997 | CA93: -2.60332598 | CB93: 2.567932541 | CC93: 24.04195542 | CD93: 0.02567932541 | CE93: 0.2404195542 | CF93: -0.234986651 | CG93: 0.8008766693 | CH93: 0.786553376 | CI93: -2.572961473 | CJ93: 2.53825828 | CK93: 24.14237706 | CL93: 0.02538559209 | CM93: 0.24142065 | CN93: -0.2359386107 | CO93: 0.7918233949 | CP93: 0.8001099143 | CQ93: -2.439437594 | CR93: 2.407819249 | CS93: 24.54968508 | CT93: 0.02409246701 | CU93: 0.2457604513 | CV93: -0.2401125879 | CW93: 0.7521282688 | CX93: 1.233148477 | CY93: -3.378735116 | CZ93: 4.48667477 | DA93: 24.55275619 | DB93: 0.02390776502 | DC93: 0.2463390115 | DD93: -0.2406643055 | DE93: 0.7464435224 | DF93: 0.8019593459 | DG93: -2.421033035 | DH93: 2.389805839 | DI93: 24.62101357 | DJ93: 2.24919059 | DK93: -1.202364935 | DL93: 4.810838873 | DM93: 25.42297292 | DN93: 25.87415163 | DO93: -24.05878038 | DP93: 72.63099104
A94: 0.77 | B94: 0.8019593459 | C94: -2.421033035 | D94: 2.389805839 | E94: 24.62101357 | F94: 2.550399919 | G94: -2.82172119 | H94: -161.6727152 | I94: -24.05878038 | J94: 72.63099104 | K94: -24.05878038 | L94: 72.63099104 | M94: 4.810838873 | N94: 25.42297292 | O94: -14.24407476 | P94: 21.60041798 | Q94: -2.421033035 | R94: -0.8019593459 | S94: -15.76337163 | T94: 19.9884014 | U94: 25.45623844 | V94: 25.87415163 | W94: 24.73672333 | X94: 2.26110158 | Y94: -1.179813286 | Z94: 0.7725 | AA94: 0.8077834931 | AB94: -2.427085617 | AC94: 2.329658888 | AD94: 24.80259105 | AE94: -24.23350479 | AF94: 72.81256852 | AG94: 4.756744505 | AH94: -23.4257213 | AI94: 23.90378708 | AJ94: -2.427085617 | AK94: -0.8077834931 | AL94: 0.77375 | AM94: 0.8106577019 | AN94: -2.395968609 | AO94: 2.299367007 | AP94: 24.89360676 | AQ94: -24.31973106 | AR94: 71.87905826 | AS94: 4.695335616 | AT94: 25.70426446 | AU94: 26.12958836 | AV94: -2.395968609 | AW94: -0.8106577019 | AX94: 0.7792307692 | AY94: 0.8232600018 | AZ94: -2.259532495 | BA94: 2.166076173 | BB94: 25.28755929 | BC94: -24.69780006 | BD94: 67.78597484 | BE94: 4.425608668 | BF94: 26.11081929 | BG94: 26.48321914 | BH94: -2.259532495 | BI94: -0.8232600018 | BJ94: 0.78 | BK94: 0.8249116002 | BL94: -2.240040416 | BM94: 2.147077865 | BN94: 25.33970235 | BO94: -24.74734801 | BP94: 67.20121248 | BQ94: 4.387118281 | BR94: 26.16461395 | BS94: 26.52986675 | BT94: -2.240040416 | BU94: -0.8249116002 | BV94: 0.02389805839 | BW94: 0.2462101357 | BX94: -0.2405878038 | BY94: 0.7263099104 | BZ94: 0.8079338605 | CA94: -2.359480501 | CB94: 2.329658888 | CC94: 24.80259105 | CD94: 0.02329658888 | CE94: 0.2480259105 | CF94: -0.2423350479 | CG94: 0.7281256852 | CH94: 0.8107519545 | CI94: -2.328193547 | CJ94: 2.299094 | CK94: 24.89389047 | CL94: 0.02299367007 | CM94: 0.2489360676 | CN94: -0.2431973106 | CO94: 0.7187905826 | CP94: 0.8229868497 | CQ94: -2.190660265 | CR94: 2.16478496 | CS94: 25.26053196 | CT94: 0.02166076173 | CU94: 0.2528755929 | CV94: -0.2469780006 | CW94: 0.6778597484 | CX94: 1.276470905 | CY94: -3.160538788 | CZ94: 4.110922516 | DA94: 25.45472631 | DB94: 0.02147077865 | DC94: 0.2533970235 | DD94: -0.2474734801 | DE94: 0.6720121248 | DF94: 0.8246487212 | DG94: -2.17172638 | DH94: 2.146260304 | DI94: 25.32658629 | DJ94: 2.103839377 | DK94: -0.9850385051 | DL94: 4.317986684 | DM94: 26.15123501 | DN94: 26.50532214 | DO94: -24.73946164 | DP94: 65.15179139
A95: 0.78 | B95: 0.8246487212 | C95: -2.17172638 | D95: 2.146260304 | E95: 25.32658629 | F95: 2.323024103 | G95: -2.778690022 | H95: -159.2072108 | I95: -24.73946164 | J95: 65.15179139 | K95: -24.73946164 | L95: 65.15179139 | M95: 4.317986684 | N95: 26.15123501 | O95: -15.32191018 | P95: 21.62801817 | Q95: -2.17172638 | R95: -0.8246487212 | S95: -16.86808606 | T95: 19.9542603 | U95: 26.12862092 | V95: 26.50532214 | W95: 25.41736427 | X95: 2.113584407 | Y95: -0.9639512105 | Z95: 0.7825 | AA95: 0.8298597503 | AB95: -2.177155696 | AC95: 2.08441165 | AD95: 25.48946577 | AE95: -24.89579251 | AF95: 65.31467087 | AG95: 4.261567346 | AH95: -24.06593276 | AI95: 24.44033706 | AJ95: -2.177155696 | AK95: -0.8298597503 | AL95: 0.78375 | AM95: 0.8324263652 | AN95: -2.145191809 | AO95: 2.05329191 | AP95: 25.57110911 | AQ95: -24.97279096 | AR95: 64.35575428 | AS95: 4.198483719 | AT95: 26.40353547 | AU95: 26.7352567 | AV95: -2.145191809 | AW95: -0.8324263652 | AX95: 0.7892307692 | AY95: 0.8436799843 | AZ95: -2.005042461 | BA95: 1.916421805 | BB95: 25.92382814 | BC95: -25.31039953 | BD95: 60.15127384 | BE95: 3.921464267 | BF95: 26.76750813 | BG95: 27.05323222 | BH95: -2.005042461 | BI95: -0.8436799843 | BJ95: 0.79 | BK95: 0.8451391784 | BL95: -1.985065463 | BM95: 1.896952267 | BN95: 25.97009836 | BO95: -25.35417535 | BP95: 59.55196388 | BQ95: 3.88201773 | BR95: 26.81523753 | BS95: 27.09477857 | BT95: -1.985065463 | BU95: -0.8451391784 | BV95: 0.02146260304 | BW95: 0.2532658629 | BX95: -0.2473946164 | BY95: 0.6515179139 | BZ95: 0.8300143719 | CA95: -2.108409914 | CB95: 2.08441165 | CC95: 25.48946577 | CD95: 0.0208441165 | CE95: 0.2548946577 | CF95: -0.2489579251 | CG95: 0.6531467087 | CH95: 0.832523248 | CI95: -2.076293583 | CJ95: 2.053047643 | CK95: 25.57136361 | CL95: 0.0205329191 | CM95: 0.2557110911 | CN95: -0.2497279096 | CO95: 0.6435575428 | CP95: 0.8433998764 | CQ95: -1.935160047 | CR95: 1.915270697 | CS95: 25.89621403 | CT95: 0.01916421805 | CU95: 0.2592382814 | CV95: -0.2531039953 | CW95: 0.6015127384 | CX95: 1.315982031 | CY95: -2.932725825 | CZ95: 3.722766331 | DA95: 26.28104363 | DB95: 0.01896952267 | DC95: 0.2597009836 | DD95: -0.2535417535 | DE95: 0.5955196388 | DF95: 0.8448692132 | DG95: -1.915753178 | DH95: 1.896290256 | DI95: 25.95679294 | DJ95: 1.947938744 | DK95: -0.7677557403 | DL95: 3.812043434 | DM95: 26.80166215 | DN95: 27.07140132 | DO95: -25.3460764 | DP95: 57.47259535
A96: 0.79 | B96: 0.8448692132 | C96: -1.915753178 | D96: 1.896290256 | E96: 25.95679294 | F96: 2.09377989 | G96: -2.726238645 | H96: -156.2019683 | I96: -25.3460764 | J96: 57.47259535 | K96: -25.3460764 | L96: 57.47259535 | M96: 3.812043434 | N96: 26.80166215 | O96: -16.3555595 | P96: 21.57212189 | Q96: -1.915753178 | R96: -0.8448692132 | S96: -17.92297619 | T96: 19.84095509 | U96: 26.73754989 | V96: 27.07140132 | W96: 26.02596812 | X96: 1.955518777 | Y96: -0.7482382901 | Z96: 0.7925 | AA96: 0.8494515259 | AB96: -1.920542561 | AC96: 1.832925065 | AD96: 26.10047443 | AE96: -25.48354578 | AF96: 57.61627684 | AG96: 3.753467626 | AH96: -24.63409425 | AI96: 24.91840924 | AJ96: -1.920542561 | AK96: -0.8494515259 | AL96: 0.79375 | AM96: 0.8517028642 | AN96: -1.887826943 | AO96: 1.801070632 | AP96: 26.17249477 | AQ96: -25.55108593 | AR96: 56.63480828 | AS96: 3.688897575 | AT96: 27.02419764 | AU96: 27.27480932 | AV96: -1.887826943 | AW96: -0.8517028642 | AX96: 0.7992307692 | AY96: 0.8615741167 | AZ96: -1.744381539 | BA96: 1.661031027 | BB96: 26.48289709 | BC96: -25.8472235 | BD96: 52.33144616 | BE96: 3.405412566 | BF96: 27.34447121 | BG96: 27.55570613 | BH96: -1.744381539 | BI96: -0.8615741167 | BJ96: 0.8 | BK96: 0.8628365387 | BL96: -1.723979114 | BM96: 1.641148547 | BN96: 26.52315205 | BO96: -25.88509616 | BP96: 51.71937342 | BQ96: 3.365127661 | BR96: 27.38598859 | BS96: 27.59196359 | BT96: -1.723979114 | BU96: -0.8628365387 | BV96: 0.01896290256 | BW96: 0.2595679294 | BX96: -0.253460764 | BY96: 0.5747259535 | BZ96: 0.8496099389 | CA96: -1.850861196 | CB96: 1.832925065 | CC96: 26.10047443 | CD96: 0.01832925065 | CE96: 0.2610047443 | CF96: -0.2548354578 | CG96: 0.5761627684 | CH96: 0.8518020871 | CI96: -1.818011101 | CJ96: 1.800855837 | CK96: 26.17271928 | CL96: 0.01801070632 | CM96: 0.2617249477 | CN96: -0.2555108593 | CO96: 0.5663480828 | CP96: 0.8612878916 | CQ96: -1.673697512 | CR96: 1.660023469 | CS96: 26.45477848 | CT96: 0.01661031027 | CU96: 0.2648289709 | CV96: -0.258472235 | CW96: 0.5233144616 | CX96: 1.351562591 | CY96: -2.695972968 | CZ96: 3.32336537 | DA96: 27.02918751 | DB96: 0.01641148547 | DC96: 0.2652315205 | DD96: -0.2588509616 | DE96: 0.5171937342 | DF96: 0.8625602957 | DG96: -1.653875453 | DH96: 1.640644067 | DI96: 26.50969699 | DJ96: 1.781944864 | DK96: -0.5513499619 | DL96: 3.29451952 | DM96: 27.37225728 | DN96: 27.56980826 | DO96: -25.87680887 | DP96: 49.6162636
A97: 0.8 | B97: 0.8625602957 | C97: -1.653875453 | D97: 1.640644067 | E97: 26.50969699 | F97: 1.865292009 | G97: -2.660862816 | H97: -152.4562092 | I97: -25.87680887 | J97: 49.6162636 | K97: -25.87680887 | L97: 49.6162636 | M97: 3.29451952 | N97: 27.37225728 | O97: -17.34034163 | P97: 21.43377894 | Q97: -1.653875453 | R97: -0.8625602957 | S97: -18.92338559 | T97: 19.64981729 | U97: 27.28020971 | V97: 27.56980826 | W97: 26.56041693 | X97: 1.787369175 | Y97: -0.5335032429 | Z97: 0.8025 | AA97: 0.8665001758 | AB97: -1.658010142 | AC97: 1.575952044 | AD97: 26.63373765 | AE97: -25.99500527 | AF97: 49.74030426 | AG97: 3.233962186 | AH97: -25.1285051 | AI97: 25.33575102 | AJ97: -1.658010142 | AK97: -0.8665001758 | AL97: 0.80375 | AM97: 0.8684294987 | AN97: -1.624640251 | AO97: 1.543458288 | AP97: 26.69591303 | AQ97: -26.05288496 | AR97: 48.73920752 | AS97: 3.168098539 | AT97: 27.56434253 | AU97: 27.74580738 | AV97: -1.624640251 | AW97: -0.8684294987 | AX97: 0.8092307692 | AY97: 0.8768888373 | AZ97: -1.478326112 | BA97: 1.400668438 | BB97: 26.96304138 | BC97: -26.30666512 | BD97: 44.34978336 | BE97: 2.87899455 | BF97: 27.83993021 | BG97: 27.98839624 | BH97: -1.478326112 | BI97: -0.8768888373 | BJ97: 0.81 | BK97: 0.8779507085 | BL97: -1.457559069 | BM97: 1.380432541 | BN97: 26.99715659 | BO97: -26.33852126 | BP97: 43.72677206 | BQ97: 2.83799161 | BR97: 27.8751073 | BS97: 28.01920419 | BT97: -1.457559069 | BU97: -0.8779507085 | BV97: 0.01640644067 | BW97: 0.2650969699 | BX97: -0.2587680887 | BY97: 0.496162636 | BZ97: 0.8666619058 | CA97: -1.587601211 | CB97: 1.575952044 | CC97: 26.63373765 | CD97: 0.01575952044 | CE97: 0.2663373765 | CF97: -0.2599500527 | CG97: 0.4974030426 | CH97: 0.8685307646 | CI97: -1.554115225 | CJ97: 1.543273606 | CK97: 26.69610684 | CL97: 0.01543458288 | CM97: 0.2669591303 | CN97: -0.2605288496 | CO97: 0.4873920752 | CP97: 0.8765973521 | CQ97: -1.40705158 | CR97: 1.399807446 | CS97: 26.93450213 | CT97: 0.01400668438 | CU97: 0.2696304138 | CV97: -0.2630666512 | CW97: 0.4434978336 | CX97: 1.383105062 | CY97: -2.450984195 | CZ97: 2.913912747 | DA97: 27.69686982 | DB97: 0.01380432541 | DC97: 0.2699715659 | DD97: -0.2633852126 | DE97: 0.4372677206 | DF97: 0.8776690147 | DG97: -1.386873409 | DH97: 1.380087101 | DI97: 26.98359208 | DJ97: 1.606359978 | DK97: -0.3366427953 | DL97: 2.76696051 | DM97: 27.86126109 | DN97: 27.99832031 | DO97: -26.33007044 | DP97: 41.60620226
A98: 0.81 | B98: 0.8776690147 | C98: -1.386873409 | D98: 1.380087101 | E98: 26.98359208 | F98: 1.641255846 | G98: -2.577375416 | H98: -147.6727335 | I98: -26.33007044 | J98: 41.60620226 | K98: -26.33007044 | L98: 41.60620226 | M98: 2.76696051 | N98: 27.86126109 | O98: -18.27173914 | P98: 21.21436987 | Q98: -1.386873409 | R98: -0.8776690147 | S98: -19.86484327 | T98: 19.38249523 | U98: 27.754155 | V98: 27.99832031 | W98: 27.01886159 | X98: 1.609646033 | Y98: -0.3205626313 | Z98: 0.8125 | AA98: 0.8809546695 | AB98: -1.390340592 | AC98: 1.314261925 | AD98: 27.08760758 | AE98: -26.42864009 | AF98: 41.71021777 | AG98: 2.704602517 | AH98: -25.54768542 | AI98: 25.69044774 | AJ98: -1.390340592 | AK98: -0.8809546695 | AL98: 0.81375 | AM98: 0.8825562022 | AN98: -1.35641591 | AO98: 1.281226125 | AP98: 27.13974536 | AQ98: -26.47668607 | AR98: 40.69247731 | AS98: 2.637642035 | AT98: 28.02230156 | AU98: 28.14616386 | AV98: -1.35641591 | AW98: -0.8825562022 | AX98: 0.8192307692 | AY98: 0.8895783069 | AZ98: -1.207669229 | BA98: 1.136113519 | BB98: 27.36277143 | BC98: -26.68734921 | BD98: 36.23007688 | BE98: 2.343782748 | BF98: 28.25234974 | BG98: 28.34940182 | BH98: -1.207669229 | BI98: -0.8895783069 | BJ98: 0.82 | BK98: 0.890436449 | BL98: -1.186599506 | BM98: 1.115584788 | BN98: 27.39064072 | BO98: -26.71309347 | BP98: 35.59798517 | BQ98: 2.302184294 | BR98: 28.28107717 | BS98: 28.37462561 | BT98: -1.186599506 | BU98: -0.890436449 | BV98: 0.01380087101 | BW98: 0.2698359208 | BX98: -0.2633007044 | BY98: 0.4160620226 | BZ98: 0.8811192325 | CA98: -1.319414428 | CB98: 1.314261925 | CC98: 27.08760758 | CD98: 0.01314261925 | CE98: 0.2708760758 | CF98: -0.2642864009 | CG98: 0.4171021777 | CH98: 0.882659208 | CI98: -1.285392395 | CJ98: 1.28107211 | CK98: 27.13990788 | CL98: 0.01281226125 | CM98: 0.2713974536 | CN98: -0.2647668607 | CO98: 0.4069247731 | CP98: 0.889282434 | CQ98: -1.136017207 | CR98: 1.135401671 | CS98: 27.33389672 | CT98: 0.01136113519 | CU98: 0.2736277143 | CV98: -0.2668734921 | CW98: 0.3623007688 | CX98: 1.410513984 | CY98: -2.198488634 | CZ98: 2.495631976 | DA98: 28.28204188 | DB98: 0.01115584788 | DC98: 0.2739064072 | DD98: -0.2671309347 | DE98: 0.3559798517 | DF98: 0.8901501477 | DG98: -1.115543104 | DH98: 1.115399422 | DI98: 27.37700729 | DJ98: 1.421730695 | DK98: -0.1244408869 | DL98: 2.230942527 | DM98: 28.26715744 | DN98: 28.35505765 | DO98: -26.70450443 | DP98: 33.46629312
A99: 0.82 | B99: 0.8901501477 | C99: -1.115543104 | D99: 1.115399422 | E99: 27.37700729 | F99: 1.427166319 | G99: -2.468101577 | H99: -141.4118038 | I99: -26.70450443 | J99: 33.46629312 | K99: -26.70450443 | L99: 33.46629312 | M99: 2.230942527 | N99: 28.26715744 | O99: -19.14541798 | P99: 20.9155986 | Q99: -1.115543104 | R99: -0.8901501477 | S99: -20.7430829 | T99: 19.04094549 | U99: 28.15729201 | V99: 28.35505765 | W99: 27.39971978 | X99: 1.422903997 | Y99: -0.1102175949 | Z99: 0.8225 | AA99: 0.8927717431 | AB99: -1.118331962 | AC99: 1.048638161 | AD99: 27.46067302 | AE99: -26.78315229 | AF99: 33.54995886 | AG99: 2.166970123 | AH99: -25.89038055 | AI99: 25.98090769 | AJ99: -1.118331962 | AK99: -0.8927717431 | AL99: 0.82375 | AM99: 0.8940406922 | AN99: -1.083953699 | AO99: 1.015159221 | AP99: 27.50261047 | AQ99: -26.82122076 | AR99: 32.51861096 | AS99: 2.09911292 | AT99: 28.39665117 | AU99: 28.47412988 | AV99: -1.083953699 | AW99: -0.8940406922 | AX99: 0.8292307692 | AY99: 0.8996045456 | AZ99: -0.9332182375 | BA99: 0.8681582995 | BB99: 27.68083748 | BC99: -26.98813637 | BD99: 27.99654713 | BE99: 1.801376537 | BF99: 28.58044202 | BG99: 28.6371546 | BH99: -0.9332182375 | BI99: -0.8996045456 | BJ99: 0.83 | BK99: 0.9002563904 | BL99: -0.9119087196 | BM99: 0.8473981946 | BN99: 27.70237328 | BO99: -27.00769171 | BP99: 27.35726159 | BQ99: 1.759306914 | BR99: 28.60262967 | BS99: 28.65668482 | BT99: -0.9119087196 | BU99: -0.9002563904 | BV99: 0.01115399422 | BW99: 0.2737700729 | BX99: -0.2670450443 | BY99: 0.3346629312 | BZ99: 0.8929386463 | CA99: -1.047100586 | CB99: 1.048638161 | CC99: 27.46067302 | CD99: 0.01048638161 | CE99: 0.2746067302 | CF99: -0.2678315229 | CG99: 0.3354995886 | CH99: 0.8941451295 | CI99: -1.012644017 | CJ99: 1.015036334 | CK99: 27.5027412 | CL99: 0.01015159221 | CM99: 0.2750261047 | CN99: -0.2682122076 | CO99: 0.3251861096 | CP99: 0.8993051709 | CQ99: -0.8614030116 | CR99: 0.8675977258 | CS99: 27.65171353 | CT99: 0.008681582995 | CU99: 0.2768083748 | CV99: -0.2698813637 | CW99: 0.2799654713 | CX99: 1.433706248 | CY99: -1.939238386 | CZ99: 2.069773309 | DA99: 28.78290081 | DB99: 0.008473981946 | DC99: 0.2770237328 | DD99: -0.2700769171 | DE99: 0.2735726159 | DF99: 0.8999663387 | DG99: -0.8406940833 | DH99: 0.8473734571 | DI99: 27.68871171 | DJ99: 1.228646095 | DK99: 0.08446730298 | DL99: 1.68806754 | DM99: 28.58867805 | DN99: 28.63847211 | DO99: -26.99899016 | DP99: 25.2208225
A100: 0.83 | B100: 0.8999663387 | C100: -0.8406940833 | D100: 0.8473734571 | E100: 27.68871171 | F100: 1.231546163 | G100: -2.322156052 | H100: -133.0497411 | I100: -26.99899016 | J100: 25.2208225 | K100: -26.99899016 | L100: 25.2208225 | M100: 1.68806754 | N100: 28.58867805 | O100: -19.95724653 | P100: 20.53948382 | Q100: -0.8406940833 | R100: -0.8999663387 | S100: -21.55406142 | T100: 18.62742313 | U100: 28.48786507 | V100: 28.63847211 | W100: 27.701675 | X100: 1.227740004 | Y100: 0.09674933583 | Z100: 0.8325 | AA100: 0.9019160286 | AB100: -0.8427958185 | AC100: 0.7798759817 | AD100: 27.75176377 | AE100: -27.05748086 | AF100: 25.28387455 | AG100: 1.6226718 | AH100: -26.15556483 | AI100: 26.20585117 | AJ100: -0.8427958185 | AK100: -0.9019160286 | AL100: 0.83375 | AM100: 0.9028485963 | AN100: -0.8080666077 | AO100: 0.7460541306 | AP100: 27.78336861 | AQ100: -27.08545789 | AR100: 24.24199823 | AS100: 1.554120738 | AT100: 28.6862172 | AU100: 28.72828482 | AV100: -0.8080666077 | AW100: -0.9028485963 | AX100: 0.8392307692 | AY100: 0.9069375468 | AZ100: -0.6557923759 | BA100: 0.5976049865 | BB100: 27.91623341 | BC100: -27.2081264 | BD100: 19.67377128 | BE100: 1.253397362 | BF100: 28.82317095 | BG100: 28.85041055 | BH100: -0.6557923759 | BI100: -0.9069375468 | BJ100: 0.84 | BK100: 0.9073811435 | BL100: -0.6343067089 | BM100: 0.5766756584 | BN100: 27.93136708 | BO100: -27.2214343 | BP100: 19.02920127 | BQ100: 1.210982367 | BR100: 28.83874822 | BS100: 28.86416251 | BT100: -0.6343067089 | BU100: -0.9073811435 | BV100: 0.008473734571 | BW100: 0.2768871171 | BX100: -0.2699899016 | BY100: 0.252208225 | BZ100: 0.9020847723 | CA100: -0.771472304 | CB100: 0.7798759817 | CC100: 27.75176377 | CD100: 0.007798759817 | CE100: 0.2775176377 | CF100: -0.2705748086 | CG100: 0.2528387455 | CH100: 0.9029541525 | CI100: -0.7366840804 | CJ100: 0.7459627389 | CK100: 27.78346713 | CL100: 0.007460541306 | CM100: 0.2778336861 | CN100: -0.2708545789 | CO100: 0.2424199823 | CP100: 0.9066355667 | CQ100: -0.5840288612 | CR100: 0.5971973644 | CS100: 27.88694726 | CT100: 0.005976049865 | CU100: 0.2791623341 | CV100: -0.272081264 | CW100: 0.1967377128 | CX100: 1.452611352 | CY100: -1.674006292 | CZ100: 1.637610003 | DA100: 29.19789502 | DB100: 0.005766756584 | DC100: 0.2793136708 | DD100: -0.272214343 | DE100: 0.1902920127 | DF100: 0.9070882098 | DG100: -0.5631469581 | DH100: 0.576811623 | DI100: 27.91771825 | DJ100: 1.027735652 | DK100: 0.289314615 | DL100: 1.139958581 | DM100: 28.82480646 | DN100: 28.8473391 | DO100: -27.21264629 | DP100: 16.89440874
A101: 0.84 | B101: 0.9070882098 | C101: -0.5631469581 | D101: 0.576811623 | E101: 27.91771825 | F101: 1.067681374 | G101: -2.126390879 | H101: -121.833223 | I101: -27.21264629 | J101: 16.89440874 | K101: -27.21264629 | L101: 16.89440874 | M101: 1.139958581 | N101: 28.82480646 | O101: -20.70331384 | P101: 20.08834909 | Q101: -0.5631469581 | R101: -0.9070882098 | S101: -22.29397667 | T101: 18.14447065 | U101: 28.74444661 | V101: 28.8473391 | W101: 27.9236764 | X101: 1.024791168 | Y101: 0.2995773346 | Z101: 0.8425 | AA101: 0.9083601598 | AB101: -0.5645548255 | AC101: 0.5087800073 | AD101: 27.95995427 | AE101: -27.25080479 | AF101: 16.93664477 | AG101: 1.073334833 | AH101: -26.34244464 | AI101: 26.36430232 | AJ101: -0.5645548255 | AK101: -0.9083601598 | AL101: 0.84375 | AM101: 0.9089535555 | AN101: -0.5295784192 | AO101: 0.4747165013 | AP101: 27.98112508 | AQ101: -27.26860666 | AR101: 15.88735258 | AS101: 1.00429492 | AT101: 28.89007863 | AU101: 28.90752933 | AV101: -0.5295784192 | AW101: -0.9089535555 | AX101: 0.8492307692 | AY101: 0.9115553671 | AZ101: -0.3762203298 | BA101: 0.3252635609 | BB101: 28.06819999 | BC101: -27.34666101 | BD101: 11.28660989 | BE101: 0.7014838907 | BF101: 28.97975536 | BG101: 28.98824417 | BH101: -0.3762203298 | BI101: -0.9115553671 | BJ101: 0.85 | BK101: 0.9117893883 | BL101: -0.3546227283 | BM101: 0.3042276678 | BN101: 28.076882 | BO101: -27.35368165 | BP101: 10.63868185 | BQ101: 0.6588503961 | BR101: 28.98867139 | BS101: 28.99615755 | BT101: -0.3546227283 | BU101: -0.9117893883 | BV101: 0.00576811623 | BW101: 0.2791771825 | BX101: -0.2721264629 | BY101: 0.1689440874 | BZ101: 0.9085302389 | CA101: -0.4933526625 | CB101: 0.5087800073 | CC101: 27.95995427 | CD101: 0.005087800073 | CE101: 0.2795995427 | CF101: -0.2725080479 | CG101: 0.1693664477 | CH101: 0.9090599145 | CI101: -0.4583367259 | CJ101: 0.4746568786 | CK101: 27.98119107 | CL101: 0.004747165013 | CM101: 0.2798112508 | CN101: -0.2726860666 | CO101: 0.1588735258 | CP101: 0.9112516854 | CQ101: -0.3047234285 | CR101: 0.3250101103 | CS101: 28.03883923 | CT101: 0.003252635609 | CU101: 0.2806819999 | CV101: -0.2734666101 | CW101: 0.1128660989 | CX101: 1.467171613 | CY101: -1.403583625 | CZ101: 1.200434515 | DA101: 29.52572903 | DB101: 0.003042276678 | DC101: 0.28076882 | DD101: -0.2735368165 | DE101: 0.1063868185 | DF101: 0.9114944497 | DG101: -0.2837309595 | DH101: 0.3045239268 | DI101: 28.06328679 | DJ101: 0.819666968 | DK101: 0.4893582028 | DL101: 0.5882548862 | DM101: 28.97478124 | DN101: 28.98075209 | DO101: -27.34483349 | DP101: 8.511928784
A102: 0.85 | B102: 0.9114944497 | C102: -0.2837309595 | D102: 0.3045239268 | E102: 28.06328679 | F102: 0.9546336413 | G102: -1.872570318 | H102: -107.290376 | I102: -27.34483349 | J102: 8.511928784 | K102: -27.34483349 | L102: 8.511928784 | M102: 0.5882548862 | N102: 28.97478124 | O102: -21.37994708 | P102: 19.56481164 | Q102: -0.2837309595 | R102: -0.9114944497 | S102: -22.95928418 | T102: 17.59490584 | U102: 28.92593026 | V102: 28.98075209 | W102: 28.06493899 | X102: 0.8147324845 | Y102: 0.4975302682 | Z102: 0.8525 | AA102: 0.9120848543 | AB102: -0.2844402869 | AC102: 0.236161843 | AD102: 28.08456661 | AE102: -27.36254563 | AF102: 8.533208606 | AG102: 0.5206021299 | AH102: -26.45046077 | AI102: 26.45558356 | AJ102: -0.2844402869 | AK102: -0.9120848543 | AL102: 0.85375 | AM102: 0.9123373026 | AN102: -0.2493212455 | AO102: 0.201958661 | AP102: 28.09523313 | AQ102: -27.37011908 | AR102: 7.479637364 | AS102: 0.4512799065 | AT102: 29.00757043 | AU102: 29.01108057 | AV102: -0.2493212455 | AW102: -0.9123373026 | AX102: 0.8592307692 | AY102: 0.9134441914 | AZ102: -0.09533775622 | BA102: 0.05194935453 | BB102: 28.13622729 | BC102: -27.40332574 | BD102: 2.860132687 | BE102: 0.1472871108 | BF102: 29.04967148 | BG102: 29.05004487 | BH102: -0.09533775622 | BI102: -0.9134441914 | BJ102: 0.86 | BK102: 0.9134679375 | BL102: -0.07369281207 | BM102: 0.03086987319 | BN102: 28.13842739 | BO102: -27.40403812 | BP102: 2.210784362 | BQ102: 0.1045626853 | BR102: 29.05189533 | BS102: 29.0520835 | BT102: -0.07369281207 | BU102: -0.9134679375 | BV102: 0.003045239268 | BW102: 0.2806328679 | BX102: -0.2734483349 | BY102: 0.08511928784 | BZ102: 0.9122557595 | CA102: -0.2135727425 | CB102: 0.236161843 | CC102: 28.08456661 | CD102: 0.00236161843 | CE102: 0.2808456661 | CF102: -0.2736254563 | CG102: 0.08533208606 | CH102: 0.912444146 | CI102: -0.1784337845 | CJ102: 0.2019309858 | CK102: 28.09526637 | CL102: 0.00201958661 | CM102: 0.2809523313 | CN102: -0.2737011908 | CO102: 0.07479637364 | CP102: 0.9131397175 | CQ102: -0.0243217135 | CR102: 0.05185083359 | CS102: 28.10687978 | CT102: 0.0005194935453 | CU102: 0.2813622729 | CV102: -0.2740332574 | CW102: 0.02860132687 | CX102: 1.477342343 | CY102: -1.128777734 | CZ102: 0.7595546301 | DA102: 29.76536753 | DB102: 0.0003086987319 | DC102: 0.2813842739 | DD102: -0.2740403812 | DE102: 0.02210784362 | DF102: 0.9131718767 | DG102: -0.003281459627 | DH102: 0.03132553903 | DI102: 28.12492655 | DJ102: 0.6051433443 | DK102: 0.6838824295 | DL102: 0.03460699865 | DM102: 29.03809842 | DN102: 29.03811905 | DO102: -27.3951563 | DP102: 0.09844378881
A103: 0.86 | B103: 0.9131718767 | C103: -0.003281459627 | D103: 0.03132553903 | E103: 28.12492655 | F103: 0.9131777726 | G103: -1.574389786 | H103: -90.20589002 | I103: -27.3951563 | J103: 0.09844378881 | K103: -27.3951563 | L103: 0.09844378881 | M103: 0.03460699865 | N103: 29.03809842 | O103: -21.98372803 | P103: 18.97177007 | Q103: -0.003281459627 | R103: -0.9131718767 | S103: -23.54671294 | T103: 16.98180837 | U103: 29.03152606 | V103: 29.03811905 | W103: 28.12494399 | X103: 0.598274377 | Y103: 0.6898995682 | Z103: 0.8625 | AA103: 0.9130789709 | AB103: -0.003289663276 | AC103: -0.03716235173 | AD103: 28.12517266 | AE103: -27.39236913 | AF103: 0.09868989828 | AG103: -0.03387268845 | AH103: -26.47929015 | AI103: 26.47931182 | AJ103: -0.003289663276 | AK103: -0.9130789709 | AL103: 0.86375 | AM103: 0.9129897173 | AN103: 0.03186695675 | AO103: -0.07140281314 | AP103: 28.12529602 | AQ103: -27.38969152 | AR103: -0.9560087024 | AS103: -0.1032697699 | AT103: 29.03828574 | AU103: 29.03846937 | AV103: 0.03186695675 | AW103: -0.9129897173 | AX103: 0.8692307692 | AY103: 0.912598375 | AZ103: 0.1860152138 | BA103: -0.2215193917 | BB103: 28.12005636 | BC103: -27.37795125 | BD103: -5.580456413 | BE103: -0.4075346054 | BF103: 29.03265473 | BG103: 29.03551489 | BH103: 0.1860152138 | BI103: -0.912598375 | BJ103: 0.87 | BK103: 0.9124117755 | BL103: 0.2076427243 | BM103: -0.2425793542 | BN103: 28.1157637 | BO103: -27.37235326 | BP103: -6.229281729 | BQ103: -0.4502220785 | BR103: 29.02817547 | BS103: 29.0316667 | BT103: 0.2076427243 | BU103: -0.9124117755 | BV103: 0.0003132553903 | BW103: 0.2812492655 | BX103: -0.273951563 | BY103: 0.0009844378881 | BZ103: 0.9132501906 | CA103: 0.06703085674 | CB103: -0.03716235173 | CC103: 28.12517266 | CD103: -0.0003716235173 | CE103: 0.2812517266 | CF103: -0.2739236913 | CG103: 0.0009868989828 | CH103: 0.9130967253 | CI103: 0.1021877071 | CJ103: -0.07139845817 | CK103: 28.1252964 | CL103: -0.0007140281314 | CM103: 0.2812529602 | CN103: -0.2738969152 | CO103: -0.009560087024 | CP103: 0.9122940203 | CQ103: 0.2563374512 | CR103: -0.2214626886 | CS103: 28.09080996 | CT103: -0.002215193917 | CU103: 0.2812005636 | CV103: -0.2737795125 | CW103: -0.05580456413 | CX103: 1.483091983 | CY103: -0.8504096278 | CZ103: 0.3162895576 | DA103: 29.9160386 | DB103: -0.002425793542 | DC103: 0.281157637 | DD103: -0.2737235326 | DE103: -0.06229281729 | DF103: 0.9121154791 | DG103: 0.2773625246 | DH103: -0.2419656462 | DI103: 28.1023977 | DJ103: 0.3849011874 | DK103: 0.8722016356 | DL103: -0.5193281707 | DM103: 29.01451318 | DN103: 29.01916051 | DO103: -27.36346437 | DP103: -8.320875737
A104: 0.87 | B104: 0.9121154791 | C104: 0.2773625246 | D104: -0.2419656462 | E104: 28.1023977 | F104: 0.9533544027 | G104: -1.275594156 | H104: -73.08616153 | I104: -27.36346437 | J104: -8.320875737 | K104: -27.36346437 | L104: -8.320875737 | M104: -0.5193281707 | N104: 29.01451318 | O104: -22.51150861 | P104: 18.3123908 | Q104: 0.2773625246 | R104: -0.9121154791 | S104: -24.05328009 | T104: 16.30850546 | U104: 29.06075762 | V104: 29.01916051 | W104: 28.10343936 | X104: 0.3761600715 | Y104: 0.8760069736 | Z104: 0.8725 | AA104: 0.9113395433 | AB104: 0.2780559309 | AC104: -0.3103743071 | AD104: 28.08159551 | AE104: -27.3401863 | AF104: -8.341677926 | AG104: -0.588430238 | AH104: -26.42884676 | AI104: 26.43539655 | AJ104: 0.2780559309 | AK104: -0.9113395433 | AL104: 0.87375 | AM104: 0.9109088564 | AN104: 0.3131448914 | AO104: -0.34454954 | AP104: 28.07116841 | AQ104: -27.32726569 | AR104: -9.394346742 | AS104: -0.6576944314 | AT104: 28.98207727 | AU104: 28.98953888 | AV104: 0.3131448914 | AW104: -0.9109088564 | AX104: 0.8792307692 | AY104: 0.9090204599 | AZ104: 0.4669964875 | BA104: -0.4943239769 | BB104: 28.01968016 | BC104: -27.2706138 | BD104: -14.00989462 | BE104: -0.9613204644 | BF104: 28.92870062 | BG104: 28.94466888 | BH104: 0.4669964875 | BI104: -0.9090204599 | BJ104: 0.88 | BK104: 0.9086240742 | BL104: 0.4885417977 | BM104: -0.5153013722 | BN104: 28.00890332 | BO104: -27.25872223 | BP104: -14.65625393 | BQ104: -1.00384317 | BR104: 28.9175274 | BS104: 28.93494586 | BT104: 0.4885417977 | BU104: -0.9086240742 | BV104: -0.002419656462 | BW104: 0.281023977 | BX104: -0.2736346437 | BY104: -0.08320875737 | BZ104: 0.911510565 | CA104: 0.3476185188 | CB104: -0.3103743071 | CC104: 28.08159551 | CD104: -0.003103743071 | CE104: 0.2808159551 | CF104: -0.273401863 | CG104: -0.08341677926 | CH104: 0.9110157086 | CI104: 0.3826880098 | CJ104: -0.344513168 | CK104: 28.07113591 | CL104: -0.0034454954 | CM104: 0.2807116841 | CN104: -0.2732726569 | CO104: -0.09394346742 | CP104: 0.9087171356 | CQ104: 0.5364139102 | CR104: -0.4941122201 | CS104: 27.99062253 | CT104: -0.004943239769 | CU104: 0.2801968016 | CV104: -0.272706138 | CW104: -0.1400989462 | CX104: 1.484402208 | CY104: -0.5693115295 | CZ104: -0.1280340215 | DA104: 29.97723621 | DB104: -0.005153013722 | DC104: 0.2800890332 | DD104: -0.2725872223 | DE104: -0.1465625393 | DF104: 0.9083284291 | DG104: 0.5573608415 | DH104: -0.5145314599 | DI104: 27.99571228 | DJ104: 0.1597072652 | DK104: 1.05366277 | DL104: -1.071892301 | DM104: 28.90404071 | DN104: 28.92390918 | DO104: -27.24985287 | DP104: -16.72082525
A105: 0.88 | B105: 0.9083284291 | C105: 0.5573608415 | D105: -0.5145314599 | E105: 27.99571228 | F105: 1.065697726 | G105: -1.020428384 | H105: -58.46623972 | I105: -27.24985287 | J105: -16.72082525 | K105: -27.24985287 | L105: -16.72082525 | M105: -1.071892301 | N105: 28.90404071 | O105: -22.96042534 | P105: 17.59009354 | Q105: 0.5573608415 | R105: -0.9083284291 | S105: -24.47630453 | T105: 15.57855645 | U105: 29.01346075 | V105: 28.92390918 | W105: 28.00044015 | X105: 0.1491628278 | Y105: 1.055207133 | Z105: 0.8825 | AA105: 0.9068717889 | AB105: 0.5587542436 | AC105: -0.5826560921 | AD105: 27.95391021 | AE105: -27.20615367 | AF105: -16.76262731 | AG105: -1.141410336 | AH105: -26.29928188 | AI105: 26.3240393 | AJ105: 0.5587542436 | AK105: -0.9068717889 | AL105: 0.88375 | AM105: 0.9061009592 | AN105: 0.5936704398 | AO105: -0.6166637842 | AP105: 27.93295693 | AQ105: -27.18302878 | AR105: -17.81011319 | AS105: -1.210334224 | AT105: 28.83905789 | AU105: 28.86444472 | AV105: 0.5936704398 | AW105: -0.9061009592 | AX105: 0.8892307692 | AY105: 0.9027211673 | AZ105: 0.7467645307 | BA105: -0.7656476919 | BB105: 27.83534381 | BC105: -27.08163502 | BD105: -22.40293592 | BE105: -1.512412223 | BF105: 28.73806498 | BG105: 28.77783469 | BH105: 0.7467645307 | BI105: -0.9027211673 | BJ105: 0.89 | BK105: 0.9021161829 | BL105: 0.7681630774 | BM105: -0.7864797188 | BN105: 27.81811078 | BO105: -27.06348549 | BP105: -23.04489232 | BQ105: -1.554642796 | BR105: 28.72022696 | BS105: 28.76227305 | BT105: 0.7681630774 | BU105: -0.9021161829 | BV105: -0.005145314599 | BW105: 0.2799571228 | BX105: -0.2724985287 | BY105: -0.1672082525 | BZ105: 0.9070421005 | CA105: 0.6273501222 | CB105: -0.5826560921 | CC105: 27.95391021 | CD105: -0.005826560921 | CE105: 0.2795391021 | CF105: -0.2720615367 | CG105: -0.1676262731 | CH105: 0.9062073356 | CI105: 0.6622271943 | CJ105: -0.6165955042 | CK105: 27.93289161 | CL105: -0.006166637842 | CM105: 0.2793295693 | CN105: -0.2718302878 | CO105: -0.1781011319 | CP105: 0.9024197815 | CQ105: 0.8150686992 | CR105: -0.7652815159 | CS105: 27.80656206 | CT105: -0.007656476919 | CU105: 0.2783534381 | CV105: -0.2708163502 | CW105: -0.2240293592 | CX105: 1.481267979 | CY105: -0.2863243838 | CZ105: -0.5720859232 | DA105: 29.94872189 | DB105: -0.007864797188 | DC105: 0.2781811078 | DD105: -0.2706348549 | DE105: -0.2304489232 | DF105: 0.9018220743 | DG105: 0.8358747197 | DH105: -0.7855559077 | DI105: 27.8051343 | DJ105: -0.06964417788 | DK105: 1.227647869 | DL105: -1.621430627 | DM105: 28.70695637 | DN105: 28.75271086 | DO105: -27.05466223 | DP105: -25.07624159
A106: 0.89 | B106: 0.9018220743 | C106: 0.8358747197 | D106: -0.7855559077 | E106: 27.8051343 | F106: 1.229621731 | G106: -0.8233309726 | H106: -47.17338988 | I106: -27.05466223 | J106: -25.07624159 | K106: -27.05466223 | L106: -25.07624159 | M106: -1.621430627 | N106: 28.70695637 | O106: -23.32791269 | P106: 16.80853566 | Q106: 0.8358747197 | R106: -0.9018220743 | S106: -24.81341931 | T106: 14.79573645 | U106: 28.88978358 | V106: 28.75271086 | W106: 27.81622892 | X106: -0.08191696978 | Y106: 1.226890056 | Z106: 0.8925 | AA106: 0.8996890929 | AB106: 0.8379644065 | AC106: -0.8531925633 | AD106: 27.7424437 | AE106: -26.99067279 | AF106: -25.1389322 | AG106: -1.69115697 | AH106: -26.09098369 | AI106: 26.14573468 | AJ106: 0.8379644065 | AK106: -0.8996890929 | AL106: 0.89375 | AM106: 0.8985804292 | AN106: 0.8726031815 | AO106: -0.8869309043 | AP106: 27.71102003 | AQ106: -26.95741288 | AR106: -26.17809545 | AS106: -1.759534086 | AT106: 28.60960046 | AU106: 28.66365641 | AV106: 0.8726031815 | AW106: -0.8985804292 | AX106: 0.8992307692 | AY106: 0.8937193656 | AZ106: 1.024480887 | BA106: -1.034678263 | BB106: 27.56754393 | BC106: -26.81158097 | BD106: -30.73442662 | BE106: -2.059159151 | BF106: 28.4612633 | BG106: 28.53565568 | BH106: 1.024480887 | BI106: -0.8937193656 | BJ106: 0.9 | BK106: 0.8929075944 | BL106: 1.045668504 | BM106: -1.055302556 | BN106: 27.54390206 | BO106: -26.78722783 | BP106: -31.37005513 | BQ106: -2.100971061 | BR106: 28.43680966 | BS106: 28.51431611 | BT106: 1.045668504 | BU106: -0.8929075944 | BV106: -0.007855559077 | BW106: 0.278051343 | BX106: -0.2705466223 | BY106: -0.2507624159 | BZ106: 0.8998581845 | CA106: 0.9053875555 | CB106: -0.8531925633 | CC106: 27.7424437 | CD106: -0.008531925633 | CE106: 0.277424437 | CF106: -0.2699067279 | CG106: -0.251389322 | CH106: 0.8986860115 | CI106: 0.939967656 | CJ106: -0.8868309208 | CK106: 27.71092208 | CL106: -0.008869309043 | CM106: 0.2771102003 | CN106: -0.2695741288 | CO106: -0.2617809545 | CP106: 0.8934208206 | CQ106: 1.091466559 | CR106: -1.034158765 | CS106: 27.53912442 | CT106: -0.01034678263 | CU106: 0.2756754393 | CV106: -0.2681158097 | CW106: -0.3073442662 | CX106: 1.473697563 | CY106: -0.002295343616 | CZ106: -1.014536442 | DA106: 29.83052561 | DB106: -0.01055302556 | DC106: 0.2754390206 | DD106: -0.2678722783 | DE106: -0.3137005513 | DF106: 0.8926159027 | DG106: 1.11206928 | DH106: -1.054227613 | DI106: 27.53117914 | DJ106: -0.3023344344 | DK106: 1.393576378 | DL106: -2.166296893 | DM106: 28.42379504 | DN106: 28.50622681 | DO106: -26.77847708 | DP106: -33.36207839
A107: 0.9 | B107: 0.8926159027 | C107: 1.11206928 | D107: -1.054227613 | E107: 27.53117914 | F107: 1.425994822 | G107: -0.6763620888 | H107: -38.75269311 | I107: -26.77847708 | J107: -33.36207839 | K107: -26.77847708 | L107: -33.36207839 | M107: -2.166296893 | N107: 28.42379504 | O107: -23.61171527 | P107: 15.97159569 | Q107: 1.11206928 | R107: -0.8926159027 | S107: -25.06258278 | T107: 13.96401914 | U107: 28.69018798 | V107: 28.50622681 | W107: 27.55135606 | X107: -0.3162548493 | Y107: 1.390483406 | Z107: 0.9025 | AA107: 0.8898129682 | AB107: 1.114849453 | AC107: -1.121173805 | AD107: 27.44777395 | AE107: -26.69438905 | AF107: -33.44548359 | AG107: -2.236023258 | AH107: -25.80457608 | AI107: 25.90127307 | AJ107: 1.114849453 | AK107: -0.8898129682 | AL107: 0.90375 | AM107: 0.888369791 | AN107: 1.149106912 | AO107: -1.154541792 | AP107: 27.40596709 | AQ107: -26.65109373 | AR107: -34.47320736 | AS107: -2.303648704 | AT107: 28.29433688 | AU107: 28.38796042 | AV107: 1.149106912 | AW107: -0.888369791 | AX107: 0.9092307692 | AY107: 0.8820420138 | AZ107: 1.299312693 | BA107: -1.300610286 | BB107: 27.2170274 | BC107: -26.46126042 | BD107: -38.97938079 | BE107: -2.599922979 | BF107: 28.09906941 | BG107: 28.21909462 | BH107: 1.299312693 | BI107: -0.8820420138 | BJ107: 0.91 | BK107: 0.8810258868 | BL107: 1.320225803 | BM107: -1.320965102 | BN107: 27.18704326 | BO107: -26.43077661 | BP107: -39.6067741 | BQ107: -2.641190905 | BR107: 28.06806914 | BS107: 28.19206262 | BT107: 1.320225803 | BU107: -0.8810258868 | BV107: -0.01054227613 | BW107: 0.2753117914 | BX107: -0.2677847708 | BY107: -0.3336207839 | BZ107: 0.8899803337 | CA107: 1.180897228 | CB107: -1.121173805 | CC107: 27.44777395 | CD107: -0.01121173805 | CE107: 0.2744777395 | CF107: -0.2669438905 | CG107: -0.3344548359 | CH107: 0.888474263 | CI107: 1.215076624 | CJ107: -1.154410404 | CK107: 27.40583677 | CL107: -0.01154541792 | CM107: 0.2740596709 | CN107: -0.2665109373 | CO107: -0.3447320736 | CP107: 0.8817472033 | CQ107: 1.364778436 | CR107: -1.299939021 | CS107: 27.18905545 | CT107: -0.01300610286 | CU107: 0.272170274 | CV107: -0.2646126042 | CW107: -0.3897938079 | CX107: 1.461712513 | CY107: 0.2819247659 | CZ107: -1.454060335 | DA107: 29.62294587 | DB107: -0.01320965102 | DC107: 0.2718704326 | DD107: -0.2643077661 | DE107: -0.396067741 | DF107: 0.8807374853 | DG107: 1.385116037 | DH107: -1.319742244 | DI107: 27.17461216 | DJ107: -0.5375234646 | DK107: 1.550907308 | DL107: -2.704858282 | DM107: 28.05534964 | DN107: 28.18543776 | DO107: -26.42212456 | DP107: -41.55348111
A108: 0.91 | B108: 0.8807374853 | C108: 1.385116037 | D108: -1.319742244 | E108: 27.17461216 | F108: 1.641415534 | G108: -0.5663694323 | H108: -32.45057812 | I108: -26.42212456 | J108: -41.55348111 | K108: -26.42212456 | L108: -41.55348111 | M108: -2.704858282 | N108: 28.05534964 | O108: -23.80989873 | P108: 15.08335586 | Q108: 1.385116037 | R108: -0.8807374853 | S108: -25.22208846 | T108: 13.08755877 | U108: 28.4154525 | V108: 28.18543776 | W108: 27.2066401 | X108: -0.5530054032 | Y108: 1.545454619 | Z108: 0.9125 | AA108: 0.8772729914 | AB108: 1.388578827 | AC108: -1.385797556 | AD108: 27.07072845 | AE108: -26.31818974 | AF108: -41.65736482 | AG108: -2.774376383 | AH108: -25.44091675 | AI108: 25.59174495 | AJ108: 1.388578827 | AK108: -0.8772729914 | AL108: 0.91375 | AM108: 0.8754996223 | AN108: 1.422352148 | AO108: -1.418695293 | AP108: 27.01865675 | AQ108: -26.26498867 | AR108: -42.67056445 | AS108: -2.841047441 | AT108: 27.89415637 | AU108: 28.03846483 | AV108: 1.422352148 | AW108: -0.8754996223 | AX108: 0.9192307692 | AY108: 0.8677240808 | AZ108: 1.570435171 | BA108: -1.562647635 | BB108: 26.78478923 | BC108: -26.03172242 | BD108: -47.11305512 | BE108: -3.133082805 | BF108: 27.65251331 | BG108: 27.82943945 | BH108: 1.570435171 | BI108: -0.8677240808 | BJ108: 0.92 | BK108: 0.8665066408 | BL108: 1.591010977 | BM108: -1.582672037 | BN108: 26.74854842 | BO108: -25.99519922 | BP108: -47.73032932 | BQ108: -3.173683014 | BR108: 27.61505506 | BS108: 27.79682589 | BT108: 1.591010977 | BU108: -0.8665066408 | BV108: -0.01319742244 | BW108: 0.2717461216 | BX108: -0.2642212456 | BY108: -0.4155348111 | BZ108: 0.8774381297 | CA108: 1.453052568 | CB108: -1.385797556 | CC108: 27.07072845 | CD108: -0.01385797556 | CE108: 0.2707072845 | CF108: -0.2631818974 | CG108: -0.4165736482 | CH108: 0.8756026713 | CI108: 1.48672866 | CJ108: -1.418532895 | CK108: 27.01849443 | CL108: -0.01418695293 | CM108: 0.2701865675 | CN108: -0.2626498867 | CO108: -0.4267056445 | CP108: 0.8674338873 | CQ108: 1.634183973 | CR108: -1.561826613 | CS108: 26.7573489 | CT108: -0.01562647635 | CU108: 0.2678478923 | CV108: -0.2603172242 | CW108: -0.4711305512 | CX108: 1.445347605 | CY108: 0.5654839958 | CZ108: -1.889340786 | DA108: 29.32654895 | DB108: -0.01582672037 | DC108: 0.2674854842 | DD108: -0.2599519922 | DE108: -0.4773032932 | DF108: 0.8662223928 | DG108: 1.654195386 | DH108: -1.581304927 | DI108: 26.73644655 | DJ108: -0.7743531321 | DK108: 1.699141206 | DL108: -3.235500313 | DM108: 27.60266894 | DN108: 27.79164973 | DO108: -25.98667178 | DP108: -49.62586159
A109: 0.92 | B109: 0.8662223928 | C109: 1.654195386 | D109: -1.581304927 | E109: 26.73644655 | F109: 1.867271702 | G109: -0.4823895221 | H109: -27.63888369 | I109: -25.98667178 | J109: -49.62586159 | K109: -25.98667178 | L109: -49.62586159 | M109: -3.235500313 | N109: 27.60266894 | O109: -23.92085943 | P109: 14.14808393 | Q109: 1.654195386 | R109: -0.8662223928 | S109: -25.29057359 | T109: 12.17067144 | U109: 28.06667697 | V109: 27.79164973 | W109: 26.78316821 | X109: -0.7913055436 | Y109: 1.691312847 | Z109: 0.9225 | AA109: 0.8621067138 | AB109: 1.658330875 | AC109: -1.646271606 | AD109: 26.61238189 | AE109: -25.86320141 | AF109: -49.74992625 | AG109: -3.304602481 | AH109: -25.0010947 | AI109: 25.21854742 | AJ109: 1.658330875 | AK109: -0.8621067138 | AL109: 0.92375 | AM109: 0.860008463 | AN109: 1.691518618 | AO109: -1.678600608 | AP109: 26.55019449 | AQ109: -25.80025389 | AR109: -50.74555854 | AS109: -3.370119226 | AT109: 27.41020295 | AU109: 27.61660604 | AV109: 1.691518618 | AW109: -0.860008463 | AX109: 0.9292307692 | AY109: 0.8508084404 | AZ109: 1.837034107 | BA109: -1.820005845 | BB109: 26.27206979 | BC109: -25.52425321 | BD109: -55.11102321 | BE109: -3.657039953 | BF109: 27.12287823 | BG109: 27.36831132 | BH109: 1.837034107 | BI109: -0.8508084404 | BJ109: 0.93 | BK109: 0.8493933328 | BL109: 1.857210781 | BM109: -1.839639886 | BN109: 26.2296767 | BO109: -25.48179999 | BP109: -55.71632344 | BQ109: -3.696850668 | BR109: 27.07907003 | BS109: 27.33025317 | BT109: 1.857210781 | BU109: -0.8493933328 | BV109: -0.01581304927 | BW109: 0.2673644655 | BX109: -0.2598667178 | BY109: -0.4962586159 | BZ109: 0.8622691305 | CA109: 1.721036503 | CB109: -1.646271606 | CC109: 26.61238189 | CD109: -0.01646271606 | CE109: 0.2661238189 | CF109: -0.2586320141 | CG109: -0.4974992625 | CH109: 0.8601097805 | CI109: 1.754108129 | CJ109: -1.678407685 | CK109: 26.55000064 | CL109: -0.01678600608 | CM109: 0.2655019449 | CN109: -0.2580025389 | CO109: -0.5074555854 | CP109: 0.8505237328 | CQ109: 1.898873967 | CR109: -1.819037526 | CS109: 26.24524359 | CT109: -0.01820005845 | CU109: 0.2627206979 | CV109: -0.2552425321 | CW109: -0.5511102321 | CX109: 1.424650738 | CY109: 0.8475318265 | CZ109: -2.319073356 | DA109: 28.94216738 | DB109: -0.01839639886 | DC109: 0.262296767 | DD109: -0.2548179999 | DE109: -0.5571632344 | DF109: 0.8491140894 | DG109: 1.918499062 | DH109: -1.838132617 | DI109: 26.21794051 | DJ109: -1.011950531 | DK109: 1.837821947 | DL109: -3.756631679 | DM109: 27.0670546 | DN109: 27.32650227 | DO109: -25.47342268 | DP109: -57.55497185
A110: 0.93 | B110: 0.8491140894 | C110: 1.918499062 | D110: -1.838132617 | E110: 26.21794051 | F110: 2.098007003 | G110: -0.4166771439 | H110: -23.87384177 | I110: -25.47342268 | J110: -57.55497185 | K110: -25.47342268 | L110: -57.55497185 | M110: -3.756631679 | N110: 27.0670546 | O110: -23.94333278 | P110: 13.17021417 | Q110: 1.918499062 | R110: -0.8491140894 | S110: -25.26702629 | T110: 11.21781577 | U110: 27.64528908 | V110: 27.32650227 | W110: 26.28229701 | X110: -1.030277847 | Y110: 1.82761072 | Z110: 0.9325 | AA110: 0.844359549 | AB110: 1.923295309 | AC110: -1.901816174 | AD110: 26.07405308 | AE110: -25.33078647 | AF110: -57.69885928 | AG110: -3.825111483 | AH110: -24.48642692 | AI110: 24.78339325 | AJ110: 1.923295309 | AK110: -0.844359549 | AL110: 0.93375 | AM110: 0.8419426994 | AN110: 1.955797721 | AO110: -1.933479657 | AP110: 26.0019295 | AQ110: -25.25828098 | AR110: -58.67393163 | AS110: -3.889277378 | AT110: 26.8438722 | AU110: 27.12415811 | AV110: 1.955797721 | AW110: -0.8419426994 | AX110: 0.9392307692 | AY110: 0.8313457436 | AZ110: 2.098308296 | BA110: -2.071914466 | BB110: 25.68035123 | BC110: -24.94037231 | BD110: -62.94924889 | BE110: -4.170222763 | BF110: 26.51169697 | BG110: 26.83767565 | BH110: 2.098308296 | BI110: -0.8313457436 | BJ110: 0.94 | BK110: 0.8297372056 | BL110: 2.118025164 | BM110: -2.091099368 | BN110: 25.63192873 | BO110: -24.89211617 | BP110: -63.54075493 | BQ110: -4.209124533 | BR110: 26.46166593 | BS110: 26.79433696 | BT110: 2.118025164 | BU110: -0.8297372056 | BV110: -0.01838132617 | BW110: 0.2621794051 | BX110: -0.2547342268 | BY110: -0.5755497185 | BZ110: 0.8445187578 | CA110: 1.984043913 | CB110: -1.901816174 | CC110: 26.07405308 | CD110: -0.01901816174 | CE110: 0.2607405308 | CF110: -0.2533078647 | CG110: -0.5769885928 | CH110: 0.8420419821 | CI110: 2.016411655 | CJ110: -1.933256788 | CK110: 26.00170468 | CL110: -0.01933479657 | CM110: 0.260019295 | CN110: -0.2525828098 | CO110: -0.5867393163 | CP110: 0.8310673741 | CQ110: 2.158052801 | CR110: -2.070801748 | CS110: 25.65421987 | CT110: -0.02071914466 | CU110: 0.2568035123 | CV110: -0.2494037231 | CW110: -0.6294924889 | CX110: 1.399682796 | CY110: 1.127221719 | CZ110: -2.741969889 | DA110: 28.47089765 | DB110: -0.02091099368 | DC110: 0.2563192873 | DD110: -0.2489211617 | DE110: -0.6354075493 | DF110: 0.8294638026 | DG110: 2.177232563 | DH110: -2.089456453 | DI110: 25.6205936 | DJ110: -1.24943139 | DK110: 1.966538338 | DL110: -4.266689016 | DM110: 26.45005741 | DN110: 26.79197962 | DO110: -24.88391408 | DP110: -65.31697689
A111: 0.94 | B111: 0.8294638026 | C111: 2.177232563 | D111: -2.089456453 | E111: 25.6205936 | F111: 2.329882365 | G111: -0.3639957516 | H111: -20.85542033 | I111: -24.88391408 | J111: -65.31697689 | K111: -24.88391408 | L111: -65.31697689 | M111: -4.266689016 | N111: 26.45005741 | O111: -23.8764002 | P111: 12.15432784 | Q111: 2.177232563 | R111: -0.8294638026 | S111: -25.1507913 | T111: 10.23357295 | U111: 27.15305357 | V111: 26.79197962 | W111: 25.70565395 | X111: -1.269033975 | Y111: 1.953945906 | Z111: 0.9425 | AA111: 0.824084637 | AB111: 2.182675644 | AC111: -2.151666238 | AD111: 25.45730116 | AE111: -24.72253911 | AF111: -65.48026933 | AG111: -4.334341882 | AH111: -23.89845447 | AI111: 24.28832324 | AJ111: 2.182675644 | AK111: -0.824084637 | AL111: 0.94375 | AM111: 0.8213564253 | AN111: 2.214394958 | AO111: -2.182569412 | AP111: 25.37545082 | AQ111: -24.64069276 | AR111: -66.43184874 | AS111: -4.39696437 | AT111: 26.19680725 | AU111: 26.56324539 | AV111: 2.214394958 | AW111: -0.8213564253 | AX111: 0.9492307692 | AY111: 0.809394266 | AZ111: 2.353471948 | BA111: -2.317619363 | BB111: 25.01135319 | BC111: -24.28182798 | BD111: -70.60415844 | BE111: -4.671091311 | BF111: 25.82074746 | BG111: 26.23985696 | BH111: 2.353471948 | BI111: -0.809394266 | BJ111: 0.95 | BK111: 0.8075971139 | BL111: 2.372669673 | BM111: -2.336297692 | BN111: 24.9570423 | BO111: -24.22791342 | BP111: -71.18009019 | BQ111: -4.708967365 | BR111: 25.76463941 | BS111: 26.19143024 | BT111: 2.372669673 | BU111: -0.8075971139 | BV111: -0.02089456453 | BW111: 0.256205936 | BX111: -0.2488391408 | BY111: -0.6531697689 | BZ111: 0.8242401615 | CA111: 2.241284047 | CB111: -2.151666238 | CC111: 25.45730116 | CD111: -0.02151666238 | CE111: 0.2545730116 | CF111: -0.2472253911 | CG111: -0.6548026933 | CH111: 0.8214533759 | CI111: 2.272850529 | CJ111: -2.182317264 | CK111: 25.37519568 | CL111: -0.02182569412 | CM111: 0.2537545082 | CN111: -0.2464069276 | CO111: -0.6643184874 | CP111: 0.8091230681 | CQ111: 2.410940837 | CR111: -2.316365578 | CS111: 24.98599538 | CT111: -0.02317619363 | CU111: 0.2501135319 | CV111: -0.2428182798 | CW111: -0.7060415844 | CX111: 1.370517463 | CY111: 1.403713654 | CZ111: -3.156762375 | DA111: 27.91409703 | DB111: -0.02336297692 | DC111: 0.249570423 | DD111: -0.2422791342 | DE111: -0.7118009019 | DF111: 0.8073303699 | DG111: 2.429617546 | DH111: -2.334524049 | DI111: 24.94614244 | DJ111: -1.485903546 | DK111: 2.084925514 | DL111: -4.764141595 | DM111: 25.75347281 | DN111: 26.19042587 | DO111: -24.2199111 | DP111: -72.88852638
A112: 0.95 | B112: 0.8073303699 | C112: 2.429617546 | D112: -2.334524049 | E112: 24.94614244 | F112: 2.560239002 | G112: -0.3208085754 | H112: -18.3809774 | I112: -24.2199111 | J112: -72.88852638 | K112: -24.2199111 | L112: -72.88852638 | M112: -4.764141595 | N112: 25.75347281 | O112: -23.71949469 | P112: 11.10513299 | Q112: 2.429617546 | R112: -0.8073303699 | S112: -24.94157434 | T112: 9.222626427 | U112: 26.5920847 | V112: 26.19042587 | W112: 25.0551397 | X112: -1.506678159 | Y112: 2.069962481 | Z112: 0.9525 | AA112: 0.8013426854 | AB112: 2.43569159 | AC112: -2.395073827 | AD112: 24.76392113 | AE112: -24.04028056 | AF112: -73.0707477 | AG112: -4.830765417 | AH112: -23.23893788 | AI112: 23.73572262 | AJ112: 2.43569159 | AK112: -0.8013426854 | AL112: 0.95375 | AM112: 0.7983112801 | AN112: 2.466532318 | AO112: -2.425124178 | AP112: 24.67258269 | AQ112: -23.9493384 | AR112: -73.99596955 | AS112: -4.891656496 | AT112: 25.47089397 | AU112: 25.93635948 | AV112: 2.466532318 | AW112: -0.7983112801 | AX112: 0.9592307692 | AY112: 0.7850197342 | AZ112: 2.60175705 | BA112: -2.556384975 | BB112: 24.26702786 | BC112: -23.55059202 | BD112: -78.05271151 | BE112: -5.158142025 | BF112: 25.05204759 | BG112: 25.57755887 | BH112: 2.60175705 | BI112: -0.7850197342 | BJ112: 0.96 | BK112: 0.7830393489 | BL112: 2.62037781 | BM112: -2.574500815 | BN112: 24.20698731 | BO112: -23.49118047 | BP112: -78.61133429 | BQ112: -5.194878625 | BR112: 24.99002666 | BS112: 25.52426681 | BT112: 2.62037781 | BU112: -0.7830393489 | BV112: -0.02334524049 | BW112: 0.2494614244 | BX112: -0.242199111 | BY112: -0.7288852638 | BZ112: 0.8014940598 | CA112: 2.491982902 | CB112: -2.395073827 | CC112: 24.76392113 | CD112: -0.02395073827 | CE112: 0.2476392113 | CF112: -0.2404028056 | CG112: -0.730707477 | CH112: 0.7984056085 | CI112: 2.522653083 | CJ112: -2.424843505 | CK112: 24.67229797 | CL112: -0.02425124178 | CM112: 0.2467258269 | CN112: -0.239493384 | CO112: -0.7399596955 | CP112: 0.7847565196 | CQ112: 2.656776756 | CR112: -2.554993877 | CS112: 24.24252003 | CT112: -0.02556384975 | CU112: 0.2426702786 | CV112: -0.2355059202 | CW112: -0.7805271151 | CX112: 1.337241012 | CY112: 1.676176657 | CZ112: -3.562206748 | DA112: 27.27337973 | DB112: -0.02574500815 | DC112: 0.2420698731 | DD112: -0.2349118047 | DE112: -0.7861133429 | DF112: 0.7827800624 | DG112: 2.674894162 | DH112: -2.572601756 | DI112: 24.19655564 | DJ112: -1.72047046 | DK112: 2.19266614 | DL112: -5.247495917 | DM112: 24.9793357 | DN112: 25.52456514 | DO112: -23.48340187 | DP112: -80.24682485
A113: 0.96 | B113: 0.7827800624 | C113: 2.674894162 | D113: -2.572601756 | E113: 24.19655564 | F113: 2.787077933 | G113: -0.284690566 | H113: -16.3115679 | I113: -23.48340187 | J113: -80.24682485 | K113: -23.48340187 | L113: -80.24682485 | M113: -5.247495917 | N113: 24.9793357 | O113: -23.47240498 | P113: 10.02744386 | Q113: 2.674894162 | R113: -0.7827800624 | S113: -24.63944496 | T113: 8.189741147 | U113: 25.96486295 | V113: 25.52456514 | W113: 24.3329321 | X113: -1.742310733 | Y113: 2.175352089 | Z113: 0.9625 | AA113: 0.7762017868 | AB113: 2.681581397 | AC113: -2.63131026 | AD113: 23.99593858 | AE113: -23.2860536 | AF113: -80.44744191 | AG113: -5.312891657 | AH113: -22.50985182 | AI113: 23.12834293 | AJ113: 2.681581397 | AK113: -0.7762017868 | AL113: 0.96375 | AM113: 0.7728762645 | AN113: 2.711450621 | AO113: -2.660417827 | AP113: 23.89537928 | AQ113: -23.18628794 | AR113: -81.34351863 | AS113: -5.371868448 | AT113: 24.66825554 | AU113: 25.24638196 | AV113: 2.711450621 | AW113: -0.7728762645 | AX113: 0.9692307692 | AY113: 0.7582951283 | AZ113: 2.842415681 | BA113: -2.787496521 | BB113: 23.44955422 | BC113: -22.74885385 | BD113: -85.27247042 | BE113: -5.629912201 | BF113: 24.20784935 | BG113: 24.85389067 | BH113: 2.842415681 | BI113: -0.7582951283 | BJ113: 0.97 | BK113: 0.7561374394 | BL113: 2.860403342 | BM113: -2.804995639 | BN113: 23.38396002 | BO113: -22.68412318 | BP113: -85.81210026 | BQ113: -5.665398981 | BR113: 24.14009745 | BS113: 24.7959886 | BT113: 2.860403342 | BU113: -0.7561374394 | BV113: -0.02572601756 | BW113: 0.2419655564 | BX113: -0.2348340187 | BY113: -0.8024682485 | BZ113: 0.7763485581 | CA113: 2.735385551 | CB113: -2.63131026 | CC113: 23.99593858 | CD113: -0.0263131026 | CE113: 0.2399593858 | CF113: -0.232860536 | CG113: -0.8044744191 | CH113: 0.7729676882 | CI113: 2.76506701 | CJ113: -2.660109471 | CK113: 23.89506581 | CL113: -0.02660417827 | CM113: 0.2389537928 | CN113: -0.2318628794 | CO113: -0.8134351863 | CP113: 0.7580406852 | CQ113: 2.894819855 | CR113: -2.785972276 | CS113: 23.42597032 | CT113: -0.02787496521 | CU113: 0.2344955422 | CV113: -0.2274885385 | CW113: -0.8527247042 | CX113: 1.299952048 | CY113: 1.943791292 | CZ113: -3.957086623 | DA113: 26.55061216 | DB113: -0.02804995639 | DC113: 0.2338396002 | DD113: -0.2268412318 | DE113: -0.8581210026 | DF113: 0.7558863866 | DG113: 2.912323343 | DH113: -2.802976849 | DI113: 23.37402808 | DJ113: -1.952234777 | DK113: 2.289491398 | DL113: -5.715300192 | DM113: 24.12991446 | DN113: 24.79752867 | DO113: -22.6765916 | DP113: -87.3697003
A114: 0.97 | B114: 0.7558863866 | C114: 2.912323343 | D114: -2.802976849 | E114: 23.37402808 | F114: 3.008818952 | G114: -0.2539442102 | H114: -14.54993148 | I114: -22.6765916 | J114: -87.3697003 | K114: -22.6765916 | L114: -87.3697003 | M114: -5.715300192 | N114: 24.12991446 | O114: -23.13527822 | P114: 8.926159857 | Q114: 2.912323343 | R114: -0.7558863866 | S114: -24.24483794 | T114: 7.139742511 | U114: 25.27425745 | V114: 24.79752867 | W114: 23.54149247 | X114: -1.975031699 | Y114: 2.269854902 | Z114: 0.9725 | AA114: 0.7487372158 | AB114: 2.919604152 | AC114: -2.859668328 | AD114: 23.15560383 | AE114: -22.46211647 | AF114: -87.58812455 | AG114: -5.779272479 | AH114: -21.71337926 | AI114: 22.46933086 | AJ114: 2.919604152 | AK114: -0.7487372158 | AL114: 0.97375 | AM114: 0.7451275334 | AN114: 2.9484118 | AO114: -2.887745973 | AP114: 23.04611867 | AQ114: -22.353826 | AR114: -88.452354 | AS114: -5.836157773 | AT114: 23.7912462 | AU114: 24.49661473 | AV114: 2.9484118 | AW114: -0.7451275334 | AX114: 0.9792307692 | AY114: 0.7293004641 | AZ114: 3.074722258 | BA114: -3.010262135 | BB114: 22.56133173 | BC114: -21.87901392 | BD114: -92.24166775 | BE114: -6.084984393 | BF114: 23.29063219 | BG114: 24.07240293 | BH114: 3.074722258 | BI114: -0.7293004641 | BJ114: 0.98 | BK114: 0.7269719317 | BL114: 3.092022548 | BM114: -3.027092146 | BN114: 22.4903766 | BO114: -21.80915795 | BP114: -92.76067644 | BQ114: -6.119114693 | BR114: 23.21734853 | BS114: 24.01018195 | BT114: 3.092022548 | BU114: -0.7269719317 | BV114: -0.02802976849 | BW114: 0.2337402808 | BX114: -0.226765916 | BY114: -0.873697003 | BZ114: 0.7488789445 | CA114: 2.970758414 | CB114: -2.859668328 | CC114: 23.15560383 | CD114: -0.02859668328 | CE114: 0.2315560383 | CF114: -0.2246211647 | CG114: -0.8758812455 | CH114: 0.7452157787 | CI114: 2.99936163 | CJ114: -2.887410856 | CK114: 23.04577738 | CL114: -0.02887745973 | CM114: 0.2304611867 | CN114: -0.22353826 | CO114: -0.88452354 | CP114: 0.729055554 | CQ114: 3.124352276 | CR114: -3.008609306 | CS114: 22.53874296 | CT114: -0.03010262135 | CU114: 0.2256133173 | CV114: -0.2187901392 | CW114: -0.9224166775 | CX114: 1.258761213 | CY114: 2.205752127 | CZ114: -4.340216938 | DA114: 25.74790756 | DB114: -0.03027092146 | DC114: 0.224903766 | DD114: -0.2180915795 | DE114: -0.9276067644 | DF114: 0.7267298642 | DG114: 3.141189035 | DH114: -3.024959668 | DI114: 22.48097446 | DJ114: -2.180301906 | DK114: 2.375181771 | DL114: -6.166148703 | DM114: 23.20770432 | DN114: 24.01289091 | DO114: -21.80189593 | DP114: -94.23567104
A115: 0.98 | B115: 0.7267298642 | C115: 3.141189035 | D115: -3.024959668 | E115: 22.48097446 | F115: 3.224159557 | G115: -0.227354951 | H115: -13.02647914 | I115: -21.80189593 | J115: -94.23567104 | K115: -21.80189593 | L115: -94.23567104 | M115: -6.166148703 | N115: 23.20770432 | O115: -22.70862127 | P115: 7.806244282 | Q115: 3.141189035 | R115: -0.7267298642 | S115: -23.75855323 | T115: 6.077495165 | U115: 24.523556 | V115: 24.01289091 | W115: 22.68357541 | X115: -2.203944314 | Y115: 2.353260357 | Z115: 0.9825 | AA115: 0.7190312032 | AB115: 3.149042007 | AC115: -3.079464408 | AD115: 22.24538528 | AE115: -21.5709361 | AF115: -94.47126022 | AG115: -6.228506415 | AH115: -20.85190489 | AI115: 21.76226619 | AJ115: 3.149042007 | AK115: -0.7190312032 | AL115: 0.98375 | AM115: 0.7151481681 | AN115: 3.176701128 | AO115: -3.106428078 | AP115: 22.1272962 | AQ115: -21.45444504 | AR115: -95.30103383 | AS115: -6.283129206 | AT115: 22.84244437 | AU115: 23.69082053 | AV115: 3.176701128 | AW115: -0.7151481681 | AX115: 0.9892307692 | AY115: 0.6981225527 | AZ115: 3.297975732 | BA115: -3.22401494 | BB115: 21.60497323 | BC115: -20.94367658 | BD115: -98.93927195 | BE115: -6.521990672 | BF115: 22.30309578 | BG115: 23.23713502 | BH115: 3.297975732 | BI115: -0.6981225527 | BJ115: 0.99 | BK115: 0.6956301485 | BL115: 3.314536398 | BM115: -3.240125461 | BN115: 21.5288661 | BO115: -20.86890445 | BP115: -99.43609194 | BQ115: -6.554661859 | BR115: 22.22449625 | BS115: 23.1709263 | BT115: 3.314536398 | BU115: -0.6956301485 | BV115: -0.03024959668 | BW115: 0.2248097446 | BX115: -0.2180189593 | BY115: -0.9423567104 | BZ115: 0.719167465 | CA115: 3.197391471 | CB115: -3.079464408 | CC115: 22.24538528 | CD115: -0.03079464408 | CE115: 0.2224538528 | CF115: -0.215709361 | CG115: -0.9447126022 | CH115: 0.7152329709 | CI115: 3.224830094 | CJ115: -3.106067203 | CK115: 22.1269281 | CL115: -0.03106428078 | CM115: 0.221272962 | CN115: -0.2145444504 | CO115: -0.9530103383 | CP115: 0.6978879088 | CQ115: 3.344681168 | CR115: -3.222238476 | CS115: 21.5834479 | CT115: -0.0322401494 | CU115: 0.2160497323 | CV115: -0.2094367658 | CW115: -0.9893927195 | CX115: 1.213790862 | CY115: 2.461270162 | CZ115: -4.710447518 | DA115: 24.8676198 | DB115: -0.03240125461 | DC115: 0.215288661 | DD115: -0.2086890445 | DE115: -0.9943609194 | DF115: 0.6953977909 | DG115: 3.360800347 | DH115: -3.237885681 | DI115: 21.52002225 | DJ115: -2.403783603 | DK115: 2.449567606 | DL115: -6.598686029 | DM115: 22.21542004 | DN115: 23.1747178 | DO115: -20.86193373 | DP115: -100.8240104
A116: 0.99 | B116: 0.6953977909 | C116: 3.360800347 | D116: -3.237885681 | E116: 21.52002225 | F116: 3.431990248 | G116: -0.2040350391 | H116: -11.69034661 | I116: -20.86193373 | J116: -100.8240104 | K116: -20.86193373 | L116: -100.8240104 | M116: -6.598686029 | N116: 22.21542004 | O116: -22.1933004 | P116: 6.672702781 | Q116: 3.360800347 | R116: -0.6953977909 | S116: -23.18175437 | T116: 5.007881657 | U116: 23.7165051 | V116: 23.1747178 | W116: 21.76224394 | X116: -2.428158682 | Y116: 2.425407693 | Z116: 0.9925 | AA116: 0.6871726897 | AB116: 3.369202348 | AC116: -3.290040516 | AD116: 21.26796223 | AE116: -20.61518069 | AF116: -101.0760704 | AG116: -6.659242864 | AH116: -19.928008 | AI116: 21.01121173 | AJ116: 3.369202348 | AK116: -0.6871726897 | AL116: 0.99375 | AM116: 0.6830279278 | AN116: 3.39562937 | AO116: -3.315809491 | AP116: 21.14161714 | AQ116: -20.49083783 | AR116: -101.8688811 | AS116: -6.711438861 | AT116: 21.82464507 | AU116: 22.83327712 | AV116: 3.39562937 | AW116: -0.6830279278 | AX116: 0.9992307692 | AY116: 0.6648547412 | AZ116: 3.511501694 | BA116: -3.428115045 | BB116: 20.58329731 | BC116: -19.94564223 | BD116: -105.3450508 | BE116: -6.939616739 | BF116: 21.24815205 | BG116: 22.35267872 | BH116: 3.511501694 | BI116: -0.6648547412 | BJ116: 1 | BK116: 0.6622059274 | BL116: 3.527272666 | BM116: -3.443457847 | BN116: 20.50226265 | BO116: -19.86617782 | BP116: -105.81818 | BQ116: -6.970730512 | BR116: 21.16446858 | BS116: 22.2828592 | BT116: 3.527272666 | BU116: -0.6622059274 | BV116: -0.03237885681 | BW116: 0.2152002225 | BX116: -0.2086193373 | BY116: -1.008240104 | BZ116: 0.6873030767 | CA116: 3.414600403 | CB116: -3.290040516 | CC116: 21.26796223 | CD116: -0.03290040516 | CE116: 0.2126796223 | CF116: -0.2061518069 | CG116: -1.010760704 | CH116: 0.6831090342 | CI116: 3.440791512 | CJ116: -3.31542394 | CK116: 21.14122329 | CL116: -0.03315809491 | CM116: 0.2114161714 | CN116: -0.2049083783 | CO116: -1.018688811 | CP116: 0.664631066 | CQ116: 3.555140783 | CR116: -3.426220264 | CS116: 20.56290055 | CT116: -0.03428115045 | CU116: 0.2058329731 | CV116: -0.1994564223 | CW116: -1.053450508 | CX116: 1.165174695 | CY116: 2.709575195 | CZ116: -5.066666521 | DA116: 23.91233646 | DB116: -0.03443457847 | DC116: 0.2050226265 | DD116: -0.1986617782 | DE116: -1.0581818 | DF116: 0.6619839755 | DG116: 3.570493647 | DH116: -3.44111747 | DI116: 20.49400395 | DJ116: -2.62180155 | DK116: 2.512529462 | DL116: -7.011611117 | DM116: 21.15598793 | DN116: 22.28763145 | DO116: -19.85951926 | DP116: -107.1148094
A117: 1 | B117: 0.6619839755 | C117: 3.570493647 | D117: -3.44111747 | E117: 20.49400395 | F117: 3.631342406 | G117: -0.183322415 | H117: -10.50360067 | I117: -19.85951926 | J117: -107.1148094 | K117: -19.85951926 | L117: -107.1148094 | M117: -7.011611117 | N117: 21.15598793 | O117: -21.59053965 | P117: 5.530561747 | Q117: 3.570493647 | R117: -0.6619839755 | S117: -22.51596545 | T117: 3.935781092 | U117: 22.85736365 | V117: 22.28763145 | W117: 20.78089236 | X117: -2.646795337 | Y117: 2.486186258 | Z117: 1.0025 | AA117: 0.6532570598 | AB117: 3.579419881 | AC117: -3.490766269 | AD117: 20.22621693 | AE117: -19.59771179 | AF117: -107.3825964 | AG117: -7.07018615 | AH117: -18.94445473 | AI117: 20.22077885 | AJ117: 3.579419881 | AK117: -0.6532570598 | AL117: 1.00375 | AM117: 0.6488629805 | AN117: 3.604534867 | AO117: -3.515263408 | AP117: 20.09198868 | AQ117: -19.46588942 | AR117: -108.136046 | AS117: -7.119798275 | AT117: 20.74085166 | AU117: 21.92884984 | AV117: 3.604534867 | AW117: -0.6488629805 | AX117: 1.009230769 | AY117: 0.629596633 | AZ117: 3.71465442 | BA117: -3.621951456 | BB117: 19.49931997 | BC117: -18.88789899 | BD117: -111.4396326 | BE117: -7.336605876 | BF117: 20.1289166 | BG117: 21.42426357 | BH117: 3.71465442 | BI117: -0.629596633 | BJ117: 1.01 | BK117: 0.6267993402 | BL117: 3.729587957 | BM117: -3.636480609 | BN117: 19.41359717 | BO117: -18.80398021 | BP117: -111.8876387 | BQ117: -7.366068566 | BR117: 20.04039651 | BS117: 21.35126363 | BT117: 3.729587957 | BU117: -0.6267993402 | BV117: -0.0344111747 | BW117: 0.2049400395 | BX117: -0.1985951926 | BY117: -1.071148094 | BZ117: 0.6533811818 | CA117: 3.621728657 | CB117: -3.490766269 | CC117: 20.22621693 | CD117: -0.03490766269 | CE117: 0.2022621693 | CF117: -0.1959771179 | CG117: -1.073825964 | CH117: 0.6489401477 | CI117: 3.646593011 | CJ117: -3.514854334 | CK117: 20.09157026 | CL117: -0.03515263408 | CM117: 0.2009198868 | CN117: -0.1946588942 | CO117: -1.08136046 | CP117: 0.6293845961 | CQ117: 3.755094481 | CR117: -3.619944031 | CS117: 19.4801136 | CT117: -0.03621951456 | CU117: 0.1949931997 | CV117: -0.1888789899 | CW117: -1.114396326 | CX117: 1.113057366 | CY117: 2.949918153 | CZ117: -5.40780378 | DA117: 22.88487126 | DB117: -0.03636480609 | DC117: 0.1941359717 | DD117: -0.1880398021 | DE117: -1.118876387 | DF117: 0.6265884582 | DG117: 3.769634558 | DH117: -3.634046643 | DI117: 19.40594873 | DJ117: -2.833490915 | DK117: 2.563998251 | DL117: -7.403681201 | DM117: 20.03253718 | DN117: 21.35689681 | DO117: -18.79765375 | DP117: -113.0890367
A118: 1.01 | B118: 0.6265884582 | C118: 3.769634558 | D118: -3.634046643 | E118: 19.40594873 | F118: 3.821355492 | G118: -0.1647140003 | H118: -9.437417041 | I118: -18.79765375 | J118: -113.0890367 | K118: -18.79765375 | L118: -113.0890367 | M118: -7.403681201 | N118: 20.03253718 | O118: -20.90191764 | P118: 4.38484667 | Q118: 3.769634558 | R118: -0.6265884582 | S118: -21.76306662 | T118: 2.866047856 | U118: 21.9509749 | V118: 21.35689681 | W118: 19.74328091 | X118: -2.858988797 | Y118: 2.535535615 | Z118: 1.0125 | AA118: 0.6173858563 | AB118: 3.779058644 | AC118: -3.681040777 | AD118: 19.12322613 | AE118: -18.52157569 | AF118: -113.3717593 | AG118: -7.460099422 | AH118: -17.90418983 | AI118: 19.39621347 | AJ118: 3.779058644 | AK118: -0.6173858563 | AL118: 1.01375 | AM118: 0.6127556154 | AN118: 3.802785534 | AO118: -3.704192747 | AP118: 18.98151144 | AQ118: -18.38266846 | AR118: -114.083566 | AS118: -7.506978281 | AT118: 19.59426705 | AU118: 20.983089 | AV118: 3.802785534 | AW118: -0.6127556154 | AX118: 1.019230769 | AY118: 0.5924537897 | AZ118: 3.906818818 | BA118: -3.804943911 | BB118: 18.35624574 | BC118: -17.77361369 | BD118: -117.2045645 | BE118: -7.711762728 | BF118: 18.94869953 | BG118: 20.4578713 | BH118: 3.906818818 | BI118: -0.5924537897 | BJ118: 1.02 | BK118: 0.5895163929 | BL118: 3.920869655 | BM118: -3.818615921 | BN118: 18.26608838 | BO118: -17.68549179 | BP118: -117.6260896 | BQ118: -7.739485576 | BR118: 18.85560477 | BS118: 20.38218507 | BT118: 3.920869655 | BU118: -0.5895163929 | BV118: -0.03634046643 | BW118: 0.1940594873 | BX118: -0.1879765375 | BY118: -1.130890367 | BZ118: 0.6175033416 | CA118: 3.81814943 | CB118: -3.681040777 | CC118: 19.12322613 | CD118: -0.03681040777 | CE118: 0.1912322613 | CF118: -0.1852157569 | CG118: -1.133717593 | CH118: 0.6128286123 | CI118: 3.841611708 | CJ118: -3.703761375 | CK118: 18.98106968 | CL118: -0.03704192747 | CM118: 0.1898151144 | CN118: -0.1838266846 | CO118: -1.14083566 | CP118: 0.5922540258 | CQ118: 3.943936662 | CR118: -3.802829853 | CS118: 18.33828806 | CT118: -0.03804943911 | CU118: 0.1835624574 | CV118: -0.1777361369 | CW118: -1.172045645 | CX118: 1.057594044 | CY118: 3.181573346 | CZ118: -5.732834017 | DA118: 21.78825578 | DB118: -0.03818615921 | DC118: 0.1826608838 | DD118: -0.1768549179 | DE118: -1.176260896 | DF118: 0.5893172121 | DG118: 3.957619882 | DH118: -3.816095653 | DI118: 18.25907349 | DJ118: -3.038003867 | DK118: 2.603955147 | DL118: -7.773715534 | DM118: 18.8483907 | DN118: 20.38853809 | DO118: -17.67951636 | DP118: -118.7285965
A119: 1.02 | B119: 0.5893172121 | C119: 3.957619882 | D119: -3.816095653 | E119: 18.25907349 | F119: 4.001256041 | G119: -0.1478208053 | H119: -8.469508267 | I119: -17.67951636 | J119: -118.7285965 | K119: -17.67951636 | L119: -118.7285965 | M119: -7.773715534 | N119: 18.8483907 | O119: -20.12936294 | P119: 3.240560563 | Q119: 3.957619882 | R119: -0.5893172121 | S119: -20.92528808 | T119: 1.803490509 | U119: 21.00286312 | V119: 20.38853809 | W119: 18.65358815 | X119: -3.063891086 | Y119: 2.573445418 | Z119: 1.0225 | AA119: 0.579666476 | AB119: 3.967513932 | AC119: -3.860294444 | AD119: 17.962252 | AE119: -17.38999428 | AF119: -119.0254179 | AG119: -7.827808375 | AH119: -16.8103278 | AI119: 18.54350843 | AJ119: 3.967513932 | AK119: -0.579666476 | AL119: 1.02375 | AM119: 0.5748139361 | AN119: 3.989780769 | AO119: -3.882031936 | AP119: 17.81347023 | AQ119: -17.24441808 | AR119: -119.6934231 | AS119: -7.871812706 | AT119: 18.38828416 | AU119: 20.0023606 | AV119: 3.989780769 | AW119: -0.5748139361 | AX119: 1.029230769 | AY119: 0.5535374149 | AZ119: 4.087412289 | BA119: -3.976544612 | BB119: 17.1574582 | BC119: -16.60612245 | BD119: -122.6223687 | BE119: -8.063956901 | BF119: 17.71099561 | BG119: 19.46038968 | BH119: 4.087412289 | BI119: -0.5535374149 | BJ119: 1.03 | BK119: 0.5504687083 | BL119: 4.100537776 | BM119: -3.989318553 | BN119: 17.0631333 | BO119: -16.51406125 | BP119: -123.0161333 | BQ119: -8.089856329 | BR119: 17.61360201 | BS119: 19.38258886 | BT119: 4.100537776 | BU119: -0.5504687083 | BV119: -0.03816095653 | BW119: 0.1825907349 | BX119: -0.1767951636 | BY119: -1.187285965 | BZ119: 0.579776973 | CA119: 4.003267566 | CB119: -3.860294444 | CC119: 17.962252 | CD119: -0.03860294444 | CE119: 0.17962252 | CF119: -0.1738999428 | CG119: -1.190254179 | CH119: 0.5748825443 | CI119: 4.025256597 | CJ119: -3.881579558 | CK119: 17.81300644 | CL119: -0.03882031936 | CM119: 0.1781347023 | CN119: -0.1724441808 | CO119: -1.196934231 | CP119: 0.553350522 | CQ119: 4.121094594 | CR119: -3.97433025 | CS119: 17.14080379 | CT119: -0.03976544612 | CU119: 0.171574582 | CV119: -0.1660612245 | CW119: -1.226223687 | CX119: 0.9989499586 | CY119: 3.403840661 | CZ119: -6.040779926 | DA119: 20.62573046 | DB119: -0.03989318553 | DC119: 0.170631333 | DD119: -0.1651406125 | DE119: -1.230161333 | DF119: 0.5502818251 | DG119: 4.133879424 | DH119: -3.986719527 | DI119: 17.05677339 | DJ119: -3.234513048 | DK119: 2.632431295 | DL119: -8.120598951 | DM119: 17.60705521 | DN119: 19.38949511 | DO119: -16.50845475 | DP119: -124.0163827
A120: 1.03 | B120: 0.5502818251 | C120: 4.133879424 | D120: -3.986719527 | E120: 17.05677339 | F120: 4.170344012 | G120: -0.1323371172 | H120: -7.582358288 | I120: -16.50845475 | J120: -124.0163827 | K120: -16.50845475 | L120: -124.0163827 | M120: -8.120598951 | N120: 17.60705521 | O120: -19.27514801 | P120: 2.102662556 | Q120: 4.133879424 | R120: -0.5502818251 | S120: -20.00520269 | T120: 0.7528509369 | U120: 20.01936361 | V120: 19.38949511 | W120: 17.51649083 | X120: -3.260675198 | Y120: 2.599955083 | Z120: 1.0325 | AA120: 0.5402118485 | AB120: 4.144214123 | AC120: -4.027990664 | AD120: 16.74673243 | AE120: -16.20635545 | AF120: -124.3264237 | AG120: -8.172204786 | AH120: -15.66614361 | AI120: 17.6695497 | AJ120: 4.144214123 | AK120: -0.5402118485 | AL120: 1.03375 | AM120: 0.5351515377 | AN120: 4.164953278 | AO120: -4.048248608 | AP120: 16.5913244 | AQ120: -16.05454613 | AR120: -124.9485983 | AS120: -8.213201886 | AT120: 17.12647594 | AU120: 18.99402178 | AV120: 4.164953278 | AW120: -0.5351515377 | AX120: 1.039230769 | AY120: 0.5129640213 | AZ120: 4.255886498 | BA120: -4.13623987 | BB120: 15.90650997 | BC120: -15.38892064 | BD120: -127.6765949 | BE120: -8.392126369 | BF120: 16.41947399 | BG120: 18.43981863 | BH120: 4.255886498 | BI120: -0.5129640213 | BJ120: 1.04 | BK120: 0.5097731925 | BL120: 4.268046727 | BM120: -4.148077502 | BN120: 15.8082972 | BO120: -15.29319577 | BP120: -128.0414018 | BQ120: -8.416124229 | BR120: 16.3180704 | BS120: 18.36057103 | BT120: 4.268046727 | BU120: -0.5097731925 | BV120: -0.03986719527 | BW120: 0.1705677339 | BX120: -0.1650845475 | BY120: -1.240163827 | BZ120: 0.5403150263 | CA120: 4.176521357 | CB120: -4.027990664 | CC120: 16.74673243 | CD120: -0.04027990664 | CE120: 0.1674673243 | CF120: -0.1620635545 | CG120: -1.243264237 | CH120: 0.5352155518 | CI120: 4.196970334 | CJ120: -4.047776578 | CK120: 16.59083996 | CL120: -0.04048248608 | CM120: 0.165913244 | CN120: -0.1605454613 | CO120: -1.249485983 | CP120: 0.5127905589 | CQ120: 4.286030155 | CR120: -4.133931834 | CS120: 15.89120955 | CT120: -0.0413623987 | CU120: 0.1590650997 | CV120: -0.1538892064 | CW120: -1.276765949 | CX120: 0.937299905 | CY120: 3.616047672 | CZ120: -6.330715107 | DA120: 19.40073512 | DB120: -0.04148077502 | DC120: 0.158082972 | DD120: -0.1529319577 | DE120: -1.280414018 | DF120: 0.5095991662 | DG120: 4.297877723 | DH120: -4.1454075 | DI120: 15.80261175 | DJ120: -3.422214973 | DK120: 2.649507295 | DL120: -8.443285223 | DM120: 16.31221091 | DN120: 18.36783303 | DO120: -15.28797499 | DP120: -128.9363317
A121: 1.04 | B121: 0.5095991662 | C121: 4.297877723 | D121: -4.1454075 | E121: 15.80261175 | F121: 4.327983853 | G121: -0.1180189433 | H121: -6.761987353 | I121: -15.28797499 | J121: -128.9363317 | K121: -15.28797499 | L121: -128.9363317 | M121: -8.443285223 | N121: 16.31221091 | O121: -18.34188166 | P121: 0.9760467361 | Q121: 4.297877723 | R121: -0.5095991662 | S121: -19.00571718 | T121: -0.2812161546 | U121: 19.00779756 | V121: 18.36783303 | W121: 16.33728684 | X121: -3.448538495 | Y121: 2.615153242 | Z121: 1.0425 | AA121: 0.4991400976 | AB121: 4.308622417 | AC121: -4.183627437 | AD121: 15.48027092 | AE121: -14.97420293 | AF121: -129.2586725 | AG121: -8.492249854 | AH121: -14.47506283 | AI121: 16.78230472 | AJ121: 4.308622417 | AK121: -0.4991400976 | AL121: 1.04375 | AM121: 0.4938871661 | AN121: 4.327770789 | AO121: -4.202345191 | AP121: 15.31869758 | AQ121: -14.81661498 | AR121: -129.8331237 | AS121: -8.53011598 | AT121: 15.81258474 | AU121: 17.96665564 | AV121: 4.327770789 | AW121: -0.4938871661 | AX121: 1.049230769 | AY121: 0.4708550819 | AZ121: 4.411729036 | BA121: -4.283551638 | BB121: 14.60711219 | BC121: -14.12565246 | BD121: -132.3518711 | BE121: -8.695280674 | BF121: 15.07796727 | BG121: 17.40554518 | BH121: 4.411729036 | BI121: -0.4708550819 | BJ121: 1.05 | BK121: 0.4675516838 | BL121: 4.422886961 | BM121: -4.294417525 | BN121: 14.50530305 | BO121: -14.02655051 | BP121: -132.6866088 | BQ121: -8.717304486 | BR121: 14.97285474 | BS121: 17.32563928 | BT121: 4.422886961 | BU121: -0.4675516838 | BV121: -0.041454075 | BW121: 0.1580261175 | BX121: -0.1528797499 | BY121: -1.289363317 | BZ121: 0.4992356475 | CA121: 4.337384252 | CB121: -4.183627437 | CC121: 15.48027092 | CD121: -0.04183627437 | CE121: 0.1548027092 | CF121: -0.1497420293 | CG121: -1.292586725 | CH121: 0.4939463945 | CI121: 4.356230933 | CJ121: -4.201854922 | CK121: 15.31819392 | CL121: -0.04202345191 | CM121: 0.1531869758 | CN121: -0.1481661498 | CO121: -1.298331237 | CP121: 0.4706955692 | CQ121: 4.438241459 | CR121: -4.281156838 | CS121: 14.59321247 | CT121: -0.04283551638 | CU121: 0.1460711219 | CV121: -0.1412565246 | CW121: -1.323518711 | CX121: 0.872827722 | CY121: 3.817551682 | CZ121: -6.601766859 | DA121: 18.11689868 | DB121: -0.04294417525 | DC121: 0.1450530305 | DD121: -0.1402655051 | DE121: -1.326866088 | DF121: 0.4673910355 | DG121: 4.449115676 | DH121: -4.29168454 | DI121: 14.50030952 | DJ121: -3.600333356 | DK121: 2.655312487 | DL121: -8.740800216 | DM121: 14.96770055 | DN121: 17.3330219 | DO121: -14.02173106 | DP121: -133.4734703
A122: 1.05 | B122: 0.4673910355 | C122: 4.449115676 | D122: -4.29168454 | E122: 14.50030952 | F122: 4.473598627 | G122: -0.104668654 | H122: -5.99707212 | I122: -14.02173106 | J122: -133.4734703 | K122: -14.02173106 | L122: -133.4734703 | M122: -8.740800216 | N122: 14.96770055 | O122: -17.33250022 | P122: -0.1344786696 | Q122: 4.449115676 | R122: -0.4673910355 | S122: -17.93006189 | T122: -1.294163311 | U122: 17.97670654 | V122: 17.3330219 | W122: 15.12208756 | X122: -3.626706023 | Y122: 2.619176989 | Z122: 1.0525 | AA122: 0.4565741883 | AB122: 4.460238465 | AC122: -4.326738868 | AD122: 14.16662584 | AE122: -13.69722565 | AF122: -133.807154 | AG122: -8.786977333 | AH122: -13.24065146 | AI122: 15.89106106 | AJ122: 4.460238465 | AK122: -0.4565741883 | AL122: 1.05375 | AM122: 0.4511443628 | AN122: 4.477737674 | AO122: -4.3438604 | AP122: 13.9993669 | AQ122: -13.53433088 | AR122: -134.3321302 | AS122: -8.821598074 | AT122: 14.45051126 | AU122: 16.93038299 | AV122: 4.477737674 | AW122: -0.4511443628 | AX122: 1.059230769 | AY122: 0.4273366664 | AZ122: 4.554464973 | BA122: -4.418038944 | BB122: 13.26312349 | BC122: -12.82009999 | BD122: -136.6339492 | BE122: -8.972503917 | BF122: 13.69046016 | BG122: 16.36870569 | BH122: 4.554464973 | BI122: -0.4273366664 | BJ122: 1.06 | BK122: 0.423930589 | BL122: 4.564586527 | BM122: -4.42790056 | BN122: 13.15802045 | BO122: -12.71791767 | BP122: -136.9375958 | BQ122: -8.992487087 | BR122: 13.58195104 | BS122: 16.28908279 | BT122: 4.564586527 | BU122: -0.423930589 | BV122: -0.0429168454 | BW122: 0.1450030952 | BX122: -0.1402173106 | BY122: -1.334734703 | BZ122: 0.4566618241 | CA122: 4.48536645 | CB122: -4.326738868 | CC122: 14.16662584 | CD122: -0.04326738868 | CE122: 0.1416662584 | CF122: -0.1369722565 | CG122: -1.33807154 | CH122: 0.4511986282 | CI122: 4.502553351 | CJ122: -4.34335336 | CK122: 13.99884552 | CL122: -0.043438604 | CM122: 0.139993669 | CN122: -0.1353433088 | CO122: -1.343321302 | CP122: 0.4271915809 | CQ122: 4.577264392 | CR122: -4.415564549 | CS122: 13.25066701 | CT122: -0.04418038944 | CU122: 0.1326312349 | CV122: -0.1282009999 | CW122: -1.366339492 | CX122: 0.8057257453 | CY122: 4.00774166 | CZ122: -6.853118799 | DA122: 16.77802852 | DB122: -0.0442790056 | DC122: 0.1315802045 | DD122: -0.1271791767 | DE122: -1.369375958 | DF122: 0.4237837995 | DG122: 4.587132058 | DH122: -4.425112775 | DI122: 13.15373424 | DJ122: -3.768122337 | DK122: 2.650024015 | DL122: -9.012244833 | DM122: 13.57751804 | DN122: 16.29630489 | DO122: -12.71351398 | DP122: -137.6139617
A123: 1.06 | B123: 0.4237837995 | C123: 4.587132058 | D123: -4.425112775 | E123: 13.15373424 | F123: 4.606666172 | G123: -0.09212384965 | H123: -5.278307777 | I123: -12.71351398 | J123: -137.6139617 | K123: -12.71351398 | L123: -137.6139617 | M123: -9.012244833 | N123: 13.57751804 | O123: -16.25025719 | P123: -1.224211676 | Q123: 4.587132058 | R123: -0.4237837995 | S123: -16.78177931 | T123: -2.281569881 | U123: 16.93616479 | V123: 16.29630489 | W123: 13.87812479 | X123: -3.794433731 | Y123: 2.61221092 | Z123: 1.0625 | AA123: 0.4126415581 | AB123: 4.598599888 | AC123: -4.45689656 | AD123: 12.80969934 | AE123: -12.37924674 | AF123: -137.9579966 | AG123: -9.055496448 | AH123: -11.96660518 | AI123: 15.00672035 | AJ123: 4.598599888 | AK123: -0.4126415581 | AL123: 1.06375 | AM123: 0.4070510948 | AN123: 4.614396453 | AO123: -4.472370618 | AP123: 12.63725184 | AQ123: -12.21153284 | AR123: -138.4318936 | AS123: -9.086767071 | AT123: 13.04430294 | AU123: 15.89726942 | AV123: 4.614396453 | AW123: -0.4070510948 | AX123: 1.069230769 | AY123: 0.3825390636 | AZ123: 4.683658314 | BA123: -4.539299212 | BB123: 11.87853858 | BC123: -11.47617191 | BD123: -140.5097494 | BE123: -9.222957525 | BF123: 12.26107764 | BG123: 15.342652 | BH123: 4.683658314 | BI123: -0.3825390636 | BJ123: 1.07 | BK123: 0.3790405043 | BL123: 4.692712509 | BM123: -4.548127036 | BN123: 11.77045416 | BO123: -11.37121513 | BP123: -140.7813753 | BQ123: -9.240839545 | BR123: 12.14949466 | BS123: 15.2644468 | BT123: 4.692712509 | BU123: -0.3790405043 | BV123: -0.04425112775 | BW123: 0.1315373424 | BX123: -0.1271351398 | BY123: -1.376139617 | BZ123: 0.4127210176 | CA123: 4.620016393 | CB123: -4.45689656 | CC123: 12.80969934 | CD123: -0.0445689656 | CE123: 0.1280969934 | CF123: -0.1237924674 | CG123: -1.379579966 | CH123: 0.4071002347 | CI123: 4.635490963 | CJ123: -4.471848326 | CK123: 12.63671429 | CL123: -0.04472370618 | CM123: 0.1263725184 | CN123: -0.1221153284 | CO123: -1.384318936 | CP123: 0.3824088396 | CQ123: 4.702674018 | CR123: -4.53675263 | CS123: 11.86756358 | CT123: -0.04539299212 | CU123: 0.1187853858 | CV123: -0.1147617191 | CW123: -1.405097494 | CX123: 0.7361942332 | CY123: 4.1860401 | CZ123: -7.084013329 | DA123: 15.3880991 | DB123: -0.04548127036 | DC123: 0.1177045416 | DD123: -0.1137121513 | DE123: -1.407813753 | DF123: 0.378908013 | DG123: 4.711504926 | DH123: -4.545292797 | DI123: 11.76688857 | DJ123: -3.924869603 | DK123: 2.633865704 | DL123: -9.256797723 | DM123: 12.14579658 | DN123: 15.27117149 | DO123: -11.36724039 | DP123: -141.3451478
A124: 1.07 | B124: 0.378908013 | C124: 4.711504926 | D124: -4.545292797 | E124: 11.76688857 | F124: 4.726716614 | G124: -0.08024915383 | H124: -4.597937824 | I124: -11.36724039 | J124: -141.3451478 | K124: -11.36724039 | L124: -141.3451478 | M124: -9.256797723 | N124: 12.14579658 | O124: -15.09871176 | P124: -2.28857641 | Q124: 4.711504926 | R124: -0.378908013 | S124: -15.56471119 | T124: -3.239160969 | U124: 15.89818852 | V124: 15.27117149 | W124: 12.61425199 | X124: -3.95101158 | Y124: 2.59448597 | Z124: 1.0725 | AA124: 0.3674737357 | AB124: 4.723283689 | AC124: -4.573710898 | AD124: 11.4135257 | AE124: -11.02421207 | AF124: -141.6985107 | AG124: -9.296994587 | AH124: -10.65673834 | AI124: 14.142142 | AJ124: 4.723283689 | AK124: -0.3674737357 | AL124: 1.07375 | AM124: 0.3617393718 | AN124: 4.737329192 | AO124: -4.587491163 | AP124: 11.23640256 | AQ124: -10.85218115 | AR124: -142.1198758 | AS124: -9.324820355 | AT124: 11.59814193 | AU124: 14.88184031 | AV124: 4.737329192 | AW124: -0.3617393718 | AX124: 1.079230769 | AY124: 0.3365963914 | AZ124: 4.798913321 | BA124: -4.646969464 | BB124: 10.45747632 | BC124: -10.09789174 | BD124: -143.9673996 | BE124: -9.445882785 | BF124: 10.79407271 | BG124: 14.34352493 | BH124: 4.798913321 | BI124: -0.3365963914 | BJ124: 1.08 | BK124: 0.3330158244 | BL124: 4.806872346 | BM124: -4.654737073 | BN124: 10.34673217 | BO124: -9.990474731 | BP124: -144.2061704 | BQ124: -9.461609419 | BR124: 10.67974799 | BS124: 14.26811375 | BT124: 4.806872346 | BU124: -0.3330158244 | BV124: -0.04545292797 | BW124: 0.1176688857 | BX124: -0.1136724039 | BY124: -1.413451478 | BZ124: 0.367544781 | CA124: 4.740922148 | CB124: -4.573710898 | CC124: 11.4135257 | CD124: -0.04573710898 | CE124: 0.114135257 | CF124: -0.1102421207 | CG124: -1.416985107 | CH124: 0.3617832391 | CI124: 4.754636925 | CJ124: -4.586955181 | CK124: 11.23585043 | CL124: -0.04587491163 | CM124: 0.1123640256 | CN124: -0.1085218115 | CO124: -1.421198758 | CP124: 0.3364814188 | CQ124: 4.814085886 | CR124: -4.644358319 | CS124: 10.44801664 | CT124: -0.04646969464 | CU124: 0.1045747632 | CV124: -0.1009789174 | CW124: -1.439673996 | CX124: 0.6644407691 | CY124: 4.35190477 | CZ124: -7.293753912 | DA124: 13.95124021 | DB124: -0.04654737073 | DC124: 0.1034673217 | DD124: -0.09990474731 | DE124: -1.442061704 | DF124: 0.3328980278 | DG124: 4.821852911 | DH124: -4.651864865 | DI124: 10.34389836 | DJ124: -4.069899396 | DK124: 2.607106729 | DL124: -9.473717776 | DM124: 10.67679638 | DN124: 14.27393812 | DO124: -9.986940835 | DP124: -144.6555873
A125: 1.08 | B125: 0.3328980278 | C125: 4.821852911 | D125: -4.651864865 | E125: 10.34389836 | F125: 4.833330797 | G125: -0.06893006239 | H125: -3.949401657 | I125: -9.986940835 | J125: -144.6555873 | K125: -9.986940835 | L125: -144.6555873 | M125: -9.473717776 | N125: 10.67679638 | O125: -13.88171582 | P125: -3.323142379 | Q125: 4.821852911 | R125: -0.3328980278 | S125: -14.28298451 | T125: -4.162825704 | U125: 14.87725661 | V125: 14.27393812 | W125: 11.34178469 | X125: -4.095766536 | Y125: 2.56627806 | Z125: 1.0825 | AA125: 0.3212059473 | AB125: 4.833907544 | AC125: -4.676832217 | AD125: 9.982259387 | AE125: -9.636178419 | AF125: -145.0172263 | AG125: -9.51073976 | AH125: -9.314972472 | AI125: 13.31250851 | AJ125: 4.833907544 | AK125: -0.3212059473 | AL125: 1.08375 | AM125: 0.3153448505 | AN125: 4.846158779 | AO125: -4.68887744 | AP125: 9.800987854 | AQ125: -9.460345515 | AR125: -145.3847634 | AS125: -9.535036218 | AT125: 10.1163327 | AU125: 13.90169425 | AV125: 4.846158779 | AW125: -0.3153448505 | AX125: 1.089230769 | AY125: 0.2896461953 | AZ125: 4.899875731 | BA125: -4.74072741 | BB125: 9.004167517 | BC125: -8.689385859 | BD125: -146.9962719 | BE125: -9.640603141 | BF125: 9.293813712 | BG125: 13.39089998 | BH125: 4.899875731 | BI125: -0.2896461953 | BJ125: 1.09 | BK125: 0.2859943403 | BL125: 4.906715034 | BM125: -4.747411553 | BN125: 8.891093461 | BO125: -8.579830208 | BP125: -147.201451 | BQ125: -9.654126587 | BR125: 9.177087802 | BS125: 13.31995123 | BT125: 4.906715034 | BU125: -0.2859943403 | BV125: -0.04651864865 | BW125: 0.1034389836 | BX125: -0.09986940835 | BY125: -1.446555873 | BZ125: 0.3212683657 | CA125: 4.847712657 | CB125: -4.676832217 | CC125: 9.982259387 | CD125: -0.04676832217 | CE125: 0.09982259387 | CF125: -0.09636178419 | CG125: -1.450172263 | CH125: 0.3153833139 | CI125: 4.859625421 | CJ125: -4.688329373 | CK125: 9.800422793 | CL125: -0.0468887744 | CM125: 0.09800987854 | CN125: -0.09460345515 | CO125: -1.453847634 | CP125: 0.2895468182 | CQ125: 4.911157196 | CR125: -4.738059521 | CS125: 8.99625248 | CT125: -0.0474072741 | CU125: 0.09004167517 | CV125: -0.08689385859 | CW125: -1.469962719 | CX125: 0.5906796418 | CY125: 4.504830366 | CZ125: -7.481707177 | DA125: 12.47172471 | DB125: -0.04747411553 | DC125: 0.08891093461 | DD125: -0.08579830208 | DE125: -1.47201451 | DF125: 0.2858915911 | DG125: 4.917836385 | DH125: -4.744509975 | DI125: 8.889000392 | DJ125: -4.202575376 | DK125: 2.570060099 | DL125: -9.66234636 | DM125: 9.174891983 | DN125: 13.32439793 | DO125: -8.576747734 | DP125: -147.5350915
A126: 1.09 | B126: 0.2858915911 | C126: 4.917836385 | D126: -4.744509975 | E126: 8.889000392 | F126: 4.926139331 | G126: -0.0580682564 | H126: -3.327066016 | I126: -8.576747734 | J126: -147.5350915 | K126: -8.576747734 | L126: -147.5350915 | M126: -9.66234636 | N126: 9.174891983 | O126: -12.60339997 | P126: -4.323643054 | Q126: 4.917836385 | R126: -0.2858915911 | S126: -12.94099619 | T126: -5.048634748 | U126: 13.89093572 | V126: 13.32439793 | W126: 10.07594675 | X126: -4.228065422 | Y126: 2.527906544 | Z126: 1.0925 | AA126: 0.2739767115 | AB126: 4.930130976 | AC126: -4.765951844 | AD126: 8.520162663 | AE126: -8.219301346 | AF126: -147.9039293 | AG126: -9.69608282 | AH126: -7.945324634 | AI126: 12.53563742 | AJ126: 4.930130976 | AK126: -0.2739767115 | AL126: 1.09375 | AM126: 0.2680064291 | AN126: 4.940550079 | AO126: -4.776225971 | AP126: 8.335282752 | AQ126: -8.040192872 | AR126: -148.2165024 | AS126: -9.71677605 | AT126: 8.603289181 | AU126: 12.97814785 | AV126: 4.940550079 | AW126: -0.2680064291 | AX126: 1.099230769 | AY126: 0.2418290367 | AZ126: 4.98623384 | BA126: -4.820292413 | BB126: 7.522942306 | BC126: -7.254871102 | BD126: -149.5870152 | BE126: -9.806526253 | BF126: 7.764771343 | BG126: 12.50838244 | BH126: 4.98623384 | BI126: -0.2418290367 | BJ126: 1.1 | BK126: 0.2381168267 | BL126: 4.991932206 | BM126: -4.825873083 | BN126: 7.407875371 | BO126: -7.1435048 | BP126: -149.7579662 | BQ126: -9.817805289 | BR126: 7.645992198 | BS126: 12.44389398 | BT126: 4.991932206 | BU126: -0.2381168267 | BV126: -0.04744509975 | BW126: 0.08889000392 | BX126: -0.08576747734 | BY126: -1.475350915 | BZ126: 0.2740303162 | CA126: 4.940058886 | CB126: -4.765951844 | CC126: 8.520162663 | CD126: -0.04765951844 | CE126: 0.08520162663 | CF126: -0.08219301346 | CG126: -1.479039293 | CH126: 0.2680393735 | CI126: 4.95013278 | CJ126: -4.775667461 | CK126: 8.334706443 | CL126: -0.04776225971 | CM126: 0.08335282752 | CN126: -0.08040192872 | CO126: -1.482165024 | CP126: 0.2417455526 | CQ126: 4.993587866 | CR126: -4.817575765 | CS126: 7.516596626 | CT126: -0.04820292413 | CU126: 0.07522942306 | CV126: -0.07254871102 | CW126: -1.495870152 | CX126: 0.5151312055 | CY126: 4.644350041 | CZ126: -7.647304831 | DA126: 10.95395578 | DB126: -0.04825873083 | DC126: 0.07407875371 | DD126: -0.071435048 | DE126: -1.497579662 | DF126: 0.2380294325 | DG126: 4.999158502 | DH126: -4.822950821 | DI126: 7.406529799 | DJ126: -4.322303348 | DK126: 2.523080955 | DL126: -9.822109323 | DM126: 7.644559231 | DN126: 12.44640982 | DO126: -7.140882975 | DP126: -149.9747551
A127: 1.1 | B127: 0.2380294325 | C127: 4.999158502 | D127: -4.822950821 | E127: 7.406529799 | F127: 5.004822049 | G127: -0.0475779672 | H127: -2.726016718 | I127: -7.140882975 | J127: -149.9747551 | K127: -7.140882975 | L127: -149.9747551 | M127: -9.822109323 | N127: 7.644559231 | O127: -11.26815814 | P127: -5.285993703 | Q127: 4.999158502 | R127: -0.2380294325 | S127: -11.5433967 | T127: -5.892856974 | U127: 12.96054669 | V127: 12.44640982 | W127: 8.838412656 | X127: -4.347317624 | Y127: 2.479732489 | Z127: 1.1025 | AA127: 0.2259274249 | AB127: 5.011656399 | AC127: -4.840803028 | AD127: 7.031592911 | AE127: -6.777822748 | AF127: -150.349692 | AG127: -9.852459427 | AH127: -6.551895323 | AI127: 11.83208727 | AJ127: 5.011656399 | AK127: -0.2259274249 | AL127: 1.10375 | AM127: 0.2198658308 | AN127: 5.020210968 | AO127: -4.849275307 | AP127: 6.843655796 | AQ127: -6.595974924 | AR127: -150.6063291 | AS127: -9.869486275 | AT127: 7.063521627 | AU127: 12.13672514 | AV127: 5.020210968 | AW127: -0.2198658308 | AX127: 1.109230769 | AY127: 0.1932880719 | AZ127: 5.057719466 | BA127: -4.885426323 | BB127: 6.018217262 | BC127: -5.798642157 | BD127: -151.731584 | BE127: -9.94314579 | BF127: 6.211505334 | BG127: 11.72386228 | BH127: 5.057719466 | BI127: -0.1932880719 | BJ127: 1.11 | BK127: 0.1895266205 | BL127: 5.062259082 | BM127: -4.889886817 | BN127: 5.901500659 | BO127: -5.685798615 | BP127: -151.8677725 | BQ127: -9.952145899 | BR127: 6.09102728 | BS127: 11.66815415 | BT127: 5.062259082 | BU127: -0.1895266205 | BV127: -0.04822950821 | BW127: 0.07406529799 | BX127: -0.07140882975 | BY127: -1.499747551 | BZ127: 0.2259720554 | CA127: 5.017674827 | CB127: -4.840803028 | CC127: 7.031592911 | CD127: -0.04840803028 | CE127: 0.07031592911 | CF127: -0.06777822748 | CG127: -1.50349692 | CH127: 0.2198931576 | CI127: 5.025878479 | CJ127: -4.848708025 | CK127: 6.843069957 | CL127: -0.04849275307 | CM127: 0.06843655796 | CN127: -0.06595974924 | CO127: -1.506063291 | CP127: 0.1932207305 | CQ127: 5.061121449 | CR127: -4.882669051 | CS127: 6.013460971 | CT127: -0.04885426323 | CU127: 0.06018217262 | CV127: -0.05798642157 | CW127: -1.51731584 | CX127: 0.4380212217 | CY127: 4.77003684 | CZ127: -7.790045374 | DA127: 9.402453871 | DB127: -0.04889886817 | DC127: 0.05901500659 | DD127: -0.05685798615 | DE127: -1.518677725 | DF127: 0.1894548429 | DG127: 5.065566123 | DH127: -4.886952621 | DI127: 5.900907104 | DJ127: -4.42853383 | DK127: 2.466564697 | DL127: -9.952518744 | DM127: 6.090361947 | DN127: 11.66812487 | DO127: -5.683645286 | DP127: -151.9669837
A128: 1.11 | B128: 0.1894548429 | C128: 5.065566123 | D128: -4.886952621 | E128: 5.900907104 | F128: 5.069107741 | G128: -0.03738310307 | H128: -2.141894031 | I128: -5.683645286 | J128: -151.9669837 | K128: -5.683645286 | L128: -151.9669837 | M128: -9.952518744 | N128: 6.090361947 | O128: -9.880631272 | P128: -6.206308377 | Q128: 5.065566123 | R128: -0.1894548429 | S128: -10.0950726 | T128: -6.691975233 | U128: 12.11168953 | V128: 11.66812487 | W128: 7.661788993 | X128: -4.452977641 | Y128: 2.422156769 | Z128: 1.1125 | AA128: 0.1772019385 | AB128: 5.078230039 | AC128: -4.901161734 | AD128: 5.520989645 | AE128: -5.316058156 | AF128: -152.3469012 | AG128: -9.979391772 | AH128: -5.138856217 | AI128: 11.22479859 | AJ128: 5.078230039 | AK128: -0.1772019385 | AL128: 1.11375 | AM128: 0.17106718 | AN128: 5.084893234 | AO128: -4.907806806 | AP128: 5.330556019 | AQ128: -5.132015401 | AR128: -152.546797 | AS128: -9.99270004 | AT128: 5.501623199 | AU128: 11.40709919 | AV128: 5.084893234 | AW128: -0.17106718 | AX128: 1.119230769 | AY128: 0.1441686235 | AZ128: 5.114108781 | BA128: -4.935934199 | BB128: 4.494482227 | BC128: -4.325058704 | BD128: -153.4232634 | BE128: -10.05004298 | BF128: 4.638650851 | BG128: 11.06889541 | BH128: 5.114108781 | BI128: -0.1441686235 | BJ128: 1.12 | BK128: 0.1403691918 | BL128: 5.117475292 | BM128: -4.939261167 | BN128: 4.376464332 | BO128: -4.211075754 | BP128: -153.5242588 | BQ128: -10.05673646 | BR128: 4.516833524 | BS128: 11.02450603 | BT128: 5.117475292 | BU128: -0.1403691918 | BV128: -0.04886952621 | BW128: 0.05900907104 | BX128: -0.05683645286 | BY128: -1.519669837 | BZ128: 0.1772374613 | CA128: 5.080318391 | CB128: -4.901161734 | CC128: 5.520989645 | CD128: -0.04901161734 | CE128: 0.05520989645 | CF128: -0.05316058156 | CG128: -1.523469012 | CH128: 0.1710888074 | CI128: 5.086626007 | CJ128: -4.907232452 | CK128: 5.329962398 | CL128: -0.04907806806 | CM128: 0.05330556019 | CN128: -0.05132015401 | CO128: -1.52546797 | CP128: 0.1441176265 | CQ128: 5.113545931 | CR128: -4.933144557 | CS128: 4.491330613 | CT128: -0.04935934199 | CU128: 0.04494482227 | CV128: -0.04325058704 | CW128: -1.534232634 | CX128: 0.3595801845 | CY128: 4.881504998 | CZ128: -7.909495624 | DA128: 7.821843213 | DB128: -0.04939261167 | DC128: 0.04376464332 | DD128: -0.04211075754 | DE128: -1.535242588 | DF128: 0.1403132455 | DG128: 5.116850596 | DH128: -4.93632382 | DI128: 4.376625068 | DJ128: -4.520764453 | DK128: 2.400944936 | DL128: -10.05317442 | DM128: 4.516938313 | DN128: 11.02129972 | DO128: -4.209397366 | DP128: -153.5055179
A129: 1.12 | B129: 0.1403132455 | C129: 5.116850596 | D129: -4.93632382 | E129: 4.376625068 | F129: 5.118774055 | G129: -0.02741492819 | H129: -1.570759681 | I129: -4.209397366 | J129: -153.5055179 | K129: -4.209397366 | L129: -153.5055179 | M129: -10.05317442 | N129: 4.516938313 | O129: -8.445689795 | P129: -7.080916002 | Q129: 5.116850596 | R129: -0.1403132455 | S129: -8.601128083 | T129: -7.442701158 | U129: 11.37423425 | V129: 11.02129972 | W129: 6.597131182 | X129: -4.544547466 | Y129: 2.355617999 | Z129: 1.1225 | AA129: 0.1279461273 | AB129: 5.129642722 | AC129: -4.946847313 | AD129: 3.992861273 | AE129: -3.838383818 | AF129: -153.8892817 | AG129: -10.07649004 | AH129: -3.710437691 | AI129: 10.73792342 | AJ129: 5.129642722 | AK129: -0.1279461273 | AL129: 1.12375 | AM129: 0.1217565706 | AN129: 5.134393347 | AO129: -4.951645293 | AP129: 3.800499671 | AQ129: -3.652697119 | AR129: -154.0318004 | AS129: -10.08603864 | AT129: 3.922256242 | AU129: 10.82184224 | AV129: 5.134393347 | AW129: -0.1217565706 | AX129: 1.129230769 | AY129: 0.09461774549 | AZ129: 5.155223008 | BA129: -4.971664883 | BB129: 2.956286919 | BC129: -2.838532365 | BD129: -154.6566902 | BE129: -10.12688789 | BF129: 3.050904664 | BG129: 10.57647756 | BH129: 5.155223008 | BI129: -0.09461774549 | BJ129: 1.13 | BK129: 0.09079170828 | BL129: 5.157405562 | BM129: -4.973848369 | BN129: 2.837320234 | BO129: -2.723751248 | BP129: -154.7221669 | BQ129: -10.13125393 | BR129: 2.928111942 | BS129: 10.54590659 | BT129: 5.157405562 | BU129: -0.09079170828 | BV129: -0.0493632382 | BW129: 0.04376625068 | BX129: -0.04209397366 | BY129: -1.535055179 | BZ129: 0.127972436 | CA129: 5.127792158 | CB129: -4.946847313 | CC129: 3.992861273 | CD129: -0.04946847313 | CE129: 0.03992861273 | CF129: -0.03838383818 | CG129: -1.538892817 | CH129: 0.1217724339 | CI129: 5.132183604 | CJ129: -4.951065584 | CK129: 3.79990004 | CL129: -0.04951645293 | CM129: 0.03800499671 | CN129: -0.03652697119 | CO129: -1.540318004 | CP129: 0.09458324545 | CQ129: 5.150694401 | CR129: -4.968851223 | CS129: 2.954750474 | CT129: -0.04971664883 | CU129: 0.02956286919 | CV129: -0.02838532365 | CW129: -1.546566902 | CX129: 0.2800426317 | CY129: 4.978411129 | CZ129: -8.005292022 | DA129: 6.21683804 | DB129: -0.04973848369 | DC129: 0.02837320234 | DD129: -0.02723751248 | DE129: -1.547221669 | DF129: 0.09075176081 | DG129: 5.15284841 | DH129: -4.970916665 | DI129: 2.838235275 | DJ129: -4.598542183 | DK129: 2.3266913 | DL129: -10.12376508 | DM129: 2.928987036 | DN129: 10.53895556 | DO129: -2.722552824 | DP129: -154.5854523
